Workbook

Sheet Výstup
AB3: =ventil -> 1
AB4: =Logic!R3 -> Chybný teplotní spád !!!
AB5: =Logic!U3 -> Chybně zadané hodnoty !!!
AB6: =Logic!$U$3 -> Chybně zadané hodnoty !!!
B8: =Logic!$B$3 -> RADIK LINE VKM8-L
B10: =Logic!M3 -> Výběr modelu: | H10: =Logic!S3 -> Detailní výběr | S10: =IF(W10=0,0,Logic!$AB$3) -> 0 | W10: =MAX(Databaze!A:A) -> 0
B11: =Logic!B3 -> RADIK LINE VKM8-L | K11: =Logic!N3&" "&Logic!K3 -> Tepelný výkon od | M11: =Logic!$F$101 -> W | N11: =Logic!L3 -> do | P11: =Logic!$F$101 -> W
K12: =Logic!I3&" "&Logic!K3 -> Výška od | L12: =Logic!B68 -> vše | M12: mm | N12: =N11 -> do | O12: =Logic!B79 -> vše | P12: mm
C13: =Logic!T3 -> Zadání hodnot | K13: =Logic!J3&" "&Logic!K3 -> Délka od | L13: =Logic!B90 -> vše | M13: mm | N13: =N11 -> do | O13: =Logic!B111 -> vše | P13: mm
B14: =Logic!O3 -> Teplota: | K14: =IF(AND(L12=Logic!$G$3,Výstup!O12=Logic!$G$3),0,IF(O12=Logic!$G$3,Logic!$U$3,IF(L12>O12,Logic!$U$3,0))) -> 0 | L14: =IF(AND(L13=Logic!$G$3,Výstup!O13=Logic!$G$3),0,IF(O13=Logic!$G$3,Logic!$U$3,IF(L13>O13,Logic!$U$3,0))) -> 0
B15: t 1 | C15: t 2 | D15: t i | E15: D T | G15: D p
B16: 75 | C16: 65 | D16: 20 | E16: =(B16+C16)/2-D16 -> 50 | G16: 10 | H16: =ztrata_MJ -> kPa
B17: =Logic!H3 -> Tepelné výkony podle EN 442 | G17: =IF(OR('Výpočet Kv'!G10<1,'Výpočet Kv'!G10>20),Logic!$U$3,0) -> 0
B18: =IF(OR(B16<7,C16<6,B16>110,C16>110,B16<=C16,E16<=0,D16<4,D16>40.5),Logic!R3,0) -> 0
C19: =IF(AND($L$12=Logic!$G$3,$O$12=Logic!$G$3),1,IF(AND(C62>=$L$12,C62<=$O$12),1,0)) -> 1 | D19: =IF(AND($L$12=Logic!$G$3,$O$12=Logic!$G$3),1,IF(AND(D62>=$L$12,D62<=$O$12),1,0)) -> 1 | E19: =IF(AND($L$12=Logic!$G$3,$O$12=Logic!$G$3),1,IF(AND(E62>=$L$12,E62<=$O$12),1,0)) -> 1 | F19: =IF(AND($L$12=Logic!$G$3,$O$12=Logic!$G$3),1,IF(AND(F62>=$L$12,F62<=$O$12),1,0)) -> 1 | G19: =IF(AND($L$12=Logic!$G$3,$O$12=Logic!$G$3),1,IF(AND(G62>=$L$12,G62<=$O$12),1,0)) -> 1 | H19: =IF(AND($L$12=Logic!$G$3,$O$12=Logic!$G$3),1,IF(AND(H62>=$L$12,H62<=$O$12),1,0)) -> 1 | I19: =IF(AND($L$12=Logic!$G$3,$O$12=Logic!$G$3),1,IF(AND(I62>=$L$12,I62<=$O$12),1,0)) -> 1 | J19: =IF(AND($L$12=Logic!$G$3,$O$12=Logic!$G$3),1,IF(AND(J62>=$L$12,J62<=$O$12),1,0)) -> 1 | K19: =IF(AND($L$12=Logic!$G$3,$O$12=Logic!$G$3),1,IF(AND(K62>=$L$12,K62<=$O$12),1,0)) -> 1 | L19: =IF(AND($L$12=Logic!$G$3,$O$12=Logic!$G$3),1,IF(AND(L62>=$L$12,L62<=$O$12),1,0)) -> 1 | M19: =IF(AND($L$12=Logic!$G$3,$O$12=Logic!$G$3),1,IF(AND(M62>=$L$12,M62<=$O$12),1,0)) -> 1 | N19: =IF(AND($L$12=Logic!$G$3,$O$12=Logic!$G$3),1,IF(AND(N62>=$L$12,N62<=$O$12),1,0)) -> 1 | O19: =IF(AND($L$12=Logic!$G$3,$O$12=Logic!$G$3),1,IF(AND(O62>=$L$12,O62<=$O$12),1,0)) -> 1 | P19: =IF(AND($L$12=Logic!$G$3,$O$12=Logic!$G$3),1,IF(AND(P62>=$L$12,P62<=$O$12),1,0)) -> 1
C20: =F20 -> 0 | D20: =F20 -> 0 | E20: =F20 -> 0 | F20: =IF(Výpočet!W18=0,0,Logic!$P$3&" "&Výpočet!W18) -> 0 | G20: =F20 -> 0 | H20: =F20 -> 0 | I20: =F20 -> 0 | J20: =M20 -> Typ 11 | K20: =M20 -> Typ 11 | L20: =M20 -> Typ 11 | M20: =IF(OR(Logic!$C$3="A0",Logic!$C$3="B0",Logic!$C$3="K0",Logic!$C$3="P0",Výpočet!AD18=0,Logic!$C$3="V0",Logic!$C$3="U0"),0,Logic!$P$3&" "&Výpočet!AD18) -> Typ 11 | N20: =M20 -> Typ 11 | O20: =M20 -> Typ 11 | P20: =M20 -> Typ 11
B21: =Logic!$J$3&" [mm]" -> Délka [mm] | C21: =IF(C20=0,0,Logic!$I$3&" [mm]") -> 0 | J21: =IF(J20=0,0,Logic!$I$3&" [mm]") -> Výška [mm] | Q21: =IF(OR(Logic!$C$3="V0",Logic!$C$3="U0"),Logic!$I$3,Logic!$J$3)&" [mm]" -> Délka [mm]
C22: =Výpočet!T19 -> 200 | D22: =Výpočet!U19 -> 300 | E22: =Výpočet!V19 -> 400 | F22: =Výpočet!W19 -> 500 | G22: =Výpočet!X19 -> 600 | H22: =Výpočet!Y19 -> 700 | I22: =Výpočet!Z19 -> 900 | J22: =Výpočet!AA19 -> 200 | K22: =Výpočet!AB19 -> 300 | L22: =Výpočet!AC19 -> 400 | M22: =Výpočet!AD19 -> 500 | N22: =Výpočet!AE19 -> 600 | O22: =Výpočet!AF19 -> 700 | P22: =Výpočet!AG19 -> 900
B23: =Výpočet!S20 -> 400 | C23: =IF(OR(C$19=0,$R23=0),0,ROUND(Výpočet!C20*Výpočet!AK20*Logic!$G$101,0)) -> 0 | D23: =IF(OR(D$19=0,$R23=0),0,ROUND(Výpočet!D20*Výpočet!AL20*Logic!$G$101,0)) -> 0 | E23: =IF(OR(E$19=0,$R23=0),0,ROUND(Výpočet!E20*Výpočet!AM20*Logic!$G$101,0)) -> 0 | F23: =IF(OR(F$19=0,$R23=0),0,ROUND(Výpočet!F20*Výpočet!AN20*Logic!$G$101,0)) -> 0 | G23: =IF(OR(G$19=0,$R23=0),0,ROUND(Výpočet!G20*Výpočet!AO20*Logic!$G$101,0)) -> 0 | H23: =IF(OR(H$19=0,$R23=0),0,ROUND(Výpočet!H20*Výpočet!AP20*Logic!$G$101,0)) -> 0 | I23: =IF(OR(I$19=0,$R23=0),0,ROUND(Výpočet!I20*Výpočet!AQ20*Logic!$G$101,0)) -> 0 | J23: =IF(OR(J$19=0,$R23=0),0,ROUND(Výpočet!J20*Výpočet!AR20*Logic!$G$101,0)) -> 0 | K23: =IF(OR(K$19=0,$R23=0),0,ROUND(Výpočet!K20*Výpočet!AS20*Logic!$G$101,0)) -> 0 | L23: =IF(OR(L$19=0,$R23=0),0,ROUND(Výpočet!L20*Výpočet!AT20*Logic!$G$101,0)) -> 0 | M23: =IF(OR(M$19=0,$R23=0),0,ROUND(Výpočet!M20*Výpočet!AU20*Logic!$G$101,0)) -> 0 | N23: =IF(OR(N$19=0,$R23=0),0,ROUND(Výpočet!N20*Výpočet!AV20*Logic!$G$101,0)) -> 0 | O23: =IF(OR(O$19=0,$R23=0),0,ROUND(Výpočet!O20*Výpočet!AW20*Logic!$G$101,0)) -> 0 | P23: =IF(OR(P$19=0,$R23=0),0,ROUND(Výpočet!P20*Výpočet!AX20*Logic!$G$101,0)) -> 0 | Q23: =Výpočet!AH20 -> 400 | R23: =IF(AND($L$13=Logic!$G$3,$O$13=Logic!$G$3),1,IF(Q23=$L$13,1,0)) -> 1
B24: =Výpočet!S21 -> 500 | C24: =IF(OR(C$19=0,$R24=0),0,ROUND(Výpočet!C21*Výpočet!AK21*Logic!$G$101,0)) -> 0 | D24: =IF(OR(D$19=0,$R24=0),0,ROUND(Výpočet!D21*Výpočet!AL21*Logic!$G$101,0)) -> 0 | E24: =IF(OR(E$19=0,$R24=0),0,ROUND(Výpočet!E21*Výpočet!AM21*Logic!$G$101,0)) -> 0 | F24: =IF(OR(F$19=0,$R24=0),0,ROUND(Výpočet!F21*Výpočet!AN21*Logic!$G$101,0)) -> 0 | G24: =IF(OR(G$19=0,$R24=0),0,ROUND(Výpočet!G21*Výpočet!AO21*Logic!$G$101,0)) -> 0 | H24: =IF(OR(H$19=0,$R24=0),0,ROUND(Výpočet!H21*Výpočet!AP21*Logic!$G$101,0)) -> 0 | I24: =IF(OR(I$19=0,$R24=0),0,ROUND(Výpočet!I21*Výpočet!AQ21*Logic!$G$101,0)) -> 0 | J24: =IF(OR(J$19=0,$R24=0),0,ROUND(Výpočet!J21*Výpočet!AR21*Logic!$G$101,0)) -> 0 | K24: =IF(OR(K$19=0,$R24=0),0,ROUND(Výpočet!K21*Výpočet!AS21*Logic!$G$101,0)) -> 265 | L24: =IF(OR(L$19=0,$R24=0),0,ROUND(Výpočet!L21*Výpočet!AT21*Logic!$G$101,0)) -> 329 | M24: =IF(OR(M$19=0,$R24=0),0,ROUND(Výpočet!M21*Výpočet!AU21*Logic!$G$101,0)) -> 390 | N24: =IF(OR(N$19=0,$R24=0),0,ROUND(Výpočet!N21*Výpočet!AV21*Logic!$G$101,0)) -> 449 | O24: =IF(OR(O$19=0,$R24=0),0,ROUND(Výpočet!O21*Výpočet!AW21*Logic!$G$101,0)) -> 506 | P24: =IF(OR(P$19=0,$R24=0),0,ROUND(Výpočet!P21*Výpočet!AX21*Logic!$G$101,0)) -> 616 | Q24: =Výpočet!AH21 -> 500 | R24: =IF(AND($L$13=Logic!$G$3,$O$13=Logic!$G$3),1,IF(AND(Q24>=$L$13,Q24<=$O$13),1,0)) -> 1
B25: =Výpočet!S22 -> 600 | C25: =IF(OR(C$19=0,$R25=0),0,ROUND(Výpočet!C22*Výpočet!AK22*Logic!$G$101,0)) -> 0 | D25: =IF(OR(D$19=0,$R25=0),0,ROUND(Výpočet!D22*Výpočet!AL22*Logic!$G$101,0)) -> 0 | E25: =IF(OR(E$19=0,$R25=0),0,ROUND(Výpočet!E22*Výpočet!AM22*Logic!$G$101,0)) -> 0 | F25: =IF(OR(F$19=0,$R25=0),0,ROUND(Výpočet!F22*Výpočet!AN22*Logic!$G$101,0)) -> 0 | G25: =IF(OR(G$19=0,$R25=0),0,ROUND(Výpočet!G22*Výpočet!AO22*Logic!$G$101,0)) -> 0 | H25: =IF(OR(H$19=0,$R25=0),0,ROUND(Výpočet!H22*Výpočet!AP22*Logic!$G$101,0)) -> 0 | I25: =IF(OR(I$19=0,$R25=0),0,ROUND(Výpočet!I22*Výpočet!AQ22*Logic!$G$101,0)) -> 0 | J25: =IF(OR(J$19=0,$R25=0),0,ROUND(Výpočet!J22*Výpočet!AR22*Logic!$G$101,0)) -> 0 | K25: =IF(OR(K$19=0,$R25=0),0,ROUND(Výpočet!K22*Výpočet!AS22*Logic!$G$101,0)) -> 318 | L25: =IF(OR(L$19=0,$R25=0),0,ROUND(Výpočet!L22*Výpočet!AT22*Logic!$G$101,0)) -> 395 | M25: =IF(OR(M$19=0,$R25=0),0,ROUND(Výpočet!M22*Výpočet!AU22*Logic!$G$101,0)) -> 468 | N25: =IF(OR(N$19=0,$R25=0),0,ROUND(Výpočet!N22*Výpočet!AV22*Logic!$G$101,0)) -> 538 | O25: =IF(OR(O$19=0,$R25=0),0,ROUND(Výpočet!O22*Výpočet!AW22*Logic!$G$101,0)) -> 607 | P25: =IF(OR(P$19=0,$R25=0),0,ROUND(Výpočet!P22*Výpočet!AX22*Logic!$G$101,0)) -> 739 | Q25: =Výpočet!AH22 -> 600 | R25: =IF(AND($L$13=Logic!$G$3,$O$13=Logic!$G$3),1,IF(AND(Q25>=$L$13,Q25<=$O$13),1,0)) -> 1
B26: =Výpočet!S23 -> 700 | C26: =IF(OR(C$19=0,$R26=0),0,ROUND(Výpočet!C23*Výpočet!AK23*Logic!$G$101,0)) -> 0 | D26: =IF(OR(D$19=0,$R26=0),0,ROUND(Výpočet!D23*Výpočet!AL23*Logic!$G$101,0)) -> 0 | E26: =IF(OR(E$19=0,$R26=0),0,ROUND(Výpočet!E23*Výpočet!AM23*Logic!$G$101,0)) -> 0 | F26: =IF(OR(F$19=0,$R26=0),0,ROUND(Výpočet!F23*Výpočet!AN23*Logic!$G$101,0)) -> 0 | G26: =IF(OR(G$19=0,$R26=0),0,ROUND(Výpočet!G23*Výpočet!AO23*Logic!$G$101,0)) -> 0 | H26: =IF(OR(H$19=0,$R26=0),0,ROUND(Výpočet!H23*Výpočet!AP23*Logic!$G$101,0)) -> 0 | I26: =IF(OR(I$19=0,$R26=0),0,ROUND(Výpočet!I23*Výpočet!AQ23*Logic!$G$101,0)) -> 0 | J26: =IF(OR(J$19=0,$R26=0),0,ROUND(Výpočet!J23*Výpočet!AR23*Logic!$G$101,0)) -> 0 | K26: =IF(OR(K$19=0,$R26=0),0,ROUND(Výpočet!K23*Výpočet!AS23*Logic!$G$101,0)) -> 371 | L26: =IF(OR(L$19=0,$R26=0),0,ROUND(Výpočet!L23*Výpočet!AT23*Logic!$G$101,0)) -> 461 | M26: =IF(OR(M$19=0,$R26=0),0,ROUND(Výpočet!M23*Výpočet!AU23*Logic!$G$101,0)) -> 546 | N26: =IF(OR(N$19=0,$R26=0),0,ROUND(Výpočet!N23*Výpočet!AV23*Logic!$G$101,0)) -> 628 | O26: =IF(OR(O$19=0,$R26=0),0,ROUND(Výpočet!O23*Výpočet!AW23*Logic!$G$101,0)) -> 708 | P26: =IF(OR(P$19=0,$R26=0),0,ROUND(Výpočet!P23*Výpočet!AX23*Logic!$G$101,0)) -> 862 | Q26: =Výpočet!AH23 -> 700 | R26: =IF(AND($L$13=Logic!$G$3,$O$13=Logic!$G$3),1,IF(AND(Q26>=$L$13,Q26<=$O$13),1,0)) -> 1
B27: =Výpočet!S24 -> 800 | C27: =IF(OR(C$19=0,$R27=0),0,ROUND(Výpočet!C24*Výpočet!AK24*Logic!$G$101,0)) -> 0 | D27: =IF(OR(D$19=0,$R27=0),0,ROUND(Výpočet!D24*Výpočet!AL24*Logic!$G$101,0)) -> 0 | E27: =IF(OR(E$19=0,$R27=0),0,ROUND(Výpočet!E24*Výpočet!AM24*Logic!$G$101,0)) -> 0 | F27: =IF(OR(F$19=0,$R27=0),0,ROUND(Výpočet!F24*Výpočet!AN24*Logic!$G$101,0)) -> 0 | G27: =IF(OR(G$19=0,$R27=0),0,ROUND(Výpočet!G24*Výpočet!AO24*Logic!$G$101,0)) -> 0 | H27: =IF(OR(H$19=0,$R27=0),0,ROUND(Výpočet!H24*Výpočet!AP24*Logic!$G$101,0)) -> 0 | I27: =IF(OR(I$19=0,$R27=0),0,ROUND(Výpočet!I24*Výpočet!AQ24*Logic!$G$101,0)) -> 0 | J27: =IF(OR(J$19=0,$R27=0),0,ROUND(Výpočet!J24*Výpočet!AR24*Logic!$G$101,0)) -> 0 | K27: =IF(OR(K$19=0,$R27=0),0,ROUND(Výpočet!K24*Výpočet!AS24*Logic!$G$101,0)) -> 424 | L27: =IF(OR(L$19=0,$R27=0),0,ROUND(Výpočet!L24*Výpočet!AT24*Logic!$G$101,0)) -> 526 | M27: =IF(OR(M$19=0,$R27=0),0,ROUND(Výpočet!M24*Výpočet!AU24*Logic!$G$101,0)) -> 624 | N27: =IF(OR(N$19=0,$R27=0),0,ROUND(Výpočet!N24*Výpočet!AV24*Logic!$G$101,0)) -> 718 | O27: =IF(OR(O$19=0,$R27=0),0,ROUND(Výpočet!O24*Výpočet!AW24*Logic!$G$101,0)) -> 809 | P27: =IF(OR(P$19=0,$R27=0),0,ROUND(Výpočet!P24*Výpočet!AX24*Logic!$G$101,0)) -> 985 | Q27: =Výpočet!AH24 -> 800 | R27: =IF(AND($L$13=Logic!$G$3,$O$13=Logic!$G$3),1,IF(AND(Q27>=$L$13,Q27<=$O$13),1,0)) -> 1
B28: =Výpočet!S25 -> 900 | C28: =IF(OR(C$19=0,$R28=0),0,ROUND(Výpočet!C25*Výpočet!AK25*Logic!$G$101,0)) -> 0 | D28: =IF(OR(D$19=0,$R28=0),0,ROUND(Výpočet!D25*Výpočet!AL25*Logic!$G$101,0)) -> 0 | E28: =IF(OR(E$19=0,$R28=0),0,ROUND(Výpočet!E25*Výpočet!AM25*Logic!$G$101,0)) -> 0 | F28: =IF(OR(F$19=0,$R28=0),0,ROUND(Výpočet!F25*Výpočet!AN25*Logic!$G$101,0)) -> 0 | G28: =IF(OR(G$19=0,$R28=0),0,ROUND(Výpočet!G25*Výpočet!AO25*Logic!$G$101,0)) -> 0 | H28: =IF(OR(H$19=0,$R28=0),0,ROUND(Výpočet!H25*Výpočet!AP25*Logic!$G$101,0)) -> 0 | I28: =IF(OR(I$19=0,$R28=0),0,ROUND(Výpočet!I25*Výpočet!AQ25*Logic!$G$101,0)) -> 0 | J28: =IF(OR(J$19=0,$R28=0),0,ROUND(Výpočet!J25*Výpočet!AR25*Logic!$G$101,0)) -> 0 | K28: =IF(OR(K$19=0,$R28=0),0,ROUND(Výpočet!K25*Výpočet!AS25*Logic!$G$101,0)) -> 477 | L28: =IF(OR(L$19=0,$R28=0),0,ROUND(Výpočet!L25*Výpočet!AT25*Logic!$G$101,0)) -> 592 | M28: =IF(OR(M$19=0,$R28=0),0,ROUND(Výpočet!M25*Výpočet!AU25*Logic!$G$101,0)) -> 702 | N28: =IF(OR(N$19=0,$R28=0),0,ROUND(Výpočet!N25*Výpočet!AV25*Logic!$G$101,0)) -> 807 | O28: =IF(OR(O$19=0,$R28=0),0,ROUND(Výpočet!O25*Výpočet!AW25*Logic!$G$101,0)) -> 910 | P28: =IF(OR(P$19=0,$R28=0),0,ROUND(Výpočet!P25*Výpočet!AX25*Logic!$G$101,0)) -> 1108 | Q28: =Výpočet!AH25 -> 900 | R28: =IF(AND($L$13=Logic!$G$3,$O$13=Logic!$G$3),1,IF(AND(Q28>=$L$13,Q28<=$O$13),1,0)) -> 1
B29: =Výpočet!S26 -> 1000 | C29: =IF(OR(C$19=0,$R29=0),0,ROUND(Výpočet!C26*Výpočet!AK26*Logic!$G$101,0)) -> 0 | D29: =IF(OR(D$19=0,$R29=0),0,ROUND(Výpočet!D26*Výpočet!AL26*Logic!$G$101,0)) -> 0 | E29: =IF(OR(E$19=0,$R29=0),0,ROUND(Výpočet!E26*Výpočet!AM26*Logic!$G$101,0)) -> 0 | F29: =IF(OR(F$19=0,$R29=0),0,ROUND(Výpočet!F26*Výpočet!AN26*Logic!$G$101,0)) -> 0 | G29: =IF(OR(G$19=0,$R29=0),0,ROUND(Výpočet!G26*Výpočet!AO26*Logic!$G$101,0)) -> 0 | H29: =IF(OR(H$19=0,$R29=0),0,ROUND(Výpočet!H26*Výpočet!AP26*Logic!$G$101,0)) -> 0 | I29: =IF(OR(I$19=0,$R29=0),0,ROUND(Výpočet!I26*Výpočet!AQ26*Logic!$G$101,0)) -> 0 | J29: =IF(OR(J$19=0,$R29=0),0,ROUND(Výpočet!J26*Výpočet!AR26*Logic!$G$101,0)) -> 0 | K29: =IF(OR(K$19=0,$R29=0),0,ROUND(Výpočet!K26*Výpočet!AS26*Logic!$G$101,0)) -> 530 | L29: =IF(OR(L$19=0,$R29=0),0,ROUND(Výpočet!L26*Výpočet!AT26*Logic!$G$101,0)) -> 658 | M29: =IF(OR(M$19=0,$R29=0),0,ROUND(Výpočet!M26*Výpočet!AU26*Logic!$G$101,0)) -> 780 | N29: =IF(OR(N$19=0,$R29=0),0,ROUND(Výpočet!N26*Výpočet!AV26*Logic!$G$101,0)) -> 897 | O29: =IF(OR(O$19=0,$R29=0),0,ROUND(Výpočet!O26*Výpočet!AW26*Logic!$G$101,0)) -> 1011 | P29: =IF(OR(P$19=0,$R29=0),0,ROUND(Výpočet!P26*Výpočet!AX26*Logic!$G$101,0)) -> 1231 | Q29: =Výpočet!AH26 -> 1000 | R29: =IF(AND($L$13=Logic!$G$3,$O$13=Logic!$G$3),1,IF(AND(Q29>=$L$13,Q29<=$O$13),1,0)) -> 1
B30: =Výpočet!S27 -> 1100 | C30: =IF(OR(C$19=0,$R30=0),0,ROUND(Výpočet!C27*Výpočet!AK27*Logic!$G$101,0)) -> 0 | D30: =IF(OR(D$19=0,$R30=0),0,ROUND(Výpočet!D27*Výpočet!AL27*Logic!$G$101,0)) -> 0 | E30: =IF(OR(E$19=0,$R30=0),0,ROUND(Výpočet!E27*Výpočet!AM27*Logic!$G$101,0)) -> 0 | F30: =IF(OR(F$19=0,$R30=0),0,ROUND(Výpočet!F27*Výpočet!AN27*Logic!$G$101,0)) -> 0 | G30: =IF(OR(G$19=0,$R30=0),0,ROUND(Výpočet!G27*Výpočet!AO27*Logic!$G$101,0)) -> 0 | H30: =IF(OR(H$19=0,$R30=0),0,ROUND(Výpočet!H27*Výpočet!AP27*Logic!$G$101,0)) -> 0 | I30: =IF(OR(I$19=0,$R30=0),0,ROUND(Výpočet!I27*Výpočet!AQ27*Logic!$G$101,0)) -> 0 | J30: =IF(OR(J$19=0,$R30=0),0,ROUND(Výpočet!J27*Výpočet!AR27*Logic!$G$101,0)) -> 0 | K30: =IF(OR(K$19=0,$R30=0),0,ROUND(Výpočet!K27*Výpočet!AS27*Logic!$G$101,0)) -> 583 | L30: =IF(OR(L$19=0,$R30=0),0,ROUND(Výpočet!L27*Výpočet!AT27*Logic!$G$101,0)) -> 724 | M30: =IF(OR(M$19=0,$R30=0),0,ROUND(Výpočet!M27*Výpočet!AU27*Logic!$G$101,0)) -> 858 | N30: =IF(OR(N$19=0,$R30=0),0,ROUND(Výpočet!N27*Výpočet!AV27*Logic!$G$101,0)) -> 987 | O30: =IF(OR(O$19=0,$R30=0),0,ROUND(Výpočet!O27*Výpočet!AW27*Logic!$G$101,0)) -> 1112 | P30: =IF(OR(P$19=0,$R30=0),0,ROUND(Výpočet!P27*Výpočet!AX27*Logic!$G$101,0)) -> 1354 | Q30: =Výpočet!AH27 -> 1100 | R30: =IF(AND($L$13=Logic!$G$3,$O$13=Logic!$G$3),1,IF(AND(Q30>=$L$13,Q30<=$O$13),1,0)) -> 1
B31: =Výpočet!S28 -> 1200 | C31: =IF(OR(C$19=0,$R31=0),0,ROUND(Výpočet!C28*Výpočet!AK28*Logic!$G$101,0)) -> 0 | D31: =IF(OR(D$19=0,$R31=0),0,ROUND(Výpočet!D28*Výpočet!AL28*Logic!$G$101,0)) -> 0 | E31: =IF(OR(E$19=0,$R31=0),0,ROUND(Výpočet!E28*Výpočet!AM28*Logic!$G$101,0)) -> 0 | F31: =IF(OR(F$19=0,$R31=0),0,ROUND(Výpočet!F28*Výpočet!AN28*Logic!$G$101,0)) -> 0 | G31: =IF(OR(G$19=0,$R31=0),0,ROUND(Výpočet!G28*Výpočet!AO28*Logic!$G$101,0)) -> 0 | H31: =IF(OR(H$19=0,$R31=0),0,ROUND(Výpočet!H28*Výpočet!AP28*Logic!$G$101,0)) -> 0 | I31: =IF(OR(I$19=0,$R31=0),0,ROUND(Výpočet!I28*Výpočet!AQ28*Logic!$G$101,0)) -> 0 | J31: =IF(OR(J$19=0,$R31=0),0,ROUND(Výpočet!J28*Výpočet!AR28*Logic!$G$101,0)) -> 0 | K31: =IF(OR(K$19=0,$R31=0),0,ROUND(Výpočet!K28*Výpočet!AS28*Logic!$G$101,0)) -> 636 | L31: =IF(OR(L$19=0,$R31=0),0,ROUND(Výpočet!L28*Výpočet!AT28*Logic!$G$101,0)) -> 790 | M31: =IF(OR(M$19=0,$R31=0),0,ROUND(Výpočet!M28*Výpočet!AU28*Logic!$G$101,0)) -> 936 | N31: =IF(OR(N$19=0,$R31=0),0,ROUND(Výpočet!N28*Výpočet!AV28*Logic!$G$101,0)) -> 1076 | O31: =IF(OR(O$19=0,$R31=0),0,ROUND(Výpočet!O28*Výpočet!AW28*Logic!$G$101,0)) -> 1213 | P31: =IF(OR(P$19=0,$R31=0),0,ROUND(Výpočet!P28*Výpočet!AX28*Logic!$G$101,0)) -> 1477 | Q31: =Výpočet!AH28 -> 1200 | R31: =IF(AND($L$13=Logic!$G$3,$O$13=Logic!$G$3),1,IF(AND(Q31>=$L$13,Q31<=$O$13),1,0)) -> 1
B32: =Výpočet!S29 -> 1400 | C32: =IF(OR(C$19=0,$R32=0),0,ROUND(Výpočet!C29*Výpočet!AK29*Logic!$G$101,0)) -> 0 | D32: =IF(OR(D$19=0,$R32=0),0,ROUND(Výpočet!D29*Výpočet!AL29*Logic!$G$101,0)) -> 0 | E32: =IF(OR(E$19=0,$R32=0),0,ROUND(Výpočet!E29*Výpočet!AM29*Logic!$G$101,0)) -> 0 | F32: =IF(OR(F$19=0,$R32=0),0,ROUND(Výpočet!F29*Výpočet!AN29*Logic!$G$101,0)) -> 0 | G32: =IF(OR(G$19=0,$R32=0),0,ROUND(Výpočet!G29*Výpočet!AO29*Logic!$G$101,0)) -> 0 | H32: =IF(OR(H$19=0,$R32=0),0,ROUND(Výpočet!H29*Výpočet!AP29*Logic!$G$101,0)) -> 0 | I32: =IF(OR(I$19=0,$R32=0),0,ROUND(Výpočet!I29*Výpočet!AQ29*Logic!$G$101,0)) -> 0 | J32: =IF(OR(J$19=0,$R32=0),0,ROUND(Výpočet!J29*Výpočet!AR29*Logic!$G$101,0)) -> 0 | K32: =IF(OR(K$19=0,$R32=0),0,ROUND(Výpočet!K29*Výpočet!AS29*Logic!$G$101,0)) -> 742 | L32: =IF(OR(L$19=0,$R32=0),0,ROUND(Výpočet!L29*Výpočet!AT29*Logic!$G$101,0)) -> 921 | M32: =IF(OR(M$19=0,$R32=0),0,ROUND(Výpočet!M29*Výpočet!AU29*Logic!$G$101,0)) -> 1092 | N32: =IF(OR(N$19=0,$R32=0),0,ROUND(Výpočet!N29*Výpočet!AV29*Logic!$G$101,0)) -> 1256 | O32: =IF(OR(O$19=0,$R32=0),0,ROUND(Výpočet!O29*Výpočet!AW29*Logic!$G$101,0)) -> 1415 | P32: =IF(OR(P$19=0,$R32=0),0,ROUND(Výpočet!P29*Výpočet!AX29*Logic!$G$101,0)) -> 1723 | Q32: =Výpočet!AH29 -> 1400 | R32: =IF(AND($L$13=Logic!$G$3,$O$13=Logic!$G$3),1,IF(AND(Q32>=$L$13,Q32<=$O$13),1,0)) -> 1
B33: =Výpočet!S30 -> 1600 | C33: =IF(OR(C$19=0,$R33=0),0,ROUND(Výpočet!C30*Výpočet!AK30*Logic!$G$101,0)) -> 0 | D33: =IF(OR(D$19=0,$R33=0),0,ROUND(Výpočet!D30*Výpočet!AL30*Logic!$G$101,0)) -> 0 | E33: =IF(OR(E$19=0,$R33=0),0,ROUND(Výpočet!E30*Výpočet!AM30*Logic!$G$101,0)) -> 0 | F33: =IF(OR(F$19=0,$R33=0),0,ROUND(Výpočet!F30*Výpočet!AN30*Logic!$G$101,0)) -> 0 | G33: =IF(OR(G$19=0,$R33=0),0,ROUND(Výpočet!G30*Výpočet!AO30*Logic!$G$101,0)) -> 0 | H33: =IF(OR(H$19=0,$R33=0),0,ROUND(Výpočet!H30*Výpočet!AP30*Logic!$G$101,0)) -> 0 | I33: =IF(OR(I$19=0,$R33=0),0,ROUND(Výpočet!I30*Výpočet!AQ30*Logic!$G$101,0)) -> 0 | J33: =IF(OR(J$19=0,$R33=0),0,ROUND(Výpočet!J30*Výpočet!AR30*Logic!$G$101,0)) -> 0 | K33: =IF(OR(K$19=0,$R33=0),0,ROUND(Výpočet!K30*Výpočet!AS30*Logic!$G$101,0)) -> 848 | L33: =IF(OR(L$19=0,$R33=0),0,ROUND(Výpočet!L30*Výpočet!AT30*Logic!$G$101,0)) -> 1053 | M33: =IF(OR(M$19=0,$R33=0),0,ROUND(Výpočet!M30*Výpočet!AU30*Logic!$G$101,0)) -> 1248 | N33: =IF(OR(N$19=0,$R33=0),0,ROUND(Výpočet!N30*Výpočet!AV30*Logic!$G$101,0)) -> 1435 | O33: =IF(OR(O$19=0,$R33=0),0,ROUND(Výpočet!O30*Výpočet!AW30*Logic!$G$101,0)) -> 1618 | P33: =IF(OR(P$19=0,$R33=0),0,ROUND(Výpočet!P30*Výpočet!AX30*Logic!$G$101,0)) -> 1970 | Q33: =Výpočet!AH30 -> 1600 | R33: =IF(AND($L$13=Logic!$G$3,$O$13=Logic!$G$3),1,IF(AND(Q33>=$L$13,Q33<=$O$13),1,0)) -> 1
B34: =Výpočet!S31 -> 1800 | C34: =IF(OR(C$19=0,$R34=0),0,ROUND(Výpočet!C31*Výpočet!AK31*Logic!$G$101,0)) -> 0 | D34: =IF(OR(D$19=0,$R34=0),0,ROUND(Výpočet!D31*Výpočet!AL31*Logic!$G$101,0)) -> 0 | E34: =IF(OR(E$19=0,$R34=0),0,ROUND(Výpočet!E31*Výpočet!AM31*Logic!$G$101,0)) -> 0 | F34: =IF(OR(F$19=0,$R34=0),0,ROUND(Výpočet!F31*Výpočet!AN31*Logic!$G$101,0)) -> 0 | G34: =IF(OR(G$19=0,$R34=0),0,ROUND(Výpočet!G31*Výpočet!AO31*Logic!$G$101,0)) -> 0 | H34: =IF(OR(H$19=0,$R34=0),0,ROUND(Výpočet!H31*Výpočet!AP31*Logic!$G$101,0)) -> 0 | I34: =IF(OR(I$19=0,$R34=0),0,ROUND(Výpočet!I31*Výpočet!AQ31*Logic!$G$101,0)) -> 0 | J34: =IF(OR(J$19=0,$R34=0),0,ROUND(Výpočet!J31*Výpočet!AR31*Logic!$G$101,0)) -> 0 | K34: =IF(OR(K$19=0,$R34=0),0,ROUND(Výpočet!K31*Výpočet!AS31*Logic!$G$101,0)) -> 954 | L34: =IF(OR(L$19=0,$R34=0),0,ROUND(Výpočet!L31*Výpočet!AT31*Logic!$G$101,0)) -> 1184 | M34: =IF(OR(M$19=0,$R34=0),0,ROUND(Výpočet!M31*Výpočet!AU31*Logic!$G$101,0)) -> 1404 | N34: =IF(OR(N$19=0,$R34=0),0,ROUND(Výpočet!N31*Výpočet!AV31*Logic!$G$101,0)) -> 1615 | O34: =IF(OR(O$19=0,$R34=0),0,ROUND(Výpočet!O31*Výpočet!AW31*Logic!$G$101,0)) -> 1820 | P34: =IF(OR(P$19=0,$R34=0),0,ROUND(Výpočet!P31*Výpočet!AX31*Logic!$G$101,0)) -> 0 | Q34: =Výpočet!AH31 -> 1800 | R34: =IF(AND($L$13=Logic!$G$3,$O$13=Logic!$G$3),1,IF(AND(Q34>=$L$13,Q34<=$O$13),1,0)) -> 1
B35: =Výpočet!S32 -> 2000 | C35: =IF(OR(C$19=0,$R35=0),0,ROUND(Výpočet!C32*Výpočet!AK32*Logic!$G$101,0)) -> 0 | D35: =IF(OR(D$19=0,$R35=0),0,ROUND(Výpočet!D32*Výpočet!AL32*Logic!$G$101,0)) -> 0 | E35: =IF(OR(E$19=0,$R35=0),0,ROUND(Výpočet!E32*Výpočet!AM32*Logic!$G$101,0)) -> 0 | F35: =IF(OR(F$19=0,$R35=0),0,ROUND(Výpočet!F32*Výpočet!AN32*Logic!$G$101,0)) -> 0 | G35: =IF(OR(G$19=0,$R35=0),0,ROUND(Výpočet!G32*Výpočet!AO32*Logic!$G$101,0)) -> 0 | H35: =IF(OR(H$19=0,$R35=0),0,ROUND(Výpočet!H32*Výpočet!AP32*Logic!$G$101,0)) -> 0 | I35: =IF(OR(I$19=0,$R35=0),0,ROUND(Výpočet!I32*Výpočet!AQ32*Logic!$G$101,0)) -> 0 | J35: =IF(OR(J$19=0,$R35=0),0,ROUND(Výpočet!J32*Výpočet!AR32*Logic!$G$101,0)) -> 0 | K35: =IF(OR(K$19=0,$R35=0),0,ROUND(Výpočet!K32*Výpočet!AS32*Logic!$G$101,0)) -> 1060 | L35: =IF(OR(L$19=0,$R35=0),0,ROUND(Výpočet!L32*Výpočet!AT32*Logic!$G$101,0)) -> 1316 | M35: =IF(OR(M$19=0,$R35=0),0,ROUND(Výpočet!M32*Výpočet!AU32*Logic!$G$101,0)) -> 1560 | N35: =IF(OR(N$19=0,$R35=0),0,ROUND(Výpočet!N32*Výpočet!AV32*Logic!$G$101,0)) -> 1794 | O35: =IF(OR(O$19=0,$R35=0),0,ROUND(Výpočet!O32*Výpočet!AW32*Logic!$G$101,0)) -> 2022 | P35: =IF(OR(P$19=0,$R35=0),0,ROUND(Výpočet!P32*Výpočet!AX32*Logic!$G$101,0)) -> 0 | Q35: =Výpočet!AH32 -> 2000 | R35: =IF(AND($L$13=Logic!$G$3,$O$13=Logic!$G$3),1,IF(AND(Q35>=$L$13,Q35<=$O$13),1,0)) -> 1
B36: =Výpočet!S33 -> 2300 | C36: =IF(OR(C$19=0,$R36=0),0,ROUND(Výpočet!C33*Výpočet!AK33*Logic!$G$101,0)) -> 0 | D36: =IF(OR(D$19=0,$R36=0),0,ROUND(Výpočet!D33*Výpočet!AL33*Logic!$G$101,0)) -> 0 | E36: =IF(OR(E$19=0,$R36=0),0,ROUND(Výpočet!E33*Výpočet!AM33*Logic!$G$101,0)) -> 0 | F36: =IF(OR(F$19=0,$R36=0),0,ROUND(Výpočet!F33*Výpočet!AN33*Logic!$G$101,0)) -> 0 | G36: =IF(OR(G$19=0,$R36=0),0,ROUND(Výpočet!G33*Výpočet!AO33*Logic!$G$101,0)) -> 0 | H36: =IF(OR(H$19=0,$R36=0),0,ROUND(Výpočet!H33*Výpočet!AP33*Logic!$G$101,0)) -> 0 | I36: =IF(OR(I$19=0,$R36=0),0,ROUND(Výpočet!I33*Výpočet!AQ33*Logic!$G$101,0)) -> 0 | J36: =IF(OR(J$19=0,$R36=0),0,ROUND(Výpočet!J33*Výpočet!AR33*Logic!$G$101,0)) -> 0 | K36: =IF(OR(K$19=0,$R36=0),0,ROUND(Výpočet!K33*Výpočet!AS33*Logic!$G$101,0)) -> 0 | L36: =IF(OR(L$19=0,$R36=0),0,ROUND(Výpočet!L33*Výpočet!AT33*Logic!$G$101,0)) -> 0 | M36: =IF(OR(M$19=0,$R36=0),0,ROUND(Výpočet!M33*Výpočet!AU33*Logic!$G$101,0)) -> 0 | N36: =IF(OR(N$19=0,$R36=0),0,ROUND(Výpočet!N33*Výpočet!AV33*Logic!$G$101,0)) -> 0 | O36: =IF(OR(O$19=0,$R36=0),0,ROUND(Výpočet!O33*Výpočet!AW33*Logic!$G$101,0)) -> 0 | P36: =IF(OR(P$19=0,$R36=0),0,ROUND(Výpočet!P33*Výpočet!AX33*Logic!$G$101,0)) -> 0 | Q36: =Výpočet!AH33 -> 2300 | R36: =IF(AND($L$13=Logic!$G$3,$O$13=Logic!$G$3),1,IF(AND(Q36>=$L$13,Q36<=$O$13),1,0)) -> 1
B37: =Výpočet!S34 -> 2600 | C37: =IF(OR(C$19=0,$R37=0),0,ROUND(Výpočet!C34*Výpočet!AK34*Logic!$G$101,0)) -> 0 | D37: =IF(OR(D$19=0,$R37=0),0,ROUND(Výpočet!D34*Výpočet!AL34*Logic!$G$101,0)) -> 0 | E37: =IF(OR(E$19=0,$R37=0),0,ROUND(Výpočet!E34*Výpočet!AM34*Logic!$G$101,0)) -> 0 | F37: =IF(OR(F$19=0,$R37=0),0,ROUND(Výpočet!F34*Výpočet!AN34*Logic!$G$101,0)) -> 0 | G37: =IF(OR(G$19=0,$R37=0),0,ROUND(Výpočet!G34*Výpočet!AO34*Logic!$G$101,0)) -> 0 | H37: =IF(OR(H$19=0,$R37=0),0,ROUND(Výpočet!H34*Výpočet!AP34*Logic!$G$101,0)) -> 0 | I37: =IF(OR(I$19=0,$R37=0),0,ROUND(Výpočet!I34*Výpočet!AQ34*Logic!$G$101,0)) -> 0 | J37: =IF(OR(J$19=0,$R37=0),0,ROUND(Výpočet!J34*Výpočet!AR34*Logic!$G$101,0)) -> 0 | K37: =IF(OR(K$19=0,$R37=0),0,ROUND(Výpočet!K34*Výpočet!AS34*Logic!$G$101,0)) -> 0 | L37: =IF(OR(L$19=0,$R37=0),0,ROUND(Výpočet!L34*Výpočet!AT34*Logic!$G$101,0)) -> 0 | M37: =IF(OR(M$19=0,$R37=0),0,ROUND(Výpočet!M34*Výpočet!AU34*Logic!$G$101,0)) -> 0 | N37: =IF(OR(N$19=0,$R37=0),0,ROUND(Výpočet!N34*Výpočet!AV34*Logic!$G$101,0)) -> 0 | O37: =IF(OR(O$19=0,$R37=0),0,ROUND(Výpočet!O34*Výpočet!AW34*Logic!$G$101,0)) -> 0 | P37: =IF(OR(P$19=0,$R37=0),0,ROUND(Výpočet!P34*Výpočet!AX34*Logic!$G$101,0)) -> 0 | Q37: =Výpočet!AH34 -> 2600 | R37: =IF(AND($L$13=Logic!$G$3,$O$13=Logic!$G$3),1,IF(AND(Q37>=$L$13,Q37<=$O$13),1,0)) -> 1
B38: =Výpočet!S35 -> 3000 | C38: =IF(OR(C$19=0,$R38=0),0,ROUND(Výpočet!C35*Výpočet!AK35*Logic!$G$101,0)) -> 0 | D38: =IF(OR(D$19=0,$R38=0),0,ROUND(Výpočet!D35*Výpočet!AL35*Logic!$G$101,0)) -> 0 | E38: =IF(OR(E$19=0,$R38=0),0,ROUND(Výpočet!E35*Výpočet!AM35*Logic!$G$101,0)) -> 0 | F38: =IF(OR(F$19=0,$R38=0),0,ROUND(Výpočet!F35*Výpočet!AN35*Logic!$G$101,0)) -> 0 | G38: =IF(OR(G$19=0,$R38=0),0,ROUND(Výpočet!G35*Výpočet!AO35*Logic!$G$101,0)) -> 0 | H38: =IF(OR(H$19=0,$R38=0),0,ROUND(Výpočet!H35*Výpočet!AP35*Logic!$G$101,0)) -> 0 | I38: =IF(OR(I$19=0,$R38=0),0,ROUND(Výpočet!I35*Výpočet!AQ35*Logic!$G$101,0)) -> 0 | J38: =IF(OR(J$19=0,$R38=0),0,ROUND(Výpočet!J35*Výpočet!AR35*Logic!$G$101,0)) -> 0 | K38: =IF(OR(K$19=0,$R38=0),0,ROUND(Výpočet!K35*Výpočet!AS35*Logic!$G$101,0)) -> 0 | L38: =IF(OR(L$19=0,$R38=0),0,ROUND(Výpočet!L35*Výpočet!AT35*Logic!$G$101,0)) -> 0 | M38: =IF(OR(M$19=0,$R38=0),0,ROUND(Výpočet!M35*Výpočet!AU35*Logic!$G$101,0)) -> 0 | N38: =IF(OR(N$19=0,$R38=0),0,ROUND(Výpočet!N35*Výpočet!AV35*Logic!$G$101,0)) -> 0 | O38: =IF(OR(O$19=0,$R38=0),0,ROUND(Výpočet!O35*Výpočet!AW35*Logic!$G$101,0)) -> 0 | P38: =IF(OR(P$19=0,$R38=0),0,ROUND(Výpočet!P35*Výpočet!AX35*Logic!$G$101,0)) -> 0 | Q38: =Výpočet!AH35 -> 3000 | R38: =IF(AND($L$13=Logic!$G$3,$O$13=Logic!$G$3),1,IF(AND(Q38>=$L$13,Q38<=$O$13),1,0)) -> 1
C40: =F40 -> Typ 20 | D40: =F40 -> Typ 20 | E40: =F40 -> Typ 20 | F40: =IF(Výpočet!W36=0,0,IF(OR(Logic!$C$3="K0",Logic!$C$3="P0",Logic!$C$3="A0",Logic!$C$3="B0"),Logic!$P$3&" "&Výpočet!W36&"S",Logic!$P$3&" "&Výpočet!W36)) -> Typ 20 | G40: =F40 -> Typ 20 | H40: =F40 -> Typ 20 | I40: =F40 -> Typ 20 | J40: =M40 -> Typ 21 | K40: =M40 -> Typ 21 | L40: =M40 -> Typ 21 | M40: =IF(OR(Logic!$C$3="A0",Logic!$C$3="B0",Logic!$C$3="K0",Logic!$C$3="P0",Výpočet!AD36=0,Logic!$C$3="V0",Logic!$C$3="U0"),0,Logic!$P$3&" "&Výpočet!AD36) -> Typ 21 | N40: =M40 -> Typ 21 | O40: =M40 -> Typ 21 | P40: =M40 -> Typ 21
B41: =Logic!$J$3&" [mm]" -> Délka [mm] | C41: =IF(C40=0,0,Logic!$I$3&" [mm]") -> Výška [mm] | J41: =IF(J40=0,0,Logic!$I$3&" [mm]") -> Výška [mm] | Q41: =IF(OR(Logic!$C$3="V0",Logic!$C$3="U0"),Logic!$I$3,Logic!$J$3)&" [mm]" -> Délka [mm]
C42: =Výpočet!T37 -> 200 | D42: =Výpočet!U37 -> 300 | E42: =Výpočet!V37 -> 400 | F42: =Výpočet!W37 -> 500 | G42: =Výpočet!X37 -> 600 | H42: =Výpočet!Y37 -> 700 | I42: =Výpočet!Z37 -> 900 | J42: =Výpočet!AA37 -> 200 | K42: =Výpočet!AB37 -> 300 | L42: =Výpočet!AC37 -> 400 | M42: =Výpočet!AD37 -> 500 | N42: =Výpočet!AE37 -> 600 | O42: =Výpočet!AF37 -> 700 | P42: =Výpočet!AG37 -> 900
B43: =Výpočet!S38 -> 400 | C43: =IF(OR(C$19=0,$R43=0),0,ROUND(Výpočet!C38*Výpočet!AK38*Logic!$G$101,0)) -> 0 | D43: =IF(OR(D$19=0,$R43=0),0,ROUND(Výpočet!D38*Výpočet!AL38*Logic!$G$101,0)) -> 0 | E43: =IF(OR(E$19=0,$R43=0),0,ROUND(Výpočet!E38*Výpočet!AM38*Logic!$G$101,0)) -> 0 | F43: =IF(OR(F$19=0,$R43=0),0,ROUND(Výpočet!F38*Výpočet!AN38*Logic!$G$101,0)) -> 0 | G43: =IF(OR(G$19=0,$R43=0),0,ROUND(Výpočet!G38*Výpočet!AO38*Logic!$G$101,0)) -> 0 | H43: =IF(OR(H$19=0,$R43=0),0,ROUND(Výpočet!H38*Výpočet!AP38*Logic!$G$101,0)) -> 0 | I43: =IF(OR(I$19=0,$R43=0),0,ROUND(Výpočet!I38*Výpočet!AQ38*Logic!$G$101,0)) -> 0 | J43: =IF(OR(J$19=0,$R43=0),0,ROUND(Výpočet!J38*Výpočet!AR38*Logic!$G$101,0)) -> 0 | K43: =IF(OR(K$19=0,$R43=0),0,ROUND(Výpočet!K38*Výpočet!AS38*Logic!$G$101,0)) -> 0 | L43: =IF(OR(L$19=0,$R43=0),0,ROUND(Výpočet!L38*Výpočet!AT38*Logic!$G$101,0)) -> 0 | M43: =IF(OR(M$19=0,$R43=0),0,ROUND(Výpočet!M38*Výpočet!AU38*Logic!$G$101,0)) -> 0 | N43: =IF(OR(N$19=0,$R43=0),0,ROUND(Výpočet!N38*Výpočet!AV38*Logic!$G$101,0)) -> 0 | O43: =IF(OR(O$19=0,$R43=0),0,ROUND(Výpočet!O38*Výpočet!AW38*Logic!$G$101,0)) -> 0 | P43: =IF(OR(P$19=0,$R43=0),0,ROUND(Výpočet!P38*Výpočet!AX38*Logic!$G$101,0)) -> 0 | Q43: =Výpočet!AH38 -> 400 | R43: =R23 -> 1
B44: =Výpočet!S39 -> 500 | C44: =IF(OR(C$19=0,$R44=0),0,ROUND(Výpočet!C39*Výpočet!AK39*Logic!$G$101,0)) -> 0 | D44: =IF(OR(D$19=0,$R44=0),0,ROUND(Výpočet!D39*Výpočet!AL39*Logic!$G$101,0)) -> 0 | E44: =IF(OR(E$19=0,$R44=0),0,ROUND(Výpočet!E39*Výpočet!AM39*Logic!$G$101,0)) -> 0 | F44: =IF(OR(F$19=0,$R44=0),0,ROUND(Výpočet!F39*Výpočet!AN39*Logic!$G$101,0)) -> 424 | G44: =IF(OR(G$19=0,$R44=0),0,ROUND(Výpočet!G39*Výpočet!AO39*Logic!$G$101,0)) -> 485 | H44: =IF(OR(H$19=0,$R44=0),0,ROUND(Výpočet!H39*Výpočet!AP39*Logic!$G$101,0)) -> 543 | I44: =IF(OR(I$19=0,$R44=0),0,ROUND(Výpočet!I39*Výpočet!AQ39*Logic!$G$101,0)) -> 0 | J44: =IF(OR(J$19=0,$R44=0),0,ROUND(Výpočet!J39*Výpočet!AR39*Logic!$G$101,0)) -> 0 | K44: =IF(OR(K$19=0,$R44=0),0,ROUND(Výpočet!K39*Výpočet!AS39*Logic!$G$101,0)) -> 360 | L44: =IF(OR(L$19=0,$R44=0),0,ROUND(Výpočet!L39*Výpočet!AT39*Logic!$G$101,0)) -> 452 | M44: =IF(OR(M$19=0,$R44=0),0,ROUND(Výpočet!M39*Výpočet!AU39*Logic!$G$101,0)) -> 536 | N44: =IF(OR(N$19=0,$R44=0),0,ROUND(Výpočet!N39*Výpočet!AV39*Logic!$G$101,0)) -> 613 | O44: =IF(OR(O$19=0,$R44=0),0,ROUND(Výpočet!O39*Výpočet!AW39*Logic!$G$101,0)) -> 684 | P44: =IF(OR(P$19=0,$R44=0),0,ROUND(Výpočet!P39*Výpočet!AX39*Logic!$G$101,0)) -> 809 | Q44: =Výpočet!AH39 -> 500 | R44: 1
B45: =Výpočet!S40 -> 600 | C45: =IF(OR(C$19=0,$R45=0),0,ROUND(Výpočet!C40*Výpočet!AK40*Logic!$G$101,0)) -> 0 | D45: =IF(OR(D$19=0,$R45=0),0,ROUND(Výpočet!D40*Výpočet!AL40*Logic!$G$101,0)) -> 0 | E45: =IF(OR(E$19=0,$R45=0),0,ROUND(Výpočet!E40*Výpočet!AM40*Logic!$G$101,0)) -> 0 | F45: =IF(OR(F$19=0,$R45=0),0,ROUND(Výpočet!F40*Výpočet!AN40*Logic!$G$101,0)) -> 509 | G45: =IF(OR(G$19=0,$R45=0),0,ROUND(Výpočet!G40*Výpočet!AO40*Logic!$G$101,0)) -> 581 | H45: =IF(OR(H$19=0,$R45=0),0,ROUND(Výpočet!H40*Výpočet!AP40*Logic!$G$101,0)) -> 651 | I45: =IF(OR(I$19=0,$R45=0),0,ROUND(Výpočet!I40*Výpočet!AQ40*Logic!$G$101,0)) -> 0 | J45: =IF(OR(J$19=0,$R45=0),0,ROUND(Výpočet!J40*Výpočet!AR40*Logic!$G$101,0)) -> 0 | K45: =IF(OR(K$19=0,$R45=0),0,ROUND(Výpočet!K40*Výpočet!AS40*Logic!$G$101,0)) -> 432 | L45: =IF(OR(L$19=0,$R45=0),0,ROUND(Výpočet!L40*Výpočet!AT40*Logic!$G$101,0)) -> 542 | M45: =IF(OR(M$19=0,$R45=0),0,ROUND(Výpočet!M40*Výpočet!AU40*Logic!$G$101,0)) -> 643 | N45: =IF(OR(N$19=0,$R45=0),0,ROUND(Výpočet!N40*Výpočet!AV40*Logic!$G$101,0)) -> 736 | O45: =IF(OR(O$19=0,$R45=0),0,ROUND(Výpočet!O40*Výpočet!AW40*Logic!$G$101,0)) -> 820 | P45: =IF(OR(P$19=0,$R45=0),0,ROUND(Výpočet!P40*Výpočet!AX40*Logic!$G$101,0)) -> 970 | Q45: =Výpočet!AH40 -> 600 | R45: 1
B46: =Výpočet!S41 -> 700 | C46: =IF(OR(C$19=0,$R46=0),0,ROUND(Výpočet!C41*Výpočet!AK41*Logic!$G$101,0)) -> 0 | D46: =IF(OR(D$19=0,$R46=0),0,ROUND(Výpočet!D41*Výpočet!AL41*Logic!$G$101,0)) -> 0 | E46: =IF(OR(E$19=0,$R46=0),0,ROUND(Výpočet!E41*Výpočet!AM41*Logic!$G$101,0)) -> 0 | F46: =IF(OR(F$19=0,$R46=0),0,ROUND(Výpočet!F41*Výpočet!AN41*Logic!$G$101,0)) -> 594 | G46: =IF(OR(G$19=0,$R46=0),0,ROUND(Výpočet!G41*Výpočet!AO41*Logic!$G$101,0)) -> 678 | H46: =IF(OR(H$19=0,$R46=0),0,ROUND(Výpočet!H41*Výpočet!AP41*Logic!$G$101,0)) -> 760 | I46: =IF(OR(I$19=0,$R46=0),0,ROUND(Výpočet!I41*Výpočet!AQ41*Logic!$G$101,0)) -> 0 | J46: =IF(OR(J$19=0,$R46=0),0,ROUND(Výpočet!J41*Výpočet!AR41*Logic!$G$101,0)) -> 0 | K46: =IF(OR(K$19=0,$R46=0),0,ROUND(Výpočet!K41*Výpočet!AS41*Logic!$G$101,0)) -> 504 | L46: =IF(OR(L$19=0,$R46=0),0,ROUND(Výpočet!L41*Výpočet!AT41*Logic!$G$101,0)) -> 633 | M46: =IF(OR(M$19=0,$R46=0),0,ROUND(Výpočet!M41*Výpočet!AU41*Logic!$G$101,0)) -> 750 | N46: =IF(OR(N$19=0,$R46=0),0,ROUND(Výpočet!N41*Výpočet!AV41*Logic!$G$101,0)) -> 858 | O46: =IF(OR(O$19=0,$R46=0),0,ROUND(Výpočet!O41*Výpočet!AW41*Logic!$G$101,0)) -> 957 | P46: =IF(OR(P$19=0,$R46=0),0,ROUND(Výpočet!P41*Výpočet!AX41*Logic!$G$101,0)) -> 1132 | Q46: =Výpočet!AH41 -> 700 | R46: 1
B47: =Výpočet!S42 -> 800 | C47: =IF(OR(C$19=0,$R47=0),0,ROUND(Výpočet!C42*Výpočet!AK42*Logic!$G$101,0)) -> 0 | D47: =IF(OR(D$19=0,$R47=0),0,ROUND(Výpočet!D42*Výpočet!AL42*Logic!$G$101,0)) -> 0 | E47: =IF(OR(E$19=0,$R47=0),0,ROUND(Výpočet!E42*Výpočet!AM42*Logic!$G$101,0)) -> 0 | F47: =IF(OR(F$19=0,$R47=0),0,ROUND(Výpočet!F42*Výpočet!AN42*Logic!$G$101,0)) -> 678 | G47: =IF(OR(G$19=0,$R47=0),0,ROUND(Výpočet!G42*Výpočet!AO42*Logic!$G$101,0)) -> 775 | H47: =IF(OR(H$19=0,$R47=0),0,ROUND(Výpočet!H42*Výpočet!AP42*Logic!$G$101,0)) -> 868 | I47: =IF(OR(I$19=0,$R47=0),0,ROUND(Výpočet!I42*Výpočet!AQ42*Logic!$G$101,0)) -> 0 | J47: =IF(OR(J$19=0,$R47=0),0,ROUND(Výpočet!J42*Výpočet!AR42*Logic!$G$101,0)) -> 0 | K47: =IF(OR(K$19=0,$R47=0),0,ROUND(Výpočet!K42*Výpočet!AS42*Logic!$G$101,0)) -> 576 | L47: =IF(OR(L$19=0,$R47=0),0,ROUND(Výpočet!L42*Výpočet!AT42*Logic!$G$101,0)) -> 723 | M47: =IF(OR(M$19=0,$R47=0),0,ROUND(Výpočet!M42*Výpočet!AU42*Logic!$G$101,0)) -> 858 | N47: =IF(OR(N$19=0,$R47=0),0,ROUND(Výpočet!N42*Výpočet!AV42*Logic!$G$101,0)) -> 981 | O47: =IF(OR(O$19=0,$R47=0),0,ROUND(Výpočet!O42*Výpočet!AW42*Logic!$G$101,0)) -> 1094 | P47: =IF(OR(P$19=0,$R47=0),0,ROUND(Výpočet!P42*Výpočet!AX42*Logic!$G$101,0)) -> 1294 | Q47: =Výpočet!AH42 -> 800 | R47: 1
B48: =Výpočet!S43 -> 900 | C48: =IF(OR(C$19=0,$R48=0),0,ROUND(Výpočet!C43*Výpočet!AK43*Logic!$G$101,0)) -> 0 | D48: =IF(OR(D$19=0,$R48=0),0,ROUND(Výpočet!D43*Výpočet!AL43*Logic!$G$101,0)) -> 0 | E48: =IF(OR(E$19=0,$R48=0),0,ROUND(Výpočet!E43*Výpočet!AM43*Logic!$G$101,0)) -> 0 | F48: =IF(OR(F$19=0,$R48=0),0,ROUND(Výpočet!F43*Výpočet!AN43*Logic!$G$101,0)) -> 763 | G48: =IF(OR(G$19=0,$R48=0),0,ROUND(Výpočet!G43*Výpočet!AO43*Logic!$G$101,0)) -> 872 | H48: =IF(OR(H$19=0,$R48=0),0,ROUND(Výpočet!H43*Výpočet!AP43*Logic!$G$101,0)) -> 977 | I48: =IF(OR(I$19=0,$R48=0),0,ROUND(Výpočet!I43*Výpočet!AQ43*Logic!$G$101,0)) -> 0 | J48: =IF(OR(J$19=0,$R48=0),0,ROUND(Výpočet!J43*Výpočet!AR43*Logic!$G$101,0)) -> 0 | K48: =IF(OR(K$19=0,$R48=0),0,ROUND(Výpočet!K43*Výpočet!AS43*Logic!$G$101,0)) -> 648 | L48: =IF(OR(L$19=0,$R48=0),0,ROUND(Výpočet!L43*Výpočet!AT43*Logic!$G$101,0)) -> 814 | M48: =IF(OR(M$19=0,$R48=0),0,ROUND(Výpočet!M43*Výpočet!AU43*Logic!$G$101,0)) -> 965 | N48: =IF(OR(N$19=0,$R48=0),0,ROUND(Výpočet!N43*Výpočet!AV43*Logic!$G$101,0)) -> 1103 | O48: =IF(OR(O$19=0,$R48=0),0,ROUND(Výpočet!O43*Výpočet!AW43*Logic!$G$101,0)) -> 1230 | P48: =IF(OR(P$19=0,$R48=0),0,ROUND(Výpočet!P43*Výpočet!AX43*Logic!$G$101,0)) -> 1455 | Q48: =Výpočet!AH43 -> 900 | R48: 1
B49: =Výpočet!S44 -> 1000 | C49: =IF(OR(C$19=0,$R49=0),0,ROUND(Výpočet!C44*Výpočet!AK44*Logic!$G$101,0)) -> 0 | D49: =IF(OR(D$19=0,$R49=0),0,ROUND(Výpočet!D44*Výpočet!AL44*Logic!$G$101,0)) -> 0 | E49: =IF(OR(E$19=0,$R49=0),0,ROUND(Výpočet!E44*Výpočet!AM44*Logic!$G$101,0)) -> 0 | F49: =IF(OR(F$19=0,$R49=0),0,ROUND(Výpočet!F44*Výpočet!AN44*Logic!$G$101,0)) -> 848 | G49: =IF(OR(G$19=0,$R49=0),0,ROUND(Výpočet!G44*Výpočet!AO44*Logic!$G$101,0)) -> 969 | H49: =IF(OR(H$19=0,$R49=0),0,ROUND(Výpočet!H44*Výpočet!AP44*Logic!$G$101,0)) -> 1085 | I49: =IF(OR(I$19=0,$R49=0),0,ROUND(Výpočet!I44*Výpočet!AQ44*Logic!$G$101,0)) -> 0 | J49: =IF(OR(J$19=0,$R49=0),0,ROUND(Výpočet!J44*Výpočet!AR44*Logic!$G$101,0)) -> 0 | K49: =IF(OR(K$19=0,$R49=0),0,ROUND(Výpočet!K44*Výpočet!AS44*Logic!$G$101,0)) -> 720 | L49: =IF(OR(L$19=0,$R49=0),0,ROUND(Výpočet!L44*Výpočet!AT44*Logic!$G$101,0)) -> 904 | M49: =IF(OR(M$19=0,$R49=0),0,ROUND(Výpočet!M44*Výpočet!AU44*Logic!$G$101,0)) -> 1072 | N49: =IF(OR(N$19=0,$R49=0),0,ROUND(Výpočet!N44*Výpočet!AV44*Logic!$G$101,0)) -> 1226 | O49: =IF(OR(O$19=0,$R49=0),0,ROUND(Výpočet!O44*Výpočet!AW44*Logic!$G$101,0)) -> 1367 | P49: =IF(OR(P$19=0,$R49=0),0,ROUND(Výpočet!P44*Výpočet!AX44*Logic!$G$101,0)) -> 1617 | Q49: =Výpočet!AH44 -> 1000 | R49: 1
B50: =Výpočet!S45 -> 1100 | C50: =IF(OR(C$19=0,$R50=0),0,ROUND(Výpočet!C45*Výpočet!AK45*Logic!$G$101,0)) -> 0 | D50: =IF(OR(D$19=0,$R50=0),0,ROUND(Výpočet!D45*Výpočet!AL45*Logic!$G$101,0)) -> 0 | E50: =IF(OR(E$19=0,$R50=0),0,ROUND(Výpočet!E45*Výpočet!AM45*Logic!$G$101,0)) -> 0 | F50: =IF(OR(F$19=0,$R50=0),0,ROUND(Výpočet!F45*Výpočet!AN45*Logic!$G$101,0)) -> 933 | G50: =IF(OR(G$19=0,$R50=0),0,ROUND(Výpočet!G45*Výpočet!AO45*Logic!$G$101,0)) -> 1066 | H50: =IF(OR(H$19=0,$R50=0),0,ROUND(Výpočet!H45*Výpočet!AP45*Logic!$G$101,0)) -> 1194 | I50: =IF(OR(I$19=0,$R50=0),0,ROUND(Výpočet!I45*Výpočet!AQ45*Logic!$G$101,0)) -> 0 | J50: =IF(OR(J$19=0,$R50=0),0,ROUND(Výpočet!J45*Výpočet!AR45*Logic!$G$101,0)) -> 0 | K50: =IF(OR(K$19=0,$R50=0),0,ROUND(Výpočet!K45*Výpočet!AS45*Logic!$G$101,0)) -> 792 | L50: =IF(OR(L$19=0,$R50=0),0,ROUND(Výpočet!L45*Výpočet!AT45*Logic!$G$101,0)) -> 994 | M50: =IF(OR(M$19=0,$R50=0),0,ROUND(Výpočet!M45*Výpočet!AU45*Logic!$G$101,0)) -> 1179 | N50: =IF(OR(N$19=0,$R50=0),0,ROUND(Výpočet!N45*Výpočet!AV45*Logic!$G$101,0)) -> 1349 | O50: =IF(OR(O$19=0,$R50=0),0,ROUND(Výpočet!O45*Výpočet!AW45*Logic!$G$101,0)) -> 1504 | P50: =IF(OR(P$19=0,$R50=0),0,ROUND(Výpočet!P45*Výpočet!AX45*Logic!$G$101,0)) -> 1779 | Q50: =Výpočet!AH45 -> 1100 | R50: 1
B51: =Výpočet!S46 -> 1200 | C51: =IF(OR(C$19=0,$R51=0),0,ROUND(Výpočet!C46*Výpočet!AK46*Logic!$G$101,0)) -> 0 | D51: =IF(OR(D$19=0,$R51=0),0,ROUND(Výpočet!D46*Výpočet!AL46*Logic!$G$101,0)) -> 0 | E51: =IF(OR(E$19=0,$R51=0),0,ROUND(Výpočet!E46*Výpočet!AM46*Logic!$G$101,0)) -> 0 | F51: =IF(OR(F$19=0,$R51=0),0,ROUND(Výpočet!F46*Výpočet!AN46*Logic!$G$101,0)) -> 1018 | G51: =IF(OR(G$19=0,$R51=0),0,ROUND(Výpočet!G46*Výpočet!AO46*Logic!$G$101,0)) -> 1163 | H51: =IF(OR(H$19=0,$R51=0),0,ROUND(Výpočet!H46*Výpočet!AP46*Logic!$G$101,0)) -> 1302 | I51: =IF(OR(I$19=0,$R51=0),0,ROUND(Výpočet!I46*Výpočet!AQ46*Logic!$G$101,0)) -> 0 | J51: =IF(OR(J$19=0,$R51=0),0,ROUND(Výpočet!J46*Výpočet!AR46*Logic!$G$101,0)) -> 0 | K51: =IF(OR(K$19=0,$R51=0),0,ROUND(Výpočet!K46*Výpočet!AS46*Logic!$G$101,0)) -> 864 | L51: =IF(OR(L$19=0,$R51=0),0,ROUND(Výpočet!L46*Výpočet!AT46*Logic!$G$101,0)) -> 1085 | M51: =IF(OR(M$19=0,$R51=0),0,ROUND(Výpočet!M46*Výpočet!AU46*Logic!$G$101,0)) -> 1286 | N51: =IF(OR(N$19=0,$R51=0),0,ROUND(Výpočet!N46*Výpočet!AV46*Logic!$G$101,0)) -> 1471 | O51: =IF(OR(O$19=0,$R51=0),0,ROUND(Výpočet!O46*Výpočet!AW46*Logic!$G$101,0)) -> 1640 | P51: =IF(OR(P$19=0,$R51=0),0,ROUND(Výpočet!P46*Výpočet!AX46*Logic!$G$101,0)) -> 1940 | Q51: =Výpočet!AH46 -> 1200 | R51: 1
B52: =Výpočet!S47 -> 1400 | C52: =IF(OR(C$19=0,$R52=0),0,ROUND(Výpočet!C47*Výpočet!AK47*Logic!$G$101,0)) -> 0 | D52: =IF(OR(D$19=0,$R52=0),0,ROUND(Výpočet!D47*Výpočet!AL47*Logic!$G$101,0)) -> 0 | E52: =IF(OR(E$19=0,$R52=0),0,ROUND(Výpočet!E47*Výpočet!AM47*Logic!$G$101,0)) -> 0 | F52: =IF(OR(F$19=0,$R52=0),0,ROUND(Výpočet!F47*Výpočet!AN47*Logic!$G$101,0)) -> 1187 | G52: =IF(OR(G$19=0,$R52=0),0,ROUND(Výpočet!G47*Výpočet!AO47*Logic!$G$101,0)) -> 1357 | H52: =IF(OR(H$19=0,$R52=0),0,ROUND(Výpočet!H47*Výpočet!AP47*Logic!$G$101,0)) -> 1519 | I52: =IF(OR(I$19=0,$R52=0),0,ROUND(Výpočet!I47*Výpočet!AQ47*Logic!$G$101,0)) -> 0 | J52: =IF(OR(J$19=0,$R52=0),0,ROUND(Výpočet!J47*Výpočet!AR47*Logic!$G$101,0)) -> 0 | K52: =IF(OR(K$19=0,$R52=0),0,ROUND(Výpočet!K47*Výpočet!AS47*Logic!$G$101,0)) -> 1008 | L52: =IF(OR(L$19=0,$R52=0),0,ROUND(Výpočet!L47*Výpočet!AT47*Logic!$G$101,0)) -> 1266 | M52: =IF(OR(M$19=0,$R52=0),0,ROUND(Výpočet!M47*Výpočet!AU47*Logic!$G$101,0)) -> 1501 | N52: =IF(OR(N$19=0,$R52=0),0,ROUND(Výpočet!N47*Výpočet!AV47*Logic!$G$101,0)) -> 1716 | O52: =IF(OR(O$19=0,$R52=0),0,ROUND(Výpočet!O47*Výpočet!AW47*Logic!$G$101,0)) -> 1914 | P52: =IF(OR(P$19=0,$R52=0),0,ROUND(Výpočet!P47*Výpočet!AX47*Logic!$G$101,0)) -> 2264 | Q52: =Výpočet!AH47 -> 1400 | R52: 1
B53: =Výpočet!S48 -> 1600 | C53: =IF(OR(C$19=0,$R53=0),0,ROUND(Výpočet!C48*Výpočet!AK48*Logic!$G$101,0)) -> 0 | D53: =IF(OR(D$19=0,$R53=0),0,ROUND(Výpočet!D48*Výpočet!AL48*Logic!$G$101,0)) -> 0 | E53: =IF(OR(E$19=0,$R53=0),0,ROUND(Výpočet!E48*Výpočet!AM48*Logic!$G$101,0)) -> 0 | F53: =IF(OR(F$19=0,$R53=0),0,ROUND(Výpočet!F48*Výpočet!AN48*Logic!$G$101,0)) -> 1357 | G53: =IF(OR(G$19=0,$R53=0),0,ROUND(Výpočet!G48*Výpočet!AO48*Logic!$G$101,0)) -> 1550 | H53: =IF(OR(H$19=0,$R53=0),0,ROUND(Výpočet!H48*Výpočet!AP48*Logic!$G$101,0)) -> 1736 | I53: =IF(OR(I$19=0,$R53=0),0,ROUND(Výpočet!I48*Výpočet!AQ48*Logic!$G$101,0)) -> 0 | J53: =IF(OR(J$19=0,$R53=0),0,ROUND(Výpočet!J48*Výpočet!AR48*Logic!$G$101,0)) -> 0 | K53: =IF(OR(K$19=0,$R53=0),0,ROUND(Výpočet!K48*Výpočet!AS48*Logic!$G$101,0)) -> 1152 | L53: =IF(OR(L$19=0,$R53=0),0,ROUND(Výpočet!L48*Výpočet!AT48*Logic!$G$101,0)) -> 1446 | M53: =IF(OR(M$19=0,$R53=0),0,ROUND(Výpočet!M48*Výpočet!AU48*Logic!$G$101,0)) -> 1715 | N53: =IF(OR(N$19=0,$R53=0),0,ROUND(Výpočet!N48*Výpočet!AV48*Logic!$G$101,0)) -> 1962 | O53: =IF(OR(O$19=0,$R53=0),0,ROUND(Výpočet!O48*Výpočet!AW48*Logic!$G$101,0)) -> 2187 | P53: =IF(OR(P$19=0,$R53=0),0,ROUND(Výpočet!P48*Výpočet!AX48*Logic!$G$101,0)) -> 2587 | Q53: =Výpočet!AH48 -> 1600 | R53: 1
B54: =Výpočet!S49 -> 1800 | C54: =IF(OR(C$19=0,$R54=0),0,ROUND(Výpočet!C49*Výpočet!AK49*Logic!$G$101,0)) -> 0 | D54: =IF(OR(D$19=0,$R54=0),0,ROUND(Výpočet!D49*Výpočet!AL49*Logic!$G$101,0)) -> 0 | E54: =IF(OR(E$19=0,$R54=0),0,ROUND(Výpočet!E49*Výpočet!AM49*Logic!$G$101,0)) -> 0 | F54: =IF(OR(F$19=0,$R54=0),0,ROUND(Výpočet!F49*Výpočet!AN49*Logic!$G$101,0)) -> 1526 | G54: =IF(OR(G$19=0,$R54=0),0,ROUND(Výpočet!G49*Výpočet!AO49*Logic!$G$101,0)) -> 1744 | H54: =IF(OR(H$19=0,$R54=0),0,ROUND(Výpočet!H49*Výpočet!AP49*Logic!$G$101,0)) -> 1953 | I54: =IF(OR(I$19=0,$R54=0),0,ROUND(Výpočet!I49*Výpočet!AQ49*Logic!$G$101,0)) -> 0 | J54: =IF(OR(J$19=0,$R54=0),0,ROUND(Výpočet!J49*Výpočet!AR49*Logic!$G$101,0)) -> 0 | K54: =IF(OR(K$19=0,$R54=0),0,ROUND(Výpočet!K49*Výpočet!AS49*Logic!$G$101,0)) -> 1296 | L54: =IF(OR(L$19=0,$R54=0),0,ROUND(Výpočet!L49*Výpočet!AT49*Logic!$G$101,0)) -> 1627 | M54: =IF(OR(M$19=0,$R54=0),0,ROUND(Výpočet!M49*Výpočet!AU49*Logic!$G$101,0)) -> 1930 | N54: =IF(OR(N$19=0,$R54=0),0,ROUND(Výpočet!N49*Výpočet!AV49*Logic!$G$101,0)) -> 2207 | O54: =IF(OR(O$19=0,$R54=0),0,ROUND(Výpočet!O49*Výpočet!AW49*Logic!$G$101,0)) -> 2461 | P54: =IF(OR(P$19=0,$R54=0),0,ROUND(Výpočet!P49*Výpočet!AX49*Logic!$G$101,0)) -> 0 | Q54: =Výpočet!AH49 -> 1800 | R54: 1
B55: =Výpočet!S50 -> 2000 | C55: =IF(OR(C$19=0,$R55=0),0,ROUND(Výpočet!C50*Výpočet!AK50*Logic!$G$101,0)) -> 0 | D55: =IF(OR(D$19=0,$R55=0),0,ROUND(Výpočet!D50*Výpočet!AL50*Logic!$G$101,0)) -> 0 | E55: =IF(OR(E$19=0,$R55=0),0,ROUND(Výpočet!E50*Výpočet!AM50*Logic!$G$101,0)) -> 0 | F55: =IF(OR(F$19=0,$R55=0),0,ROUND(Výpočet!F50*Výpočet!AN50*Logic!$G$101,0)) -> 1696 | G55: =IF(OR(G$19=0,$R55=0),0,ROUND(Výpočet!G50*Výpočet!AO50*Logic!$G$101,0)) -> 1938 | H55: =IF(OR(H$19=0,$R55=0),0,ROUND(Výpočet!H50*Výpočet!AP50*Logic!$G$101,0)) -> 2170 | I55: =IF(OR(I$19=0,$R55=0),0,ROUND(Výpočet!I50*Výpočet!AQ50*Logic!$G$101,0)) -> 0 | J55: =IF(OR(J$19=0,$R55=0),0,ROUND(Výpočet!J50*Výpočet!AR50*Logic!$G$101,0)) -> 0 | K55: =IF(OR(K$19=0,$R55=0),0,ROUND(Výpočet!K50*Výpočet!AS50*Logic!$G$101,0)) -> 1440 | L55: =IF(OR(L$19=0,$R55=0),0,ROUND(Výpočet!L50*Výpočet!AT50*Logic!$G$101,0)) -> 1808 | M55: =IF(OR(M$19=0,$R55=0),0,ROUND(Výpočet!M50*Výpočet!AU50*Logic!$G$101,0)) -> 2144 | N55: =IF(OR(N$19=0,$R55=0),0,ROUND(Výpočet!N50*Výpočet!AV50*Logic!$G$101,0)) -> 2452 | O55: =IF(OR(O$19=0,$R55=0),0,ROUND(Výpočet!O50*Výpočet!AW50*Logic!$G$101,0)) -> 2734 | P55: =IF(OR(P$19=0,$R55=0),0,ROUND(Výpočet!P50*Výpočet!AX50*Logic!$G$101,0)) -> 0 | Q55: =Výpočet!AH50 -> 2000 | R55: 1
B56: =Výpočet!S51 -> 2300 | C56: =IF(OR(C$19=0,$R56=0),0,ROUND(Výpočet!C51*Výpočet!AK51*Logic!$G$101,0)) -> 0 | D56: =IF(OR(D$19=0,$R56=0),0,ROUND(Výpočet!D51*Výpočet!AL51*Logic!$G$101,0)) -> 0 | E56: =IF(OR(E$19=0,$R56=0),0,ROUND(Výpočet!E51*Výpočet!AM51*Logic!$G$101,0)) -> 0 | F56: =IF(OR(F$19=0,$R56=0),0,ROUND(Výpočet!F51*Výpočet!AN51*Logic!$G$101,0)) -> 0 | G56: =IF(OR(G$19=0,$R56=0),0,ROUND(Výpočet!G51*Výpočet!AO51*Logic!$G$101,0)) -> 0 | H56: =IF(OR(H$19=0,$R56=0),0,ROUND(Výpočet!H51*Výpočet!AP51*Logic!$G$101,0)) -> 0 | I56: =IF(OR(I$19=0,$R56=0),0,ROUND(Výpočet!I51*Výpočet!AQ51*Logic!$G$101,0)) -> 0 | J56: =IF(OR(J$19=0,$R56=0),0,ROUND(Výpočet!J51*Výpočet!AR51*Logic!$G$101,0)) -> 0 | K56: =IF(OR(K$19=0,$R56=0),0,ROUND(Výpočet!K51*Výpočet!AS51*Logic!$G$101,0)) -> 0 | L56: =IF(OR(L$19=0,$R56=0),0,ROUND(Výpočet!L51*Výpočet!AT51*Logic!$G$101,0)) -> 0 | M56: =IF(OR(M$19=0,$R56=0),0,ROUND(Výpočet!M51*Výpočet!AU51*Logic!$G$101,0)) -> 0 | N56: =IF(OR(N$19=0,$R56=0),0,ROUND(Výpočet!N51*Výpočet!AV51*Logic!$G$101,0)) -> 0 | O56: =IF(OR(O$19=0,$R56=0),0,ROUND(Výpočet!O51*Výpočet!AW51*Logic!$G$101,0)) -> 0 | P56: =IF(OR(P$19=0,$R56=0),0,ROUND(Výpočet!P51*Výpočet!AX51*Logic!$G$101,0)) -> 0 | Q56: =Výpočet!AH51 -> 2300 | R56: 1
B57: =Výpočet!S52 -> 2600 | C57: =IF(OR(C$19=0,$R57=0),0,ROUND(Výpočet!C52*Výpočet!AK52*Logic!$G$101,0)) -> 0 | D57: =IF(OR(D$19=0,$R57=0),0,ROUND(Výpočet!D52*Výpočet!AL52*Logic!$G$101,0)) -> 0 | E57: =IF(OR(E$19=0,$R57=0),0,ROUND(Výpočet!E52*Výpočet!AM52*Logic!$G$101,0)) -> 0 | F57: =IF(OR(F$19=0,$R57=0),0,ROUND(Výpočet!F52*Výpočet!AN52*Logic!$G$101,0)) -> 0 | G57: =IF(OR(G$19=0,$R57=0),0,ROUND(Výpočet!G52*Výpočet!AO52*Logic!$G$101,0)) -> 0 | H57: =IF(OR(H$19=0,$R57=0),0,ROUND(Výpočet!H52*Výpočet!AP52*Logic!$G$101,0)) -> 0 | I57: =IF(OR(I$19=0,$R57=0),0,ROUND(Výpočet!I52*Výpočet!AQ52*Logic!$G$101,0)) -> 0 | J57: =IF(OR(J$19=0,$R57=0),0,ROUND(Výpočet!J52*Výpočet!AR52*Logic!$G$101,0)) -> 0 | K57: =IF(OR(K$19=0,$R57=0),0,ROUND(Výpočet!K52*Výpočet!AS52*Logic!$G$101,0)) -> 0 | L57: =IF(OR(L$19=0,$R57=0),0,ROUND(Výpočet!L52*Výpočet!AT52*Logic!$G$101,0)) -> 0 | M57: =IF(OR(M$19=0,$R57=0),0,ROUND(Výpočet!M52*Výpočet!AU52*Logic!$G$101,0)) -> 0 | N57: =IF(OR(N$19=0,$R57=0),0,ROUND(Výpočet!N52*Výpočet!AV52*Logic!$G$101,0)) -> 0 | O57: =IF(OR(O$19=0,$R57=0),0,ROUND(Výpočet!O52*Výpočet!AW52*Logic!$G$101,0)) -> 0 | P57: =IF(OR(P$19=0,$R57=0),0,ROUND(Výpočet!P52*Výpočet!AX52*Logic!$G$101,0)) -> 0 | Q57: =Výpočet!AH52 -> 2600 | R57: 1
B58: =Výpočet!S53 -> 3000 | C58: =IF(OR(C$19=0,$R58=0),0,ROUND(Výpočet!C53*Výpočet!AK53*Logic!$G$101,0)) -> 0 | D58: =IF(OR(D$19=0,$R58=0),0,ROUND(Výpočet!D53*Výpočet!AL53*Logic!$G$101,0)) -> 0 | E58: =IF(OR(E$19=0,$R58=0),0,ROUND(Výpočet!E53*Výpočet!AM53*Logic!$G$101,0)) -> 0 | F58: =IF(OR(F$19=0,$R58=0),0,ROUND(Výpočet!F53*Výpočet!AN53*Logic!$G$101,0)) -> 0 | G58: =IF(OR(G$19=0,$R58=0),0,ROUND(Výpočet!G53*Výpočet!AO53*Logic!$G$101,0)) -> 0 | H58: =IF(OR(H$19=0,$R58=0),0,ROUND(Výpočet!H53*Výpočet!AP53*Logic!$G$101,0)) -> 0 | I58: =IF(OR(I$19=0,$R58=0),0,ROUND(Výpočet!I53*Výpočet!AQ53*Logic!$G$101,0)) -> 0 | J58: =IF(OR(J$19=0,$R58=0),0,ROUND(Výpočet!J53*Výpočet!AR53*Logic!$G$101,0)) -> 0 | K58: =IF(OR(K$19=0,$R58=0),0,ROUND(Výpočet!K53*Výpočet!AS53*Logic!$G$101,0)) -> 0 | L58: =IF(OR(L$19=0,$R58=0),0,ROUND(Výpočet!L53*Výpočet!AT53*Logic!$G$101,0)) -> 0 | M58: =IF(OR(M$19=0,$R58=0),0,ROUND(Výpočet!M53*Výpočet!AU53*Logic!$G$101,0)) -> 0 | N58: =IF(OR(N$19=0,$R58=0),0,ROUND(Výpočet!N53*Výpočet!AV53*Logic!$G$101,0)) -> 0 | O58: =IF(OR(O$19=0,$R58=0),0,ROUND(Výpočet!O53*Výpočet!AW53*Logic!$G$101,0)) -> 0 | P58: =IF(OR(P$19=0,$R58=0),0,ROUND(Výpočet!P53*Výpočet!AX53*Logic!$G$101,0)) -> 0 | Q58: =Výpočet!AH53 -> 3000 | R58: 1
C60: =F60 -> Typ 22 | D60: =F60 -> Typ 22 | E60: =F60 -> Typ 22 | F60: =IF(Výpočet!W54=0,0,IF(OR(Logic!$C$3="V0",Logic!$C$3="U0"),0,Logic!$P$3&" "&Výpočet!W54)) -> Typ 22 | G60: =F60 -> Typ 22 | H60: =F60 -> Typ 22 | I60: =F60 -> Typ 22 | J60: =M60 -> Typ 33 | K60: =M60 -> Typ 33 | L60: =M60 -> Typ 33 | M60: =IF(OR(Logic!$C$3="A0",Logic!$C$3="B0",Logic!$C$3="K0",Logic!$C$3="P0",Logic!$C$3="V0",Logic!$C$3="U0",Výpočet!AD54=0),0,Logic!$P$3&" "&Výpočet!AD54) -> Typ 33 | N60: =M60 -> Typ 33 | O60: =M60 -> Typ 33 | P60: =M60 -> Typ 33
B61: =Logic!$J$3&" [mm]" -> Délka [mm] | C61: =IF(C60=0,0,Logic!$I$3&" [mm]") -> Výška [mm] | J61: =IF(J60=0,0,Logic!$I$3&" [mm]") -> Výška [mm] | Q61: =IF(OR(Logic!$C$3="V0",Logic!$C$3="U0"),Logic!$I$3,Logic!$J$3)&" [mm]" -> Délka [mm]
C62: =Výpočet!T55 -> 200 | D62: =Výpočet!U55 -> 300 | E62: =Výpočet!V55 -> 400 | F62: =Výpočet!W55 -> 500 | G62: =Výpočet!X55 -> 600 | H62: =Výpočet!Y55 -> 700 | I62: =Výpočet!Z55 -> 900 | J62: =Výpočet!AA55 -> 200 | K62: =Výpočet!AB55 -> 300 | L62: =Výpočet!AC55 -> 400 | M62: =Výpočet!AD55 -> 500 | N62: =Výpočet!AE55 -> 600 | O62: =Výpočet!AF55 -> 700 | P62: =Výpočet!AG55 -> 900
B63: =Výpočet!S56 -> 400 | C63: =IF(OR(C$19=0,$R63=0),0,ROUND(Výpočet!C56*Výpočet!AK56*Logic!$G$101,0)) -> 0 | D63: =IF(OR(D$19=0,$R63=0),0,ROUND(Výpočet!D56*Výpočet!AL56*Logic!$G$101,0)) -> 0 | E63: =IF(OR(E$19=0,$R63=0),0,ROUND(Výpočet!E56*Výpočet!AM56*Logic!$G$101,0)) -> 0 | F63: =IF(OR(F$19=0,$R63=0),0,ROUND(Výpočet!F56*Výpočet!AN56*Logic!$G$101,0)) -> 0 | G63: =IF(OR(G$19=0,$R63=0),0,ROUND(Výpočet!G56*Výpočet!AO56*Logic!$G$101,0)) -> 0 | H63: =IF(OR(H$19=0,$R63=0),0,ROUND(Výpočet!H56*Výpočet!AP56*Logic!$G$101,0)) -> 0 | I63: =IF(OR(I$19=0,$R63=0),0,ROUND(Výpočet!I56*Výpočet!AQ56*Logic!$G$101,0)) -> 0 | J63: =IF(OR(J$19=0,$R63=0),0,ROUND(Výpočet!J56*Výpočet!AR56*Logic!$G$101,0)) -> 0 | K63: =IF(OR(K$19=0,$R63=0),0,ROUND(Výpočet!K56*Výpočet!AS56*Logic!$G$101,0)) -> 0 | L63: =IF(OR(L$19=0,$R63=0),0,ROUND(Výpočet!L56*Výpočet!AT56*Logic!$G$101,0)) -> 0 | M63: =IF(OR(M$19=0,$R63=0),0,ROUND(Výpočet!M56*Výpočet!AU56*Logic!$G$101,0)) -> 0 | N63: =IF(OR(N$19=0,$R63=0),0,ROUND(Výpočet!N56*Výpočet!AV56*Logic!$G$101,0)) -> 0 | O63: =IF(OR(O$19=0,$R63=0),0,ROUND(Výpočet!O56*Výpočet!AW56*Logic!$G$101,0)) -> 0 | P63: =IF(OR(P$19=0,$R63=0),0,ROUND(Výpočet!P56*Výpočet!AX56*Logic!$G$101,0)) -> 0 | Q63: =Výpočet!AH56 -> 400 | R63: =R43 -> 1
B64: =Výpočet!S57 -> 500 | C64: =IF(OR(C$19=0,$R64=0),0,ROUND(Výpočet!C57*Výpočet!AK57*Logic!$G$101,0)) -> 0 | D64: =IF(OR(D$19=0,$R64=0),0,ROUND(Výpočet!D57*Výpočet!AL57*Logic!$G$101,0)) -> 457 | E64: =IF(OR(E$19=0,$R64=0),0,ROUND(Výpočet!E57*Výpočet!AM57*Logic!$G$101,0)) -> 583 | F64: =IF(OR(F$19=0,$R64=0),0,ROUND(Výpočet!F57*Výpočet!AN57*Logic!$G$101,0)) -> 700 | G64: =IF(OR(G$19=0,$R64=0),0,ROUND(Výpočet!G57*Výpočet!AO57*Logic!$G$101,0)) -> 811 | H64: =IF(OR(H$19=0,$R64=0),0,ROUND(Výpočet!H57*Výpočet!AP57*Logic!$G$101,0)) -> 915 | I64: =IF(OR(I$19=0,$R64=0),0,ROUND(Výpočet!I57*Výpočet!AQ57*Logic!$G$101,0)) -> 1108 | J64: =IF(OR(J$19=0,$R64=0),0,ROUND(Výpočet!J57*Výpočet!AR57*Logic!$G$101,0)) -> 0 | K64: =IF(OR(K$19=0,$R64=0),0,ROUND(Výpočet!K57*Výpočet!AS57*Logic!$G$101,0)) -> 0 | L64: =IF(OR(L$19=0,$R64=0),0,ROUND(Výpočet!L57*Výpočet!AT57*Logic!$G$101,0)) -> 0 | M64: =IF(OR(M$19=0,$R64=0),0,ROUND(Výpočet!M57*Výpočet!AU57*Logic!$G$101,0)) -> 1011 | N64: =IF(OR(N$19=0,$R64=0),0,ROUND(Výpočet!N57*Výpočet!AV57*Logic!$G$101,0)) -> 1171 | O64: =IF(OR(O$19=0,$R64=0),0,ROUND(Výpočet!O57*Výpočet!AW57*Logic!$G$101,0)) -> 1324 | P64: =IF(OR(P$19=0,$R64=0),0,ROUND(Výpočet!P57*Výpočet!AX57*Logic!$G$101,0)) -> 1616 | Q64: =Výpočet!AH57 -> 500 | R64: 1
B65: =Výpočet!S58 -> 600 | C65: =IF(OR(C$19=0,$R65=0),0,ROUND(Výpočet!C58*Výpočet!AK58*Logic!$G$101,0)) -> 0 | D65: =IF(OR(D$19=0,$R65=0),0,ROUND(Výpočet!D58*Výpočet!AL58*Logic!$G$101,0)) -> 548 | E65: =IF(OR(E$19=0,$R65=0),0,ROUND(Výpočet!E58*Výpočet!AM58*Logic!$G$101,0)) -> 699 | F65: =IF(OR(F$19=0,$R65=0),0,ROUND(Výpočet!F58*Výpočet!AN58*Logic!$G$101,0)) -> 840 | G65: =IF(OR(G$19=0,$R65=0),0,ROUND(Výpočet!G58*Výpočet!AO58*Logic!$G$101,0)) -> 973 | H65: =IF(OR(H$19=0,$R65=0),0,ROUND(Výpočet!H58*Výpočet!AP58*Logic!$G$101,0)) -> 1098 | I65: =IF(OR(I$19=0,$R65=0),0,ROUND(Výpočet!I58*Výpočet!AQ58*Logic!$G$101,0)) -> 1329 | J65: =IF(OR(J$19=0,$R65=0),0,ROUND(Výpočet!J58*Výpočet!AR58*Logic!$G$101,0)) -> 0 | K65: =IF(OR(K$19=0,$R65=0),0,ROUND(Výpočet!K58*Výpočet!AS58*Logic!$G$101,0)) -> 0 | L65: =IF(OR(L$19=0,$R65=0),0,ROUND(Výpočet!L58*Výpočet!AT58*Logic!$G$101,0)) -> 0 | M65: =IF(OR(M$19=0,$R65=0),0,ROUND(Výpočet!M58*Výpočet!AU58*Logic!$G$101,0)) -> 1213 | N65: =IF(OR(N$19=0,$R65=0),0,ROUND(Výpočet!N58*Výpočet!AV58*Logic!$G$101,0)) -> 1405 | O65: =IF(OR(O$19=0,$R65=0),0,ROUND(Výpočet!O58*Výpočet!AW58*Logic!$G$101,0)) -> 1589 | P65: =IF(OR(P$19=0,$R65=0),0,ROUND(Výpočet!P58*Výpočet!AX58*Logic!$G$101,0)) -> 1939 | Q65: =Výpočet!AH58 -> 600 | R65: 1
B66: =Výpočet!S59 -> 700 | C66: =IF(OR(C$19=0,$R66=0),0,ROUND(Výpočet!C59*Výpočet!AK59*Logic!$G$101,0)) -> 0 | D66: =IF(OR(D$19=0,$R66=0),0,ROUND(Výpočet!D59*Výpočet!AL59*Logic!$G$101,0)) -> 640 | E66: =IF(OR(E$19=0,$R66=0),0,ROUND(Výpočet!E59*Výpočet!AM59*Logic!$G$101,0)) -> 816 | F66: =IF(OR(F$19=0,$R66=0),0,ROUND(Výpočet!F59*Výpočet!AN59*Logic!$G$101,0)) -> 980 | G66: =IF(OR(G$19=0,$R66=0),0,ROUND(Výpočet!G59*Výpočet!AO59*Logic!$G$101,0)) -> 1135 | H66: =IF(OR(H$19=0,$R66=0),0,ROUND(Výpočet!H59*Výpočet!AP59*Logic!$G$101,0)) -> 1281 | I66: =IF(OR(I$19=0,$R66=0),0,ROUND(Výpočet!I59*Výpočet!AQ59*Logic!$G$101,0)) -> 1551 | J66: =IF(OR(J$19=0,$R66=0),0,ROUND(Výpočet!J59*Výpočet!AR59*Logic!$G$101,0)) -> 0 | K66: =IF(OR(K$19=0,$R66=0),0,ROUND(Výpočet!K59*Výpočet!AS59*Logic!$G$101,0)) -> 0 | L66: =IF(OR(L$19=0,$R66=0),0,ROUND(Výpočet!L59*Výpočet!AT59*Logic!$G$101,0)) -> 0 | M66: =IF(OR(M$19=0,$R66=0),0,ROUND(Výpočet!M59*Výpočet!AU59*Logic!$G$101,0)) -> 1415 | N66: =IF(OR(N$19=0,$R66=0),0,ROUND(Výpočet!N59*Výpočet!AV59*Logic!$G$101,0)) -> 1639 | O66: =IF(OR(O$19=0,$R66=0),0,ROUND(Výpočet!O59*Výpočet!AW59*Logic!$G$101,0)) -> 1854 | P66: =IF(OR(P$19=0,$R66=0),0,ROUND(Výpočet!P59*Výpočet!AX59*Logic!$G$101,0)) -> 2262 | Q66: =Výpočet!AH59 -> 700 | R66: 1
B67: =Výpočet!S60 -> 800 | C67: =IF(OR(C$19=0,$R67=0),0,ROUND(Výpočet!C60*Výpočet!AK60*Logic!$G$101,0)) -> 0 | D67: =IF(OR(D$19=0,$R67=0),0,ROUND(Výpočet!D60*Výpočet!AL60*Logic!$G$101,0)) -> 731 | E67: =IF(OR(E$19=0,$R67=0),0,ROUND(Výpočet!E60*Výpočet!AM60*Logic!$G$101,0)) -> 932 | F67: =IF(OR(F$19=0,$R67=0),0,ROUND(Výpočet!F60*Výpočet!AN60*Logic!$G$101,0)) -> 1120 | G67: =IF(OR(G$19=0,$R67=0),0,ROUND(Výpočet!G60*Výpočet!AO60*Logic!$G$101,0)) -> 1297 | H67: =IF(OR(H$19=0,$R67=0),0,ROUND(Výpočet!H60*Výpočet!AP60*Logic!$G$101,0)) -> 1464 | I67: =IF(OR(I$19=0,$R67=0),0,ROUND(Výpočet!I60*Výpočet!AQ60*Logic!$G$101,0)) -> 1772 | J67: =IF(OR(J$19=0,$R67=0),0,ROUND(Výpočet!J60*Výpočet!AR60*Logic!$G$101,0)) -> 0 | K67: =IF(OR(K$19=0,$R67=0),0,ROUND(Výpočet!K60*Výpočet!AS60*Logic!$G$101,0)) -> 1070 | L67: =IF(OR(L$19=0,$R67=0),0,ROUND(Výpočet!L60*Výpočet!AT60*Logic!$G$101,0)) -> 1351 | M67: =IF(OR(M$19=0,$R67=0),0,ROUND(Výpočet!M60*Výpočet!AU60*Logic!$G$101,0)) -> 1618 | N67: =IF(OR(N$19=0,$R67=0),0,ROUND(Výpočet!N60*Výpočet!AV60*Logic!$G$101,0)) -> 1873 | O67: =IF(OR(O$19=0,$R67=0),0,ROUND(Výpočet!O60*Výpočet!AW60*Logic!$G$101,0)) -> 2118 | P67: =IF(OR(P$19=0,$R67=0),0,ROUND(Výpočet!P60*Výpočet!AX60*Logic!$G$101,0)) -> 2585 | Q67: =Výpočet!AH60 -> 800 | R67: 1
B68: =Výpočet!S61 -> 900 | C68: =IF(OR(C$19=0,$R68=0),0,ROUND(Výpočet!C61*Výpočet!AK61*Logic!$G$101,0)) -> 0 | D68: =IF(OR(D$19=0,$R68=0),0,ROUND(Výpočet!D61*Výpočet!AL61*Logic!$G$101,0)) -> 823 | E68: =IF(OR(E$19=0,$R68=0),0,ROUND(Výpočet!E61*Výpočet!AM61*Logic!$G$101,0)) -> 1049 | F68: =IF(OR(F$19=0,$R68=0),0,ROUND(Výpočet!F61*Výpočet!AN61*Logic!$G$101,0)) -> 1260 | G68: =IF(OR(G$19=0,$R68=0),0,ROUND(Výpočet!G61*Výpočet!AO61*Logic!$G$101,0)) -> 1459 | H68: =IF(OR(H$19=0,$R68=0),0,ROUND(Výpočet!H61*Výpočet!AP61*Logic!$G$101,0)) -> 1647 | I68: =IF(OR(I$19=0,$R68=0),0,ROUND(Výpočet!I61*Výpočet!AQ61*Logic!$G$101,0)) -> 1994 | J68: =IF(OR(J$19=0,$R68=0),0,ROUND(Výpočet!J61*Výpočet!AR61*Logic!$G$101,0)) -> 0 | K68: =IF(OR(K$19=0,$R68=0),0,ROUND(Výpočet!K61*Výpočet!AS61*Logic!$G$101,0)) -> 1203 | L68: =IF(OR(L$19=0,$R68=0),0,ROUND(Výpočet!L61*Výpočet!AT61*Logic!$G$101,0)) -> 1520 | M68: =IF(OR(M$19=0,$R68=0),0,ROUND(Výpočet!M61*Výpočet!AU61*Logic!$G$101,0)) -> 1820 | N68: =IF(OR(N$19=0,$R68=0),0,ROUND(Výpočet!N61*Výpočet!AV61*Logic!$G$101,0)) -> 2107 | O68: =IF(OR(O$19=0,$R68=0),0,ROUND(Výpočet!O61*Výpočet!AW61*Logic!$G$101,0)) -> 2383 | P68: =IF(OR(P$19=0,$R68=0),0,ROUND(Výpočet!P61*Výpočet!AX61*Logic!$G$101,0)) -> 2908 | Q68: =Výpočet!AH61 -> 900 | R68: 1
B69: =Výpočet!S62 -> 1000 | C69: =IF(OR(C$19=0,$R69=0),0,ROUND(Výpočet!C62*Výpočet!AK62*Logic!$G$101,0)) -> 0 | D69: =IF(OR(D$19=0,$R69=0),0,ROUND(Výpočet!D62*Výpočet!AL62*Logic!$G$101,0)) -> 914 | E69: =IF(OR(E$19=0,$R69=0),0,ROUND(Výpočet!E62*Výpočet!AM62*Logic!$G$101,0)) -> 1165 | F69: =IF(OR(F$19=0,$R69=0),0,ROUND(Výpočet!F62*Výpočet!AN62*Logic!$G$101,0)) -> 1400 | G69: =IF(OR(G$19=0,$R69=0),0,ROUND(Výpočet!G62*Výpočet!AO62*Logic!$G$101,0)) -> 1621 | H69: =IF(OR(H$19=0,$R69=0),0,ROUND(Výpočet!H62*Výpočet!AP62*Logic!$G$101,0)) -> 1830 | I69: =IF(OR(I$19=0,$R69=0),0,ROUND(Výpočet!I62*Výpočet!AQ62*Logic!$G$101,0)) -> 2215 | J69: =IF(OR(J$19=0,$R69=0),0,ROUND(Výpočet!J62*Výpočet!AR62*Logic!$G$101,0)) -> 0 | K69: =IF(OR(K$19=0,$R69=0),0,ROUND(Výpočet!K62*Výpočet!AS62*Logic!$G$101,0)) -> 1337 | L69: =IF(OR(L$19=0,$R69=0),0,ROUND(Výpočet!L62*Výpočet!AT62*Logic!$G$101,0)) -> 1689 | M69: =IF(OR(M$19=0,$R69=0),0,ROUND(Výpočet!M62*Výpočet!AU62*Logic!$G$101,0)) -> 2022 | N69: =IF(OR(N$19=0,$R69=0),0,ROUND(Výpočet!N62*Výpočet!AV62*Logic!$G$101,0)) -> 2341 | O69: =IF(OR(O$19=0,$R69=0),0,ROUND(Výpočet!O62*Výpočet!AW62*Logic!$G$101,0)) -> 2648 | P69: =IF(OR(P$19=0,$R69=0),0,ROUND(Výpočet!P62*Výpočet!AX62*Logic!$G$101,0)) -> 3231 | Q69: =Výpočet!AH62 -> 1000 | R69: 1
B70: =Výpočet!S63 -> 1100 | C70: =IF(OR(C$19=0,$R70=0),0,ROUND(Výpočet!C63*Výpočet!AK63*Logic!$G$101,0)) -> 0 | D70: =IF(OR(D$19=0,$R70=0),0,ROUND(Výpočet!D63*Výpočet!AL63*Logic!$G$101,0)) -> 1005 | E70: =IF(OR(E$19=0,$R70=0),0,ROUND(Výpočet!E63*Výpočet!AM63*Logic!$G$101,0)) -> 1282 | F70: =IF(OR(F$19=0,$R70=0),0,ROUND(Výpočet!F63*Výpočet!AN63*Logic!$G$101,0)) -> 1540 | G70: =IF(OR(G$19=0,$R70=0),0,ROUND(Výpočet!G63*Výpočet!AO63*Logic!$G$101,0)) -> 1783 | H70: =IF(OR(H$19=0,$R70=0),0,ROUND(Výpočet!H63*Výpočet!AP63*Logic!$G$101,0)) -> 2013 | I70: =IF(OR(I$19=0,$R70=0),0,ROUND(Výpočet!I63*Výpočet!AQ63*Logic!$G$101,0)) -> 2437 | J70: =IF(OR(J$19=0,$R70=0),0,ROUND(Výpočet!J63*Výpočet!AR63*Logic!$G$101,0)) -> 0 | K70: =IF(OR(K$19=0,$R70=0),0,ROUND(Výpočet!K63*Výpočet!AS63*Logic!$G$101,0)) -> 1471 | L70: =IF(OR(L$19=0,$R70=0),0,ROUND(Výpočet!L63*Výpočet!AT63*Logic!$G$101,0)) -> 1858 | M70: =IF(OR(M$19=0,$R70=0),0,ROUND(Výpočet!M63*Výpočet!AU63*Logic!$G$101,0)) -> 2224 | N70: =IF(OR(N$19=0,$R70=0),0,ROUND(Výpočet!N63*Výpočet!AV63*Logic!$G$101,0)) -> 2575 | O70: =IF(OR(O$19=0,$R70=0),0,ROUND(Výpočet!O63*Výpočet!AW63*Logic!$G$101,0)) -> 2913 | P70: =IF(OR(P$19=0,$R70=0),0,ROUND(Výpočet!P63*Výpočet!AX63*Logic!$G$101,0)) -> 3554 | Q70: =Výpočet!AH63 -> 1100 | R70: 1
B71: =Výpočet!S64 -> 1200 | C71: =IF(OR(C$19=0,$R71=0),0,ROUND(Výpočet!C64*Výpočet!AK64*Logic!$G$101,0)) -> 0 | D71: =IF(OR(D$19=0,$R71=0),0,ROUND(Výpočet!D64*Výpočet!AL64*Logic!$G$101,0)) -> 1097 | E71: =IF(OR(E$19=0,$R71=0),0,ROUND(Výpočet!E64*Výpočet!AM64*Logic!$G$101,0)) -> 1398 | F71: =IF(OR(F$19=0,$R71=0),0,ROUND(Výpočet!F64*Výpočet!AN64*Logic!$G$101,0)) -> 1680 | G71: =IF(OR(G$19=0,$R71=0),0,ROUND(Výpočet!G64*Výpočet!AO64*Logic!$G$101,0)) -> 1945 | H71: =IF(OR(H$19=0,$R71=0),0,ROUND(Výpočet!H64*Výpočet!AP64*Logic!$G$101,0)) -> 2196 | I71: =IF(OR(I$19=0,$R71=0),0,ROUND(Výpočet!I64*Výpočet!AQ64*Logic!$G$101,0)) -> 2658 | J71: =IF(OR(J$19=0,$R71=0),0,ROUND(Výpočet!J64*Výpočet!AR64*Logic!$G$101,0)) -> 0 | K71: =IF(OR(K$19=0,$R71=0),0,ROUND(Výpočet!K64*Výpočet!AS64*Logic!$G$101,0)) -> 1604 | L71: =IF(OR(L$19=0,$R71=0),0,ROUND(Výpočet!L64*Výpočet!AT64*Logic!$G$101,0)) -> 2027 | M71: =IF(OR(M$19=0,$R71=0),0,ROUND(Výpočet!M64*Výpočet!AU64*Logic!$G$101,0)) -> 2426 | N71: =IF(OR(N$19=0,$R71=0),0,ROUND(Výpočet!N64*Výpočet!AV64*Logic!$G$101,0)) -> 2809 | O71: =IF(OR(O$19=0,$R71=0),0,ROUND(Výpočet!O64*Výpočet!AW64*Logic!$G$101,0)) -> 3178 | P71: =IF(OR(P$19=0,$R71=0),0,ROUND(Výpočet!P64*Výpočet!AX64*Logic!$G$101,0)) -> 3877 | Q71: =Výpočet!AH64 -> 1200 | R71: 1
B72: =Výpočet!S65 -> 1400 | C72: =IF(OR(C$19=0,$R72=0),0,ROUND(Výpočet!C65*Výpočet!AK65*Logic!$G$101,0)) -> 0 | D72: =IF(OR(D$19=0,$R72=0),0,ROUND(Výpočet!D65*Výpočet!AL65*Logic!$G$101,0)) -> 1280 | E72: =IF(OR(E$19=0,$R72=0),0,ROUND(Výpočet!E65*Výpočet!AM65*Logic!$G$101,0)) -> 1631 | F72: =IF(OR(F$19=0,$R72=0),0,ROUND(Výpočet!F65*Výpočet!AN65*Logic!$G$101,0)) -> 1960 | G72: =IF(OR(G$19=0,$R72=0),0,ROUND(Výpočet!G65*Výpočet!AO65*Logic!$G$101,0)) -> 2269 | H72: =IF(OR(H$19=0,$R72=0),0,ROUND(Výpočet!H65*Výpočet!AP65*Logic!$G$101,0)) -> 2562 | I72: =IF(OR(I$19=0,$R72=0),0,ROUND(Výpočet!I65*Výpočet!AQ65*Logic!$G$101,0)) -> 3101 | J72: =IF(OR(J$19=0,$R72=0),0,ROUND(Výpočet!J65*Výpočet!AR65*Logic!$G$101,0)) -> 0 | K72: =IF(OR(K$19=0,$R72=0),0,ROUND(Výpočet!K65*Výpočet!AS65*Logic!$G$101,0)) -> 1872 | L72: =IF(OR(L$19=0,$R72=0),0,ROUND(Výpočet!L65*Výpočet!AT65*Logic!$G$101,0)) -> 2365 | M72: =IF(OR(M$19=0,$R72=0),0,ROUND(Výpočet!M65*Výpočet!AU65*Logic!$G$101,0)) -> 2831 | N72: =IF(OR(N$19=0,$R72=0),0,ROUND(Výpočet!N65*Výpočet!AV65*Logic!$G$101,0)) -> 3277 | O72: =IF(OR(O$19=0,$R72=0),0,ROUND(Výpočet!O65*Výpočet!AW65*Logic!$G$101,0)) -> 3707 | P72: =IF(OR(P$19=0,$R72=0),0,ROUND(Výpočet!P65*Výpočet!AX65*Logic!$G$101,0)) -> 4523 | Q72: =Výpočet!AH65 -> 1400 | R72: 1
B73: =Výpočet!S66 -> 1600 | C73: =IF(OR(C$19=0,$R73=0),0,ROUND(Výpočet!C66*Výpočet!AK66*Logic!$G$101,0)) -> 0 | D73: =IF(OR(D$19=0,$R73=0),0,ROUND(Výpočet!D66*Výpočet!AL66*Logic!$G$101,0)) -> 1462 | E73: =IF(OR(E$19=0,$R73=0),0,ROUND(Výpočet!E66*Výpočet!AM66*Logic!$G$101,0)) -> 1864 | F73: =IF(OR(F$19=0,$R73=0),0,ROUND(Výpočet!F66*Výpočet!AN66*Logic!$G$101,0)) -> 2240 | G73: =IF(OR(G$19=0,$R73=0),0,ROUND(Výpočet!G66*Výpočet!AO66*Logic!$G$101,0)) -> 2594 | H73: =IF(OR(H$19=0,$R73=0),0,ROUND(Výpočet!H66*Výpočet!AP66*Logic!$G$101,0)) -> 2928 | I73: =IF(OR(I$19=0,$R73=0),0,ROUND(Výpočet!I66*Výpočet!AQ66*Logic!$G$101,0)) -> 3544 | J73: =IF(OR(J$19=0,$R73=0),0,ROUND(Výpočet!J66*Výpočet!AR66*Logic!$G$101,0)) -> 0 | K73: =IF(OR(K$19=0,$R73=0),0,ROUND(Výpočet!K66*Výpočet!AS66*Logic!$G$101,0)) -> 2139 | L73: =IF(OR(L$19=0,$R73=0),0,ROUND(Výpočet!L66*Výpočet!AT66*Logic!$G$101,0)) -> 2702 | M73: =IF(OR(M$19=0,$R73=0),0,ROUND(Výpočet!M66*Výpočet!AU66*Logic!$G$101,0)) -> 3235 | N73: =IF(OR(N$19=0,$R73=0),0,ROUND(Výpočet!N66*Výpočet!AV66*Logic!$G$101,0)) -> 3746 | O73: =IF(OR(O$19=0,$R73=0),0,ROUND(Výpočet!O66*Výpočet!AW66*Logic!$G$101,0)) -> 4237 | P73: =IF(OR(P$19=0,$R73=0),0,ROUND(Výpočet!P66*Výpočet!AX66*Logic!$G$101,0)) -> 5170 | Q73: =Výpočet!AH66 -> 1600 | R73: 1
B74: =Výpočet!S67 -> 1800 | C74: =IF(OR(C$19=0,$R74=0),0,ROUND(Výpočet!C67*Výpočet!AK67*Logic!$G$101,0)) -> 0 | D74: =IF(OR(D$19=0,$R74=0),0,ROUND(Výpočet!D67*Výpočet!AL67*Logic!$G$101,0)) -> 1645 | E74: =IF(OR(E$19=0,$R74=0),0,ROUND(Výpočet!E67*Výpočet!AM67*Logic!$G$101,0)) -> 2097 | F74: =IF(OR(F$19=0,$R74=0),0,ROUND(Výpočet!F67*Výpočet!AN67*Logic!$G$101,0)) -> 2520 | G74: =IF(OR(G$19=0,$R74=0),0,ROUND(Výpočet!G67*Výpočet!AO67*Logic!$G$101,0)) -> 2918 | H74: =IF(OR(H$19=0,$R74=0),0,ROUND(Výpočet!H67*Výpočet!AP67*Logic!$G$101,0)) -> 3294 | I74: =IF(OR(I$19=0,$R74=0),0,ROUND(Výpočet!I67*Výpočet!AQ67*Logic!$G$101,0)) -> 0 | J74: =IF(OR(J$19=0,$R74=0),0,ROUND(Výpočet!J67*Výpočet!AR67*Logic!$G$101,0)) -> 0 | K74: =IF(OR(K$19=0,$R74=0),0,ROUND(Výpočet!K67*Výpočet!AS67*Logic!$G$101,0)) -> 2407 | L74: =IF(OR(L$19=0,$R74=0),0,ROUND(Výpočet!L67*Výpočet!AT67*Logic!$G$101,0)) -> 3040 | M74: =IF(OR(M$19=0,$R74=0),0,ROUND(Výpočet!M67*Výpočet!AU67*Logic!$G$101,0)) -> 3640 | N74: =IF(OR(N$19=0,$R74=0),0,ROUND(Výpočet!N67*Výpočet!AV67*Logic!$G$101,0)) -> 4214 | O74: =IF(OR(O$19=0,$R74=0),0,ROUND(Výpočet!O67*Výpočet!AW67*Logic!$G$101,0)) -> 4766 | P74: =IF(OR(P$19=0,$R74=0),0,ROUND(Výpočet!P67*Výpočet!AX67*Logic!$G$101,0)) -> 0 | Q74: =Výpočet!AH67 -> 1800 | R74: 1
B75: =Výpočet!S68 -> 2000 | C75: =IF(OR(C$19=0,$R75=0),0,ROUND(Výpočet!C68*Výpočet!AK68*Logic!$G$101,0)) -> 0 | D75: =IF(OR(D$19=0,$R75=0),0,ROUND(Výpočet!D68*Výpočet!AL68*Logic!$G$101,0)) -> 1828 | E75: =IF(OR(E$19=0,$R75=0),0,ROUND(Výpočet!E68*Výpočet!AM68*Logic!$G$101,0)) -> 2330 | F75: =IF(OR(F$19=0,$R75=0),0,ROUND(Výpočet!F68*Výpočet!AN68*Logic!$G$101,0)) -> 2800 | G75: =IF(OR(G$19=0,$R75=0),0,ROUND(Výpočet!G68*Výpočet!AO68*Logic!$G$101,0)) -> 3242 | H75: =IF(OR(H$19=0,$R75=0),0,ROUND(Výpočet!H68*Výpočet!AP68*Logic!$G$101,0)) -> 3660 | I75: =IF(OR(I$19=0,$R75=0),0,ROUND(Výpočet!I68*Výpočet!AQ68*Logic!$G$101,0)) -> 0 | J75: =IF(OR(J$19=0,$R75=0),0,ROUND(Výpočet!J68*Výpočet!AR68*Logic!$G$101,0)) -> 0 | K75: =IF(OR(K$19=0,$R75=0),0,ROUND(Výpočet!K68*Výpočet!AS68*Logic!$G$101,0)) -> 2674 | L75: =IF(OR(L$19=0,$R75=0),0,ROUND(Výpočet!L68*Výpočet!AT68*Logic!$G$101,0)) -> 3378 | M75: =IF(OR(M$19=0,$R75=0),0,ROUND(Výpočet!M68*Výpočet!AU68*Logic!$G$101,0)) -> 4044 | N75: =IF(OR(N$19=0,$R75=0),0,ROUND(Výpočet!N68*Výpočet!AV68*Logic!$G$101,0)) -> 4682 | O75: =IF(OR(O$19=0,$R75=0),0,ROUND(Výpočet!O68*Výpočet!AW68*Logic!$G$101,0)) -> 5296 | P75: =IF(OR(P$19=0,$R75=0),0,ROUND(Výpočet!P68*Výpočet!AX68*Logic!$G$101,0)) -> 0 | Q75: =Výpočet!AH68 -> 2000 | R75: 1
B76: =Výpočet!S69 -> 2300 | C76: =IF(OR(C$19=0,$R76=0),0,ROUND(Výpočet!C69*Výpočet!AK69*Logic!$G$101,0)) -> 0 | D76: =IF(OR(D$19=0,$R76=0),0,ROUND(Výpočet!D69*Výpočet!AL69*Logic!$G$101,0)) -> 0 | E76: =IF(OR(E$19=0,$R76=0),0,ROUND(Výpočet!E69*Výpočet!AM69*Logic!$G$101,0)) -> 0 | F76: =IF(OR(F$19=0,$R76=0),0,ROUND(Výpočet!F69*Výpočet!AN69*Logic!$G$101,0)) -> 0 | G76: =IF(OR(G$19=0,$R76=0),0,ROUND(Výpočet!G69*Výpočet!AO69*Logic!$G$101,0)) -> 0 | H76: =IF(OR(H$19=0,$R76=0),0,ROUND(Výpočet!H69*Výpočet!AP69*Logic!$G$101,0)) -> 0 | I76: =IF(OR(I$19=0,$R76=0),0,ROUND(Výpočet!I69*Výpočet!AQ69*Logic!$G$101,0)) -> 0 | J76: =IF(OR(J$19=0,$R76=0),0,ROUND(Výpočet!J69*Výpočet!AR69*Logic!$G$101,0)) -> 0 | K76: =IF(OR(K$19=0,$R76=0),0,ROUND(Výpočet!K69*Výpočet!AS69*Logic!$G$101,0)) -> 0 | L76: =IF(OR(L$19=0,$R76=0),0,ROUND(Výpočet!L69*Výpočet!AT69*Logic!$G$101,0)) -> 0 | M76: =IF(OR(M$19=0,$R76=0),0,ROUND(Výpočet!M69*Výpočet!AU69*Logic!$G$101,0)) -> 0 | N76: =IF(OR(N$19=0,$R76=0),0,ROUND(Výpočet!N69*Výpočet!AV69*Logic!$G$101,0)) -> 0 | O76: =IF(OR(O$19=0,$R76=0),0,ROUND(Výpočet!O69*Výpočet!AW69*Logic!$G$101,0)) -> 0 | P76: =IF(OR(P$19=0,$R76=0),0,ROUND(Výpočet!P69*Výpočet!AX69*Logic!$G$101,0)) -> 0 | Q76: =Výpočet!AH69 -> 2300 | R76: 1
B77: =Výpočet!S70 -> 2600 | C77: =IF(OR(C$19=0,$R77=0),0,ROUND(Výpočet!C70*Výpočet!AK70*Logic!$G$101,0)) -> 0 | D77: =IF(OR(D$19=0,$R77=0),0,ROUND(Výpočet!D70*Výpočet!AL70*Logic!$G$101,0)) -> 0 | E77: =IF(OR(E$19=0,$R77=0),0,ROUND(Výpočet!E70*Výpočet!AM70*Logic!$G$101,0)) -> 0 | F77: =IF(OR(F$19=0,$R77=0),0,ROUND(Výpočet!F70*Výpočet!AN70*Logic!$G$101,0)) -> 0 | G77: =IF(OR(G$19=0,$R77=0),0,ROUND(Výpočet!G70*Výpočet!AO70*Logic!$G$101,0)) -> 0 | H77: =IF(OR(H$19=0,$R77=0),0,ROUND(Výpočet!H70*Výpočet!AP70*Logic!$G$101,0)) -> 0 | I77: =IF(OR(I$19=0,$R77=0),0,ROUND(Výpočet!I70*Výpočet!AQ70*Logic!$G$101,0)) -> 0 | J77: =IF(OR(J$19=0,$R77=0),0,ROUND(Výpočet!J70*Výpočet!AR70*Logic!$G$101,0)) -> 0 | K77: =IF(OR(K$19=0,$R77=0),0,ROUND(Výpočet!K70*Výpočet!AS70*Logic!$G$101,0)) -> 0 | L77: =IF(OR(L$19=0,$R77=0),0,ROUND(Výpočet!L70*Výpočet!AT70*Logic!$G$101,0)) -> 0 | M77: =IF(OR(M$19=0,$R77=0),0,ROUND(Výpočet!M70*Výpočet!AU70*Logic!$G$101,0)) -> 0 | N77: =IF(OR(N$19=0,$R77=0),0,ROUND(Výpočet!N70*Výpočet!AV70*Logic!$G$101,0)) -> 0 | O77: =IF(OR(O$19=0,$R77=0),0,ROUND(Výpočet!O70*Výpočet!AW70*Logic!$G$101,0)) -> 0 | P77: =IF(OR(P$19=0,$R77=0),0,ROUND(Výpočet!P70*Výpočet!AX70*Logic!$G$101,0)) -> 0 | Q77: =Výpočet!AH70 -> 2600 | R77: 1
B78: =Výpočet!S71 -> 3000 | C78: =IF(OR(C$19=0,$R78=0),0,ROUND(Výpočet!C71*Výpočet!AK71*Logic!$G$101,0)) -> 0 | D78: =IF(OR(D$19=0,$R78=0),0,ROUND(Výpočet!D71*Výpočet!AL71*Logic!$G$101,0)) -> 0 | E78: =IF(OR(E$19=0,$R78=0),0,ROUND(Výpočet!E71*Výpočet!AM71*Logic!$G$101,0)) -> 0 | F78: =IF(OR(F$19=0,$R78=0),0,ROUND(Výpočet!F71*Výpočet!AN71*Logic!$G$101,0)) -> 0 | G78: =IF(OR(G$19=0,$R78=0),0,ROUND(Výpočet!G71*Výpočet!AO71*Logic!$G$101,0)) -> 0 | H78: =IF(OR(H$19=0,$R78=0),0,ROUND(Výpočet!H71*Výpočet!AP71*Logic!$G$101,0)) -> 0 | I78: =IF(OR(I$19=0,$R78=0),0,ROUND(Výpočet!I71*Výpočet!AQ71*Logic!$G$101,0)) -> 0 | J78: =IF(OR(J$19=0,$R78=0),0,ROUND(Výpočet!J71*Výpočet!AR71*Logic!$G$101,0)) -> 0 | K78: =IF(OR(K$19=0,$R78=0),0,ROUND(Výpočet!K71*Výpočet!AS71*Logic!$G$101,0)) -> 0 | L78: =IF(OR(L$19=0,$R78=0),0,ROUND(Výpočet!L71*Výpočet!AT71*Logic!$G$101,0)) -> 0 | M78: =IF(OR(M$19=0,$R78=0),0,ROUND(Výpočet!M71*Výpočet!AU71*Logic!$G$101,0)) -> 0 | N78: =IF(OR(N$19=0,$R78=0),0,ROUND(Výpočet!N71*Výpočet!AV71*Logic!$G$101,0)) -> 0 | O78: =IF(OR(O$19=0,$R78=0),0,ROUND(Výpočet!O71*Výpočet!AW71*Logic!$G$101,0)) -> 0 | P78: =IF(OR(P$19=0,$R78=0),0,ROUND(Výpočet!P71*Výpočet!AX71*Logic!$G$101,0)) -> 0 | Q78: =Výpočet!AH71 -> 3000 | R78: 1
B79: =Logic!M24 -> Technické změny vyhrazeny. | Q79: =Logic!H31 -> CZ ODT 5.01-01/16 M

Sheet Databaze (hidden)
A1: =Logic!Q69 -> Identifikace:
A6: =Logic!F69 -> Číslo | B6: =Logic!G69 -> Model | C6: =Logic!H69 -> Objednací číslo | D6: =Logic!I69 -> Typ | E6: =Logic!J69 -> Výška [mm] | F6: =Logic!K69 -> Délka [mm] | G6: t1 / t2 / ti | H6: =Logic!O69 -> Tepelný výkon | I6: =tlakova_ztrata -> Tlaková ztráta | J6: =ventil_popis -> Ventil stupeň | K6: =Logic!P69 -> Poznámka

Sheet Ventil (hidden)
J5: =IF(OR(model="V0",model="U0"),Logic!J3&" "&Logic!K3,Logic!I3&" "&Logic!K3) -> Výška od | K5: =Logic!B68 -> vše | L5: mm | M5: =Výstup!N12 -> do | N5: =Logic!B79 -> vše | O5: mm
J6: =IF(OR(model="V0",model="U0"),Logic!I3&" "&Logic!K3,Logic!J3&" "&Logic!K3) -> Délka od | K6: =Logic!B90 -> vše | L6: mm | M6: =Výstup!N13 -> do | N6: =Logic!B111 -> vše | O6: mm
B11: =Logic!$AG$3&" - "&Logic!$B$3 -> Stupeň nastavení ventilu - RADIK LINE VKM8-L
C13: t 1 | D13: t 2 | E13: t i | F13: D T | G13: D p
C14: =Výstup!B16 -> 75 | D14: =Výstup!C16 -> 65 | E14: =Výstup!D16 -> 20 | F14: =Výstup!E16 -> 50 | G14: =Výstup!G16&" "&Logic!E106 -> 10 kPa
C16: =Logic!$AG$3 -> Stupeň nastavení ventilu
C17: 1 | D17: 2 | E17: 3 | F17: 4 | G17: 5 | H17: 6 | I17: 7 | J17: 8
C19: =Výstup!C19 -> 1 | D19: =Výstup!D19 -> 1 | E19: =Výstup!E19 -> 1 | F19: =Výstup!F19 -> 1 | G19: =Výstup!G19 -> 1 | H19: =Výstup!H19 -> 1 | I19: =Výstup!I19 -> 1 | J19: =Výstup!J19 -> 1 | K19: =Výstup!K19 -> 1 | L19: =Výstup!L19 -> 1 | M19: =Výstup!M19 -> 1 | N19: =Výstup!N19 -> 1 | O19: =Výstup!O19 -> 1 | P19: =Výstup!P19 -> 1
C20: =F20 -> 0 | D20: =F20 -> 0 | E20: =F20 -> 0 | F20: =IF(Výpočet!W18=0,0,Logic!$P$3&" "&Výpočet!W18) -> 0 | G20: =F20 -> 0 | H20: =F20 -> 0 | I20: =F20 -> 0 | J20: =M20 -> Typ 11 | K20: =M20 -> Typ 11 | L20: =M20 -> Typ 11 | M20: =IF(OR(Logic!$C$3="A0",Logic!$C$3="B0",Logic!$C$3="K0",Logic!$C$3="P0",Výpočet!AD18=0,Logic!$C$3="V0",Logic!$C$3="U0"),0,Logic!$P$3&" "&Výpočet!AD18) -> Typ 11 | N20: =M20 -> Typ 11 | O20: =M20 -> Typ 11 | P20: =M20 -> Typ 11
B21: =IF(OR(Logic!$C$3="V0",Logic!$C$3="U0"),Logic!$I$3,Logic!$J$3)&" [mm]" -> Délka [mm] | C21: =IF(C20=0,0,IF(OR(Logic!$C$3="V0",Logic!$C$3="U0"),Logic!$J$3,Logic!$I$3) &" [mm]") -> 0 | J21: =IF(J20=0,0,IF(OR(Logic!$C$3="V0",Logic!$C$3="U0"),Logic!$J$3,Logic!$I$3) &" [mm]") -> Výška [mm] | Q21: =IF(OR(Logic!$C$3="V0",Logic!$C$3="U0"),Logic!$I$3,Logic!$J$3)&" [mm]" -> Délka [mm]
C22: =Výpočet!T19 -> 200 | D22: =Výpočet!U19 -> 300 | E22: =Výpočet!V19 -> 400 | F22: =Výpočet!W19 -> 500 | G22: =Výpočet!X19 -> 600 | H22: =Výpočet!Y19 -> 700 | I22: =Výpočet!Z19 -> 900 | J22: =Výpočet!AA19 -> 200 | K22: =Výpočet!AB19 -> 300 | L22: =Výpočet!AC19 -> 400 | M22: =Výpočet!AD19 -> 500 | N22: =Výpočet!AE19 -> 600 | O22: =Výpočet!AF19 -> 700 | P22: =Výpočet!AG19 -> 900
B23: =IF(OR(Logic!$C$3="K0",Logic!$C$3="P0"),Výpočet!S20+4,Výpočet!S20) -> 400 | C23: =IF(OR(C$19=0,$R23=0),0,'Výpočet Kv'!C19*Výpočet!AK20*ventil) -> 0 | D23: =IF(OR(D$19=0,$R23=0),0,'Výpočet Kv'!D19*Výpočet!AL20*ventil) -> 0 | E23: =IF(OR(E$19=0,$R23=0),0,'Výpočet Kv'!E19*Výpočet!AM20*ventil) -> 0 | F23: =IF(OR(F$19=0,$R23=0),0,'Výpočet Kv'!F19*Výpočet!AN20*ventil) -> 0 | G23: =IF(OR(G$19=0,$R23=0),0,'Výpočet Kv'!G19*Výpočet!AO20*ventil) -> 0 | H23: =IF(OR(H$19=0,$R23=0),0,'Výpočet Kv'!H19*Výpočet!AP20*ventil) -> 0 | I23: =IF(OR(I$19=0,$R23=0),0,'Výpočet Kv'!I19*Výpočet!AQ20*ventil) -> 0 | J23: =IF(OR(J$19=0,$R23=0),0,'Výpočet Kv'!J19*Výpočet!AR20*ventil) -> 0 | K23: =IF(OR(K$19=0,$R23=0),0,'Výpočet Kv'!K19*Výpočet!AS20*ventil) -> 0 | L23: =IF(OR(L$19=0,$R23=0),0,'Výpočet Kv'!L19*Výpočet!AT20*ventil) -> 0 | M23: =IF(OR(M$19=0,$R23=0),0,'Výpočet Kv'!M19*Výpočet!AU20*ventil) -> 0 | N23: =IF(OR(N$19=0,$R23=0),0,'Výpočet Kv'!N19*Výpočet!AV20*ventil) -> 0 | O23: =IF(OR(O$19=0,$R23=0),0,'Výpočet Kv'!O19*Výpočet!AW20*ventil) -> 0 | P23: =IF(OR(P$19=0,$R23=0),0,'Výpočet Kv'!P19*Výpočet!AX20*ventil) -> 0 | Q23: =B23 -> 400 | R23: =Výstup!R23 -> 1
B24: =IF(OR(Logic!$C$3="K0",Logic!$C$3="P0"),Výpočet!S21+4,Výpočet!S21) -> 500 | C24: =IF(OR(C$19=0,$R24=0),0,'Výpočet Kv'!C20*Výpočet!AK21*ventil) -> 0 | D24: =IF(OR(D$19=0,$R24=0),0,'Výpočet Kv'!D20*Výpočet!AL21*ventil) -> 0 | E24: =IF(OR(E$19=0,$R24=0),0,'Výpočet Kv'!E20*Výpočet!AM21*ventil) -> 0 | F24: =IF(OR(F$19=0,$R24=0),0,'Výpočet Kv'!F20*Výpočet!AN21*ventil) -> 0 | G24: =IF(OR(G$19=0,$R24=0),0,'Výpočet Kv'!G20*Výpočet!AO21*ventil) -> 0 | H24: =IF(OR(H$19=0,$R24=0),0,'Výpočet Kv'!H20*Výpočet!AP21*ventil) -> 0 | I24: =IF(OR(I$19=0,$R24=0),0,'Výpočet Kv'!I20*Výpočet!AQ21*ventil) -> 0 | J24: =IF(OR(J$19=0,$R24=0),0,'Výpočet Kv'!J20*Výpočet!AR21*ventil) -> 0 | K24: =IF(OR(K$19=0,$R24=0),0,'Výpočet Kv'!K20*Výpočet!AS21*ventil) -> 1 | L24: =IF(OR(L$19=0,$R24=0),0,'Výpočet Kv'!L20*Výpočet!AT21*ventil) -> 1 | M24: =IF(OR(M$19=0,$R24=0),0,'Výpočet Kv'!M20*Výpočet!AU21*ventil) -> 1 | N24: =IF(OR(N$19=0,$R24=0),0,'Výpočet Kv'!N20*Výpočet!AV21*ventil) -> 1 | O24: =IF(OR(O$19=0,$R24=0),0,'Výpočet Kv'!O20*Výpočet!AW21*ventil) -> 2 | P24: =IF(OR(P$19=0,$R24=0),0,'Výpočet Kv'!P20*Výpočet!AX21*ventil) -> 2 | Q24: 500 | R24: =Výstup!R24 -> 1
B25: =IF(OR(Logic!$C$3="K0",Logic!$C$3="P0"),Výpočet!S22+4,Výpočet!S22) -> 600 | C25: =IF(OR(C$19=0,$R25=0),0,'Výpočet Kv'!C21*Výpočet!AK22*ventil) -> 0 | D25: =IF(OR(D$19=0,$R25=0),0,'Výpočet Kv'!D21*Výpočet!AL22*ventil) -> 0 | E25: =IF(OR(E$19=0,$R25=0),0,'Výpočet Kv'!E21*Výpočet!AM22*ventil) -> 0 | F25: =IF(OR(F$19=0,$R25=0),0,'Výpočet Kv'!F21*Výpočet!AN22*ventil) -> 0 | G25: =IF(OR(G$19=0,$R25=0),0,'Výpočet Kv'!G21*Výpočet!AO22*ventil) -> 0 | H25: =IF(OR(H$19=0,$R25=0),0,'Výpočet Kv'!H21*Výpočet!AP22*ventil) -> 0 | I25: =IF(OR(I$19=0,$R25=0),0,'Výpočet Kv'!I21*Výpočet!AQ22*ventil) -> 0 | J25: =IF(OR(J$19=0,$R25=0),0,'Výpočet Kv'!J21*Výpočet!AR22*ventil) -> 0 | K25: =IF(OR(K$19=0,$R25=0),0,'Výpočet Kv'!K21*Výpočet!AS22*ventil) -> 1 | L25: =IF(OR(L$19=0,$R25=0),0,'Výpočet Kv'!L21*Výpočet!AT22*ventil) -> 1 | M25: =IF(OR(M$19=0,$R25=0),0,'Výpočet Kv'!M21*Výpočet!AU22*ventil) -> 1 | N25: =IF(OR(N$19=0,$R25=0),0,'Výpočet Kv'!N21*Výpočet!AV22*ventil) -> 2 | O25: =IF(OR(O$19=0,$R25=0),0,'Výpočet Kv'!O21*Výpočet!AW22*ventil) -> 2 | P25: =IF(OR(P$19=0,$R25=0),0,'Výpočet Kv'!P21*Výpočet!AX22*ventil) -> 2 | Q25: 600 | R25: =Výstup!R25 -> 1
B26: =IF(OR(Logic!$C$3="K0",Logic!$C$3="P0"),Výpočet!S23+4,Výpočet!S23) -> 700 | C26: =IF(OR(C$19=0,$R26=0),0,'Výpočet Kv'!C22*Výpočet!AK23*ventil) -> 0 | D26: =IF(OR(D$19=0,$R26=0),0,'Výpočet Kv'!D22*Výpočet!AL23*ventil) -> 0 | E26: =IF(OR(E$19=0,$R26=0),0,'Výpočet Kv'!E22*Výpočet!AM23*ventil) -> 0 | F26: =IF(OR(F$19=0,$R26=0),0,'Výpočet Kv'!F22*Výpočet!AN23*ventil) -> 0 | G26: =IF(OR(G$19=0,$R26=0),0,'Výpočet Kv'!G22*Výpočet!AO23*ventil) -> 0 | H26: =IF(OR(H$19=0,$R26=0),0,'Výpočet Kv'!H22*Výpočet!AP23*ventil) -> 0 | I26: =IF(OR(I$19=0,$R26=0),0,'Výpočet Kv'!I22*Výpočet!AQ23*ventil) -> 0 | J26: =IF(OR(J$19=0,$R26=0),0,'Výpočet Kv'!J22*Výpočet!AR23*ventil) -> 0 | K26: =IF(OR(K$19=0,$R26=0),0,'Výpočet Kv'!K22*Výpočet!AS23*ventil) -> 1 | L26: =IF(OR(L$19=0,$R26=0),0,'Výpočet Kv'!L22*Výpočet!AT23*ventil) -> 1 | M26: =IF(OR(M$19=0,$R26=0),0,'Výpočet Kv'!M22*Výpočet!AU23*ventil) -> 2 | N26: =IF(OR(N$19=0,$R26=0),0,'Výpočet Kv'!N22*Výpočet!AV23*ventil) -> 2 | O26: =IF(OR(O$19=0,$R26=0),0,'Výpočet Kv'!O22*Výpočet!AW23*ventil) -> 2 | P26: =IF(OR(P$19=0,$R26=0),0,'Výpočet Kv'!P22*Výpočet!AX23*ventil) -> 3 | Q26: 700 | R26: =Výstup!R26 -> 1
B27: =IF(OR(Logic!$C$3="K0",Logic!$C$3="P0"),Výpočet!S24+4,Výpočet!S24) -> 800 | C27: =IF(OR(C$19=0,$R27=0),0,'Výpočet Kv'!C23*Výpočet!AK24*ventil) -> 0 | D27: =IF(OR(D$19=0,$R27=0),0,'Výpočet Kv'!D23*Výpočet!AL24*ventil) -> 0 | E27: =IF(OR(E$19=0,$R27=0),0,'Výpočet Kv'!E23*Výpočet!AM24*ventil) -> 0 | F27: =IF(OR(F$19=0,$R27=0),0,'Výpočet Kv'!F23*Výpočet!AN24*ventil) -> 0 | G27: =IF(OR(G$19=0,$R27=0),0,'Výpočet Kv'!G23*Výpočet!AO24*ventil) -> 0 | H27: =IF(OR(H$19=0,$R27=0),0,'Výpočet Kv'!H23*Výpočet!AP24*ventil) -> 0 | I27: =IF(OR(I$19=0,$R27=0),0,'Výpočet Kv'!I23*Výpočet!AQ24*ventil) -> 0 | J27: =IF(OR(J$19=0,$R27=0),0,'Výpočet Kv'!J23*Výpočet!AR24*ventil) -> 0 | K27: =IF(OR(K$19=0,$R27=0),0,'Výpočet Kv'!K23*Výpočet!AS24*ventil) -> 1 | L27: =IF(OR(L$19=0,$R27=0),0,'Výpočet Kv'!L23*Výpočet!AT24*ventil) -> 2 | M27: =IF(OR(M$19=0,$R27=0),0,'Výpočet Kv'!M23*Výpočet!AU24*ventil) -> 2 | N27: =IF(OR(N$19=0,$R27=0),0,'Výpočet Kv'!N23*Výpočet!AV24*ventil) -> 2 | O27: =IF(OR(O$19=0,$R27=0),0,'Výpočet Kv'!O23*Výpočet!AW24*ventil) -> 3 | P27: =IF(OR(P$19=0,$R27=0),0,'Výpočet Kv'!P23*Výpočet!AX24*ventil) -> 3 | Q27: 800 | R27: =Výstup!R27 -> 1
B28: =IF(OR(Logic!$C$3="K0",Logic!$C$3="P0"),Výpočet!S25+4,Výpočet!S25) -> 900 | C28: =IF(OR(C$19=0,$R28=0),0,'Výpočet Kv'!C24*Výpočet!AK25*ventil) -> 0 | D28: =IF(OR(D$19=0,$R28=0),0,'Výpočet Kv'!D24*Výpočet!AL25*ventil) -> 0 | E28: =IF(OR(E$19=0,$R28=0),0,'Výpočet Kv'!E24*Výpočet!AM25*ventil) -> 0 | F28: =IF(OR(F$19=0,$R28=0),0,'Výpočet Kv'!F24*Výpočet!AN25*ventil) -> 0 | G28: =IF(OR(G$19=0,$R28=0),0,'Výpočet Kv'!G24*Výpočet!AO25*ventil) -> 0 | H28: =IF(OR(H$19=0,$R28=0),0,'Výpočet Kv'!H24*Výpočet!AP25*ventil) -> 0 | I28: =IF(OR(I$19=0,$R28=0),0,'Výpočet Kv'!I24*Výpočet!AQ25*ventil) -> 0 | J28: =IF(OR(J$19=0,$R28=0),0,'Výpočet Kv'!J24*Výpočet!AR25*ventil) -> 0 | K28: =IF(OR(K$19=0,$R28=0),0,'Výpočet Kv'!K24*Výpočet!AS25*ventil) -> 1 | L28: =IF(OR(L$19=0,$R28=0),0,'Výpočet Kv'!L24*Výpočet!AT25*ventil) -> 2 | M28: =IF(OR(M$19=0,$R28=0),0,'Výpočet Kv'!M24*Výpočet!AU25*ventil) -> 2 | N28: =IF(OR(N$19=0,$R28=0),0,'Výpočet Kv'!N24*Výpočet!AV25*ventil) -> 2 | O28: =IF(OR(O$19=0,$R28=0),0,'Výpočet Kv'!O24*Výpočet!AW25*ventil) -> 3 | P28: =IF(OR(P$19=0,$R28=0),0,'Výpočet Kv'!P24*Výpočet!AX25*ventil) -> 3 | Q28: 900 | R28: =Výstup!R28 -> 1
B29: =IF(OR(Logic!$C$3="K0",Logic!$C$3="P0"),Výpočet!S26+4,Výpočet!S26) -> 1000 | C29: =IF(OR(C$19=0,$R29=0),0,'Výpočet Kv'!C25*Výpočet!AK26*ventil) -> 0 | D29: =IF(OR(D$19=0,$R29=0),0,'Výpočet Kv'!D25*Výpočet!AL26*ventil) -> 0 | E29: =IF(OR(E$19=0,$R29=0),0,'Výpočet Kv'!E25*Výpočet!AM26*ventil) -> 0 | F29: =IF(OR(F$19=0,$R29=0),0,'Výpočet Kv'!F25*Výpočet!AN26*ventil) -> 0 | G29: =IF(OR(G$19=0,$R29=0),0,'Výpočet Kv'!G25*Výpočet!AO26*ventil) -> 0 | H29: =IF(OR(H$19=0,$R29=0),0,'Výpočet Kv'!H25*Výpočet!AP26*ventil) -> 0 | I29: =IF(OR(I$19=0,$R29=0),0,'Výpočet Kv'!I25*Výpočet!AQ26*ventil) -> 0 | J29: =IF(OR(J$19=0,$R29=0),0,'Výpočet Kv'!J25*Výpočet!AR26*ventil) -> 0 | K29: =IF(OR(K$19=0,$R29=0),0,'Výpočet Kv'!K25*Výpočet!AS26*ventil) -> 2 | L29: =IF(OR(L$19=0,$R29=0),0,'Výpočet Kv'!L25*Výpočet!AT26*ventil) -> 2 | M29: =IF(OR(M$19=0,$R29=0),0,'Výpočet Kv'!M25*Výpočet!AU26*ventil) -> 2 | N29: =IF(OR(N$19=0,$R29=0),0,'Výpočet Kv'!N25*Výpočet!AV26*ventil) -> 3 | O29: =IF(OR(O$19=0,$R29=0),0,'Výpočet Kv'!O25*Výpočet!AW26*ventil) -> 3 | P29: =IF(OR(P$19=0,$R29=0),0,'Výpočet Kv'!P25*Výpočet!AX26*ventil) -> 4 | Q29: 1000 | R29: =Výstup!R29 -> 1
B30: =IF(OR(Logic!$C$3="K0",Logic!$C$3="P0"),Výpočet!S27+4,Výpočet!S27) -> 1100 | C30: =IF(OR(C$19=0,$R30=0),0,'Výpočet Kv'!C26*Výpočet!AK27*ventil) -> 0 | D30: =IF(OR(D$19=0,$R30=0),0,'Výpočet Kv'!D26*Výpočet!AL27*ventil) -> 0 | E30: =IF(OR(E$19=0,$R30=0),0,'Výpočet Kv'!E26*Výpočet!AM27*ventil) -> 0 | F30: =IF(OR(F$19=0,$R30=0),0,'Výpočet Kv'!F26*Výpočet!AN27*ventil) -> 0 | G30: =IF(OR(G$19=0,$R30=0),0,'Výpočet Kv'!G26*Výpočet!AO27*ventil) -> 0 | H30: =IF(OR(H$19=0,$R30=0),0,'Výpočet Kv'!H26*Výpočet!AP27*ventil) -> 0 | I30: =IF(OR(I$19=0,$R30=0),0,'Výpočet Kv'!I26*Výpočet!AQ27*ventil) -> 0 | J30: =IF(OR(J$19=0,$R30=0),0,'Výpočet Kv'!J26*Výpočet!AR27*ventil) -> 0 | K30: =IF(OR(K$19=0,$R30=0),0,'Výpočet Kv'!K26*Výpočet!AS27*ventil) -> 2 | L30: =IF(OR(L$19=0,$R30=0),0,'Výpočet Kv'!L26*Výpočet!AT27*ventil) -> 2 | M30: =IF(OR(M$19=0,$R30=0),0,'Výpočet Kv'!M26*Výpočet!AU27*ventil) -> 3 | N30: =IF(OR(N$19=0,$R30=0),0,'Výpočet Kv'!N26*Výpočet!AV27*ventil) -> 3 | O30: =IF(OR(O$19=0,$R30=0),0,'Výpočet Kv'!O26*Výpočet!AW27*ventil) -> 3 | P30: =IF(OR(P$19=0,$R30=0),0,'Výpočet Kv'!P26*Výpočet!AX27*ventil) -> 4 | Q30: 1100 | R30: =Výstup!R30 -> 1
B31: =IF(OR(Logic!$C$3="K0",Logic!$C$3="P0"),Výpočet!S28+4,Výpočet!S28) -> 1200 | C31: =IF(OR(C$19=0,$R31=0),0,'Výpočet Kv'!C27*Výpočet!AK28*ventil) -> 0 | D31: =IF(OR(D$19=0,$R31=0),0,'Výpočet Kv'!D27*Výpočet!AL28*ventil) -> 0 | E31: =IF(OR(E$19=0,$R31=0),0,'Výpočet Kv'!E27*Výpočet!AM28*ventil) -> 0 | F31: =IF(OR(F$19=0,$R31=0),0,'Výpočet Kv'!F27*Výpočet!AN28*ventil) -> 0 | G31: =IF(OR(G$19=0,$R31=0),0,'Výpočet Kv'!G27*Výpočet!AO28*ventil) -> 0 | H31: =IF(OR(H$19=0,$R31=0),0,'Výpočet Kv'!H27*Výpočet!AP28*ventil) -> 0 | I31: =IF(OR(I$19=0,$R31=0),0,'Výpočet Kv'!I27*Výpočet!AQ28*ventil) -> 0 | J31: =IF(OR(J$19=0,$R31=0),0,'Výpočet Kv'!J27*Výpočet!AR28*ventil) -> 0 | K31: =IF(OR(K$19=0,$R31=0),0,'Výpočet Kv'!K27*Výpočet!AS28*ventil) -> 2 | L31: =IF(OR(L$19=0,$R31=0),0,'Výpočet Kv'!L27*Výpočet!AT28*ventil) -> 2 | M31: =IF(OR(M$19=0,$R31=0),0,'Výpočet Kv'!M27*Výpočet!AU28*ventil) -> 3 | N31: =IF(OR(N$19=0,$R31=0),0,'Výpočet Kv'!N27*Výpočet!AV28*ventil) -> 3 | O31: =IF(OR(O$19=0,$R31=0),0,'Výpočet Kv'!O27*Výpočet!AW28*ventil) -> 4 | P31: =IF(OR(P$19=0,$R31=0),0,'Výpočet Kv'!P27*Výpočet!AX28*ventil) -> 5 | Q31: 1200 | R31: =Výstup!R31 -> 1
B32: =IF(OR(Logic!$C$3="K0",Logic!$C$3="P0"),Výpočet!S29+4,Výpočet!S29) -> 1400 | C32: =IF(OR(C$19=0,$R32=0),0,'Výpočet Kv'!C28*Výpočet!AK29*ventil) -> 0 | D32: =IF(OR(D$19=0,$R32=0),0,'Výpočet Kv'!D28*Výpočet!AL29*ventil) -> 0 | E32: =IF(OR(E$19=0,$R32=0),0,'Výpočet Kv'!E28*Výpočet!AM29*ventil) -> 0 | F32: =IF(OR(F$19=0,$R32=0),0,'Výpočet Kv'!F28*Výpočet!AN29*ventil) -> 0 | G32: =IF(OR(G$19=0,$R32=0),0,'Výpočet Kv'!G28*Výpočet!AO29*ventil) -> 0 | H32: =IF(OR(H$19=0,$R32=0),0,'Výpočet Kv'!H28*Výpočet!AP29*ventil) -> 0 | I32: =IF(OR(I$19=0,$R32=0),0,'Výpočet Kv'!I28*Výpočet!AQ29*ventil) -> 0 | J32: =IF(OR(J$19=0,$R32=0),0,'Výpočet Kv'!J28*Výpočet!AR29*ventil) -> 0 | K32: =IF(OR(K$19=0,$R32=0),0,'Výpočet Kv'!K28*Výpočet!AS29*ventil) -> 2 | L32: =IF(OR(L$19=0,$R32=0),0,'Výpočet Kv'!L28*Výpočet!AT29*ventil) -> 3 | M32: =IF(OR(M$19=0,$R32=0),0,'Výpočet Kv'!M28*Výpočet!AU29*ventil) -> 3 | N32: =IF(OR(N$19=0,$R32=0),0,'Výpočet Kv'!N28*Výpočet!AV29*ventil) -> 4 | O32: =IF(OR(O$19=0,$R32=0),0,'Výpočet Kv'!O28*Výpočet!AW29*ventil) -> 5 | P32: =IF(OR(P$19=0,$R32=0),0,'Výpočet Kv'!P28*Výpočet!AX29*ventil) -> 6 | Q32: 1400 | R32: =Výstup!R32 -> 1
B33: =IF(OR(Logic!$C$3="K0",Logic!$C$3="P0"),Výpočet!S30+4,Výpočet!S30) -> 1600 | C33: =IF(OR(C$19=0,$R33=0),0,'Výpočet Kv'!C29*Výpočet!AK30*ventil) -> 0 | D33: =IF(OR(D$19=0,$R33=0),0,'Výpočet Kv'!D29*Výpočet!AL30*ventil) -> 0 | E33: =IF(OR(E$19=0,$R33=0),0,'Výpočet Kv'!E29*Výpočet!AM30*ventil) -> 0 | F33: =IF(OR(F$19=0,$R33=0),0,'Výpočet Kv'!F29*Výpočet!AN30*ventil) -> 0 | G33: =IF(OR(G$19=0,$R33=0),0,'Výpočet Kv'!G29*Výpočet!AO30*ventil) -> 0 | H33: =IF(OR(H$19=0,$R33=0),0,'Výpočet Kv'!H29*Výpočet!AP30*ventil) -> 0 | I33: =IF(OR(I$19=0,$R33=0),0,'Výpočet Kv'!I29*Výpočet!AQ30*ventil) -> 0 | J33: =IF(OR(J$19=0,$R33=0),0,'Výpočet Kv'!J29*Výpočet!AR30*ventil) -> 0 | K33: =IF(OR(K$19=0,$R33=0),0,'Výpočet Kv'!K29*Výpočet!AS30*ventil) -> 3 | L33: =IF(OR(L$19=0,$R33=0),0,'Výpočet Kv'!L29*Výpočet!AT30*ventil) -> 3 | M33: =IF(OR(M$19=0,$R33=0),0,'Výpočet Kv'!M29*Výpočet!AU30*ventil) -> 4 | N33: =IF(OR(N$19=0,$R33=0),0,'Výpočet Kv'!N29*Výpočet!AV30*ventil) -> 5 | O33: =IF(OR(O$19=0,$R33=0),0,'Výpočet Kv'!O29*Výpočet!AW30*ventil) -> 5 | P33: =IF(OR(P$19=0,$R33=0),0,'Výpočet Kv'!P29*Výpočet!AX30*ventil) -> 6 | Q33: 1600 | R33: =Výstup!R33 -> 1
B34: =IF(OR(Logic!$C$3="K0",Logic!$C$3="P0"),Výpočet!S31+4,Výpočet!S31) -> 1800 | C34: =IF(OR(C$19=0,$R34=0),0,'Výpočet Kv'!C30*Výpočet!AK31*ventil) -> 0 | D34: =IF(OR(D$19=0,$R34=0),0,'Výpočet Kv'!D30*Výpočet!AL31*ventil) -> 0 | E34: =IF(OR(E$19=0,$R34=0),0,'Výpočet Kv'!E30*Výpočet!AM31*ventil) -> 0 | F34: =IF(OR(F$19=0,$R34=0),0,'Výpočet Kv'!F30*Výpočet!AN31*ventil) -> 0 | G34: =IF(OR(G$19=0,$R34=0),0,'Výpočet Kv'!G30*Výpočet!AO31*ventil) -> 0 | H34: =IF(OR(H$19=0,$R34=0),0,'Výpočet Kv'!H30*Výpočet!AP31*ventil) -> 0 | I34: =IF(OR(I$19=0,$R34=0),0,'Výpočet Kv'!I30*Výpočet!AQ31*ventil) -> 0 | J34: =IF(OR(J$19=0,$R34=0),0,'Výpočet Kv'!J30*Výpočet!AR31*ventil) -> 0 | K34: =IF(OR(K$19=0,$R34=0),0,'Výpočet Kv'!K30*Výpočet!AS31*ventil) -> 3 | L34: =IF(OR(L$19=0,$R34=0),0,'Výpočet Kv'!L30*Výpočet!AT31*ventil) -> 4 | M34: =IF(OR(M$19=0,$R34=0),0,'Výpočet Kv'!M30*Výpočet!AU31*ventil) -> 5 | N34: =IF(OR(N$19=0,$R34=0),0,'Výpočet Kv'!N30*Výpočet!AV31*ventil) -> 5 | O34: =IF(OR(O$19=0,$R34=0),0,'Výpočet Kv'!O30*Výpočet!AW31*ventil) -> 6 | P34: =IF(OR(P$19=0,$R34=0),0,'Výpočet Kv'!P30*Výpočet!AX31*ventil) -> 0 | Q34: 1800 | R34: =Výstup!R34 -> 1
B35: =IF(OR(Logic!$C$3="K0",Logic!$C$3="P0"),Výpočet!S32+4,Výpočet!S32) -> 2000 | C35: =IF(OR(C$19=0,$R35=0),0,'Výpočet Kv'!C31*Výpočet!AK32*ventil) -> 0 | D35: =IF(OR(D$19=0,$R35=0),0,'Výpočet Kv'!D31*Výpočet!AL32*ventil) -> 0 | E35: =IF(OR(E$19=0,$R35=0),0,'Výpočet Kv'!E31*Výpočet!AM32*ventil) -> 0 | F35: =IF(OR(F$19=0,$R35=0),0,'Výpočet Kv'!F31*Výpočet!AN32*ventil) -> 0 | G35: =IF(OR(G$19=0,$R35=0),0,'Výpočet Kv'!G31*Výpočet!AO32*ventil) -> 0 | H35: =IF(OR(H$19=0,$R35=0),0,'Výpočet Kv'!H31*Výpočet!AP32*ventil) -> 0 | I35: =IF(OR(I$19=0,$R35=0),0,'Výpočet Kv'!I31*Výpočet!AQ32*ventil) -> 0 | J35: =IF(OR(J$19=0,$R35=0),0,'Výpočet Kv'!J31*Výpočet!AR32*ventil) -> 0 | K35: =IF(OR(K$19=0,$R35=0),0,'Výpočet Kv'!K31*Výpočet!AS32*ventil) -> 3 | L35: =IF(OR(L$19=0,$R35=0),0,'Výpočet Kv'!L31*Výpočet!AT32*ventil) -> 4 | M35: =IF(OR(M$19=0,$R35=0),0,'Výpočet Kv'!M31*Výpočet!AU32*ventil) -> 5 | N35: =IF(OR(N$19=0,$R35=0),0,'Výpočet Kv'!N31*Výpočet!AV32*ventil) -> 6 | O35: =IF(OR(O$19=0,$R35=0),0,'Výpočet Kv'!O31*Výpočet!AW32*ventil) -> 6 | P35: =IF(OR(P$19=0,$R35=0),0,'Výpočet Kv'!P31*Výpočet!AX32*ventil) -> 0 | Q35: 2000 | R35: =Výstup!R35 -> 1
B36: =IF(OR(Logic!$C$3="K0",Logic!$C$3="P0"),Výpočet!S33+4,Výpočet!S33) -> 2300 | C36: =IF(OR(C$19=0,$R36=0),0,'Výpočet Kv'!C32*Výpočet!AK33*ventil) -> 0 | D36: =IF(OR(D$19=0,$R36=0),0,'Výpočet Kv'!D32*Výpočet!AL33*ventil) -> 0 | E36: =IF(OR(E$19=0,$R36=0),0,'Výpočet Kv'!E32*Výpočet!AM33*ventil) -> 0 | F36: =IF(OR(F$19=0,$R36=0),0,'Výpočet Kv'!F32*Výpočet!AN33*ventil) -> 0 | G36: =IF(OR(G$19=0,$R36=0),0,'Výpočet Kv'!G32*Výpočet!AO33*ventil) -> 0 | H36: =IF(OR(H$19=0,$R36=0),0,'Výpočet Kv'!H32*Výpočet!AP33*ventil) -> 0 | I36: =IF(OR(I$19=0,$R36=0),0,'Výpočet Kv'!I32*Výpočet!AQ33*ventil) -> 0 | J36: =IF(OR(J$19=0,$R36=0),0,'Výpočet Kv'!J32*Výpočet!AR33*ventil) -> 0 | K36: =IF(OR(K$19=0,$R36=0),0,'Výpočet Kv'!K32*Výpočet!AS33*ventil) -> 0 | L36: =IF(OR(L$19=0,$R36=0),0,'Výpočet Kv'!L32*Výpočet!AT33*ventil) -> 0 | M36: =IF(OR(M$19=0,$R36=0),0,'Výpočet Kv'!M32*Výpočet!AU33*ventil) -> 0 | N36: =IF(OR(N$19=0,$R36=0),0,'Výpočet Kv'!N32*Výpočet!AV33*ventil) -> 0 | O36: =IF(OR(O$19=0,$R36=0),0,'Výpočet Kv'!O32*Výpočet!AW33*ventil) -> 0 | P36: =IF(OR(P$19=0,$R36=0),0,'Výpočet Kv'!P32*Výpočet!AX33*ventil) -> 0 | Q36: 2300 | R36: =Výstup!R36 -> 1
B37: =IF(OR(Logic!$C$3="K0",Logic!$C$3="P0"),Výpočet!S34+4,Výpočet!S34) -> 2600 | C37: =IF(OR(C$19=0,$R37=0),0,'Výpočet Kv'!C33*Výpočet!AK34*ventil) -> 0 | D37: =IF(OR(D$19=0,$R37=0),0,'Výpočet Kv'!D33*Výpočet!AL34*ventil) -> 0 | E37: =IF(OR(E$19=0,$R37=0),0,'Výpočet Kv'!E33*Výpočet!AM34*ventil) -> 0 | F37: =IF(OR(F$19=0,$R37=0),0,'Výpočet Kv'!F33*Výpočet!AN34*ventil) -> 0 | G37: =IF(OR(G$19=0,$R37=0),0,'Výpočet Kv'!G33*Výpočet!AO34*ventil) -> 0 | H37: =IF(OR(H$19=0,$R37=0),0,'Výpočet Kv'!H33*Výpočet!AP34*ventil) -> 0 | I37: =IF(OR(I$19=0,$R37=0),0,'Výpočet Kv'!I33*Výpočet!AQ34*ventil) -> 0 | J37: =IF(OR(J$19=0,$R37=0),0,'Výpočet Kv'!J33*Výpočet!AR34*ventil) -> 0 | K37: =IF(OR(K$19=0,$R37=0),0,'Výpočet Kv'!K33*Výpočet!AS34*ventil) -> 0 | L37: =IF(OR(L$19=0,$R37=0),0,'Výpočet Kv'!L33*Výpočet!AT34*ventil) -> 0 | M37: =IF(OR(M$19=0,$R37=0),0,'Výpočet Kv'!M33*Výpočet!AU34*ventil) -> 0 | N37: =IF(OR(N$19=0,$R37=0),0,'Výpočet Kv'!N33*Výpočet!AV34*ventil) -> 0 | O37: =IF(OR(O$19=0,$R37=0),0,'Výpočet Kv'!O33*Výpočet!AW34*ventil) -> 0 | P37: =IF(OR(P$19=0,$R37=0),0,'Výpočet Kv'!P33*Výpočet!AX34*ventil) -> 0 | Q37: 2600 | R37: =Výstup!R37 -> 1
B38: =IF(OR(Logic!$C$3="K0",Logic!$C$3="P0"),Výpočet!S35+4,Výpočet!S35) -> 3000 | C38: =IF(OR(C$19=0,$R38=0),0,'Výpočet Kv'!C34*Výpočet!AK35*ventil) -> 0 | D38: =IF(OR(D$19=0,$R38=0),0,'Výpočet Kv'!D34*Výpočet!AL35*ventil) -> 0 | E38: =IF(OR(E$19=0,$R38=0),0,'Výpočet Kv'!E34*Výpočet!AM35*ventil) -> 0 | F38: =IF(OR(F$19=0,$R38=0),0,'Výpočet Kv'!F34*Výpočet!AN35*ventil) -> 0 | G38: =IF(OR(G$19=0,$R38=0),0,'Výpočet Kv'!G34*Výpočet!AO35*ventil) -> 0 | H38: =IF(OR(H$19=0,$R38=0),0,'Výpočet Kv'!H34*Výpočet!AP35*ventil) -> 0 | I38: =IF(OR(I$19=0,$R38=0),0,'Výpočet Kv'!I34*Výpočet!AQ35*ventil) -> 0 | J38: =IF(OR(J$19=0,$R38=0),0,'Výpočet Kv'!J34*Výpočet!AR35*ventil) -> 0 | K38: =IF(OR(K$19=0,$R38=0),0,'Výpočet Kv'!K34*Výpočet!AS35*ventil) -> 0 | L38: =IF(OR(L$19=0,$R38=0),0,'Výpočet Kv'!L34*Výpočet!AT35*ventil) -> 0 | M38: =IF(OR(M$19=0,$R38=0),0,'Výpočet Kv'!M34*Výpočet!AU35*ventil) -> 0 | N38: =IF(OR(N$19=0,$R38=0),0,'Výpočet Kv'!N34*Výpočet!AV35*ventil) -> 0 | O38: =IF(OR(O$19=0,$R38=0),0,'Výpočet Kv'!O34*Výpočet!AW35*ventil) -> 0 | P38: =IF(OR(P$19=0,$R38=0),0,'Výpočet Kv'!P34*Výpočet!AX35*ventil) -> 0 | Q38: 3000 | R38: =Výstup!R38 -> 1
C40: =F40 -> Typ 20 | D40: =F40 -> Typ 20 | E40: =F40 -> Typ 20 | F40: =IF(Výpočet!W36=0,0,IF(OR(Logic!$C$3="K0",Logic!$C$3="P0",Logic!$C$3="A0",Logic!$C$3="B0"),Logic!$P$3&" "&Výpočet!W36&"S",Logic!$P$3&" "&Výpočet!W36)) -> Typ 20 | G40: =F40 -> Typ 20 | H40: =F40 -> Typ 20 | I40: =F40 -> Typ 20 | J40: =M40 -> Typ 21 | K40: =M40 -> Typ 21 | L40: =M40 -> Typ 21 | M40: =IF(OR(Logic!$C$3="A0",Logic!$C$3="B0",Logic!$C$3="K0",Logic!$C$3="P0",Výpočet!AD36=0,Logic!$C$3="V0",Logic!$C$3="U0"),0,Logic!$P$3&" "&Výpočet!AD36) -> Typ 21 | N40: =M40 -> Typ 21 | O40: =M40 -> Typ 21 | P40: =M40 -> Typ 21
B41: =IF(OR(Logic!$C$3="V0",Logic!$C$3="U0"),Logic!$I$3,Logic!$J$3)&" [mm]" -> Délka [mm] | C41: =IF(C40=0,0,IF(OR(Logic!$C$3="V0",Logic!$C$3="U0"),Logic!$J$3,Logic!$I$3) &" [mm]") -> Výška [mm] | J41: =IF(J40=0,0,IF(OR(Logic!$C$3="V0",Logic!$C$3="U0"),Logic!$J$3,Logic!$I$3) &" [mm]") -> Výška [mm] | Q41: =IF(OR(Logic!$C$3="V0",Logic!$C$3="U0"),Logic!$I$3,Logic!$J$3)&" [mm]" -> Délka [mm]
C42: =Výpočet!T37 -> 200 | D42: =Výpočet!U37 -> 300 | E42: =Výpočet!V37 -> 400 | F42: =Výpočet!W37 -> 500 | G42: =Výpočet!X37 -> 600 | H42: =Výpočet!Y37 -> 700 | I42: =Výpočet!Z37 -> 900 | J42: =Výpočet!AA37 -> 200 | K42: =Výpočet!AB37 -> 300 | L42: =Výpočet!AC37 -> 400 | M42: =Výpočet!AD37 -> 500 | N42: =Výpočet!AE37 -> 600 | O42: =Výpočet!AF37 -> 700 | P42: =Výpočet!AG37 -> 900
B43: =IF(OR(Logic!$C$3="K0",Logic!$C$3="P0"),Výpočet!S38+4,Výpočet!S38) -> 400 | C43: =IF(OR(C$19=0,$R43=0),0,'Výpočet Kv'!C39*Výpočet!AK38*ventil) -> 0 | D43: =IF(OR(D$19=0,$R43=0),0,'Výpočet Kv'!D39*Výpočet!AL38*ventil) -> 0 | E43: =IF(OR(E$19=0,$R43=0),0,'Výpočet Kv'!E39*Výpočet!AM38*ventil) -> 0 | F43: =IF(OR(F$19=0,$R43=0),0,'Výpočet Kv'!F39*Výpočet!AN38*ventil) -> 0 | G43: =IF(OR(G$19=0,$R43=0),0,'Výpočet Kv'!G39*Výpočet!AO38*ventil) -> 0 | H43: =IF(OR(H$19=0,$R43=0),0,'Výpočet Kv'!H39*Výpočet!AP38*ventil) -> 0 | I43: =IF(OR(I$19=0,$R43=0),0,'Výpočet Kv'!I39*Výpočet!AQ38*ventil) -> 0 | J43: =IF(OR(J$19=0,$R43=0),0,'Výpočet Kv'!J39*Výpočet!AR38*ventil) -> 0 | K43: =IF(OR(K$19=0,$R43=0),0,'Výpočet Kv'!K39*Výpočet!AS38*ventil) -> 0 | L43: =IF(OR(L$19=0,$R43=0),0,'Výpočet Kv'!L39*Výpočet!AT38*ventil) -> 0 | M43: =IF(OR(M$19=0,$R43=0),0,'Výpočet Kv'!M39*Výpočet!AU38*ventil) -> 0 | N43: =IF(OR(N$19=0,$R43=0),0,'Výpočet Kv'!N39*Výpočet!AV38*ventil) -> 0 | O43: =IF(OR(O$19=0,$R43=0),0,'Výpočet Kv'!O39*Výpočet!AW38*ventil) -> 0 | P43: =IF(OR(P$19=0,$R43=0),0,'Výpočet Kv'!P39*Výpočet!AX38*ventil) -> 0 | Q43: =B43 -> 400 | R43: =Výstup!R43 -> 1
B44: =IF(OR(Logic!$C$3="K0",Logic!$C$3="P0"),Výpočet!S39+4,Výpočet!S39) -> 500 | C44: =IF(OR(C$19=0,$R44=0),0,'Výpočet Kv'!C40*Výpočet!AK39*ventil) -> 0 | D44: =IF(OR(D$19=0,$R44=0),0,'Výpočet Kv'!D40*Výpočet!AL39*ventil) -> 0 | E44: =IF(OR(E$19=0,$R44=0),0,'Výpočet Kv'!E40*Výpočet!AM39*ventil) -> 0 | F44: =IF(OR(F$19=0,$R44=0),0,'Výpočet Kv'!F40*Výpočet!AN39*ventil) -> 1 | G44: =IF(OR(G$19=0,$R44=0),0,'Výpočet Kv'!G40*Výpočet!AO39*ventil) -> 2 | H44: =IF(OR(H$19=0,$R44=0),0,'Výpočet Kv'!H40*Výpočet!AP39*ventil) -> 2 | I44: =IF(OR(I$19=0,$R44=0),0,'Výpočet Kv'!I40*Výpočet!AQ39*ventil) -> 0 | J44: =IF(OR(J$19=0,$R44=0),0,'Výpočet Kv'!J40*Výpočet!AR39*ventil) -> 0 | K44: =IF(OR(K$19=0,$R44=0),0,'Výpočet Kv'!K40*Výpočet!AS39*ventil) -> 1 | L44: =IF(OR(L$19=0,$R44=0),0,'Výpočet Kv'!L40*Výpočet!AT39*ventil) -> 1 | M44: =IF(OR(M$19=0,$R44=0),0,'Výpočet Kv'!M40*Výpočet!AU39*ventil) -> 2 | N44: =IF(OR(N$19=0,$R44=0),0,'Výpočet Kv'!N40*Výpočet!AV39*ventil) -> 2 | O44: =IF(OR(O$19=0,$R44=0),0,'Výpočet Kv'!O40*Výpočet!AW39*ventil) -> 2 | P44: =IF(OR(P$19=0,$R44=0),0,'Výpočet Kv'!P40*Výpočet!AX39*ventil) -> 3 | Q44: 500 | R44: =Výstup!R44 -> 1
B45: =IF(OR(Logic!$C$3="K0",Logic!$C$3="P0"),Výpočet!S40+4,Výpočet!S40) -> 600 | C45: =IF(OR(C$19=0,$R45=0),0,'Výpočet Kv'!C41*Výpočet!AK40*ventil) -> 0 | D45: =IF(OR(D$19=0,$R45=0),0,'Výpočet Kv'!D41*Výpočet!AL40*ventil) -> 0 | E45: =IF(OR(E$19=0,$R45=0),0,'Výpočet Kv'!E41*Výpočet!AM40*ventil) -> 0 | F45: =IF(OR(F$19=0,$R45=0),0,'Výpočet Kv'!F41*Výpočet!AN40*ventil) -> 2 | G45: =IF(OR(G$19=0,$R45=0),0,'Výpočet Kv'!G41*Výpočet!AO40*ventil) -> 2 | H45: =IF(OR(H$19=0,$R45=0),0,'Výpočet Kv'!H41*Výpočet!AP40*ventil) -> 2 | I45: =IF(OR(I$19=0,$R45=0),0,'Výpočet Kv'!I41*Výpočet!AQ40*ventil) -> 0 | J45: =IF(OR(J$19=0,$R45=0),0,'Výpočet Kv'!J41*Výpočet!AR40*ventil) -> 0 | K45: =IF(OR(K$19=0,$R45=0),0,'Výpočet Kv'!K41*Výpočet!AS40*ventil) -> 1 | L45: =IF(OR(L$19=0,$R45=0),0,'Výpočet Kv'!L41*Výpočet!AT40*ventil) -> 2 | M45: =IF(OR(M$19=0,$R45=0),0,'Výpočet Kv'!M41*Výpočet!AU40*ventil) -> 2 | N45: =IF(OR(N$19=0,$R45=0),0,'Výpočet Kv'!N41*Výpočet!AV40*ventil) -> 2 | O45: =IF(OR(O$19=0,$R45=0),0,'Výpočet Kv'!O41*Výpočet!AW40*ventil) -> 3 | P45: =IF(OR(P$19=0,$R45=0),0,'Výpočet Kv'!P41*Výpočet!AX40*ventil) -> 3 | Q45: 600 | R45: =Výstup!R45 -> 1
B46: =IF(OR(Logic!$C$3="K0",Logic!$C$3="P0"),Výpočet!S41+4,Výpočet!S41) -> 700 | C46: =IF(OR(C$19=0,$R46=0),0,'Výpočet Kv'!C42*Výpočet!AK41*ventil) -> 0 | D46: =IF(OR(D$19=0,$R46=0),0,'Výpočet Kv'!D42*Výpočet!AL41*ventil) -> 0 | E46: =IF(OR(E$19=0,$R46=0),0,'Výpočet Kv'!E42*Výpočet!AM41*ventil) -> 0 | F46: =IF(OR(F$19=0,$R46=0),0,'Výpočet Kv'!F42*Výpočet!AN41*ventil) -> 2 | G46: =IF(OR(G$19=0,$R46=0),0,'Výpočet Kv'!G42*Výpočet!AO41*ventil) -> 2 | H46: =IF(OR(H$19=0,$R46=0),0,'Výpočet Kv'!H42*Výpočet!AP41*ventil) -> 2 | I46: =IF(OR(I$19=0,$R46=0),0,'Výpočet Kv'!I42*Výpočet!AQ41*ventil) -> 0 | J46: =IF(OR(J$19=0,$R46=0),0,'Výpočet Kv'!J42*Výpočet!AR41*ventil) -> 0 | K46: =IF(OR(K$19=0,$R46=0),0,'Výpočet Kv'!K42*Výpočet!AS41*ventil) -> 2 | L46: =IF(OR(L$19=0,$R46=0),0,'Výpočet Kv'!L42*Výpočet!AT41*ventil) -> 2 | M46: =IF(OR(M$19=0,$R46=0),0,'Výpočet Kv'!M42*Výpočet!AU41*ventil) -> 2 | N46: =IF(OR(N$19=0,$R46=0),0,'Výpočet Kv'!N42*Výpočet!AV41*ventil) -> 3 | O46: =IF(OR(O$19=0,$R46=0),0,'Výpočet Kv'!O42*Výpočet!AW41*ventil) -> 3 | P46: =IF(OR(P$19=0,$R46=0),0,'Výpočet Kv'!P42*Výpočet!AX41*ventil) -> 3 | Q46: 700 | R46: =Výstup!R46 -> 1
B47: =IF(OR(Logic!$C$3="K0",Logic!$C$3="P0"),Výpočet!S42+4,Výpočet!S42) -> 800 | C47: =IF(OR(C$19=0,$R47=0),0,'Výpočet Kv'!C43*Výpočet!AK42*ventil) -> 0 | D47: =IF(OR(D$19=0,$R47=0),0,'Výpočet Kv'!D43*Výpočet!AL42*ventil) -> 0 | E47: =IF(OR(E$19=0,$R47=0),0,'Výpočet Kv'!E43*Výpočet!AM42*ventil) -> 0 | F47: =IF(OR(F$19=0,$R47=0),0,'Výpočet Kv'!F43*Výpočet!AN42*ventil) -> 2 | G47: =IF(OR(G$19=0,$R47=0),0,'Výpočet Kv'!G43*Výpočet!AO42*ventil) -> 2 | H47: =IF(OR(H$19=0,$R47=0),0,'Výpočet Kv'!H43*Výpočet!AP42*ventil) -> 3 | I47: =IF(OR(I$19=0,$R47=0),0,'Výpočet Kv'!I43*Výpočet!AQ42*ventil) -> 0 | J47: =IF(OR(J$19=0,$R47=0),0,'Výpočet Kv'!J43*Výpočet!AR42*ventil) -> 0 | K47: =IF(OR(K$19=0,$R47=0),0,'Výpočet Kv'!K43*Výpočet!AS42*ventil) -> 2 | L47: =IF(OR(L$19=0,$R47=0),0,'Výpočet Kv'!L43*Výpočet!AT42*ventil) -> 2 | M47: =IF(OR(M$19=0,$R47=0),0,'Výpočet Kv'!M43*Výpočet!AU42*ventil) -> 3 | N47: =IF(OR(N$19=0,$R47=0),0,'Výpočet Kv'!N43*Výpočet!AV42*ventil) -> 3 | O47: =IF(OR(O$19=0,$R47=0),0,'Výpočet Kv'!O43*Výpočet!AW42*ventil) -> 3 | P47: =IF(OR(P$19=0,$R47=0),0,'Výpočet Kv'!P43*Výpočet!AX42*ventil) -> 4 | Q47: 800 | R47: =Výstup!R47 -> 1
B48: =IF(OR(Logic!$C$3="K0",Logic!$C$3="P0"),Výpočet!S43+4,Výpočet!S43) -> 900 | C48: =IF(OR(C$19=0,$R48=0),0,'Výpočet Kv'!C44*Výpočet!AK43*ventil) -> 0 | D48: =IF(OR(D$19=0,$R48=0),0,'Výpočet Kv'!D44*Výpočet!AL43*ventil) -> 0 | E48: =IF(OR(E$19=0,$R48=0),0,'Výpočet Kv'!E44*Výpočet!AM43*ventil) -> 0 | F48: =IF(OR(F$19=0,$R48=0),0,'Výpočet Kv'!F44*Výpočet!AN43*ventil) -> 2 | G48: =IF(OR(G$19=0,$R48=0),0,'Výpočet Kv'!G44*Výpočet!AO43*ventil) -> 3 | H48: =IF(OR(H$19=0,$R48=0),0,'Výpočet Kv'!H44*Výpočet!AP43*ventil) -> 3 | I48: =IF(OR(I$19=0,$R48=0),0,'Výpočet Kv'!I44*Výpočet!AQ43*ventil) -> 0 | J48: =IF(OR(J$19=0,$R48=0),0,'Výpočet Kv'!J44*Výpočet!AR43*ventil) -> 0 | K48: =IF(OR(K$19=0,$R48=0),0,'Výpočet Kv'!K44*Výpočet!AS43*ventil) -> 2 | L48: =IF(OR(L$19=0,$R48=0),0,'Výpočet Kv'!L44*Výpočet!AT43*ventil) -> 3 | M48: =IF(OR(M$19=0,$R48=0),0,'Výpočet Kv'!M44*Výpočet!AU43*ventil) -> 3 | N48: =IF(OR(N$19=0,$R48=0),0,'Výpočet Kv'!N44*Výpočet!AV43*ventil) -> 3 | O48: =IF(OR(O$19=0,$R48=0),0,'Výpočet Kv'!O44*Výpočet!AW43*ventil) -> 4 | P48: =IF(OR(P$19=0,$R48=0),0,'Výpočet Kv'!P44*Výpočet!AX43*ventil) -> 5 | Q48: 900 | R48: =Výstup!R48 -> 1
B49: =IF(OR(Logic!$C$3="K0",Logic!$C$3="P0"),Výpočet!S44+4,Výpočet!S44) -> 1000 | C49: =IF(OR(C$19=0,$R49=0),0,'Výpočet Kv'!C45*Výpočet!AK44*ventil) -> 0 | D49: =IF(OR(D$19=0,$R49=0),0,'Výpočet Kv'!D45*Výpočet!AL44*ventil) -> 0 | E49: =IF(OR(E$19=0,$R49=0),0,'Výpočet Kv'!E45*Výpočet!AM44*ventil) -> 0 | F49: =IF(OR(F$19=0,$R49=0),0,'Výpočet Kv'!F45*Výpočet!AN44*ventil) -> 3 | G49: =IF(OR(G$19=0,$R49=0),0,'Výpočet Kv'!G45*Výpočet!AO44*ventil) -> 3 | H49: =IF(OR(H$19=0,$R49=0),0,'Výpočet Kv'!H45*Výpočet!AP44*ventil) -> 3 | I49: =IF(OR(I$19=0,$R49=0),0,'Výpočet Kv'!I45*Výpočet!AQ44*ventil) -> 0 | J49: =IF(OR(J$19=0,$R49=0),0,'Výpočet Kv'!J45*Výpočet!AR44*ventil) -> 0 | K49: =IF(OR(K$19=0,$R49=0),0,'Výpočet Kv'!K45*Výpočet!AS44*ventil) -> 2 | L49: =IF(OR(L$19=0,$R49=0),0,'Výpočet Kv'!L45*Výpočet!AT44*ventil) -> 3 | M49: =IF(OR(M$19=0,$R49=0),0,'Výpočet Kv'!M45*Výpočet!AU44*ventil) -> 3 | N49: =IF(OR(N$19=0,$R49=0),0,'Výpočet Kv'!N45*Výpočet!AV44*ventil) -> 4 | O49: =IF(OR(O$19=0,$R49=0),0,'Výpočet Kv'!O45*Výpočet!AW44*ventil) -> 4 | P49: =IF(OR(P$19=0,$R49=0),0,'Výpočet Kv'!P45*Výpočet!AX44*ventil) -> 5 | Q49: 1000 | R49: =Výstup!R49 -> 1
B50: =IF(OR(Logic!$C$3="K0",Logic!$C$3="P0"),Výpočet!S45+4,Výpočet!S45) -> 1100 | C50: =IF(OR(C$19=0,$R50=0),0,'Výpočet Kv'!C46*Výpočet!AK45*ventil) -> 0 | D50: =IF(OR(D$19=0,$R50=0),0,'Výpočet Kv'!D46*Výpočet!AL45*ventil) -> 0 | E50: =IF(OR(E$19=0,$R50=0),0,'Výpočet Kv'!E46*Výpočet!AM45*ventil) -> 0 | F50: =IF(OR(F$19=0,$R50=0),0,'Výpočet Kv'!F46*Výpočet!AN45*ventil) -> 3 | G50: =IF(OR(G$19=0,$R50=0),0,'Výpočet Kv'!G46*Výpočet!AO45*ventil) -> 3 | H50: =IF(OR(H$19=0,$R50=0),0,'Výpočet Kv'!H46*Výpočet!AP45*ventil) -> 4 | I50: =IF(OR(I$19=0,$R50=0),0,'Výpočet Kv'!I46*Výpočet!AQ45*ventil) -> 0 | J50: =IF(OR(J$19=0,$R50=0),0,'Výpočet Kv'!J46*Výpočet!AR45*ventil) -> 0 | K50: =IF(OR(K$19=0,$R50=0),0,'Výpočet Kv'!K46*Výpočet!AS45*ventil) -> 2 | L50: =IF(OR(L$19=0,$R50=0),0,'Výpočet Kv'!L46*Výpočet!AT45*ventil) -> 3 | M50: =IF(OR(M$19=0,$R50=0),0,'Výpočet Kv'!M46*Výpočet!AU45*ventil) -> 4 | N50: =IF(OR(N$19=0,$R50=0),0,'Výpočet Kv'!N46*Výpočet!AV45*ventil) -> 4 | O50: =IF(OR(O$19=0,$R50=0),0,'Výpočet Kv'!O46*Výpočet!AW45*ventil) -> 5 | P50: =IF(OR(P$19=0,$R50=0),0,'Výpočet Kv'!P46*Výpočet!AX45*ventil) -> 6 | Q50: 1100 | R50: =Výstup!R50 -> 1
B51: =IF(OR(Logic!$C$3="K0",Logic!$C$3="P0"),Výpočet!S46+4,Výpočet!S46) -> 1200 | C51: =IF(OR(C$19=0,$R51=0),0,'Výpočet Kv'!C47*Výpočet!AK46*ventil) -> 0 | D51: =IF(OR(D$19=0,$R51=0),0,'Výpočet Kv'!D47*Výpočet!AL46*ventil) -> 0 | E51: =IF(OR(E$19=0,$R51=0),0,'Výpočet Kv'!E47*Výpočet!AM46*ventil) -> 0 | F51: =IF(OR(F$19=0,$R51=0),0,'Výpočet Kv'!F47*Výpočet!AN46*ventil) -> 3 | G51: =IF(OR(G$19=0,$R51=0),0,'Výpočet Kv'!G47*Výpočet!AO46*ventil) -> 4 | H51: =IF(OR(H$19=0,$R51=0),0,'Výpočet Kv'!H47*Výpočet!AP46*ventil) -> 4 | I51: =IF(OR(I$19=0,$R51=0),0,'Výpočet Kv'!I47*Výpočet!AQ46*ventil) -> 0 | J51: =IF(OR(J$19=0,$R51=0),0,'Výpočet Kv'!J47*Výpočet!AR46*ventil) -> 0 | K51: =IF(OR(K$19=0,$R51=0),0,'Výpočet Kv'!K47*Výpočet!AS46*ventil) -> 3 | L51: =IF(OR(L$19=0,$R51=0),0,'Výpočet Kv'!L47*Výpočet!AT46*ventil) -> 3 | M51: =IF(OR(M$19=0,$R51=0),0,'Výpočet Kv'!M47*Výpočet!AU46*ventil) -> 4 | N51: =IF(OR(N$19=0,$R51=0),0,'Výpočet Kv'!N47*Výpočet!AV46*ventil) -> 5 | O51: =IF(OR(O$19=0,$R51=0),0,'Výpočet Kv'!O47*Výpočet!AW46*ventil) -> 5 | P51: =IF(OR(P$19=0,$R51=0),0,'Výpočet Kv'!P47*Výpočet!AX46*ventil) -> 6 | Q51: 1200 | R51: =Výstup!R51 -> 1
B52: =IF(OR(Logic!$C$3="K0",Logic!$C$3="P0"),Výpočet!S47+4,Výpočet!S47) -> 1400 | C52: =IF(OR(C$19=0,$R52=0),0,'Výpočet Kv'!C48*Výpočet!AK47*ventil) -> 0 | D52: =IF(OR(D$19=0,$R52=0),0,'Výpočet Kv'!D48*Výpočet!AL47*ventil) -> 0 | E52: =IF(OR(E$19=0,$R52=0),0,'Výpočet Kv'!E48*Výpočet!AM47*ventil) -> 0 | F52: =IF(OR(F$19=0,$R52=0),0,'Výpočet Kv'!F48*Výpočet!AN47*ventil) -> 4 | G52: =IF(OR(G$19=0,$R52=0),0,'Výpočet Kv'!G48*Výpočet!AO47*ventil) -> 4 | H52: =IF(OR(H$19=0,$R52=0),0,'Výpočet Kv'!H48*Výpočet!AP47*ventil) -> 5 | I52: =IF(OR(I$19=0,$R52=0),0,'Výpočet Kv'!I48*Výpočet!AQ47*ventil) -> 0 | J52: =IF(OR(J$19=0,$R52=0),0,'Výpočet Kv'!J48*Výpočet!AR47*ventil) -> 0 | K52: =IF(OR(K$19=0,$R52=0),0,'Výpočet Kv'!K48*Výpočet!AS47*ventil) -> 3 | L52: =IF(OR(L$19=0,$R52=0),0,'Výpočet Kv'!L48*Výpočet!AT47*ventil) -> 4 | M52: =IF(OR(M$19=0,$R52=0),0,'Výpočet Kv'!M48*Výpočet!AU47*ventil) -> 5 | N52: =IF(OR(N$19=0,$R52=0),0,'Výpočet Kv'!N48*Výpočet!AV47*ventil) -> 6 | O52: =IF(OR(O$19=0,$R52=0),0,'Výpočet Kv'!O48*Výpočet!AW47*ventil) -> 6 | P52: =IF(OR(P$19=0,$R52=0),0,'Výpočet Kv'!P48*Výpočet!AX47*ventil) -> 7 | Q52: 1400 | R52: =Výstup!R52 -> 1
B53: =IF(OR(Logic!$C$3="K0",Logic!$C$3="P0"),Výpočet!S48+4,Výpočet!S48) -> 1600 | C53: =IF(OR(C$19=0,$R53=0),0,'Výpočet Kv'!C49*Výpočet!AK48*ventil) -> 0 | D53: =IF(OR(D$19=0,$R53=0),0,'Výpočet Kv'!D49*Výpočet!AL48*ventil) -> 0 | E53: =IF(OR(E$19=0,$R53=0),0,'Výpočet Kv'!E49*Výpočet!AM48*ventil) -> 0 | F53: =IF(OR(F$19=0,$R53=0),0,'Výpočet Kv'!F49*Výpočet!AN48*ventil) -> 4 | G53: =IF(OR(G$19=0,$R53=0),0,'Výpočet Kv'!G49*Výpočet!AO48*ventil) -> 5 | H53: =IF(OR(H$19=0,$R53=0),0,'Výpočet Kv'!H49*Výpočet!AP48*ventil) -> 6 | I53: =IF(OR(I$19=0,$R53=0),0,'Výpočet Kv'!I49*Výpočet!AQ48*ventil) -> 0 | J53: =IF(OR(J$19=0,$R53=0),0,'Výpočet Kv'!J49*Výpočet!AR48*ventil) -> 0 | K53: =IF(OR(K$19=0,$R53=0),0,'Výpočet Kv'!K49*Výpočet!AS48*ventil) -> 4 | L53: =IF(OR(L$19=0,$R53=0),0,'Výpočet Kv'!L49*Výpočet!AT48*ventil) -> 5 | M53: =IF(OR(M$19=0,$R53=0),0,'Výpočet Kv'!M49*Výpočet!AU48*ventil) -> 6 | N53: =IF(OR(N$19=0,$R53=0),0,'Výpočet Kv'!N49*Výpočet!AV48*ventil) -> 6 | O53: =IF(OR(O$19=0,$R53=0),0,'Výpočet Kv'!O49*Výpočet!AW48*ventil) -> 7 | P53: =IF(OR(P$19=0,$R53=0),0,'Výpočet Kv'!P49*Výpočet!AX48*ventil) -> 8 | Q53: 1600 | R53: =Výstup!R53 -> 1
B54: =IF(OR(Logic!$C$3="K0",Logic!$C$3="P0"),Výpočet!S49+4,Výpočet!S49) -> 1800 | C54: =IF(OR(C$19=0,$R54=0),0,'Výpočet Kv'!C50*Výpočet!AK49*ventil) -> 0 | D54: =IF(OR(D$19=0,$R54=0),0,'Výpočet Kv'!D50*Výpočet!AL49*ventil) -> 0 | E54: =IF(OR(E$19=0,$R54=0),0,'Výpočet Kv'!E50*Výpočet!AM49*ventil) -> 0 | F54: =IF(OR(F$19=0,$R54=0),0,'Výpočet Kv'!F50*Výpočet!AN49*ventil) -> 5 | G54: =IF(OR(G$19=0,$R54=0),0,'Výpočet Kv'!G50*Výpočet!AO49*ventil) -> 6 | H54: =IF(OR(H$19=0,$R54=0),0,'Výpočet Kv'!H50*Výpočet!AP49*ventil) -> 6 | I54: =IF(OR(I$19=0,$R54=0),0,'Výpočet Kv'!I50*Výpočet!AQ49*ventil) -> 0 | J54: =IF(OR(J$19=0,$R54=0),0,'Výpočet Kv'!J50*Výpočet!AR49*ventil) -> 0 | K54: =IF(OR(K$19=0,$R54=0),0,'Výpočet Kv'!K50*Výpočet!AS49*ventil) -> 4 | L54: =IF(OR(L$19=0,$R54=0),0,'Výpočet Kv'!L50*Výpočet!AT49*ventil) -> 5 | M54: =IF(OR(M$19=0,$R54=0),0,'Výpočet Kv'!M50*Výpočet!AU49*ventil) -> 6 | N54: =IF(OR(N$19=0,$R54=0),0,'Výpočet Kv'!N50*Výpočet!AV49*ventil) -> 7 | O54: =IF(OR(O$19=0,$R54=0),0,'Výpočet Kv'!O50*Výpočet!AW49*ventil) -> 8 | P54: =IF(OR(P$19=0,$R54=0),0,'Výpočet Kv'!P50*Výpočet!AX49*ventil) -> 0 | Q54: 1800 | R54: =Výstup!R54 -> 1
B55: =IF(OR(Logic!$C$3="K0",Logic!$C$3="P0"),Výpočet!S50+4,Výpočet!S50) -> 2000 | C55: =IF(OR(C$19=0,$R55=0),0,'Výpočet Kv'!C51*Výpočet!AK50*ventil) -> 0 | D55: =IF(OR(D$19=0,$R55=0),0,'Výpočet Kv'!D51*Výpočet!AL50*ventil) -> 0 | E55: =IF(OR(E$19=0,$R55=0),0,'Výpočet Kv'!E51*Výpočet!AM50*ventil) -> 0 | F55: =IF(OR(F$19=0,$R55=0),0,'Výpočet Kv'!F51*Výpočet!AN50*ventil) -> 5 | G55: =IF(OR(G$19=0,$R55=0),0,'Výpočet Kv'!G51*Výpočet!AO50*ventil) -> 6 | H55: =IF(OR(H$19=0,$R55=0),0,'Výpočet Kv'!H51*Výpočet!AP50*ventil) -> 7 | I55: =IF(OR(I$19=0,$R55=0),0,'Výpočet Kv'!I51*Výpočet!AQ50*ventil) -> 0 | J55: =IF(OR(J$19=0,$R55=0),0,'Výpočet Kv'!J51*Výpočet!AR50*ventil) -> 0 | K55: =IF(OR(K$19=0,$R55=0),0,'Výpočet Kv'!K51*Výpočet!AS50*ventil) -> 5 | L55: =IF(OR(L$19=0,$R55=0),0,'Výpočet Kv'!L51*Výpočet!AT50*ventil) -> 6 | M55: =IF(OR(M$19=0,$R55=0),0,'Výpočet Kv'!M51*Výpočet!AU50*ventil) -> 7 | N55: =IF(OR(N$19=0,$R55=0),0,'Výpočet Kv'!N51*Výpočet!AV50*ventil) -> 8 | O55: =IF(OR(O$19=0,$R55=0),0,'Výpočet Kv'!O51*Výpočet!AW50*ventil) -> 8 | P55: =IF(OR(P$19=0,$R55=0),0,'Výpočet Kv'!P51*Výpočet!AX50*ventil) -> 0 | Q55: 2000 | R55: =Výstup!R55 -> 1
B56: =IF(OR(Logic!$C$3="K0",Logic!$C$3="P0"),Výpočet!S51+4,Výpočet!S51) -> 2300 | C56: =IF(OR(C$19=0,$R56=0),0,'Výpočet Kv'!C52*Výpočet!AK51*ventil) -> 0 | D56: =IF(OR(D$19=0,$R56=0),0,'Výpočet Kv'!D52*Výpočet!AL51*ventil) -> 0 | E56: =IF(OR(E$19=0,$R56=0),0,'Výpočet Kv'!E52*Výpočet!AM51*ventil) -> 0 | F56: =IF(OR(F$19=0,$R56=0),0,'Výpočet Kv'!F52*Výpočet!AN51*ventil) -> 0 | G56: =IF(OR(G$19=0,$R56=0),0,'Výpočet Kv'!G52*Výpočet!AO51*ventil) -> 0 | H56: =IF(OR(H$19=0,$R56=0),0,'Výpočet Kv'!H52*Výpočet!AP51*ventil) -> 0 | I56: =IF(OR(I$19=0,$R56=0),0,'Výpočet Kv'!I52*Výpočet!AQ51*ventil) -> 0 | J56: =IF(OR(J$19=0,$R56=0),0,'Výpočet Kv'!J52*Výpočet!AR51*ventil) -> 0 | K56: =IF(OR(K$19=0,$R56=0),0,'Výpočet Kv'!K52*Výpočet!AS51*ventil) -> 0 | L56: =IF(OR(L$19=0,$R56=0),0,'Výpočet Kv'!L52*Výpočet!AT51*ventil) -> 0 | M56: =IF(OR(M$19=0,$R56=0),0,'Výpočet Kv'!M52*Výpočet!AU51*ventil) -> 0 | N56: =IF(OR(N$19=0,$R56=0),0,'Výpočet Kv'!N52*Výpočet!AV51*ventil) -> 0 | O56: =IF(OR(O$19=0,$R56=0),0,'Výpočet Kv'!O52*Výpočet!AW51*ventil) -> 0 | P56: =IF(OR(P$19=0,$R56=0),0,'Výpočet Kv'!P52*Výpočet!AX51*ventil) -> 0 | Q56: 2300 | R56: =Výstup!R56 -> 1
B57: =IF(OR(Logic!$C$3="K0",Logic!$C$3="P0"),Výpočet!S52+4,Výpočet!S52) -> 2600 | C57: =IF(OR(C$19=0,$R57=0),0,'Výpočet Kv'!C53*Výpočet!AK52*ventil) -> 0 | D57: =IF(OR(D$19=0,$R57=0),0,'Výpočet Kv'!D53*Výpočet!AL52*ventil) -> 0 | E57: =IF(OR(E$19=0,$R57=0),0,'Výpočet Kv'!E53*Výpočet!AM52*ventil) -> 0 | F57: =IF(OR(F$19=0,$R57=0),0,'Výpočet Kv'!F53*Výpočet!AN52*ventil) -> 0 | G57: =IF(OR(G$19=0,$R57=0),0,'Výpočet Kv'!G53*Výpočet!AO52*ventil) -> 0 | H57: =IF(OR(H$19=0,$R57=0),0,'Výpočet Kv'!H53*Výpočet!AP52*ventil) -> 0 | I57: =IF(OR(I$19=0,$R57=0),0,'Výpočet Kv'!I53*Výpočet!AQ52*ventil) -> 0 | J57: =IF(OR(J$19=0,$R57=0),0,'Výpočet Kv'!J53*Výpočet!AR52*ventil) -> 0 | K57: =IF(OR(K$19=0,$R57=0),0,'Výpočet Kv'!K53*Výpočet!AS52*ventil) -> 0 | L57: =IF(OR(L$19=0,$R57=0),0,'Výpočet Kv'!L53*Výpočet!AT52*ventil) -> 0 | M57: =IF(OR(M$19=0,$R57=0),0,'Výpočet Kv'!M53*Výpočet!AU52*ventil) -> 0 | N57: =IF(OR(N$19=0,$R57=0),0,'Výpočet Kv'!N53*Výpočet!AV52*ventil) -> 0 | O57: =IF(OR(O$19=0,$R57=0),0,'Výpočet Kv'!O53*Výpočet!AW52*ventil) -> 0 | P57: =IF(OR(P$19=0,$R57=0),0,'Výpočet Kv'!P53*Výpočet!AX52*ventil) -> 0 | Q57: 2600 | R57: =Výstup!R57 -> 1
B58: =IF(OR(Logic!$C$3="K0",Logic!$C$3="P0"),Výpočet!S53+4,Výpočet!S53) -> 3000 | C58: =IF(OR(C$19=0,$R58=0),0,'Výpočet Kv'!C54*Výpočet!AK53*ventil) -> 0 | D58: =IF(OR(D$19=0,$R58=0),0,'Výpočet Kv'!D54*Výpočet!AL53*ventil) -> 0 | E58: =IF(OR(E$19=0,$R58=0),0,'Výpočet Kv'!E54*Výpočet!AM53*ventil) -> 0 | F58: =IF(OR(F$19=0,$R58=0),0,'Výpočet Kv'!F54*Výpočet!AN53*ventil) -> 0 | G58: =IF(OR(G$19=0,$R58=0),0,'Výpočet Kv'!G54*Výpočet!AO53*ventil) -> 0 | H58: =IF(OR(H$19=0,$R58=0),0,'Výpočet Kv'!H54*Výpočet!AP53*ventil) -> 0 | I58: =IF(OR(I$19=0,$R58=0),0,'Výpočet Kv'!I54*Výpočet!AQ53*ventil) -> 0 | J58: =IF(OR(J$19=0,$R58=0),0,'Výpočet Kv'!J54*Výpočet!AR53*ventil) -> 0 | K58: =IF(OR(K$19=0,$R58=0),0,'Výpočet Kv'!K54*Výpočet!AS53*ventil) -> 0 | L58: =IF(OR(L$19=0,$R58=0),0,'Výpočet Kv'!L54*Výpočet!AT53*ventil) -> 0 | M58: =IF(OR(M$19=0,$R58=0),0,'Výpočet Kv'!M54*Výpočet!AU53*ventil) -> 0 | N58: =IF(OR(N$19=0,$R58=0),0,'Výpočet Kv'!N54*Výpočet!AV53*ventil) -> 0 | O58: =IF(OR(O$19=0,$R58=0),0,'Výpočet Kv'!O54*Výpočet!AW53*ventil) -> 0 | P58: =IF(OR(P$19=0,$R58=0),0,'Výpočet Kv'!P54*Výpočet!AX53*ventil) -> 0 | Q58: 3000 | R58: =Výstup!R58 -> 1
C60: =F60 -> Typ 22 | D60: =F60 -> Typ 22 | E60: =F60 -> Typ 22 | F60: =IF(Výpočet!W54=0,0,IF(OR(Logic!$C$3="V0",Logic!$C$3="U0"),0,Logic!$P$3&" "&Výpočet!W54)) -> Typ 22 | G60: =F60 -> Typ 22 | H60: =F60 -> Typ 22 | I60: =F60 -> Typ 22 | J60: =M60 -> Typ 33 | K60: =M60 -> Typ 33 | L60: =M60 -> Typ 33 | M60: =IF(OR(Logic!$C$3="A0",Logic!$C$3="B0",Logic!$C$3="K0",Logic!$C$3="P0",Logic!$C$3="V0",Logic!$C$3="U0",Výpočet!AD54=0),0,Logic!$P$3&" "&Výpočet!AD54) -> Typ 33 | N60: =M60 -> Typ 33 | O60: =M60 -> Typ 33 | P60: =M60 -> Typ 33
B61: =IF(OR(Logic!$C$3="V0",Logic!$C$3="U0"),Logic!$I$3,Logic!$J$3)&" [mm]" -> Délka [mm] | C61: =IF(C60=0,0,IF(OR(Logic!$C$3="V0",Logic!$C$3="U0"),Logic!$J$3,Logic!$I$3) &" [mm]") -> Výška [mm] | J61: =IF(J60=0,0,IF(OR(Logic!$C$3="V0",Logic!$C$3="U0"),Logic!$J$3,Logic!$I$3) &" [mm]") -> Výška [mm] | Q61: =IF(OR(Logic!$C$3="V0",Logic!$C$3="U0"),Logic!$I$3,Logic!$J$3)&" [mm]" -> Délka [mm]
C62: =Výpočet!T55 -> 200 | D62: =Výpočet!U55 -> 300 | E62: =Výpočet!V55 -> 400 | F62: =Výpočet!W55 -> 500 | G62: =Výpočet!X55 -> 600 | H62: =Výpočet!Y55 -> 700 | I62: =Výpočet!Z55 -> 900 | J62: =Výpočet!AA55 -> 200 | K62: =Výpočet!AB55 -> 300 | L62: =Výpočet!AC55 -> 400 | M62: =Výpočet!AD55 -> 500 | N62: =Výpočet!AE55 -> 600 | O62: =Výpočet!AF55 -> 700 | P62: =Výpočet!AG55 -> 900
B63: =IF(OR(Logic!$C$3="K0",Logic!$C$3="P0"),Výpočet!S56+4,Výpočet!S56) -> 400 | C63: =IF(OR(C$19=0,$R63=0),0,'Výpočet Kv'!C59*Výpočet!AK56*ventil) -> 0 | D63: =IF(OR(D$19=0,$R63=0),0,'Výpočet Kv'!D59*Výpočet!AL56*ventil) -> 0 | E63: =IF(OR(E$19=0,$R63=0),0,'Výpočet Kv'!E59*Výpočet!AM56*ventil) -> 0 | F63: =IF(OR(F$19=0,$R63=0),0,'Výpočet Kv'!F59*Výpočet!AN56*ventil) -> 0 | G63: =IF(OR(G$19=0,$R63=0),0,'Výpočet Kv'!G59*Výpočet!AO56*ventil) -> 0 | H63: =IF(OR(H$19=0,$R63=0),0,'Výpočet Kv'!H59*Výpočet!AP56*ventil) -> 0 | I63: =IF(OR(I$19=0,$R63=0),0,'Výpočet Kv'!I59*Výpočet!AQ56*ventil) -> 0 | J63: =IF(OR(J$19=0,$R63=0),0,'Výpočet Kv'!J59*Výpočet!AR56*ventil) -> 0 | K63: =IF(OR(K$19=0,$R63=0),0,'Výpočet Kv'!K59*Výpočet!AS56*ventil) -> 0 | L63: =IF(OR(L$19=0,$R63=0),0,'Výpočet Kv'!L59*Výpočet!AT56*ventil) -> 0 | M63: =IF(OR(M$19=0,$R63=0),0,'Výpočet Kv'!M59*Výpočet!AU56*ventil) -> 0 | N63: =IF(OR(N$19=0,$R63=0),0,'Výpočet Kv'!N59*Výpočet!AV56*ventil) -> 0 | O63: =IF(OR(O$19=0,$R63=0),0,'Výpočet Kv'!O59*Výpočet!AW56*ventil) -> 0 | P63: =IF(OR(P$19=0,$R63=0),0,'Výpočet Kv'!P59*Výpočet!AX56*ventil) -> 0 | Q63: =B63 -> 400 | R63: =Výstup!R63 -> 1
B64: =IF(OR(Logic!$C$3="K0",Logic!$C$3="P0"),Výpočet!S57+4,Výpočet!S57) -> 500 | C64: =IF(OR(C$19=0,$R64=0),0,'Výpočet Kv'!C60*Výpočet!AK57*ventil) -> 0 | D64: =IF(OR(D$19=0,$R64=0),0,'Výpočet Kv'!D60*Výpočet!AL57*ventil) -> 1 | E64: =IF(OR(E$19=0,$R64=0),0,'Výpočet Kv'!E60*Výpočet!AM57*ventil) -> 2 | F64: =IF(OR(F$19=0,$R64=0),0,'Výpočet Kv'!F60*Výpočet!AN57*ventil) -> 2 | G64: =IF(OR(G$19=0,$R64=0),0,'Výpočet Kv'!G60*Výpočet!AO57*ventil) -> 3 | H64: =IF(OR(H$19=0,$R64=0),0,'Výpočet Kv'!H60*Výpočet!AP57*ventil) -> 3 | I64: =IF(OR(I$19=0,$R64=0),0,'Výpočet Kv'!I60*Výpočet!AQ57*ventil) -> 3 | J64: =IF(OR(J$19=0,$R64=0),0,'Výpočet Kv'!J60*Výpočet!AR57*ventil) -> 0 | K64: =IF(OR(K$19=0,$R64=0),0,'Výpočet Kv'!K60*Výpočet!AS57*ventil) -> 0 | L64: =IF(OR(L$19=0,$R64=0),0,'Výpočet Kv'!L60*Výpočet!AT57*ventil) -> 0 | M64: =IF(OR(M$19=0,$R64=0),0,'Výpočet Kv'!M60*Výpočet!AU57*ventil) -> 3 | N64: =IF(OR(N$19=0,$R64=0),0,'Výpočet Kv'!N60*Výpočet!AV57*ventil) -> 4 | O64: =IF(OR(O$19=0,$R64=0),0,'Výpočet Kv'!O60*Výpočet!AW57*ventil) -> 4 | P64: =IF(OR(P$19=0,$R64=0),0,'Výpočet Kv'!P60*Výpočet!AX57*ventil) -> 5 | Q64: 500 | R64: =Výstup!R64 -> 1
B65: =IF(OR(Logic!$C$3="K0",Logic!$C$3="P0"),Výpočet!S58+4,Výpočet!S58) -> 600 | C65: =IF(OR(C$19=0,$R65=0),0,'Výpočet Kv'!C61*Výpočet!AK58*ventil) -> 0 | D65: =IF(OR(D$19=0,$R65=0),0,'Výpočet Kv'!D61*Výpočet!AL58*ventil) -> 2 | E65: =IF(OR(E$19=0,$R65=0),0,'Výpočet Kv'!E61*Výpočet!AM58*ventil) -> 2 | F65: =IF(OR(F$19=0,$R65=0),0,'Výpočet Kv'!F61*Výpočet!AN58*ventil) -> 3 | G65: =IF(OR(G$19=0,$R65=0),0,'Výpočet Kv'!G61*Výpočet!AO58*ventil) -> 3 | H65: =IF(OR(H$19=0,$R65=0),0,'Výpočet Kv'!H61*Výpočet!AP58*ventil) -> 3 | I65: =IF(OR(I$19=0,$R65=0),0,'Výpočet Kv'!I61*Výpočet!AQ58*ventil) -> 4 | J65: =IF(OR(J$19=0,$R65=0),0,'Výpočet Kv'!J61*Výpočet!AR58*ventil) -> 0 | K65: =IF(OR(K$19=0,$R65=0),0,'Výpočet Kv'!K61*Výpočet!AS58*ventil) -> 0 | L65: =IF(OR(L$19=0,$R65=0),0,'Výpočet Kv'!L61*Výpočet!AT58*ventil) -> 0 | M65: =IF(OR(M$19=0,$R65=0),0,'Výpočet Kv'!M61*Výpočet!AU58*ventil) -> 4 | N65: =IF(OR(N$19=0,$R65=0),0,'Výpočet Kv'!N61*Výpočet!AV58*ventil) -> 5 | O65: =IF(OR(O$19=0,$R65=0),0,'Výpočet Kv'!O61*Výpočet!AW58*ventil) -> 5 | P65: =IF(OR(P$19=0,$R65=0),0,'Výpočet Kv'!P61*Výpočet!AX58*ventil) -> 6 | Q65: 600 | R65: =Výstup!R65 -> 1
B66: =IF(OR(Logic!$C$3="K0",Logic!$C$3="P0"),Výpočet!S59+4,Výpočet!S59) -> 700 | C66: =IF(OR(C$19=0,$R66=0),0,'Výpočet Kv'!C62*Výpočet!AK59*ventil) -> 0 | D66: =IF(OR(D$19=0,$R66=0),0,'Výpočet Kv'!D62*Výpočet!AL59*ventil) -> 2 | E66: =IF(OR(E$19=0,$R66=0),0,'Výpočet Kv'!E62*Výpočet!AM59*ventil) -> 3 | F66: =IF(OR(F$19=0,$R66=0),0,'Výpočet Kv'!F62*Výpočet!AN59*ventil) -> 3 | G66: =IF(OR(G$19=0,$R66=0),0,'Výpočet Kv'!G62*Výpočet!AO59*ventil) -> 4 | H66: =IF(OR(H$19=0,$R66=0),0,'Výpočet Kv'!H62*Výpočet!AP59*ventil) -> 4 | I66: =IF(OR(I$19=0,$R66=0),0,'Výpočet Kv'!I62*Výpočet!AQ59*ventil) -> 5 | J66: =IF(OR(J$19=0,$R66=0),0,'Výpočet Kv'!J62*Výpočet!AR59*ventil) -> 0 | K66: =IF(OR(K$19=0,$R66=0),0,'Výpočet Kv'!K62*Výpočet!AS59*ventil) -> 0 | L66: =IF(OR(L$19=0,$R66=0),0,'Výpočet Kv'!L62*Výpočet!AT59*ventil) -> 0 | M66: =IF(OR(M$19=0,$R66=0),0,'Výpočet Kv'!M62*Výpočet!AU59*ventil) -> 5 | N66: =IF(OR(N$19=0,$R66=0),0,'Výpočet Kv'!N62*Výpočet!AV59*ventil) -> 5 | O66: =IF(OR(O$19=0,$R66=0),0,'Výpočet Kv'!O62*Výpočet!AW59*ventil) -> 6 | P66: =IF(OR(P$19=0,$R66=0),0,'Výpočet Kv'!P62*Výpočet!AX59*ventil) -> 7 | Q66: 700 | R66: =Výstup!R66 -> 1
B67: =IF(OR(Logic!$C$3="K0",Logic!$C$3="P0"),Výpočet!S60+4,Výpočet!S60) -> 800 | C67: =IF(OR(C$19=0,$R67=0),0,'Výpočet Kv'!C63*Výpočet!AK60*ventil) -> 0 | D67: =IF(OR(D$19=0,$R67=0),0,'Výpočet Kv'!D63*Výpočet!AL60*ventil) -> 2 | E67: =IF(OR(E$19=0,$R67=0),0,'Výpočet Kv'!E63*Výpočet!AM60*ventil) -> 3 | F67: =IF(OR(F$19=0,$R67=0),0,'Výpočet Kv'!F63*Výpočet!AN60*ventil) -> 3 | G67: =IF(OR(G$19=0,$R67=0),0,'Výpočet Kv'!G63*Výpočet!AO60*ventil) -> 4 | H67: =IF(OR(H$19=0,$R67=0),0,'Výpočet Kv'!H63*Výpočet!AP60*ventil) -> 5 | I67: =IF(OR(I$19=0,$R67=0),0,'Výpočet Kv'!I63*Výpočet!AQ60*ventil) -> 6 | J67: =IF(OR(J$19=0,$R67=0),0,'Výpočet Kv'!J63*Výpočet!AR60*ventil) -> 0 | K67: =IF(OR(K$19=0,$R67=0),0,'Výpočet Kv'!K63*Výpočet!AS60*ventil) -> 3 | L67: =IF(OR(L$19=0,$R67=0),0,'Výpočet Kv'!L63*Výpočet!AT60*ventil) -> 4 | M67: =IF(OR(M$19=0,$R67=0),0,'Výpočet Kv'!M63*Výpočet!AU60*ventil) -> 5 | N67: =IF(OR(N$19=0,$R67=0),0,'Výpočet Kv'!N63*Výpočet!AV60*ventil) -> 6 | O67: =IF(OR(O$19=0,$R67=0),0,'Výpočet Kv'!O63*Výpočet!AW60*ventil) -> 7 | P67: =IF(OR(P$19=0,$R67=0),0,'Výpočet Kv'!P63*Výpočet!AX60*ventil) -> 8 | Q67: 800 | R67: =Výstup!R67 -> 1
B68: =IF(OR(Logic!$C$3="K0",Logic!$C$3="P0"),Výpočet!S61+4,Výpočet!S61) -> 900 | C68: =IF(OR(C$19=0,$R68=0),0,'Výpočet Kv'!C64*Výpočet!AK61*ventil) -> 0 | D68: =IF(OR(D$19=0,$R68=0),0,'Výpočet Kv'!D64*Výpočet!AL61*ventil) -> 3 | E68: =IF(OR(E$19=0,$R68=0),0,'Výpočet Kv'!E64*Výpočet!AM61*ventil) -> 3 | F68: =IF(OR(F$19=0,$R68=0),0,'Výpočet Kv'!F64*Výpočet!AN61*ventil) -> 4 | G68: =IF(OR(G$19=0,$R68=0),0,'Výpočet Kv'!G64*Výpočet!AO61*ventil) -> 5 | H68: =IF(OR(H$19=0,$R68=0),0,'Výpočet Kv'!H64*Výpočet!AP61*ventil) -> 5 | I68: =IF(OR(I$19=0,$R68=0),0,'Výpočet Kv'!I64*Výpočet!AQ61*ventil) -> 6 | J68: =IF(OR(J$19=0,$R68=0),0,'Výpočet Kv'!J64*Výpočet!AR61*ventil) -> 0 | K68: =IF(OR(K$19=0,$R68=0),0,'Výpočet Kv'!K64*Výpočet!AS61*ventil) -> 4 | L68: =IF(OR(L$19=0,$R68=0),0,'Výpočet Kv'!L64*Výpočet!AT61*ventil) -> 5 | M68: =IF(OR(M$19=0,$R68=0),0,'Výpočet Kv'!M64*Výpočet!AU61*ventil) -> 6 | N68: =IF(OR(N$19=0,$R68=0),0,'Výpočet Kv'!N64*Výpočet!AV61*ventil) -> 7 | O68: =IF(OR(O$19=0,$R68=0),0,'Výpočet Kv'!O64*Výpočet!AW61*ventil) -> 7 | P68: =IF(OR(P$19=0,$R68=0),0,'Výpočet Kv'!P64*Výpočet!AX61*ventil) -> 8 | Q68: 900 | R68: =Výstup!R68 -> 1
B69: =IF(OR(Logic!$C$3="K0",Logic!$C$3="P0"),Výpočet!S62+4,Výpočet!S62) -> 1000 | C69: =IF(OR(C$19=0,$R69=0),0,'Výpočet Kv'!C65*Výpočet!AK62*ventil) -> 0 | D69: =IF(OR(D$19=0,$R69=0),0,'Výpočet Kv'!D65*Výpočet!AL62*ventil) -> 3 | E69: =IF(OR(E$19=0,$R69=0),0,'Výpočet Kv'!E65*Výpočet!AM62*ventil) -> 4 | F69: =IF(OR(F$19=0,$R69=0),0,'Výpočet Kv'!F65*Výpočet!AN62*ventil) -> 5 | G69: =IF(OR(G$19=0,$R69=0),0,'Výpočet Kv'!G65*Výpočet!AO62*ventil) -> 5 | H69: =IF(OR(H$19=0,$R69=0),0,'Výpočet Kv'!H65*Výpočet!AP62*ventil) -> 6 | I69: =IF(OR(I$19=0,$R69=0),0,'Výpočet Kv'!I65*Výpočet!AQ62*ventil) -> 7 | J69: =IF(OR(J$19=0,$R69=0),0,'Výpočet Kv'!J65*Výpočet!AR62*ventil) -> 0 | K69: =IF(OR(K$19=0,$R69=0),0,'Výpočet Kv'!K65*Výpočet!AS62*ventil) -> 4 | L69: =IF(OR(L$19=0,$R69=0),0,'Výpočet Kv'!L65*Výpočet!AT62*ventil) -> 5 | M69: =IF(OR(M$19=0,$R69=0),0,'Výpočet Kv'!M65*Výpočet!AU62*ventil) -> 6 | N69: =IF(OR(N$19=0,$R69=0),0,'Výpočet Kv'!N65*Výpočet!AV62*ventil) -> 7 | O69: =IF(OR(O$19=0,$R69=0),0,'Výpočet Kv'!O65*Výpočet!AW62*ventil) -> 8 | P69: =IF(OR(P$19=0,$R69=0),0,'Výpočet Kv'!P65*Výpočet!AX62*ventil) -> 8 | Q69: 1000 | R69: =Výstup!R69 -> 1
B70: =IF(OR(Logic!$C$3="K0",Logic!$C$3="P0"),Výpočet!S63+4,Výpočet!S63) -> 1100 | C70: =IF(OR(C$19=0,$R70=0),0,'Výpočet Kv'!C66*Výpočet!AK63*ventil) -> 0 | D70: =IF(OR(D$19=0,$R70=0),0,'Výpočet Kv'!D66*Výpočet!AL63*ventil) -> 3 | E70: =IF(OR(E$19=0,$R70=0),0,'Výpočet Kv'!E66*Výpočet!AM63*ventil) -> 4 | F70: =IF(OR(F$19=0,$R70=0),0,'Výpočet Kv'!F66*Výpočet!AN63*ventil) -> 5 | G70: =IF(OR(G$19=0,$R70=0),0,'Výpočet Kv'!G66*Výpočet!AO63*ventil) -> 6 | H70: =IF(OR(H$19=0,$R70=0),0,'Výpočet Kv'!H66*Výpočet!AP63*ventil) -> 6 | I70: =IF(OR(I$19=0,$R70=0),0,'Výpočet Kv'!I66*Výpočet!AQ63*ventil) -> 8 | J70: =IF(OR(J$19=0,$R70=0),0,'Výpočet Kv'!J66*Výpočet!AR63*ventil) -> 0 | K70: =IF(OR(K$19=0,$R70=0),0,'Výpočet Kv'!K66*Výpočet!AS63*ventil) -> 5 | L70: =IF(OR(L$19=0,$R70=0),0,'Výpočet Kv'!L66*Výpočet!AT63*ventil) -> 6 | M70: =IF(OR(M$19=0,$R70=0),0,'Výpočet Kv'!M66*Výpočet!AU63*ventil) -> 7 | N70: =IF(OR(N$19=0,$R70=0),0,'Výpočet Kv'!N66*Výpočet!AV63*ventil) -> 8 | O70: =IF(OR(O$19=0,$R70=0),0,'Výpočet Kv'!O66*Výpočet!AW63*ventil) -> 8 | P70: =IF(OR(P$19=0,$R70=0),0,'Výpočet Kv'!P66*Výpočet!AX63*ventil) -> 8 | Q70: 1100 | R70: =Výstup!R70 -> 1
B71: =IF(OR(Logic!$C$3="K0",Logic!$C$3="P0"),Výpočet!S64+4,Výpočet!S64) -> 1200 | C71: =IF(OR(C$19=0,$R71=0),0,'Výpočet Kv'!C67*Výpočet!AK64*ventil) -> 0 | D71: =IF(OR(D$19=0,$R71=0),0,'Výpočet Kv'!D67*Výpočet!AL64*ventil) -> 3 | E71: =IF(OR(E$19=0,$R71=0),0,'Výpočet Kv'!E67*Výpočet!AM64*ventil) -> 5 | F71: =IF(OR(F$19=0,$R71=0),0,'Výpočet Kv'!F67*Výpočet!AN64*ventil) -> 5 | G71: =IF(OR(G$19=0,$R71=0),0,'Výpočet Kv'!G67*Výpočet!AO64*ventil) -> 6 | H71: =IF(OR(H$19=0,$R71=0),0,'Výpočet Kv'!H67*Výpočet!AP64*ventil) -> 7 | I71: =IF(OR(I$19=0,$R71=0),0,'Výpočet Kv'!I67*Výpočet!AQ64*ventil) -> 8 | J71: =IF(OR(J$19=0,$R71=0),0,'Výpočet Kv'!J67*Výpočet!AR64*ventil) -> 0 | K71: =IF(OR(K$19=0,$R71=0),0,'Výpočet Kv'!K67*Výpočet!AS64*ventil) -> 5 | L71: =IF(OR(L$19=0,$R71=0),0,'Výpočet Kv'!L67*Výpočet!AT64*ventil) -> 6 | M71: =IF(OR(M$19=0,$R71=0),0,'Výpočet Kv'!M67*Výpočet!AU64*ventil) -> 8 | N71: =IF(OR(N$19=0,$R71=0),0,'Výpočet Kv'!N67*Výpočet!AV64*ventil) -> 8 | O71: =IF(OR(O$19=0,$R71=0),0,'Výpočet Kv'!O67*Výpočet!AW64*ventil) -> 8 | P71: =IF(OR(P$19=0,$R71=0),0,'Výpočet Kv'!P67*Výpočet!AX64*ventil) -> 8 | Q71: 1200 | R71: =Výstup!R71 -> 1
B72: =IF(OR(Logic!$C$3="K0",Logic!$C$3="P0"),Výpočet!S65+4,Výpočet!S65) -> 1400 | C72: =IF(OR(C$19=0,$R72=0),0,'Výpočet Kv'!C68*Výpočet!AK65*ventil) -> 0 | D72: =IF(OR(D$19=0,$R72=0),0,'Výpočet Kv'!D68*Výpočet!AL65*ventil) -> 4 | E72: =IF(OR(E$19=0,$R72=0),0,'Výpočet Kv'!E68*Výpočet!AM65*ventil) -> 5 | F72: =IF(OR(F$19=0,$R72=0),0,'Výpočet Kv'!F68*Výpočet!AN65*ventil) -> 6 | G72: =IF(OR(G$19=0,$R72=0),0,'Výpočet Kv'!G68*Výpočet!AO65*ventil) -> 7 | H72: =IF(OR(H$19=0,$R72=0),0,'Výpočet Kv'!H68*Výpočet!AP65*ventil) -> 8 | I72: =IF(OR(I$19=0,$R72=0),0,'Výpočet Kv'!I68*Výpočet!AQ65*ventil) -> 8 | J72: =IF(OR(J$19=0,$R72=0),0,'Výpočet Kv'!J68*Výpočet!AR65*ventil) -> 0 | K72: =IF(OR(K$19=0,$R72=0),0,'Výpočet Kv'!K68*Výpočet!AS65*ventil) -> 6 | L72: =IF(OR(L$19=0,$R72=0),0,'Výpočet Kv'!L68*Výpočet!AT65*ventil) -> 7 | M72: =IF(OR(M$19=0,$R72=0),0,'Výpočet Kv'!M68*Výpočet!AU65*ventil) -> 8 | N72: =IF(OR(N$19=0,$R72=0),0,'Výpočet Kv'!N68*Výpočet!AV65*ventil) -> 8 | O72: =IF(OR(O$19=0,$R72=0),0,'Výpočet Kv'!O68*Výpočet!AW65*ventil) -> 8 | P72: =IF(OR(P$19=0,$R72=0),0,'Výpočet Kv'!P68*Výpočet!AX65*ventil) -> 8 | Q72: 1400 | R72: =Výstup!R72 -> 1
B73: =IF(OR(Logic!$C$3="K0",Logic!$C$3="P0"),Výpočet!S66+4,Výpočet!S66) -> 1600 | C73: =IF(OR(C$19=0,$R73=0),0,'Výpočet Kv'!C69*Výpočet!AK66*ventil) -> 0 | D73: =IF(OR(D$19=0,$R73=0),0,'Výpočet Kv'!D69*Výpočet!AL66*ventil) -> 5 | E73: =IF(OR(E$19=0,$R73=0),0,'Výpočet Kv'!E69*Výpočet!AM66*ventil) -> 6 | F73: =IF(OR(F$19=0,$R73=0),0,'Výpočet Kv'!F69*Výpočet!AN66*ventil) -> 7 | G73: =IF(OR(G$19=0,$R73=0),0,'Výpočet Kv'!G69*Výpočet!AO66*ventil) -> 8 | H73: =IF(OR(H$19=0,$R73=0),0,'Výpočet Kv'!H69*Výpočet!AP66*ventil) -> 8 | I73: =IF(OR(I$19=0,$R73=0),0,'Výpočet Kv'!I69*Výpočet!AQ66*ventil) -> 8 | J73: =IF(OR(J$19=0,$R73=0),0,'Výpočet Kv'!J69*Výpočet!AR66*ventil) -> 0 | K73: =IF(OR(K$19=0,$R73=0),0,'Výpočet Kv'!K69*Výpočet!AS66*ventil) -> 7 | L73: =IF(OR(L$19=0,$R73=0),0,'Výpočet Kv'!L69*Výpočet!AT66*ventil) -> 8 | M73: =IF(OR(M$19=0,$R73=0),0,'Výpočet Kv'!M69*Výpočet!AU66*ventil) -> 8 | N73: =IF(OR(N$19=0,$R73=0),0,'Výpočet Kv'!N69*Výpočet!AV66*ventil) -> 8 | O73: =IF(OR(O$19=0,$R73=0),0,'Výpočet Kv'!O69*Výpočet!AW66*ventil) -> 8 | P73: =IF(OR(P$19=0,$R73=0),0,'Výpočet Kv'!P69*Výpočet!AX66*ventil) -> 8 | Q73: 1600 | R73: =Výstup!R73 -> 1
B74: =IF(OR(Logic!$C$3="K0",Logic!$C$3="P0"),Výpočet!S67+4,Výpočet!S67) -> 1800 | C74: =IF(OR(C$19=0,$R74=0),0,'Výpočet Kv'!C70*Výpočet!AK67*ventil) -> 0 | D74: =IF(OR(D$19=0,$R74=0),0,'Výpočet Kv'!D70*Výpočet!AL67*ventil) -> 5 | E74: =IF(OR(E$19=0,$R74=0),0,'Výpočet Kv'!E70*Výpočet!AM67*ventil) -> 7 | F74: =IF(OR(F$19=0,$R74=0),0,'Výpočet Kv'!F70*Výpočet!AN67*ventil) -> 8 | G74: =IF(OR(G$19=0,$R74=0),0,'Výpočet Kv'!G70*Výpočet!AO67*ventil) -> 8 | H74: =IF(OR(H$19=0,$R74=0),0,'Výpočet Kv'!H70*Výpočet!AP67*ventil) -> 8 | I74: =IF(OR(I$19=0,$R74=0),0,'Výpočet Kv'!I70*Výpočet!AQ67*ventil) -> 0 | J74: =IF(OR(J$19=0,$R74=0),0,'Výpočet Kv'!J70*Výpočet!AR67*ventil) -> 0 | K74: =IF(OR(K$19=0,$R74=0),0,'Výpočet Kv'!K70*Výpočet!AS67*ventil) -> 8 | L74: =IF(OR(L$19=0,$R74=0),0,'Výpočet Kv'!L70*Výpočet!AT67*ventil) -> 8 | M74: =IF(OR(M$19=0,$R74=0),0,'Výpočet Kv'!M70*Výpočet!AU67*ventil) -> 8 | N74: =IF(OR(N$19=0,$R74=0),0,'Výpočet Kv'!N70*Výpočet!AV67*ventil) -> 8 | O74: =IF(OR(O$19=0,$R74=0),0,'Výpočet Kv'!O70*Výpočet!AW67*ventil) -> 8 | P74: =IF(OR(P$19=0,$R74=0),0,'Výpočet Kv'!P70*Výpočet!AX67*ventil) -> 0 | Q74: 1800 | R74: =Výstup!R74 -> 1
B75: =IF(OR(Logic!$C$3="K0",Logic!$C$3="P0"),Výpočet!S68+4,Výpočet!S68) -> 2000 | C75: =IF(OR(C$19=0,$R75=0),0,'Výpočet Kv'!C71*Výpočet!AK68*ventil) -> 0 | D75: =IF(OR(D$19=0,$R75=0),0,'Výpočet Kv'!D71*Výpočet!AL68*ventil) -> 6 | E75: =IF(OR(E$19=0,$R75=0),0,'Výpočet Kv'!E71*Výpočet!AM68*ventil) -> 7 | F75: =IF(OR(F$19=0,$R75=0),0,'Výpočet Kv'!F71*Výpočet!AN68*ventil) -> 8 | G75: =IF(OR(G$19=0,$R75=0),0,'Výpočet Kv'!G71*Výpočet!AO68*ventil) -> 8 | H75: =IF(OR(H$19=0,$R75=0),0,'Výpočet Kv'!H71*Výpočet!AP68*ventil) -> 8 | I75: =IF(OR(I$19=0,$R75=0),0,'Výpočet Kv'!I71*Výpočet!AQ68*ventil) -> 0 | J75: =IF(OR(J$19=0,$R75=0),0,'Výpočet Kv'!J71*Výpočet!AR68*ventil) -> 0 | K75: =IF(OR(K$19=0,$R75=0),0,'Výpočet Kv'!K71*Výpočet!AS68*ventil) -> 8 | L75: =IF(OR(L$19=0,$R75=0),0,'Výpočet Kv'!L71*Výpočet!AT68*ventil) -> 8 | M75: =IF(OR(M$19=0,$R75=0),0,'Výpočet Kv'!M71*Výpočet!AU68*ventil) -> 8 | N75: =IF(OR(N$19=0,$R75=0),0,'Výpočet Kv'!N71*Výpočet!AV68*ventil) -> 8 | O75: =IF(OR(O$19=0,$R75=0),0,'Výpočet Kv'!O71*Výpočet!AW68*ventil) -> 8 | P75: =IF(OR(P$19=0,$R75=0),0,'Výpočet Kv'!P71*Výpočet!AX68*ventil) -> 0 | Q75: 2000 | R75: =Výstup!R75 -> 1
B76: =IF(OR(Logic!$C$3="K0",Logic!$C$3="P0"),Výpočet!S69+4,Výpočet!S69) -> 2300 | C76: =IF(OR(C$19=0,$R76=0),0,'Výpočet Kv'!C72*Výpočet!AK69*ventil) -> 0 | D76: =IF(OR(D$19=0,$R76=0),0,'Výpočet Kv'!D72*Výpočet!AL69*ventil) -> 0 | E76: =IF(OR(E$19=0,$R76=0),0,'Výpočet Kv'!E72*Výpočet!AM69*ventil) -> 0 | F76: =IF(OR(F$19=0,$R76=0),0,'Výpočet Kv'!F72*Výpočet!AN69*ventil) -> 0 | G76: =IF(OR(G$19=0,$R76=0),0,'Výpočet Kv'!G72*Výpočet!AO69*ventil) -> 0 | H76: =IF(OR(H$19=0,$R76=0),0,'Výpočet Kv'!H72*Výpočet!AP69*ventil) -> 0 | I76: =IF(OR(I$19=0,$R76=0),0,'Výpočet Kv'!I72*Výpočet!AQ69*ventil) -> 0 | J76: =IF(OR(J$19=0,$R76=0),0,'Výpočet Kv'!J72*Výpočet!AR69*ventil) -> 0 | K76: =IF(OR(K$19=0,$R76=0),0,'Výpočet Kv'!K72*Výpočet!AS69*ventil) -> 0 | L76: =IF(OR(L$19=0,$R76=0),0,'Výpočet Kv'!L72*Výpočet!AT69*ventil) -> 0 | M76: =IF(OR(M$19=0,$R76=0),0,'Výpočet Kv'!M72*Výpočet!AU69*ventil) -> 0 | N76: =IF(OR(N$19=0,$R76=0),0,'Výpočet Kv'!N72*Výpočet!AV69*ventil) -> 0 | O76: =IF(OR(O$19=0,$R76=0),0,'Výpočet Kv'!O72*Výpočet!AW69*ventil) -> 0 | P76: =IF(OR(P$19=0,$R76=0),0,'Výpočet Kv'!P72*Výpočet!AX69*ventil) -> 0 | Q76: 2300 | R76: =Výstup!R76 -> 1
B77: =IF(OR(Logic!$C$3="K0",Logic!$C$3="P0"),Výpočet!S70+4,Výpočet!S70) -> 2600 | C77: =IF(OR(C$19=0,$R77=0),0,'Výpočet Kv'!C73*Výpočet!AK70*ventil) -> 0 | D77: =IF(OR(D$19=0,$R77=0),0,'Výpočet Kv'!D73*Výpočet!AL70*ventil) -> 0 | E77: =IF(OR(E$19=0,$R77=0),0,'Výpočet Kv'!E73*Výpočet!AM70*ventil) -> 0 | F77: =IF(OR(F$19=0,$R77=0),0,'Výpočet Kv'!F73*Výpočet!AN70*ventil) -> 0 | G77: =IF(OR(G$19=0,$R77=0),0,'Výpočet Kv'!G73*Výpočet!AO70*ventil) -> 0 | H77: =IF(OR(H$19=0,$R77=0),0,'Výpočet Kv'!H73*Výpočet!AP70*ventil) -> 0 | I77: =IF(OR(I$19=0,$R77=0),0,'Výpočet Kv'!I73*Výpočet!AQ70*ventil) -> 0 | J77: =IF(OR(J$19=0,$R77=0),0,'Výpočet Kv'!J73*Výpočet!AR70*ventil) -> 0 | K77: =IF(OR(K$19=0,$R77=0),0,'Výpočet Kv'!K73*Výpočet!AS70*ventil) -> 0 | L77: =IF(OR(L$19=0,$R77=0),0,'Výpočet Kv'!L73*Výpočet!AT70*ventil) -> 0 | M77: =IF(OR(M$19=0,$R77=0),0,'Výpočet Kv'!M73*Výpočet!AU70*ventil) -> 0 | N77: =IF(OR(N$19=0,$R77=0),0,'Výpočet Kv'!N73*Výpočet!AV70*ventil) -> 0 | O77: =IF(OR(O$19=0,$R77=0),0,'Výpočet Kv'!O73*Výpočet!AW70*ventil) -> 0 | P77: =IF(OR(P$19=0,$R77=0),0,'Výpočet Kv'!P73*Výpočet!AX70*ventil) -> 0 | Q77: 2600 | R77: =Výstup!R77 -> 1
B78: =IF(OR(Logic!$C$3="K0",Logic!$C$3="P0"),Výpočet!S71+4,Výpočet!S71) -> 3000 | C78: =IF(OR(C$19=0,$R78=0),0,'Výpočet Kv'!C74*Výpočet!AK71*ventil) -> 0 | D78: =IF(OR(D$19=0,$R78=0),0,'Výpočet Kv'!D74*Výpočet!AL71*ventil) -> 0 | E78: =IF(OR(E$19=0,$R78=0),0,'Výpočet Kv'!E74*Výpočet!AM71*ventil) -> 0 | F78: =IF(OR(F$19=0,$R78=0),0,'Výpočet Kv'!F74*Výpočet!AN71*ventil) -> 0 | G78: =IF(OR(G$19=0,$R78=0),0,'Výpočet Kv'!G74*Výpočet!AO71*ventil) -> 0 | H78: =IF(OR(H$19=0,$R78=0),0,'Výpočet Kv'!H74*Výpočet!AP71*ventil) -> 0 | I78: =IF(OR(I$19=0,$R78=0),0,'Výpočet Kv'!I74*Výpočet!AQ71*ventil) -> 0 | J78: =IF(OR(J$19=0,$R78=0),0,'Výpočet Kv'!J74*Výpočet!AR71*ventil) -> 0 | K78: =IF(OR(K$19=0,$R78=0),0,'Výpočet Kv'!K74*Výpočet!AS71*ventil) -> 0 | L78: =IF(OR(L$19=0,$R78=0),0,'Výpočet Kv'!L74*Výpočet!AT71*ventil) -> 0 | M78: =IF(OR(M$19=0,$R78=0),0,'Výpočet Kv'!M74*Výpočet!AU71*ventil) -> 0 | N78: =IF(OR(N$19=0,$R78=0),0,'Výpočet Kv'!N74*Výpočet!AV71*ventil) -> 0 | O78: =IF(OR(O$19=0,$R78=0),0,'Výpočet Kv'!O74*Výpočet!AW71*ventil) -> 0 | P78: =IF(OR(P$19=0,$R78=0),0,'Výpočet Kv'!P74*Výpočet!AX71*ventil) -> 0 | Q78: 3000 | R78: =Výstup!R78 -> 1
Q79: =Výstup!Q79 -> CZ ODT 5.01-01/16 M

Sheet Výpočet (hidden)
T3: =Qn!$C$2 -> T0L00 | U3: =Logic!B3 -> RADIK LINE VKM8-L
V4: =Qn!F3 -> Typ | W4: =Qn!G3 -> 0 | AC4: =Qn!M3 -> Typ | AD4: =Qn!N3 -> 11
T5: =Qn!D4 -> 200 | U5: =Qn!E4 -> 300 | V5: =Qn!F4 -> 400 | W5: =Qn!G4 -> 500 | X5: =Qn!H4 -> 600 | Y5: =Qn!I4 -> 700 | Z5: =Qn!J4 -> 900 | AA5: =Qn!K4 -> 200 | AB5: =Qn!L4 -> 300 | AC5: =Qn!M4 -> 400 | AD5: =Qn!N4 -> 500 | AE5: =Qn!O4 -> 600 | AF5: =Qn!P4 -> 700 | AG5: =Qn!Q4 -> 900
S6: n = | T6: =Qn!D5 -> 0 | U6: =Qn!E5 -> 0 | V6: =Qn!F5 -> 0 | W6: =Qn!G5 -> 0 | X6: =Qn!H5 -> 0 | Y6: =Qn!I5 -> 0 | Z6: =Qn!J5 -> 0 | AA6: =Qn!K5 -> 0 | AB6: =Qn!L5 -> 1.2617 | AC6: =Qn!M5 -> 1.2698 | AD6: =Qn!N5 -> 1.2778 | AE6: =Qn!O5 -> 1.2859 | AF6: =Qn!P5 -> 1.2989 | AG6: =Qn!Q5 -> 1.3249
S7: Qn = | T7: =Qn!D6 -> 0 | U7: =Qn!E6 -> 0 | V7: =Qn!F6 -> 0 | W7: =Qn!G6 -> 0 | X7: =Qn!H6 -> 0 | Y7: =Qn!I6 -> 0 | Z7: =Qn!J6 -> 0 | AA7: =Qn!K6 -> 0 | AB7: =Qn!L6 -> 530 | AC7: =Qn!M6 -> 658 | AD7: =Qn!N6 -> 780 | AE7: =Qn!O6 -> 897 | AF7: =Qn!P6 -> 1011 | AG7: =Qn!Q6 -> 1231
B8: =Logic!B3 -> RADIK LINE VKM8-L | V8: =Qn!F7 -> Typ | W8: =Qn!G7 -> 20 | AC8: =Qn!M7 -> Typ | AD8: =Qn!N7 -> 21
B9: Heat outputs according to EN 442 | T9: =Qn!D8 -> 200 | U9: =Qn!E8 -> 300 | V9: =Qn!F8 -> 400 | W9: =Qn!G8 -> 500 | X9: =Qn!H8 -> 600 | Y9: =Qn!I8 -> 700 | Z9: =Qn!J8 -> 900 | AA9: =Qn!K8 -> 200 | AB9: =Qn!L8 -> 300 | AC9: =Qn!M8 -> 400 | AD9: =Qn!N8 -> 500 | AE9: =Qn!O8 -> 600 | AF9: =Qn!P8 -> 700 | AG9: =Qn!Q8 -> 900
S10: n = | T10: =Qn!D9 -> 0 | U10: =Qn!E9 -> 0 | V10: =Qn!F9 -> 0 | W10: =Qn!G9 -> 1.2895 | X10: =Qn!H9 -> 1.2924 | Y10: =Qn!I9 -> 1.2988 | Z10: =Qn!J9 -> 0 | AA10: =Qn!K9 -> 0 | AB10: =Qn!L9 -> 1.3019 | AC10: =Qn!M9 -> 1.3144 | AD10: =Qn!N9 -> 1.3268 | AE10: =Qn!O9 -> 1.3393 | AF10: =Qn!P9 -> 1.3446 | AG10: =Qn!Q9 -> 1.3553
S11: Qn = | T11: =Qn!D10 -> 0 | U11: =Qn!E10 -> 0 | V11: =Qn!F10 -> 0 | W11: =Qn!G10 -> 848 | X11: =Qn!H10 -> 969 | Y11: =Qn!I10 -> 1085 | Z11: =Qn!J10 -> 0 | AA11: =Qn!K10 -> 0 | AB11: =Qn!L10 -> 720 | AC11: =Qn!M10 -> 904 | AD11: =Qn!N10 -> 1072 | AE11: =Qn!O10 -> 1226 | AF11: =Qn!P10 -> 1367 | AG11: =Qn!Q10 -> 1617
F12: Temperature : | V12: =Qn!F11 -> Typ | W12: =Qn!G11 -> 22 | AC12: =Qn!M11 -> Typ | AD12: =Qn!N11 -> 33
F13: t 1 | G13: t 2 | H13: t r | I13: D t | T13: =Qn!D12 -> 200 | U13: =Qn!E12 -> 300 | V13: =Qn!F12 -> 400 | W13: =Qn!G12 -> 500 | X13: =Qn!H12 -> 600 | Y13: =Qn!I12 -> 700 | Z13: =Qn!J12 -> 900 | AA13: =Qn!K12 -> 200 | AB13: =Qn!L12 -> 300 | AC13: =Qn!M12 -> 400 | AD13: =Qn!N12 -> 500 | AE13: =Qn!O12 -> 600 | AF13: =Qn!P12 -> 700 | AG13: =Qn!Q12 -> 900
F14: =Výstup!B16 -> 75 | G14: =Výstup!C16 -> 65 | H14: =Výstup!D16 -> 20 | I14: =(F14+G14)/2-H14 -> 50 | S14: n = | T14: =Qn!D13 -> 0 | U14: =Qn!E13 -> 1.2863 | V14: =Qn!F13 -> 1.299 | W14: =Qn!G13 -> 1.3117 | X14: =Qn!H13 -> 1.3244 | Y14: =Qn!I13 -> 1.3327 | Z14: =Qn!J13 -> 1.3493 | AA14: =Qn!K13 -> 0 | AB14: =Qn!L13 -> 1.3284 | AC14: =Qn!M13 -> 1.3252 | AD14: =Qn!N13 -> 1.3219 | AE14: =Qn!O13 -> 1.3187 | AF14: =Qn!P13 -> 1.3313 | AG14: =Qn!Q13 -> 1.3565
S15: Qn = | T15: =Qn!D14 -> 0 | U15: =Qn!E14 -> 914 | V15: =Qn!F14 -> 1165 | W15: =Qn!G14 -> 1400 | X15: =Qn!H14 -> 1621 | Y15: =Qn!I14 -> 1830 | Z15: =Qn!J14 -> 2215 | AA15: =Qn!K14 -> 0 | AB15: =Qn!L14 -> 1337 | AC15: =Qn!M14 -> 1689 | AD15: =Qn!N14 -> 2022 | AE15: =Qn!O14 -> 2341 | AF15: =Qn!P14 -> 2648 | AG15: =Qn!Q14 -> 3231 | AJ15: ="Výrobní sortiment "&Logic!$B$3 -> Výrobní sortiment RADIK LINE VKM8-L
B18: Height | E18: =V18 -> Typ | F18: =W18 -> 0 | L18: =AC18 -> Typ | M18: =AD18 -> 11 | Q18: Height | S18: Height | V18: =V4 -> Typ | W18: =W4 -> 0 | AC18: =AC4 -> Typ | AD18: =AD4 -> 11 | AH18: Height | AJ18: Height | AM18: Type | AN18: 10 | AT18: Type | AU18: 11 | AY18: Height
B19: Length | C19: =T19 -> 200 | D19: =U19 -> 300 | E19: =V19 -> 400 | F19: =W19 -> 500 | G19: =X19 -> 600 | H19: =Y19 -> 700 | I19: =Z19 -> 900 | J19: =AA19 -> 200 | K19: =AB19 -> 300 | L19: =AC19 -> 400 | M19: =AD19 -> 500 | N19: =AE19 -> 600 | O19: =AF19 -> 700 | P19: =AG19 -> 900 | Q19: Length | S19: length | T19: =T5 -> 200 | U19: =U5 -> 300 | V19: =V5 -> 400 | W19: =W5 -> 500 | X19: =X5 -> 600 | Y19: =Y5 -> 700 | Z19: =Z5 -> 900 | AA19: =AA5 -> 200 | AB19: =AB5 -> 300 | AC19: =AC5 -> 400 | AD19: =AD5 -> 500 | AE19: =AE5 -> 600 | AF19: =AF5 -> 700 | AG19: =AG5 -> 900 | AH19: length | AJ19: length | AK19: =T19 -> 200 | AL19: 300 | AM19: 400 | AN19: 500 | AO19: 600 | AP19: 700 | AQ19: 900 | AR19: 200 | AS19: 300 | AT19: 400 | AU19: 500 | AV19: 600 | AW19: 700 | AX19: 900 | AY19: length
B20: 400 | C20: =IF(OR(model="V0P00",model="V0L00"),T78,IF(($G$14-20)/($F$14-20)<0.7,ROUND((((($F$14-$G$14)/(LN(($F$14-$H$14)/($G$14-$H$14))))/const)^T$6)*T20,0),ROUND(((((($F$14+$G$14)/2)-$H$14)/50)^T$6)*T20,0))) -> 0 | D20: =IF(OR(model="V0P00",model="V0L00"),U78,IF(($G$14-20)/($F$14-20)<0.7,ROUND((((($F$14-$G$14)/(LN(($F$14-$H$14)/($G$14-$H$14))))/const)^U$6)*U20,0),ROUND(((((($F$14+$G$14)/2)-$H$14)/50)^U$6)*U20,0))) -> 0 | E20: =IF(OR(model="V0P00",model="V0L00"),V78,IF(($G$14-20)/($F$14-20)<0.7,ROUND((((($F$14-$G$14)/(LN(($F$14-$H$14)/($G$14-$H$14))))/const)^V$6)*V20,0),ROUND(((((($F$14+$G$14)/2)-$H$14)/50)^V$6)*V20,0))) -> 0 | F20: =IF(OR(model="V0P00",model="V0L00"),W78,IF(($G$14-20)/($F$14-20)<0.7,ROUND((((($F$14-$G$14)/(LN(($F$14-$H$14)/($G$14-$H$14))))/const)^W$6)*W20,0),ROUND(((((($F$14+$G$14)/2)-$H$14)/50)^W$6)*W20,0))) -> 0 | G20: =IF(OR(model="V0P00",model="V0L00"),X78,IF(($G$14-20)/($F$14-20)<0.7,ROUND((((($F$14-$G$14)/(LN(($F$14-$H$14)/($G$14-$H$14))))/const)^X$6)*X20,0),ROUND(((((($F$14+$G$14)/2)-$H$14)/50)^X$6)*X20,0))) -> 0 | H20: =IF(OR(model="V0P00",model="V0L00"),Y78,IF(($G$14-20)/($F$14-20)<0.7,ROUND((((($F$14-$G$14)/(LN(($F$14-$H$14)/($G$14-$H$14))))/const)^Y$6)*Y20,0),ROUND(((((($F$14+$G$14)/2)-$H$14)/50)^Y$6)*Y20,0))) -> 0 | I20: =IF(OR(model="V0P00",model="V0L00"),Z78,IF(($G$14-20)/($F$14-20)<0.7,ROUND((((($F$14-$G$14)/(LN(($F$14-$H$14)/($G$14-$H$14))))/const)^Z$6)*Z20,0),ROUND(((((($F$14+$G$14)/2)-$H$14)/50)^Z$6)*Z20,0))) -> 0 | J20: =IF(OR(model="V0P00",model="V0L00"),AA78,IF(($G$14-20)/($F$14-20)<0.7,ROUND((((($F$14-$G$14)/(LN(($F$14-$H$14)/($G$14-$H$14))))/const)^AA$6)*AA20,0),ROUND(((((($F$14+$G$14)/2)-$H$14)/50)^AA$6)*AA20,0))) -> 0 | K20: =IF(OR(model="V0P00",model="V0L00"),AB78,IF(($G$14-20)/($F$14-20)<0.7,ROUND((((($F$14-$G$14)/(LN(($F$14-$H$14)/($G$14-$H$14))))/const)^AB$6)*AB20,0),ROUND(((((($F$14+$G$14)/2)-$H$14)/50)^AB$6)*AB20,0))) -> 212 | L20: =IF(OR(model="V0P00",model="V0L00"),AC78,IF(($G$14-20)/($F$14-20)<0.7,ROUND((((($F$14-$G$14)/(LN(($F$14-$H$14)/($G$14-$H$14))))/const)^AC$6)*AC20,0),ROUND(((((($F$14+$G$14)/2)-$H$14)/50)^AC$6)*AC20,0))) -> 263 | M20: =IF(OR(model="V0P00",model="V0L00"),AD78,IF(($G$14-20)/($F$14-20)<0.7,ROUND((((($F$14-$G$14)/(LN(($F$14-$H$14)/($G$14-$H$14))))/const)^AD$6)*AD20,0),ROUND(((((($F$14+$G$14)/2)-$H$14)/50)^AD$6)*AD20,0))) -> 312 | N20: =IF(OR(model="V0P00",model="V0L00"),AE78,IF(($G$14-20)/($F$14-20)<0.7,ROUND((((($F$14-$G$14)/(LN(($F$14-$H$14)/($G$14-$H$14))))/const)^AE$6)*AE20,0),ROUND(((((($F$14+$G$14)/2)-$H$14)/50)^AE$6)*AE20,0))) -> 359 | O20: =IF(OR(model="V0P00",model="V0L00"),AF78,IF(($G$14-20)/($F$14-20)<0.7,ROUND((((($F$14-$G$14)/(LN(($F$14-$H$14)/($G$14-$H$14))))/const)^AF$6)*AF20,0),ROUND(((((($F$14+$G$14)/2)-$H$14)/50)^AF$6)*AF20,0))) -> 404 | P20: =IF(OR(model="V0P00",model="V0L00"),AG78,IF(($G$14-20)/($F$14-20)<0.7,ROUND((((($F$14-$G$14)/(LN(($F$14-$H$14)/($G$14-$H$14))))/const)^AG$6)*AG20,0),ROUND(((((($F$14+$G$14)/2)-$H$14)/50)^AG$6)*AG20,0))) -> 492 | Q20: 400 | S20: =IF(OR($T$3="5CH00",$T$3="6CH00"),B20+4,B20) -> 400 | T20: =T$7*$S20/1000 -> 0 | U20: 0 | V20: 0 | W20: 0 | X20: 0 | Y20: 0 | Z20: 0 | AA20: 0 | AB20: 212 | AC20: 263.2 | AD20: 312 | AE20: 358.8 | AF20: 404.4 | AG20: 492.4 | AH20: =IF(OR($T$3="5CH00",$T$3="6CH00"),Q20+4,Q20) -> 400 | AJ20: 400 | AK20: =Sortiment!A8 -> 0 | AL20: =Sortiment!A24 -> 0 | AM20: =Sortiment!A40 -> 0 | AN20: =Sortiment!A56 -> 0 | AO20: =Sortiment!A72 -> 0 | AP20: =Sortiment!A88 -> 0 | AQ20: =Sortiment!A104 -> 0 | AR20: =Sortiment!A120 -> 0 | AS20: =Sortiment!A136 -> 0 | AT20: =Sortiment!A152 -> 0 | AU20: =Sortiment!A168 -> 0 | AV20: =Sortiment!A184 -> 0 | AW20: =Sortiment!A200 -> 0 | AX20: =Sortiment!A216 -> 0 | AY20: 400
B21: 500 | C21: 0 | D21: 0 | E21: 0 | F21: 0 | G21: 0 | H21: 0 | I21: 0 | J21: 0 | K21: 265 | L21: 329 | M21: 390 | N21: 449 | O21: 506 | P21: 616 | Q21: 500 | S21: =IF(OR($T$3="5CH00",$T$3="6CH00"),B21+4,B21) -> 500 | T21: 0 | U21: 0 | V21: 0 | W21: 0 | X21: 0 | Y21: 0 | Z21: 0 | AA21: 0 | AB21: 265 | AC21: 329 | AD21: 390 | AE21: 448.5 | AF21: 505.5 | AG21: 615.5 | AH21: =IF(OR($T$3="5CH00",$T$3="6CH00"),Q21+4,Q21) -> 500 | AJ21: 500 | AK21: =Sortiment!A9 -> 0 | AL21: =Sortiment!A25 -> 0 | AM21: =Sortiment!A41 -> 0 | AN21: =Sortiment!A57 -> 0 | AO21: =Sortiment!A73 -> 0 | AP21: =Sortiment!A89 -> 0 | AQ21: =Sortiment!A105 -> 0 | AR21: =Sortiment!A121 -> 0 | AS21: =Sortiment!A137 -> 1 | AT21: =Sortiment!A153 -> 1 | AU21: =Sortiment!A169 -> 1 | AV21: =Sortiment!A185 -> 1 | AW21: =Sortiment!A201 -> 1 | AX21: =Sortiment!A217 -> 1 | AY21: 500
B22: 600 | C22: 0 | D22: 0 | E22: 0 | F22: 0 | G22: 0 | H22: 0 | I22: 0 | J22: 0 | K22: 318 | L22: 395 | M22: 468 | N22: 538 | O22: 607 | P22: 739 | Q22: 600 | S22: 600 | T22: 0 | U22: 0 | V22: 0 | W22: 0 | X22: 0 | Y22: 0 | Z22: 0 | AA22: 0 | AB22: 318 | AC22: 394.8 | AD22: 468 | AE22: 538.2 | AF22: 606.6 | AG22: 738.6 | AH22: 600 | AJ22: 600 | AK22: =Sortiment!A10 -> 0 | AL22: =Sortiment!A26 -> 0 | AM22: =Sortiment!A42 -> 0 | AN22: =Sortiment!A58 -> 0 | AO22: =Sortiment!A74 -> 0 | AP22: =Sortiment!A90 -> 0 | AQ22: =Sortiment!A106 -> 0 | AR22: =Sortiment!A122 -> 0 | AS22: =Sortiment!A138 -> 1 | AT22: =Sortiment!A154 -> 1 | AU22: =Sortiment!A170 -> 1 | AV22: =Sortiment!A186 -> 1 | AW22: =Sortiment!A202 -> 1 | AX22: =Sortiment!A218 -> 1 | AY22: 600
B23: 700 | C23: 0 | D23: 0 | E23: 0 | F23: 0 | G23: 0 | H23: 0 | I23: 0 | J23: 0 | K23: 371 | L23: 461 | M23: 546 | N23: 628 | O23: 708 | P23: 862 | Q23: 700 | S23: 700 | T23: 0 | U23: 0 | V23: 0 | W23: 0 | X23: 0 | Y23: 0 | Z23: 0 | AA23: 0 | AB23: 371 | AC23: 460.6 | AD23: 546 | AE23: 627.9 | AF23: 707.7 | AG23: 861.7 | AH23: 700 | AJ23: 700 | AK23: =Sortiment!A11 -> 0 | AL23: =Sortiment!A27 -> 0 | AM23: =Sortiment!A43 -> 0 | AN23: =Sortiment!A59 -> 0 | AO23: =Sortiment!A75 -> 0 | AP23: =Sortiment!A91 -> 0 | AQ23: =Sortiment!A107 -> 0 | AR23: =Sortiment!A123 -> 0 | AS23: =Sortiment!A139 -> 1 | AT23: =Sortiment!A155 -> 1 | AU23: =Sortiment!A171 -> 1 | AV23: =Sortiment!A187 -> 1 | AW23: =Sortiment!A203 -> 1 | AX23: =Sortiment!A219 -> 1 | AY23: 700
B24: 800 | C24: 0 | D24: 0 | E24: 0 | F24: 0 | G24: 0 | H24: 0 | I24: 0 | J24: 0 | K24: 424 | L24: 526 | M24: 624 | N24: 718 | O24: 809 | P24: 985 | Q24: 800 | S24: 800 | T24: 0 | U24: 0 | V24: 0 | W24: 0 | X24: 0 | Y24: 0 | Z24: 0 | AA24: 0 | AB24: 424 | AC24: 526.4 | AD24: 624 | AE24: 717.6 | AF24: 808.8 | AG24: 984.8 | AH24: 800 | AJ24: 800 | AK24: =Sortiment!A12 -> 0 | AL24: =Sortiment!A28 -> 0 | AM24: =Sortiment!A44 -> 0 | AN24: =Sortiment!A60 -> 0 | AO24: =Sortiment!A76 -> 0 | AP24: =Sortiment!A92 -> 0 | AQ24: =Sortiment!A108 -> 0 | AR24: =Sortiment!A124 -> 0 | AS24: =Sortiment!A140 -> 1 | AT24: =Sortiment!A156 -> 1 | AU24: =Sortiment!A172 -> 1 | AV24: =Sortiment!A188 -> 1 | AW24: =Sortiment!A204 -> 1 | AX24: =Sortiment!A220 -> 1 | AY24: 800
B25: 900 | C25: 0 | D25: 0 | E25: 0 | F25: 0 | G25: 0 | H25: 0 | I25: 0 | J25: 0 | K25: 477 | L25: 592 | M25: 702 | N25: 807 | O25: 910 | P25: 1108 | Q25: 900 | S25: 900 | T25: 0 | U25: 0 | V25: =V$7*$S25/1000 -> 0 | W25: 0 | X25: 0 | Y25: 0 | Z25: 0 | AA25: 0 | AB25: 477 | AC25: 592.2 | AD25: 702 | AE25: 807.3 | AF25: 909.9 | AG25: 1107.9 | AH25: 900 | AJ25: 900 | AK25: =Sortiment!A13 -> 0 | AL25: =Sortiment!A29 -> 0 | AM25: =Sortiment!A45 -> 0 | AN25: =Sortiment!A61 -> 0 | AO25: =Sortiment!A77 -> 0 | AP25: =Sortiment!A93 -> 0 | AQ25: =Sortiment!A109 -> 0 | AR25: =Sortiment!A125 -> 0 | AS25: =Sortiment!A141 -> 1 | AT25: =Sortiment!A157 -> 1 | AU25: =Sortiment!A173 -> 1 | AV25: =Sortiment!A189 -> 1 | AW25: =Sortiment!A205 -> 1 | AX25: =Sortiment!A221 -> 1 | AY25: 900
B26: 1000 | C26: 0 | D26: 0 | E26: 0 | F26: 0 | G26: 0 | H26: 0 | I26: 0 | J26: 0 | K26: 530 | L26: 658 | M26: 780 | N26: 897 | O26: 1011 | P26: 1231 | Q26: 1000 | S26: 1000 | T26: 0 | U26: 0 | V26: 0 | W26: 0 | X26: 0 | Y26: 0 | Z26: 0 | AA26: 0 | AB26: 530 | AC26: 658 | AD26: 780 | AE26: 897 | AF26: 1011 | AG26: 1231 | AH26: 1000 | AJ26: 1000 | AK26: =Sortiment!A14 -> 0 | AL26: =Sortiment!A30 -> 0 | AM26: =Sortiment!A46 -> 0 | AN26: =Sortiment!A62 -> 0 | AO26: =Sortiment!A78 -> 0 | AP26: =Sortiment!A94 -> 0 | AQ26: =Sortiment!A110 -> 0 | AR26: =Sortiment!A126 -> 0 | AS26: =Sortiment!A142 -> 1 | AT26: =Sortiment!A158 -> 1 | AU26: =Sortiment!A174 -> 1 | AV26: =Sortiment!A190 -> 1 | AW26: =Sortiment!A206 -> 1 | AX26: =Sortiment!A222 -> 1 | AY26: 1000
B27: 1100 | C27: 0 | D27: 0 | E27: 0 | F27: 0 | G27: 0 | H27: 0 | I27: 0 | J27: 0 | K27: 583 | L27: 724 | M27: 858 | N27: 987 | O27: 1112 | P27: 1354 | Q27: 1100 | S27: 1100 | T27: 0 | U27: 0 | V27: 0 | W27: 0 | X27: 0 | Y27: 0 | Z27: 0 | AA27: 0 | AB27: 583 | AC27: 723.8 | AD27: 858 | AE27: 986.7 | AF27: 1112.1 | AG27: 1354.1 | AH27: 1100 | AJ27: 1100 | AK27: =Sortiment!A15 -> 0 | AL27: =Sortiment!A31 -> 0 | AM27: =Sortiment!A47 -> 0 | AN27: =Sortiment!A63 -> 0 | AO27: =Sortiment!A79 -> 0 | AP27: =Sortiment!A95 -> 0 | AQ27: =Sortiment!A111 -> 0 | AR27: =Sortiment!A127 -> 0 | AS27: =Sortiment!A143 -> 1 | AT27: =Sortiment!A159 -> 1 | AU27: =Sortiment!A175 -> 1 | AV27: =Sortiment!A191 -> 1 | AW27: =Sortiment!A207 -> 1 | AX27: =Sortiment!A223 -> 1 | AY27: 1100
B28: 1200 | C28: 0 | D28: 0 | E28: 0 | F28: 0 | G28: 0 | H28: 0 | I28: 0 | J28: 0 | K28: 636 | L28: 790 | M28: 936 | N28: 1076 | O28: 1213 | P28: 1477 | Q28: 1200 | S28: 1200 | T28: 0 | U28: 0 | V28: 0 | W28: 0 | X28: 0 | Y28: 0 | Z28: 0 | AA28: 0 | AB28: 636 | AC28: 789.6 | AD28: 936 | AE28: 1076.4 | AF28: 1213.2 | AG28: 1477.2 | AH28: 1200 | AJ28: 1200 | AK28: =Sortiment!A16 -> 0 | AL28: =Sortiment!A32 -> 0 | AM28: =Sortiment!A48 -> 0 | AN28: =Sortiment!A64 -> 0 | AO28: =Sortiment!A80 -> 0 | AP28: =Sortiment!A96 -> 0 | AQ28: =Sortiment!A112 -> 0 | AR28: =Sortiment!A128 -> 0 | AS28: =Sortiment!A144 -> 1 | AT28: =Sortiment!A160 -> 1 | AU28: =Sortiment!A176 -> 1 | AV28: =Sortiment!A192 -> 1 | AW28: =Sortiment!A208 -> 1 | AX28: =Sortiment!A224 -> 1 | AY28: 1200
B29: 1400 | C29: 0 | D29: 0 | E29: 0 | F29: 0 | G29: 0 | H29: 0 | I29: 0 | J29: 0 | K29: 742 | L29: 921 | M29: 1092 | N29: 1256 | O29: 1415 | P29: 1723 | Q29: 1400 | S29: 1400 | T29: 0 | U29: 0 | V29: 0 | W29: 0 | X29: 0 | Y29: 0 | Z29: 0 | AA29: 0 | AB29: 742 | AC29: 921.2 | AD29: 1092 | AE29: 1255.8 | AF29: 1415.4 | AG29: 1723.4 | AH29: 1400 | AJ29: 1400 | AK29: =Sortiment!A17 -> 0 | AL29: =Sortiment!A33 -> 0 | AM29: =Sortiment!A49 -> 0 | AN29: =Sortiment!A65 -> 0 | AO29: =Sortiment!A81 -> 0 | AP29: =Sortiment!A97 -> 0 | AQ29: =Sortiment!A113 -> 0 | AR29: =Sortiment!A129 -> 0 | AS29: =Sortiment!A145 -> 1 | AT29: =Sortiment!A161 -> 1 | AU29: =Sortiment!A177 -> 1 | AV29: =Sortiment!A193 -> 1 | AW29: =Sortiment!A209 -> 1 | AX29: =Sortiment!A225 -> 1 | AY29: 1400
B30: 1600 | C30: 0 | D30: 0 | E30: 0 | F30: 0 | G30: 0 | H30: 0 | I30: 0 | J30: 0 | K30: 848 | L30: 1053 | M30: 1248 | N30: 1435 | O30: 1618 | P30: 1970 | Q30: 1600 | S30: 1600 | T30: =T$7*$S30/1000 -> 0 | U30: 0 | V30: 0 | W30: 0 | X30: 0 | Y30: 0 | Z30: 0 | AA30: 0 | AB30: 848 | AC30: 1052.8 | AD30: 1248 | AE30: 1435.2 | AF30: 1617.6 | AG30: 1969.6 | AH30: 1600 | AJ30: 1600 | AK30: =Sortiment!A18 -> 0 | AL30: =Sortiment!A34 -> 0 | AM30: =Sortiment!A50 -> 0 | AN30: =Sortiment!A66 -> 0 | AO30: =Sortiment!A82 -> 0 | AP30: =Sortiment!A98 -> 0 | AQ30: =Sortiment!A114 -> 0 | AR30: =Sortiment!A130 -> 0 | AS30: =Sortiment!A146 -> 1 | AT30: =Sortiment!A162 -> 1 | AU30: =Sortiment!A178 -> 1 | AV30: =Sortiment!A194 -> 1 | AW30: =Sortiment!A210 -> 1 | AX30: =Sortiment!A226 -> 1 | AY30: 1600
B31: 1800 | C31: 0 | D31: 0 | E31: 0 | F31: 0 | G31: 0 | H31: 0 | I31: 0 | J31: 0 | K31: 954 | L31: 1184 | M31: 1404 | N31: 1615 | O31: 1820 | P31: 2216 | Q31: 1800 | S31: 1800 | T31: 0 | U31: 0 | V31: 0 | W31: 0 | X31: 0 | Y31: 0 | Z31: 0 | AA31: 0 | AB31: 954 | AC31: 1184.4 | AD31: 1404 | AE31: 1614.6 | AF31: 1819.8 | AG31: 2215.8 | AH31: 1800 | AJ31: 1800 | AK31: =Sortiment!A19 -> 0 | AL31: =Sortiment!A35 -> 0 | AM31: =Sortiment!A51 -> 0 | AN31: =Sortiment!A67 -> 0 | AO31: =Sortiment!A83 -> 0 | AP31: =Sortiment!A99 -> 0 | AQ31: =Sortiment!A115 -> 0 | AR31: =Sortiment!A131 -> 0 | AS31: =Sortiment!A147 -> 1 | AT31: =Sortiment!A163 -> 1 | AU31: =Sortiment!A179 -> 1 | AV31: =Sortiment!A195 -> 1 | AW31: =Sortiment!A211 -> 1 | AX31: =Sortiment!A227 -> 0 | AY31: 1800
B32: 2000 | C32: 0 | D32: 0 | E32: 0 | F32: 0 | G32: 0 | H32: 0 | I32: 0 | J32: 0 | K32: 1060 | L32: 1316 | M32: 1560 | N32: 1794 | O32: 2022 | P32: 2462 | Q32: 2000 | S32: 2000 | T32: 0 | U32: 0 | V32: 0 | W32: 0 | X32: 0 | Y32: 0 | Z32: 0 | AA32: 0 | AB32: 1060 | AC32: 1316 | AD32: 1560 | AE32: 1794 | AF32: 2022 | AG32: 2462 | AH32: 2000 | AJ32: 2000 | AK32: =Sortiment!A20 -> 0 | AL32: =Sortiment!A36 -> 0 | AM32: =Sortiment!A52 -> 0 | AN32: =Sortiment!A68 -> 0 | AO32: =Sortiment!A84 -> 0 | AP32: =Sortiment!A100 -> 0 | AQ32: =Sortiment!A116 -> 0 | AR32: =Sortiment!A132 -> 0 | AS32: =Sortiment!A148 -> 1 | AT32: =Sortiment!A164 -> 1 | AU32: =Sortiment!A180 -> 1 | AV32: =Sortiment!A196 -> 1 | AW32: =Sortiment!A212 -> 1 | AX32: =Sortiment!A228 -> 0 | AY32: 2000
B33: 2300 | C33: 0 | D33: 0 | E33: 0 | F33: 0 | G33: 0 | H33: 0 | I33: 0 | J33: 0 | K33: 1219 | L33: 1513 | M33: 1794 | N33: 2063 | O33: 2325 | P33: 2831 | Q33: 2300 | S33: 2300 | T33: 0 | U33: 0 | V33: 0 | W33: 0 | X33: 0 | Y33: 0 | Z33: 0 | AA33: 0 | AB33: 1219 | AC33: 1513.4 | AD33: 1794 | AE33: 2063.1 | AF33: 2325.3 | AG33: 2831.3 | AH33: 2300 | AJ33: 2300 | AK33: =Sortiment!A21 -> 0 | AL33: =Sortiment!A37 -> 0 | AM33: =Sortiment!A53 -> 0 | AN33: =Sortiment!A69 -> 0 | AO33: =Sortiment!A85 -> 0 | AP33: =Sortiment!A101 -> 0 | AQ33: =Sortiment!A117 -> 0 | AR33: =Sortiment!A133 -> 0 | AS33: =Sortiment!A149 -> 0 | AT33: =Sortiment!A165 -> 0 | AU33: =Sortiment!A181 -> 0 | AV33: =Sortiment!A197 -> 0 | AW33: =Sortiment!A213 -> 0 | AX33: =Sortiment!A229 -> 0 | AY33: 2300
B34: 2600 | C34: 0 | D34: 0 | E34: 0 | F34: 0 | G34: 0 | H34: 0 | I34: 0 | J34: 0 | K34: 1378 | L34: 1711 | M34: 2028 | N34: 2332 | O34: 2629 | P34: 3201 | Q34: 2600 | S34: 2600 | T34: 0 | U34: 0 | V34: 0 | W34: 0 | X34: 0 | Y34: 0 | Z34: 0 | AA34: 0 | AB34: 1378 | AC34: 1710.8 | AD34: 2028 | AE34: 2332.2 | AF34: 2628.6 | AG34: 3200.6 | AH34: 2600 | AJ34: 2600 | AK34: =Sortiment!A22 -> 0 | AL34: =Sortiment!A38 -> 0 | AM34: =Sortiment!A54 -> 0 | AN34: =Sortiment!A70 -> 0 | AO34: =Sortiment!A86 -> 0 | AP34: =Sortiment!A102 -> 0 | AQ34: =Sortiment!A118 -> 0 | AR34: =Sortiment!A134 -> 0 | AS34: =Sortiment!A150 -> 0 | AT34: =Sortiment!A166 -> 0 | AU34: =Sortiment!A182 -> 0 | AV34: =Sortiment!A198 -> 0 | AW34: =Sortiment!A214 -> 0 | AX34: =Sortiment!A230 -> 0 | AY34: 2600
B35: 3000 | C35: 0 | D35: 0 | E35: 0 | F35: 0 | G35: 0 | H35: 0 | I35: 0 | J35: 0 | K35: 1590 | L35: 1974 | M35: 2340 | N35: 2691 | O35: 3033 | P35: 3693 | Q35: 3000 | S35: 3000 | T35: 0 | U35: 0 | V35: 0 | W35: 0 | X35: 0 | Y35: 0 | Z35: 0 | AA35: 0 | AB35: 1590 | AC35: 1974 | AD35: 2340 | AE35: 2691 | AF35: 3033 | AG35: 3693 | AH35: 3000 | AJ35: 3000 | AK35: =Sortiment!A23 -> 0 | AL35: =Sortiment!A39 -> 0 | AM35: =Sortiment!A55 -> 0 | AN35: =Sortiment!A71 -> 0 | AO35: =Sortiment!A87 -> 0 | AP35: =Sortiment!A103 -> 0 | AQ35: =Sortiment!A119 -> 0 | AR35: =Sortiment!A135 -> 0 | AS35: =Sortiment!A151 -> 0 | AT35: =Sortiment!A167 -> 0 | AU35: =Sortiment!A183 -> 0 | AV35: =Sortiment!A199 -> 0 | AW35: =Sortiment!A215 -> 0 | AX35: =Sortiment!A231 -> 0 | AY35: 3000
B36: Height | E36: =V36 -> Typ | F36: =W36 -> 20 | L36: =AC36 -> Typ | M36: =AD36 -> 21 | Q36: Height | S36: Height | V36: =V8 -> Typ | W36: =W8 -> 20 | AC36: =AC8 -> Typ | AD36: =AD8 -> 21 | AH36: Height | AJ36: Height | AM36: Type | AN36: 20 | AT36: Type | AU36: 21 | AY36: Height
B37: Length | C37: =T37 -> 200 | D37: =U37 -> 300 | E37: =V37 -> 400 | F37: =W37 -> 500 | G37: =X37 -> 600 | H37: =Y37 -> 700 | I37: =Z37 -> 900 | J37: =AA37 -> 200 | K37: =AB37 -> 300 | L37: =AC37 -> 400 | M37: =AD37 -> 500 | N37: =AE37 -> 600 | O37: =AF37 -> 700 | P37: =AG37 -> 900 | Q37: Length | S37: length | T37: =T9 -> 200 | U37: =U9 -> 300 | V37: =V9 -> 400 | W37: =W9 -> 500 | X37: =X9 -> 600 | Y37: =Y9 -> 700 | Z37: =Z9 -> 900 | AA37: =AA9 -> 200 | AB37: =AB9 -> 300 | AC37: =AC9 -> 400 | AD37: =AD9 -> 500 | AE37: =AE9 -> 600 | AF37: =AF9 -> 700 | AG37: =AG9 -> 900 | AH37: length | AJ37: length | AK37: =T37 -> 200 | AL37: 300 | AM37: 400 | AN37: 500 | AO37: 600 | AP37: 700 | AQ37: 900 | AR37: 200 | AS37: 300 | AT37: 400 | AU37: 500 | AV37: 600 | AW37: 700 | AX37: 900 | AY37: length
B38: 400 | C38: =IF(OR(model="V0P00",model="V0L00"),T96,IF(($G$14-20)/($F$14-20)<0.7,ROUND((((($F$14-$G$14)/(LN(($F$14-$H$14)/($G$14-$H$14))))/const)^T$10)*T38,0),ROUND(((((($F$14+$G$14)/2)-$H$14)/50)^T$10)*T38,0))) -> 0 | D38: =IF(OR(model="V0P00",model="V0L00"),U96,IF(($G$14-20)/($F$14-20)<0.7,ROUND((((($F$14-$G$14)/(LN(($F$14-$H$14)/($G$14-$H$14))))/const)^U$10)*U38,0),ROUND(((((($F$14+$G$14)/2)-$H$14)/50)^U$10)*U38,0))) -> 0 | E38: =IF(OR(model="V0P00",model="V0L00"),V96,IF(($G$14-20)/($F$14-20)<0.7,ROUND((((($F$14-$G$14)/(LN(($F$14-$H$14)/($G$14-$H$14))))/const)^V$10)*V38,0),ROUND(((((($F$14+$G$14)/2)-$H$14)/50)^V$10)*V38,0))) -> 0 | F38: =IF(OR(model="V0P00",model="V0L00"),W96,IF(($G$14-20)/($F$14-20)<0.7,ROUND((((($F$14-$G$14)/(LN(($F$14-$H$14)/($G$14-$H$14))))/const)^W$10)*W38,0),ROUND(((((($F$14+$G$14)/2)-$H$14)/50)^W$10)*W38,0))) -> 339 | G38: =IF(OR(model="V0P00",model="V0L00"),X96,IF(($G$14-20)/($F$14-20)<0.7,ROUND((((($F$14-$G$14)/(LN(($F$14-$H$14)/($G$14-$H$14))))/const)^X$10)*X38,0),ROUND(((((($F$14+$G$14)/2)-$H$14)/50)^X$10)*X38,0))) -> 388 | H38: =IF(OR(model="V0P00",model="V0L00"),Y96,IF(($G$14-20)/($F$14-20)<0.7,ROUND((((($F$14-$G$14)/(LN(($F$14-$H$14)/($G$14-$H$14))))/const)^Y$10)*Y38,0),ROUND(((((($F$14+$G$14)/2)-$H$14)/50)^Y$10)*Y38,0))) -> 434 | I38: =IF(OR(model="V0P00",model="V0L00"),Z96,IF(($G$14-20)/($F$14-20)<0.7,ROUND((((($F$14-$G$14)/(LN(($F$14-$H$14)/($G$14-$H$14))))/const)^Z$10)*Z38,0),ROUND(((((($F$14+$G$14)/2)-$H$14)/50)^Z$10)*Z38,0))) -> 0 | J38: =IF(OR(model="V0P00",model="V0L00"),AA96,IF(($G$14-20)/($F$14-20)<0.7,ROUND((((($F$14-$G$14)/(LN(($F$14-$H$14)/($G$14-$H$14))))/const)^AA$10)*AA38,0),ROUND(((((($F$14+$G$14)/2)-$H$14)/50)^AA$10)*AA38,0))) -> 0 | K38: =IF(OR(model="V0P00",model="V0L00"),AB96,IF(($G$14-20)/($F$14-20)<0.7,ROUND((((($F$14-$G$14)/(LN(($F$14-$H$14)/($G$14-$H$14))))/const)^AB$10)*AB38,0),ROUND(((((($F$14+$G$14)/2)-$H$14)/50)^AB$10)*AB38,0))) -> 288 | L38: =IF(OR(model="V0P00",model="V0L00"),AC96,IF(($G$14-20)/($F$14-20)<0.7,ROUND((((($F$14-$G$14)/(LN(($F$14-$H$14)/($G$14-$H$14))))/const)^AC$10)*AC38,0),ROUND(((((($F$14+$G$14)/2)-$H$14)/50)^AC$10)*AC38,0))) -> 362 | M38: =IF(OR(model="V0P00",model="V0L00"),AD96,IF(($G$14-20)/($F$14-20)<0.7,ROUND((((($F$14-$G$14)/(LN(($F$14-$H$14)/($G$14-$H$14))))/const)^AD$10)*AD38,0),ROUND(((((($F$14+$G$14)/2)-$H$14)/50)^AD$10)*AD38,0))) -> 429 | N38: =IF(OR(model="V0P00",model="V0L00"),AE96,IF(($G$14-20)/($F$14-20)<0.7,ROUND((((($F$14-$G$14)/(LN(($F$14-$H$14)/($G$14-$H$14))))/const)^AE$10)*AE38,0),ROUND(((((($F$14+$G$14)/2)-$H$14)/50)^AE$10)*AE38,0))) -> 490 | O38: =IF(OR(model="V0P00",model="V0L00"),AF96,IF(($G$14-20)/($F$14-20)<0.7,ROUND((((($F$14-$G$14)/(LN(($F$14-$H$14)/($G$14-$H$14))))/const)^AF$10)*AF38,0),ROUND(((((($F$14+$G$14)/2)-$H$14)/50)^AF$10)*AF38,0))) -> 547 | P38: =IF(OR(model="V0P00",model="V0L00"),AG96,IF(($G$14-20)/($F$14-20)<0.7,ROUND((((($F$14-$G$14)/(LN(($F$14-$H$14)/($G$14-$H$14))))/const)^AG$10)*AG38,0),ROUND(((((($F$14+$G$14)/2)-$H$14)/50)^AG$10)*AG38,0))) -> 647 | Q38: 400 | S38: =IF(OR($T$3="5CH00",$T$3="6CH00"),B38+4,B38) -> 400 | T38: =T$11*$S38/1000 -> 0 | U38: 0 | V38: 0 | W38: 339.2 | X38: 387.6 | Y38: 434 | Z38: 0 | AA38: 0 | AB38: 288 | AC38: 361.6 | AD38: 428.8 | AE38: 490.4 | AF38: 546.8 | AG38: 646.8 | AH38: =IF(OR($T$3="5CH00",$T$3="6CH00"),Q38+4,Q38) -> 400 | AJ38: 400 | AK38: =Sortiment!A232 -> 0 | AL38: =Sortiment!A248 -> 0 | AM38: =Sortiment!A264 -> 0 | AN38: =Sortiment!A280 -> 0 | AO38: =Sortiment!A296 -> 0 | AP38: =Sortiment!A312 -> 0 | AQ38: =Sortiment!A328 -> 0 | AR38: =Sortiment!A344 -> 0 | AS38: =Sortiment!A360 -> 0 | AT38: =Sortiment!A376 -> 0 | AU38: =Sortiment!A392 -> 0 | AV38: =Sortiment!A408 -> 0 | AW38: =Sortiment!A424 -> 0 | AX38: =Sortiment!A440 -> 0 | AY38: 400
B39: 500 | C39: 0 | D39: 0 | E39: 0 | F39: 424 | G39: 485 | H39: 543 | I39: 0 | J39: 0 | K39: 360 | L39: 452 | M39: 536 | N39: 613 | O39: 684 | P39: 809 | Q39: 500 | S39: =IF(OR($T$3="5CH00",$T$3="6CH00"),B39+4,B39) -> 500 | T39: 0 | U39: 0 | V39: 0 | W39: 424 | X39: 484.5 | Y39: 542.5 | Z39: 0 | AA39: 0 | AB39: 360 | AC39: 452 | AD39: 536 | AE39: 613 | AF39: 683.5 | AG39: 808.5 | AH39: =IF(OR($T$3="5CH00",$T$3="6CH00"),Q39+4,Q39) -> 500 | AJ39: 500 | AK39: =Sortiment!A233 -> 0 | AL39: =Sortiment!A249 -> 0 | AM39: =Sortiment!A265 -> 0 | AN39: =Sortiment!A281 -> 1 | AO39: =Sortiment!A297 -> 1 | AP39: =Sortiment!A313 -> 1 | AQ39: =Sortiment!A329 -> 0 | AR39: =Sortiment!A345 -> 0 | AS39: =Sortiment!A361 -> 1 | AT39: =Sortiment!A377 -> 1 | AU39: =Sortiment!A393 -> 1 | AV39: =Sortiment!A409 -> 1 | AW39: =Sortiment!A425 -> 1 | AX39: =Sortiment!A441 -> 1 | AY39: 500
B40: 600 | C40: 0 | D40: 0 | E40: 0 | F40: 509 | G40: 581 | H40: 651 | I40: 0 | J40: 0 | K40: 432 | L40: 542 | M40: 643 | N40: 736 | O40: 820 | P40: 970 | Q40: 600 | S40: 600 | T40: 0 | U40: 0 | V40: 0 | W40: 508.8 | X40: 581.4 | Y40: 651 | Z40: 0 | AA40: 0 | AB40: 432 | AC40: 542.4 | AD40: 643.2 | AE40: 735.6 | AF40: 820.2 | AG40: 970.2 | AH40: 600 | AJ40: 600 | AK40: =Sortiment!A234 -> 0 | AL40: =Sortiment!A250 -> 0 | AM40: =Sortiment!A266 -> 0 | AN40: =Sortiment!A282 -> 1 | AO40: =Sortiment!A298 -> 1 | AP40: =Sortiment!A314 -> 1 | AQ40: =Sortiment!A330 -> 0 | AR40: =Sortiment!A346 -> 0 | AS40: =Sortiment!A362 -> 1 | AT40: =Sortiment!A378 -> 1 | AU40: =Sortiment!A394 -> 1 | AV40: =Sortiment!A410 -> 1 | AW40: =Sortiment!A426 -> 1 | AX40: =Sortiment!A442 -> 1 | AY40: 600
B41: 700 | C41: 0 | D41: 0 | E41: 0 | F41: 594 | G41: 678 | H41: 760 | I41: 0 | J41: 0 | K41: 504 | L41: 633 | M41: 750 | N41: 858 | O41: 957 | P41: 1132 | Q41: 700 | S41: 700 | T41: 0 | U41: 0 | V41: 0 | W41: 593.6 | X41: 678.3 | Y41: 759.5 | Z41: 0 | AA41: 0 | AB41: 504 | AC41: 632.8 | AD41: 750.4 | AE41: 858.2 | AF41: 956.9 | AG41: 1131.9 | AH41: 700 | AJ41: 700 | AK41: =Sortiment!A235 -> 0 | AL41: =Sortiment!A251 -> 0 | AM41: =Sortiment!A267 -> 0 | AN41: =Sortiment!A283 -> 1 | AO41: =Sortiment!A299 -> 1 | AP41: =Sortiment!A315 -> 1 | AQ41: =Sortiment!A331 -> 0 | AR41: =Sortiment!A347 -> 0 | AS41: =Sortiment!A363 -> 1 | AT41: =Sortiment!A379 -> 1 | AU41: =Sortiment!A395 -> 1 | AV41: =Sortiment!A411 -> 1 | AW41: =Sortiment!A427 -> 1 | AX41: =Sortiment!A443 -> 1 | AY41: 700
B42: 800 | C42: 0 | D42: 0 | E42: 0 | F42: 678 | G42: 775 | H42: 868 | I42: 0 | J42: 0 | K42: 576 | L42: 723 | M42: 858 | N42: 981 | O42: 1094 | P42: 1294 | Q42: 800 | S42: 800 | T42: 0 | U42: 0 | V42: 0 | W42: 678.4 | X42: 775.2 | Y42: 868 | Z42: 0 | AA42: 0 | AB42: 576 | AC42: 723.2 | AD42: 857.6 | AE42: 980.8 | AF42: 1093.6 | AG42: 1293.6 | AH42: 800 | AJ42: 800 | AK42: =Sortiment!A236 -> 0 | AL42: =Sortiment!A252 -> 0 | AM42: =Sortiment!A268 -> 0 | AN42: =Sortiment!A284 -> 1 | AO42: =Sortiment!A300 -> 1 | AP42: =Sortiment!A316 -> 1 | AQ42: =Sortiment!A332 -> 0 | AR42: =Sortiment!A348 -> 0 | AS42: =Sortiment!A364 -> 1 | AT42: =Sortiment!A380 -> 1 | AU42: =Sortiment!A396 -> 1 | AV42: =Sortiment!A412 -> 1 | AW42: =Sortiment!A428 -> 1 | AX42: =Sortiment!A444 -> 1 | AY42: 800
B43: 900 | C43: 0 | D43: 0 | E43: 0 | F43: 763 | G43: 872 | H43: 977 | I43: 0 | J43: 0 | K43: 648 | L43: 814 | M43: 965 | N43: 1103 | O43: 1230 | P43: 1455 | Q43: 900 | S43: 900 | T43: 0 | U43: 0 | V43: 0 | W43: 763.2 | X43: 872.1 | Y43: 976.5 | Z43: 0 | AA43: 0 | AB43: 648 | AC43: 813.6 | AD43: 964.8 | AE43: 1103.4 | AF43: 1230.3 | AG43: 1455.3 | AH43: 900 | AJ43: 900 | AK43: =Sortiment!A237 -> 0 | AL43: =Sortiment!A253 -> 0 | AM43: =Sortiment!A269 -> 0 | AN43: =Sortiment!A285 -> 1 | AO43: =Sortiment!A301 -> 1 | AP43: =Sortiment!A317 -> 1 | AQ43: =Sortiment!A333 -> 0 | AR43: =Sortiment!A349 -> 0 | AS43: =Sortiment!A365 -> 1 | AT43: =Sortiment!A381 -> 1 | AU43: =Sortiment!A397 -> 1 | AV43: =Sortiment!A413 -> 1 | AW43: =Sortiment!A429 -> 1 | AX43: =Sortiment!A445 -> 1 | AY43: 900
B44: 1000 | C44: 0 | D44: 0 | E44: 0 | F44: 848 | G44: 969 | H44: 1085 | I44: 0 | J44: 0 | K44: 720 | L44: 904 | M44: 1072 | N44: 1226 | O44: 1367 | P44: 1617 | Q44: 1000 | S44: 1000 | T44: 0 | U44: 0 | V44: 0 | W44: 848 | X44: 969 | Y44: 1085 | Z44: 0 | AA44: 0 | AB44: 720 | AC44: 904 | AD44: 1072 | AE44: 1226 | AF44: 1367 | AG44: 1617 | AH44: 1000 | AJ44: 1000 | AK44: =Sortiment!A238 -> 0 | AL44: =Sortiment!A254 -> 0 | AM44: =Sortiment!A270 -> 0 | AN44: =Sortiment!A286 -> 1 | AO44: =Sortiment!A302 -> 1 | AP44: =Sortiment!A318 -> 1 | AQ44: =Sortiment!A334 -> 0 | AR44: =Sortiment!A350 -> 0 | AS44: =Sortiment!A366 -> 1 | AT44: =Sortiment!A382 -> 1 | AU44: =Sortiment!A398 -> 1 | AV44: =Sortiment!A414 -> 1 | AW44: =Sortiment!A430 -> 1 | AX44: =Sortiment!A446 -> 1 | AY44: 1000
B45: 1100 | C45: 0 | D45: 0 | E45: 0 | F45: 933 | G45: 1066 | H45: 1194 | I45: 0 | J45: 0 | K45: 792 | L45: 994 | M45: 1179 | N45: 1349 | O45: 1504 | P45: 1779 | Q45: 1100 | S45: 1100 | T45: 0 | U45: 0 | V45: 0 | W45: 932.8 | X45: 1065.9 | Y45: 1193.5 | Z45: 0 | AA45: 0 | AB45: 792 | AC45: 994.4 | AD45: 1179.2 | AE45: 1348.6 | AF45: 1503.7 | AG45: 1778.7 | AH45: 1100 | AJ45: 1100 | AK45: =Sortiment!A239 -> 0 | AL45: =Sortiment!A255 -> 0 | AM45: =Sortiment!A271 -> 0 | AN45: =Sortiment!A287 -> 1 | AO45: =Sortiment!A303 -> 1 | AP45: =Sortiment!A319 -> 1 | AQ45: =Sortiment!A335 -> 0 | AR45: =Sortiment!A351 -> 0 | AS45: =Sortiment!A367 -> 1 | AT45: =Sortiment!A383 -> 1 | AU45: =Sortiment!A399 -> 1 | AV45: =Sortiment!A415 -> 1 | AW45: =Sortiment!A431 -> 1 | AX45: =Sortiment!A447 -> 1 | AY45: 1100
B46: 1200 | C46: 0 | D46: 0 | E46: 0 | F46: 1018 | G46: 1163 | H46: 1302 | I46: 0 | J46: 0 | K46: 864 | L46: 1085 | M46: 1286 | N46: 1471 | O46: 1640 | P46: 1940 | Q46: 1200 | S46: 1200 | T46: 0 | U46: 0 | V46: 0 | W46: 1017.6 | X46: 1162.8 | Y46: 1302 | Z46: 0 | AA46: 0 | AB46: 864 | AC46: 1084.8 | AD46: 1286.4 | AE46: 1471.2 | AF46: 1640.4 | AG46: 1940.4 | AH46: 1200 | AJ46: 1200 | AK46: =Sortiment!A240 -> 0 | AL46: =Sortiment!A256 -> 0 | AM46: =Sortiment!A272 -> 0 | AN46: =Sortiment!A288 -> 1 | AO46: =Sortiment!A304 -> 1 | AP46: =Sortiment!A320 -> 1 | AQ46: =Sortiment!A336 -> 0 | AR46: =Sortiment!A352 -> 0 | AS46: =Sortiment!A368 -> 1 | AT46: =Sortiment!A384 -> 1 | AU46: =Sortiment!A400 -> 1 | AV46: =Sortiment!A416 -> 1 | AW46: =Sortiment!A432 -> 1 | AX46: =Sortiment!A448 -> 1 | AY46: 1200
B47: 1400 | C47: 0 | D47: 0 | E47: 0 | F47: 1187 | G47: 1357 | H47: 1519 | I47: 0 | J47: 0 | K47: 1008 | L47: 1266 | M47: 1501 | N47: 1716 | O47: 1914 | P47: 2264 | Q47: 1400 | S47: 1400 | T47: 0 | U47: 0 | V47: 0 | W47: 1187.2 | X47: 1356.6 | Y47: 1519 | Z47: 0 | AA47: 0 | AB47: 1008 | AC47: 1265.6 | AD47: 1500.8 | AE47: 1716.4 | AF47: 1913.8 | AG47: 2263.8 | AH47: 1400 | AJ47: 1400 | AK47: =Sortiment!A241 -> 0 | AL47: =Sortiment!A257 -> 0 | AM47: =Sortiment!A273 -> 0 | AN47: =Sortiment!A289 -> 1 | AO47: =Sortiment!A305 -> 1 | AP47: =Sortiment!A321 -> 1 | AQ47: =Sortiment!A337 -> 0 | AR47: =Sortiment!A353 -> 0 | AS47: =Sortiment!A369 -> 1 | AT47: =Sortiment!A385 -> 1 | AU47: =Sortiment!A401 -> 1 | AV47: =Sortiment!A417 -> 1 | AW47: =Sortiment!A433 -> 1 | AX47: =Sortiment!A449 -> 1 | AY47: 1400
B48: 1600 | C48: 0 | D48: 0 | E48: 0 | F48: 1357 | G48: 1550 | H48: 1736 | I48: 0 | J48: 0 | K48: 1152 | L48: 1446 | M48: 1715 | N48: 1962 | O48: 2187 | P48: 2587 | Q48: 1600 | S48: 1600 | T48: =T$11*$S48/1000 -> 0 | U48: 0 | V48: 0 | W48: 1356.8 | X48: 1550.4 | Y48: 1736 | Z48: 0 | AA48: 0 | AB48: 1152 | AC48: 1446.4 | AD48: 1715.2 | AE48: 1961.6 | AF48: 2187.2 | AG48: 2587.2 | AH48: 1600 | AJ48: 1600 | AK48: =Sortiment!A242 -> 0 | AL48: =Sortiment!A258 -> 0 | AM48: =Sortiment!A274 -> 0 | AN48: =Sortiment!A290 -> 1 | AO48: =Sortiment!A306 -> 1 | AP48: =Sortiment!A322 -> 1 | AQ48: =Sortiment!A338 -> 0 | AR48: =Sortiment!A354 -> 0 | AS48: =Sortiment!A370 -> 1 | AT48: =Sortiment!A386 -> 1 | AU48: =Sortiment!A402 -> 1 | AV48: =Sortiment!A418 -> 1 | AW48: =Sortiment!A434 -> 1 | AX48: =Sortiment!A450 -> 1 | AY48: 1600
B49: 1800 | C49: 0 | D49: 0 | E49: 0 | F49: 1526 | G49: 1744 | H49: 1953 | I49: 0 | J49: 0 | K49: 1296 | L49: 1627 | M49: 1930 | N49: 2207 | O49: 2461 | P49: 2911 | Q49: 1800 | S49: 1800 | T49: 0 | U49: 0 | V49: 0 | W49: 1526.4 | X49: 1744.2 | Y49: 1953 | Z49: 0 | AA49: 0 | AB49: 1296 | AC49: 1627.2 | AD49: 1929.6 | AE49: 2206.8 | AF49: 2460.6 | AG49: 2910.6 | AH49: 1800 | AJ49: 1800 | AK49: =Sortiment!A243 -> 0 | AL49: =Sortiment!A259 -> 0 | AM49: =Sortiment!A275 -> 0 | AN49: =Sortiment!A291 -> 1 | AO49: =Sortiment!A307 -> 1 | AP49: =Sortiment!A323 -> 1 | AQ49: =Sortiment!A339 -> 0 | AR49: =Sortiment!A355 -> 0 | AS49: =Sortiment!A371 -> 1 | AT49: =Sortiment!A387 -> 1 | AU49: =Sortiment!A403 -> 1 | AV49: =Sortiment!A419 -> 1 | AW49: =Sortiment!A435 -> 1 | AX49: =Sortiment!A451 -> 0 | AY49: 1800
B50: 2000 | C50: 0 | D50: 0 | E50: 0 | F50: 1696 | G50: 1938 | H50: 2170 | I50: 0 | J50: 0 | K50: 1440 | L50: 1808 | M50: 2144 | N50: 2452 | O50: 2734 | P50: 3234 | Q50: 2000 | S50: 2000 | T50: 0 | U50: 0 | V50: 0 | W50: 1696 | X50: 1938 | Y50: 2170 | Z50: 0 | AA50: 0 | AB50: 1440 | AC50: 1808 | AD50: 2144 | AE50: 2452 | AF50: 2734 | AG50: 3234 | AH50: 2000 | AJ50: 2000 | AK50: =Sortiment!A244 -> 0 | AL50: =Sortiment!A260 -> 0 | AM50: =Sortiment!A276 -> 0 | AN50: =Sortiment!A292 -> 1 | AO50: =Sortiment!A308 -> 1 | AP50: =Sortiment!A324 -> 1 | AQ50: =Sortiment!A340 -> 0 | AR50: =Sortiment!A356 -> 0 | AS50: =Sortiment!A372 -> 1 | AT50: =Sortiment!A388 -> 1 | AU50: =Sortiment!A404 -> 1 | AV50: =Sortiment!A420 -> 1 | AW50: =Sortiment!A436 -> 1 | AX50: =Sortiment!A452 -> 0 | AY50: 2000
B51: 2300 | C51: 0 | D51: 0 | E51: 0 | F51: 1950 | G51: 2229 | H51: 2496 | I51: 0 | J51: 0 | K51: 1656 | L51: 2079 | M51: 2466 | N51: 2820 | O51: 3144 | P51: 3719 | Q51: 2300 | S51: 2300 | T51: 0 | U51: 0 | V51: 0 | W51: 1950.4 | X51: 2228.7 | Y51: 2495.5 | Z51: 0 | AA51: 0 | AB51: 1656 | AC51: 2079.2 | AD51: 2465.6 | AE51: 2819.8 | AF51: 3144.1 | AG51: 3719.1 | AH51: 2300 | AJ51: 2300 | AK51: =Sortiment!A245 -> 0 | AL51: =Sortiment!A261 -> 0 | AM51: =Sortiment!A277 -> 0 | AN51: =Sortiment!A293 -> 0 | AO51: =Sortiment!A309 -> 0 | AP51: =Sortiment!A325 -> 0 | AQ51: =Sortiment!A341 -> 0 | AR51: =Sortiment!A357 -> 0 | AS51: =Sortiment!A373 -> 0 | AT51: =Sortiment!A389 -> 0 | AU51: =Sortiment!A405 -> 0 | AV51: =Sortiment!A421 -> 0 | AW51: =Sortiment!A437 -> 0 | AX51: =Sortiment!A453 -> 0 | AY51: 2300
B52: 2600 | C52: 0 | D52: 0 | E52: 0 | F52: 2205 | G52: 2519 | H52: 2821 | I52: 0 | J52: 0 | K52: 1872 | L52: 2350 | M52: 2787 | N52: 3188 | O52: 3554 | P52: 4204 | Q52: 2600 | S52: 2600 | T52: 0 | U52: 0 | V52: 0 | W52: 2204.8 | X52: 2519.4 | Y52: 2821 | Z52: 0 | AA52: 0 | AB52: 1872 | AC52: 2350.4 | AD52: 2787.2 | AE52: 3187.6 | AF52: 3554.2 | AG52: 4204.2 | AH52: 2600 | AJ52: 2600 | AK52: =Sortiment!A246 -> 0 | AL52: =Sortiment!A262 -> 0 | AM52: =Sortiment!A278 -> 0 | AN52: =Sortiment!A294 -> 0 | AO52: =Sortiment!A310 -> 0 | AP52: =Sortiment!A326 -> 0 | AQ52: =Sortiment!A342 -> 0 | AR52: =Sortiment!A358 -> 0 | AS52: =Sortiment!A374 -> 0 | AT52: =Sortiment!A390 -> 0 | AU52: =Sortiment!A406 -> 0 | AV52: =Sortiment!A422 -> 0 | AW52: =Sortiment!A438 -> 0 | AX52: =Sortiment!A454 -> 0 | AY52: 2600
B53: 3000 | C53: 0 | D53: 0 | E53: 0 | F53: 2544 | G53: 2907 | H53: 3255 | I53: 0 | J53: 0 | K53: 2160 | L53: 2712 | M53: 3216 | N53: 3678 | O53: 4101 | P53: 4851 | Q53: 3000 | S53: 3000 | T53: 0 | U53: 0 | V53: 0 | W53: 2544 | X53: 2907 | Y53: 3255 | Z53: 0 | AA53: 0 | AB53: 2160 | AC53: 2712 | AD53: 3216 | AE53: 3678 | AF53: 4101 | AG53: 4851 | AH53: 3000 | AJ53: 3000 | AK53: =Sortiment!A247 -> 0 | AL53: =Sortiment!A263 -> 0 | AM53: =Sortiment!A279 -> 0 | AN53: =Sortiment!A295 -> 0 | AO53: =Sortiment!A311 -> 0 | AP53: =Sortiment!A327 -> 0 | AQ53: =Sortiment!A343 -> 0 | AR53: =Sortiment!A359 -> 0 | AS53: =Sortiment!A375 -> 0 | AT53: =Sortiment!A391 -> 0 | AU53: =Sortiment!A407 -> 0 | AV53: =Sortiment!A423 -> 0 | AW53: =Sortiment!A439 -> 0 | AX53: =Sortiment!A455 -> 0 | AY53: 3000
B54: Height | E54: =V54 -> Typ | F54: =W54 -> 22 | L54: =AC54 -> Typ | M54: =AD54 -> 33 | Q54: Height | S54: Height | V54: =V12 -> Typ | W54: =W12 -> 22 | AC54: =AC12 -> Typ | AD54: =AD12 -> 33 | AH54: Height | AJ54: Height | AM54: Type | AN54: 22 | AT54: Type | AU54: 33 | AY54: Height
B55: Length | C55: =T55 -> 200 | D55: =U55 -> 300 | E55: 400 | F55: 500 | G55: 600 | H55: 700 | I55: 900 | J55: =AA55 -> 200 | K55: =AB55 -> 300 | L55: =AC55 -> 400 | M55: =AD55 -> 500 | N55: =AE55 -> 600 | O55: =AF55 -> 700 | P55: =AG55 -> 900 | Q55: Length | S55: length | T55: =T13 -> 200 | U55: =U13 -> 300 | V55: =V13 -> 400 | W55: =W13 -> 500 | X55: =X13 -> 600 | Y55: =Y13 -> 700 | Z55: =Z13 -> 900 | AA55: =AA13 -> 200 | AB55: =AB13 -> 300 | AC55: =AC13 -> 400 | AD55: =AD13 -> 500 | AE55: =AE13 -> 600 | AF55: =AF13 -> 700 | AG55: =AG13 -> 900 | AH55: length | AJ55: length | AK55: =T55 -> 200 | AL55: 300 | AM55: 400 | AN55: 500 | AO55: 600 | AP55: 700 | AQ55: 900 | AR55: 200 | AS55: 300 | AT55: 400 | AU55: 500 | AV55: 600 | AW55: 700 | AX55: 900 | AY55: length
B56: 400 | C56: =IF(OR(model="V0P00",model="V0L00"),T114,IF(($G$14-20)/($F$14-20)<0.7,ROUND((((($F$14-$G$14)/(LN(($F$14-$H$14)/($G$14-$H$14))))/const)^T$14)*T56,0),ROUND(((((($F$14+$G$14)/2)-$H$14)/50)^T$14)*T56,0))) -> 0 | D56: =IF(OR(model="V0P00",model="V0L00"),U114,IF(($G$14-20)/($F$14-20)<0.7,ROUND((((($F$14-$G$14)/(LN(($F$14-$H$14)/($G$14-$H$14))))/const)^U$14)*U56,0),ROUND(((((($F$14+$G$14)/2)-$H$14)/50)^U$14)*U56,0))) -> 366 | E56: =IF(OR(model="V0P00",model="V0L00"),V114,IF(($G$14-20)/($F$14-20)<0.7,ROUND((((($F$14-$G$14)/(LN(($F$14-$H$14)/($G$14-$H$14))))/const)^V$14)*V56,0),ROUND(((((($F$14+$G$14)/2)-$H$14)/50)^V$14)*V56,0))) -> 466 | F56: =IF(OR(model="V0P00",model="V0L00"),W114,IF(($G$14-20)/($F$14-20)<0.7,ROUND((((($F$14-$G$14)/(LN(($F$14-$H$14)/($G$14-$H$14))))/const)^W$14)*W56,0),ROUND(((((($F$14+$G$14)/2)-$H$14)/50)^W$14)*W56,0))) -> 560 | G56: =IF(OR(model="V0P00",model="V0L00"),X114,IF(($G$14-20)/($F$14-20)<0.7,ROUND((((($F$14-$G$14)/(LN(($F$14-$H$14)/($G$14-$H$14))))/const)^X$14)*X56,0),ROUND(((((($F$14+$G$14)/2)-$H$14)/50)^X$14)*X56,0))) -> 648 | H56: =IF(OR(model="V0P00",model="V0L00"),Y114,IF(($G$14-20)/($F$14-20)<0.7,ROUND((((($F$14-$G$14)/(LN(($F$14-$H$14)/($G$14-$H$14))))/const)^Y$14)*Y56,0),ROUND(((((($F$14+$G$14)/2)-$H$14)/50)^Y$14)*Y56,0))) -> 732 | I56: =IF(OR(model="V0P00",model="V0L00"),Z114,IF(($G$14-20)/($F$14-20)<0.7,ROUND((((($F$14-$G$14)/(LN(($F$14-$H$14)/($G$14-$H$14))))/const)^Z$14)*Z56,0),ROUND(((((($F$14+$G$14)/2)-$H$14)/50)^Z$14)*Z56,0))) -> 886 | J56: =IF(OR(model="V0P00",model="V0L00"),AA114,IF(($G$14-20)/($F$14-20)<0.7,ROUND((((($F$14-$G$14)/(LN(($F$14-$H$14)/($G$14-$H$14))))/const)^AA$14)*AA56,0),ROUND(((((($F$14+$G$14)/2)-$H$14)/50)^AA$14)*AA56,0))) -> 0 | K56: =IF(OR(model="V0P00",model="V0L00"),AB114,IF(($G$14-20)/($F$14-20)<0.7,ROUND((((($F$14-$G$14)/(LN(($F$14-$H$14)/($G$14-$H$14))))/const)^AB$14)*AB56,0),ROUND(((((($F$14+$G$14)/2)-$H$14)/50)^AB$14)*AB56,0))) -> 535 | L56: =IF(OR(model="V0P00",model="V0L00"),AC114,IF(($G$14-20)/($F$14-20)<0.7,ROUND((((($F$14-$G$14)/(LN(($F$14-$H$14)/($G$14-$H$14))))/const)^AC$14)*AC56,0),ROUND(((((($F$14+$G$14)/2)-$H$14)/50)^AC$14)*AC56,0))) -> 676 | M56: =IF(OR(model="V0P00",model="V0L00"),AD114,IF(($G$14-20)/($F$14-20)<0.7,ROUND((((($F$14-$G$14)/(LN(($F$14-$H$14)/($G$14-$H$14))))/const)^AD$14)*AD56,0),ROUND(((((($F$14+$G$14)/2)-$H$14)/50)^AD$14)*AD56,0))) -> 809 | N56: =IF(OR(model="V0P00",model="V0L00"),AE114,IF(($G$14-20)/($F$14-20)<0.7,ROUND((((($F$14-$G$14)/(LN(($F$14-$H$14)/($G$14-$H$14))))/const)^AE$14)*AE56,0),ROUND(((((($F$14+$G$14)/2)-$H$14)/50)^AE$14)*AE56,0))) -> 936 | O56: =IF(OR(model="V0P00",model="V0L00"),AF114,IF(($G$14-20)/($F$14-20)<0.7,ROUND((((($F$14-$G$14)/(LN(($F$14-$H$14)/($G$14-$H$14))))/const)^AF$14)*AF56,0),ROUND(((((($F$14+$G$14)/2)-$H$14)/50)^AF$14)*AF56,0))) -> 1059 | P56: =IF(OR(model="V0P00",model="V0L00"),AG114,IF(($G$14-20)/($F$14-20)<0.7,ROUND((((($F$14-$G$14)/(LN(($F$14-$H$14)/($G$14-$H$14))))/const)^AG$14)*AG56,0),ROUND(((((($F$14+$G$14)/2)-$H$14)/50)^AG$14)*AG56,0))) -> 1292 | Q56: 400 | S56: =IF(OR($T$3="5CH00",$T$3="6CH00"),B56+4,B56) -> 400 | T56: =T$15*$S56/1000 -> 0 | U56: 365.6 | V56: 466 | W56: 560 | X56: 648.4 | Y56: 732 | Z56: 886 | AA56: 0 | AB56: 534.8 | AC56: 675.6 | AD56: 808.8 | AE56: 936.4 | AF56: 1059.2 | AG56: 1292.4 | AH56: =IF(OR($T$3="5CH00",$T$3="6CH00"),Q56+4,Q56) -> 400 | AJ56: 400 | AK56: =Sortiment!A456 -> 0 | AL56: =Sortiment!A472 -> 0 | AM56: =Sortiment!A488 -> 0 | AN56: =Sortiment!A504 -> 0 | AO56: =Sortiment!A520 -> 0 | AP56: =Sortiment!A536 -> 0 | AQ56: =Sortiment!A552 -> 0 | AR56: =Sortiment!A568 -> 0 | AS56: =Sortiment!A584 -> 0 | AT56: =Sortiment!A600 -> 0 | AU56: =Sortiment!A616 -> 0 | AV56: =Sortiment!A632 -> 0 | AW56: =Sortiment!A648 -> 0 | AX56: =Sortiment!A664 -> 0 | AY56: 400
B57: 500 | C57: 0 | D57: 457 | E57: 583 | F57: 700 | G57: 811 | H57: 915 | I57: 1108 | J57: 0 | K57: 669 | L57: 845 | M57: 1011 | N57: 1171 | O57: 1324 | P57: 1616 | Q57: 500 | S57: =IF(OR($T$3="5CH00",$T$3="6CH00"),B57+4,B57) -> 500 | T57: 0 | U57: 457 | V57: 582.5 | W57: 700 | X57: 810.5 | Y57: 915 | Z57: 1107.5 | AA57: 0 | AB57: 668.5 | AC57: 844.5 | AD57: 1011 | AE57: 1170.5 | AF57: 1324 | AG57: 1615.5 | AH57: =IF(OR($T$3="5CH00",$T$3="6CH00"),Q57+4,Q57) -> 500 | AJ57: 500 | AK57: =Sortiment!A457 -> 0 | AL57: =Sortiment!A473 -> 1 | AM57: =Sortiment!A489 -> 1 | AN57: =Sortiment!A505 -> 1 | AO57: =Sortiment!A521 -> 1 | AP57: =Sortiment!A537 -> 1 | AQ57: =Sortiment!A553 -> 1 | AR57: =Sortiment!A569 -> 0 | AS57: =Sortiment!A585 -> 0 | AT57: =Sortiment!A601 -> 0 | AU57: =Sortiment!A617 -> 1 | AV57: =Sortiment!A633 -> 1 | AW57: =Sortiment!A649 -> 1 | AX57: =Sortiment!A665 -> 1 | AY57: 500
B58: 600 | C58: 0 | D58: 548 | E58: 699 | F58: 840 | G58: 973 | H58: 1098 | I58: 1329 | J58: 0 | K58: 802 | L58: 1013 | M58: 1213 | N58: 1405 | O58: 1589 | P58: 1939 | Q58: 600 | S58: 600 | T58: 0 | U58: 548.4 | V58: 699 | W58: 840 | X58: 972.6 | Y58: 1098 | Z58: 1329 | AA58: 0 | AB58: 802.2 | AC58: 1013.4 | AD58: 1213.2 | AE58: 1404.6 | AF58: 1588.8 | AG58: 1938.6 | AH58: 600 | AJ58: 600 | AK58: =Sortiment!A458 -> 0 | AL58: =Sortiment!A474 -> 1 | AM58: =Sortiment!A490 -> 1 | AN58: =Sortiment!A506 -> 1 | AO58: =Sortiment!A522 -> 1 | AP58: =Sortiment!A538 -> 1 | AQ58: =Sortiment!A554 -> 1 | AR58: =Sortiment!A570 -> 0 | AS58: =Sortiment!A586 -> 0 | AT58: =Sortiment!A602 -> 0 | AU58: =Sortiment!A618 -> 1 | AV58: =Sortiment!A634 -> 1 | AW58: =Sortiment!A650 -> 1 | AX58: =Sortiment!A666 -> 1 | AY58: 600
B59: 700 | C59: 0 | D59: 640 | E59: 816 | F59: 980 | G59: 1135 | H59: 1281 | I59: 1551 | J59: 0 | K59: 936 | L59: 1182 | M59: 1415 | N59: 1639 | O59: 1854 | P59: 2262 | Q59: 700 | S59: 700 | T59: 0 | U59: 639.8 | V59: 815.5 | W59: 980 | X59: 1134.7 | Y59: 1281 | Z59: 1550.5 | AA59: 0 | AB59: 935.9 | AC59: 1182.3 | AD59: 1415.4 | AE59: 1638.7 | AF59: 1853.6 | AG59: 2261.7 | AH59: 700 | AJ59: 700 | AK59: =Sortiment!A459 -> 0 | AL59: =Sortiment!A475 -> 1 | AM59: =Sortiment!A491 -> 1 | AN59: =Sortiment!A507 -> 1 | AO59: =Sortiment!A523 -> 1 | AP59: =Sortiment!A539 -> 1 | AQ59: =Sortiment!A555 -> 1 | AR59: =Sortiment!A571 -> 0 | AS59: =Sortiment!A587 -> 0 | AT59: =Sortiment!A603 -> 0 | AU59: =Sortiment!A619 -> 1 | AV59: =Sortiment!A635 -> 1 | AW59: =Sortiment!A651 -> 1 | AX59: =Sortiment!A667 -> 1 | AY59: 700
B60: 800 | C60: 0 | D60: 731 | E60: 932 | F60: 1120 | G60: 1297 | H60: 1464 | I60: 1772 | J60: 0 | K60: 1070 | L60: 1351 | M60: 1618 | N60: 1873 | O60: 2118 | P60: 2585 | Q60: 800 | S60: 800 | T60: 0 | U60: 731.2 | V60: 932 | W60: 1120 | X60: 1296.8 | Y60: 1464 | Z60: 1772 | AA60: 0 | AB60: 1069.6 | AC60: 1351.2 | AD60: 1617.6 | AE60: 1872.8 | AF60: 2118.4 | AG60: 2584.8 | AH60: 800 | AJ60: 800 | AK60: =Sortiment!A460 -> 0 | AL60: =Sortiment!A476 -> 1 | AM60: =Sortiment!A492 -> 1 | AN60: =Sortiment!A508 -> 1 | AO60: =Sortiment!A524 -> 1 | AP60: =Sortiment!A540 -> 1 | AQ60: =Sortiment!A556 -> 1 | AR60: =Sortiment!A572 -> 0 | AS60: =Sortiment!A588 -> 1 | AT60: =Sortiment!A604 -> 1 | AU60: =Sortiment!A620 -> 1 | AV60: =Sortiment!A636 -> 1 | AW60: =Sortiment!A652 -> 1 | AX60: =Sortiment!A668 -> 1 | AY60: 800
B61: 900 | C61: 0 | D61: 823 | E61: 1049 | F61: 1260 | G61: 1459 | H61: 1647 | I61: 1994 | J61: 0 | K61: 1203 | L61: 1520 | M61: 1820 | N61: 2107 | O61: 2383 | P61: 2908 | Q61: 900 | S61: 900 | T61: 0 | U61: 822.6 | V61: 1048.5 | W61: 1260 | X61: 1458.9 | Y61: 1647 | Z61: 1993.5 | AA61: 0 | AB61: 1203.3 | AC61: 1520.1 | AD61: 1819.8 | AE61: 2106.9 | AF61: 2383.2 | AG61: 2907.9 | AH61: 900 | AJ61: 900 | AK61: =Sortiment!A461 -> 0 | AL61: =Sortiment!A477 -> 1 | AM61: =Sortiment!A493 -> 1 | AN61: =Sortiment!A509 -> 1 | AO61: =Sortiment!A525 -> 1 | AP61: =Sortiment!A541 -> 1 | AQ61: =Sortiment!A557 -> 1 | AR61: =Sortiment!A573 -> 0 | AS61: =Sortiment!A589 -> 1 | AT61: =Sortiment!A605 -> 1 | AU61: =Sortiment!A621 -> 1 | AV61: =Sortiment!A637 -> 1 | AW61: =Sortiment!A653 -> 1 | AX61: =Sortiment!A669 -> 1 | AY61: 900
B62: 1000 | C62: 0 | D62: 914 | E62: 1165 | F62: 1400 | G62: 1621 | H62: 1830 | I62: 2215 | J62: 0 | K62: 1337 | L62: 1689 | M62: 2022 | N62: 2341 | O62: 2648 | P62: 3231 | Q62: 1000 | S62: 1000 | T62: 0 | U62: 914 | V62: 1165 | W62: 1400 | X62: 1621 | Y62: 1830 | Z62: 2215 | AA62: 0 | AB62: 1337 | AC62: 1689 | AD62: 2022 | AE62: 2341 | AF62: 2648 | AG62: 3231 | AH62: 1000 | AJ62: 1000 | AK62: =Sortiment!A462 -> 0 | AL62: =Sortiment!A478 -> 1 | AM62: =Sortiment!A494 -> 1 | AN62: =Sortiment!A510 -> 1 | AO62: =Sortiment!A526 -> 1 | AP62: =Sortiment!A542 -> 1 | AQ62: =Sortiment!A558 -> 1 | AR62: =Sortiment!A574 -> 0 | AS62: =Sortiment!A590 -> 1 | AT62: =Sortiment!A606 -> 1 | AU62: =Sortiment!A622 -> 1 | AV62: =Sortiment!A638 -> 1 | AW62: =Sortiment!A654 -> 1 | AX62: =Sortiment!A670 -> 1 | AY62: 1000
B63: 1100 | C63: 0 | D63: 1005 | E63: 1282 | F63: 1540 | G63: 1783 | H63: 2013 | I63: 2437 | J63: 0 | K63: 1471 | L63: 1858 | M63: 2224 | N63: 2575 | O63: 2913 | P63: 3554 | Q63: 1100 | S63: 1100 | T63: 0 | U63: 1005.4 | V63: 1281.5 | W63: 1540 | X63: 1783.1 | Y63: 2013 | Z63: 2436.5 | AA63: 0 | AB63: 1470.7 | AC63: 1857.9 | AD63: 2224.2 | AE63: 2575.1 | AF63: 2912.8 | AG63: 3554.1 | AH63: 1100 | AJ63: 1100 | AK63: =Sortiment!A463 -> 0 | AL63: =Sortiment!A479 -> 1 | AM63: =Sortiment!A495 -> 1 | AN63: =Sortiment!A511 -> 1 | AO63: =Sortiment!A527 -> 1 | AP63: =Sortiment!A543 -> 1 | AQ63: =Sortiment!A559 -> 1 | AR63: =Sortiment!A575 -> 0 | AS63: =Sortiment!A591 -> 1 | AT63: =Sortiment!A607 -> 1 | AU63: =Sortiment!A623 -> 1 | AV63: =Sortiment!A639 -> 1 | AW63: =Sortiment!A655 -> 1 | AX63: =Sortiment!A671 -> 1 | AY63: 1100
B64: 1200 | C64: 0 | D64: 1097 | E64: 1398 | F64: 1680 | G64: 1945 | H64: 2196 | I64: 2658 | J64: 0 | K64: 1604 | L64: 2027 | M64: 2426 | N64: 2809 | O64: 3178 | P64: 3877 | Q64: 1200 | S64: 1200 | T64: 0 | U64: 1096.8 | V64: 1398 | W64: 1680 | X64: 1945.2 | Y64: 2196 | Z64: 2658 | AA64: 0 | AB64: 1604.4 | AC64: 2026.8 | AD64: 2426.4 | AE64: 2809.2 | AF64: 3177.6 | AG64: 3877.2 | AH64: 1200 | AJ64: 1200 | AK64: =Sortiment!A464 -> 0 | AL64: =Sortiment!A480 -> 1 | AM64: =Sortiment!A496 -> 1 | AN64: =Sortiment!A512 -> 1 | AO64: =Sortiment!A528 -> 1 | AP64: =Sortiment!A544 -> 1 | AQ64: =Sortiment!A560 -> 1 | AR64: =Sortiment!A576 -> 0 | AS64: =Sortiment!A592 -> 1 | AT64: =Sortiment!A608 -> 1 | AU64: =Sortiment!A624 -> 1 | AV64: =Sortiment!A640 -> 1 | AW64: =Sortiment!A656 -> 1 | AX64: =Sortiment!A672 -> 1 | AY64: 1200
B65: 1400 | C65: 0 | D65: 1280 | E65: 1631 | F65: 1960 | G65: 2269 | H65: 2562 | I65: 3101 | J65: 0 | K65: 1872 | L65: 2365 | M65: 2831 | N65: 3277 | O65: 3707 | P65: 4523 | Q65: 1400 | S65: 1400 | T65: 0 | U65: 1279.6 | V65: 1631 | W65: 1960 | X65: 2269.4 | Y65: 2562 | Z65: 3101 | AA65: 0 | AB65: 1871.8 | AC65: 2364.6 | AD65: 2830.8 | AE65: 3277.4 | AF65: 3707.2 | AG65: 4523.4 | AH65: 1400 | AJ65: 1400 | AK65: =Sortiment!A465 -> 0 | AL65: =Sortiment!A481 -> 1 | AM65: =Sortiment!A497 -> 1 | AN65: =Sortiment!A513 -> 1 | AO65: =Sortiment!A529 -> 1 | AP65: =Sortiment!A545 -> 1 | AQ65: =Sortiment!A561 -> 1 | AR65: =Sortiment!A577 -> 0 | AS65: =Sortiment!A593 -> 1 | AT65: =Sortiment!A609 -> 1 | AU65: =Sortiment!A625 -> 1 | AV65: =Sortiment!A641 -> 1 | AW65: =Sortiment!A657 -> 1 | AX65: =Sortiment!A673 -> 1 | AY65: 1400
B66: 1600 | C66: 0 | D66: 1462 | E66: 1864 | F66: 2240 | G66: 2594 | H66: 2928 | I66: 3544 | J66: 0 | K66: 2139 | L66: 2702 | M66: 3235 | N66: 3746 | O66: 4237 | P66: 5170 | Q66: 1600 | S66: 1600 | T66: =T$15*$S66/1000 -> 0 | U66: 1462.4 | V66: 1864 | W66: 2240 | X66: 2593.6 | Y66: 2928 | Z66: 3544 | AA66: 0 | AB66: 2139.2 | AC66: 2702.4 | AD66: 3235.2 | AE66: 3745.6 | AF66: 4236.8 | AG66: 5169.6 | AH66: 1600 | AJ66: 1600 | AK66: =Sortiment!A466 -> 0 | AL66: =Sortiment!A482 -> 1 | AM66: =Sortiment!A498 -> 1 | AN66: =Sortiment!A514 -> 1 | AO66: =Sortiment!A530 -> 1 | AP66: =Sortiment!A546 -> 1 | AQ66: =Sortiment!A562 -> 1 | AR66: =Sortiment!A578 -> 0 | AS66: =Sortiment!A594 -> 1 | AT66: =Sortiment!A610 -> 1 | AU66: =Sortiment!A626 -> 1 | AV66: =Sortiment!A642 -> 1 | AW66: =Sortiment!A658 -> 1 | AX66: =Sortiment!A674 -> 1 | AY66: 1600
B67: 1800 | C67: 0 | D67: 1645 | E67: 2097 | F67: 2520 | G67: 2918 | H67: 3294 | I67: 3987 | J67: 0 | K67: 2407 | L67: 3040 | M67: 3640 | N67: 4214 | O67: 4766 | P67: 5816 | Q67: 1800 | S67: 1800 | T67: 0 | U67: 1645.2 | V67: 2097 | W67: 2520 | X67: 2917.8 | Y67: 3294 | Z67: 3987 | AA67: 0 | AB67: 2406.6 | AC67: 3040.2 | AD67: 3639.6 | AE67: 4213.8 | AF67: 4766.4 | AG67: 5815.8 | AH67: 1800 | AJ67: 1800 | AK67: =Sortiment!A467 -> 0 | AL67: =Sortiment!A483 -> 1 | AM67: =Sortiment!A499 -> 1 | AN67: =Sortiment!A515 -> 1 | AO67: =Sortiment!A531 -> 1 | AP67: =Sortiment!A547 -> 1 | AQ67: =Sortiment!A563 -> 0 | AR67: =Sortiment!A579 -> 0 | AS67: =Sortiment!A595 -> 1 | AT67: =Sortiment!A611 -> 1 | AU67: =Sortiment!A627 -> 1 | AV67: =Sortiment!A643 -> 1 | AW67: =Sortiment!A659 -> 1 | AX67: =Sortiment!A675 -> 0 | AY67: 1800
B68: 2000 | C68: 0 | D68: 1828 | E68: 2330 | F68: 2800 | G68: 3242 | H68: 3660 | I68: 4430 | J68: 0 | K68: 2674 | L68: 3378 | M68: 4044 | N68: 4682 | O68: 5296 | P68: 6462 | Q68: 2000 | S68: 2000 | T68: 0 | U68: 1828 | V68: 2330 | W68: 2800 | X68: 3242 | Y68: 3660 | Z68: 4430 | AA68: 0 | AB68: 2674 | AC68: 3378 | AD68: 4044 | AE68: 4682 | AF68: 5296 | AG68: 6462 | AH68: 2000 | AJ68: 2000 | AK68: =Sortiment!A468 -> 0 | AL68: =Sortiment!A484 -> 1 | AM68: =Sortiment!A500 -> 1 | AN68: =Sortiment!A516 -> 1 | AO68: =Sortiment!A532 -> 1 | AP68: =Sortiment!A548 -> 1 | AQ68: =Sortiment!A564 -> 0 | AR68: =Sortiment!A580 -> 0 | AS68: =Sortiment!A596 -> 1 | AT68: =Sortiment!A612 -> 1 | AU68: =Sortiment!A628 -> 1 | AV68: =Sortiment!A644 -> 1 | AW68: =Sortiment!A660 -> 1 | AX68: =Sortiment!A676 -> 0 | AY68: 2000
B69: 2300 | C69: 0 | D69: 2102 | E69: 2680 | F69: 3220 | G69: 3728 | H69: 4209 | I69: 5095 | J69: 0 | K69: 3075 | L69: 3885 | M69: 4651 | N69: 5384 | O69: 6090 | P69: 7431 | Q69: 2300 | S69: 2300 | T69: 0 | U69: 2102.2 | V69: 2679.5 | W69: 3220 | X69: 3728.3 | Y69: 4209 | Z69: 5094.5 | AA69: 0 | AB69: 3075.1 | AC69: 3884.7 | AD69: 4650.6 | AE69: 5384.3 | AF69: 6090.4 | AG69: 7431.3 | AH69: 2300 | AJ69: 2300 | AK69: =Sortiment!A469 -> 0 | AL69: =Sortiment!A485 -> 0 | AM69: =Sortiment!A501 -> 0 | AN69: =Sortiment!A517 -> 0 | AO69: =Sortiment!A533 -> 0 | AP69: =Sortiment!A549 -> 0 | AQ69: =Sortiment!A565 -> 0 | AR69: =Sortiment!A581 -> 0 | AS69: =Sortiment!A597 -> 0 | AT69: =Sortiment!A613 -> 0 | AU69: =Sortiment!A629 -> 0 | AV69: =Sortiment!A645 -> 0 | AW69: =Sortiment!A661 -> 0 | AX69: =Sortiment!A677 -> 0 | AY69: 2300
B70: 2600 | C70: 0 | D70: 2376 | E70: 3029 | F70: 3640 | G70: 4215 | H70: 4758 | I70: 5759 | J70: 0 | K70: 3476 | L70: 4391 | M70: 5257 | N70: 6087 | O70: 6885 | P70: 8401 | Q70: 2600 | S70: 2600 | T70: 0 | U70: 2376.4 | V70: 3029 | W70: 3640 | X70: 4214.6 | Y70: 4758 | Z70: 5759 | AA70: 0 | AB70: 3476.2 | AC70: 4391.4 | AD70: 5257.2 | AE70: 6086.6 | AF70: 6884.8 | AG70: 8400.6 | AH70: 2600 | AJ70: 2600 | AK70: =Sortiment!A470 -> 0 | AL70: =Sortiment!A486 -> 0 | AM70: =Sortiment!A502 -> 0 | AN70: =Sortiment!A518 -> 0 | AO70: =Sortiment!A534 -> 0 | AP70: =Sortiment!A550 -> 0 | AQ70: =Sortiment!A566 -> 0 | AR70: =Sortiment!A582 -> 0 | AS70: =Sortiment!A598 -> 0 | AT70: =Sortiment!A614 -> 0 | AU70: =Sortiment!A630 -> 0 | AV70: =Sortiment!A646 -> 0 | AW70: =Sortiment!A662 -> 0 | AX70: =Sortiment!A678 -> 0 | AY70: 2600
B71: 3000 | C71: 0 | D71: 2742 | E71: 3495 | F71: 4200 | G71: 4863 | H71: 5490 | I71: 6645 | J71: 0 | K71: 4011 | L71: 5067 | M71: 6066 | N71: 7023 | O71: 7944 | P71: 9693 | Q71: 3000 | S71: 3000 | T71: 0 | U71: 2742 | V71: 3495 | W71: 4200 | X71: 4863 | Y71: 5490 | Z71: 6645 | AA71: 0 | AB71: 4011 | AC71: 5067 | AD71: 6066 | AE71: 7023 | AF71: 7944 | AG71: 9693 | AH71: 3000 | AJ71: 3000 | AK71: =Sortiment!A471 -> 0 | AL71: =Sortiment!A487 -> 0 | AM71: =Sortiment!A503 -> 0 | AN71: =Sortiment!A519 -> 0 | AO71: =Sortiment!A535 -> 0 | AP71: =Sortiment!A551 -> 0 | AQ71: =Sortiment!A567 -> 0 | AR71: =Sortiment!A583 -> 0 | AS71: =Sortiment!A599 -> 0 | AT71: =Sortiment!A615 -> 0 | AU71: =Sortiment!A631 -> 0 | AV71: =Sortiment!A647 -> 0 | AW71: =Sortiment!A663 -> 0 | AX71: =Sortiment!A679 -> 0 | AY71: 3000
S75: VÝKONY HORIZONTÁLNÍ RADIK VERTIKAL
S76: Height | T76: =T18 -> 0 | U76: =U18 -> 0 | V76: Typ | W76: 0 | X76: 0 | Y76: 0 | Z76: 0 | AA76: 0 | AB76: 0 | AC76: Typ | AD76: 11 | AE76: 0 | AF76: 0 | AG76: 0 | AH76: Height
S77: Length | T77: 1400 | U77: 1600 | V77: 1800 | W77: 2000 | X77: 2200 | Y77: 2400 | Z77: 2600 | AA77: 1400 | AB77: 1600 | AC77: 1800 | AD77: 2000 | AE77: 2200 | AF77: 2400 | AG77: 2600 | AH77: Length
S78: 400 | U78: =U141 -> 602 | V78: =V141 -> 661 | W78: 717 | AH78: 400
S79: 500 | AH79: 500
S80: 600 | U80: =U143 -> 829 | V80: 909 | W80: 986 | AH80: 600
S81: 700 | AH81: 700
S82: 800 | AH82: 800
S83: 900 | U83: =U144 -> 1141 | V83: =V144 -> 1252 | W83: 1358 | AH83: 900
S84: 1000 | AH84: 1000
S85: 1100 | AH85: 1100
S86: 1200 | AH86: 1200
S87: 1400 | AH87: 1400
S88: 1600 | AH88: 1600
S89: 1800 | AH89: 1800
S90: 2000 | AH90: 2000
S91: 2300 | AH91: 2300
S92: 2600 | AH92: 2600
S93: 3000 | AH93: 3000
S94: Height | T94: =T36 -> 0 | U94: =U36 -> 0 | V94: Typ | W94: 20 | X94: 0 | Y94: 0 | Z94: 0 | AA94: 0 | AB94: 0 | AC94: Typ | AD94: 21 | AE94: 0 | AF94: 0 | AG94: 0 | AH94: Height
S95: Length | T95: 1400 | U95: 1600 | V95: 1800 | W95: 2000 | X95: 2200 | Y95: 2400 | Z95: 2600 | AA95: 1400 | AB95: 1600 | AC95: 1800 | AD95: 2000 | AE95: 2200 | AF95: 2400 | AG95: 2600 | AH95: Length
S96: 400 | U96: =Z141 -> 847 | V96: =AA141 -> 927 | W96: =AB141 -> 1004 | AH96: 400
S97: 500 | AH97: 500
S98: 600 | U98: =Z143 -> 1185 | V98: =AA143 -> 1297 | W98: =AB143 -> 1404 | AH98: 600
S99: 700 | AH99: 700
S100: 800 | AH100: 800
S101: 900 | U101: =Z144 -> 1659 | V101: =AA144 -> 1815 | W101: =AB144 -> 1965 | AH101: 900
S102: 1000 | AH102: 1000
S103: 1100 | AH103: 1100
S104: 1200 | AH104: 1200
S105: 1400 | AH105: 1400
S106: 1600 | AH106: 1600
S107: 1800 | AH107: 1800
S108: 2000 | AH108: 2000
S109: 2300 | AH109: 2300
S110: 2600 | AH110: 2600
S111: 3000 | AH111: 3000
S112: Height | T112: =T54 -> 0 | U112: =U54 -> 0 | V112: Typ | W112: 22 | X112: 0 | Y112: 0 | Z112: 0 | AA112: 0 | AB112: 0 | AC112: Typ | AD112: 33 | AE112: 0 | AF112: 0 | AG112: 0 | AH112: Height
S113: Length | T113: 1400 | U113: 1600 | V113: 1800 | W113: 2000 | X113: 2200 | Y113: 2400 | Z113: 2600 | AA113: 1400 | AB113: 1600 | AC113: 1800 | AD113: 2000 | AE113: 2200 | AF113: 2400 | AG113: 2600 | AH113: Length
S114: 400 | AH114: 400
S115: 500 | AH115: 500
S116: 600 | AH116: 600
S117: 700 | AH117: 700
S118: 800 | AH118: 800
S119: 900 | AH119: 900
S120: 1000 | AH120: 1000
S121: 1100 | AH121: 1100
S122: 1200 | AH122: 1200
S123: 1400 | AH123: 1400
S124: 1600 | AH124: 1600
S125: 1800 | AH125: 1800
S126: 2000 | AH126: 2000
S127: 2300 | AH127: 2300
S128: 2600 | AH128: 2600
S129: 3000 | AH129: 3000
S135: RADIK PLAN VERTIKAL - M, RADIK LINE VERTIKAL - M
S136: FINÁLNÍ VÝKONY
S137: Qn | T137: Typ 10 | Y137: Typ 20 | AD137: Qn
S138: Délka L | T138: Výška H [mm] | Y138: Výška H [mm] | AD138: Délka L
S139: [mm] | T139: 1400 | U139: 1600 | V139: 1800 | W139: 2000 | X139: 2300 | Y139: 1400 | Z139: 1600 | AA139: 1800 | AB139: 2000 | AC139: 2300 | AD139: [mm]
S140: 300 | T140: =IF(($G$14-20)/($F$14-20)<0.7,ROUND((((($F$14-$G$14)/(LN(($F$14-$H$14)/($G$14-$H$14))))/const)^T$160)*T151,0),ROUND(((((($F$14+$G$14)/2)-$H$14)/50)^T$160)*T151,0)) -> 432 | U140: 480 | V140: 527 | W140: 571 | X140: 635 | Y140: 602 | Z140: 667 | AA140: 730 | AB140: 791 | AC140: 878 | AD140: 300
S141: 400 | T141: =IF(($G$14-20)/($F$14-20)<0.7,ROUND((((($F$14-$G$14)/(LN(($F$14-$H$14)/($G$14-$H$14))))/const)^T$160)*T152,0),ROUND(((((($F$14+$G$14)/2)-$H$14)/50)^T$160)*T152,0)) -> 542 | U141: 602 | V141: 661 | W141: 717 | X141: 797 | Y141: 764 | Z141: 847 | AA141: 927 | AB141: 1004 | AC141: 1115 | AD141: 400
S142: 500 | T142: =IF(($G$14-20)/($F$14-20)<0.7,ROUND((((($F$14-$G$14)/(LN(($F$14-$H$14)/($G$14-$H$14))))/const)^T$160)*T153,0),ROUND(((((($F$14+$G$14)/2)-$H$14)/50)^T$160)*T153,0)) -> 646 | U142: 718 | V142: 788 | W142: 854 | X142: 950 | Y142: 920 | Z142: 1019 | AA142: 1115 | AB142: 1208 | AC142: 1341 | AD142: 500
S143: 600 | T143: =IF(($G$14-20)/($F$14-20)<0.7,ROUND((((($F$14-$G$14)/(LN(($F$14-$H$14)/($G$14-$H$14))))/const)^T$160)*T154,0),ROUND(((((($F$14+$G$14)/2)-$H$14)/50)^T$160)*T154,0)) -> 746 | U143: 829 | V143: 909 | W143: 986 | X143: 1097 | Y143: 1070 | Z143: 1185 | AA143: 1297 | AB143: 1404 | AC143: 1560 | AD143: 600
S144: 900 | T144: =IF(($G$14-20)/($F$14-20)<0.7,ROUND((((($F$14-$G$14)/(LN(($F$14-$H$14)/($G$14-$H$14))))/const)^T$160)*T155,0),ROUND(((((($F$14+$G$14)/2)-$H$14)/50)^T$160)*T155,0)) -> 1027 | U144: 1141 | V144: 1252 | W144: 1358 | X144: 1510 | Y144: 1497 | Z144: 1659 | AA144: 1815 | AB144: 1965 | AC144: 2182 | AD144: 900
S147: VSTUPNÍ HODNOTY
S148: Qn | T148: Typ 10 | Y148: Typ 20 | AD148: Qn
S149: Délka L | T149: Výška H [mm] | Y149: Výška H [mm] | AD149: Délka L
S150: [mm] | T150: 1400 | U150: 1600 | V150: 1800 | W150: 2000 | X150: 2300 | Y150: 1400 | Z150: 1600 | AA150: 1800 | AB150: 2000 | AC150: 2300 | AD150: [mm]
S151: 300 | T151: 432 | U151: 480 | V151: 527 | W151: 571 | X151: 635 | Y151: 602 | Z151: 667 | AA151: 730 | AB151: 791 | AC151: 878 | AD151: 300
S152: 400 | T152: 542 | U152: 602 | V152: 661 | W152: 717 | X152: 797 | Y152: 764 | Z152: 847 | AA152: 927 | AB152: 1004 | AC152: 1115 | AD152: 400
S153: 500 | T153: 646 | U153: 718 | V153: 788 | W153: 854 | X153: 950 | Y153: 920 | Z153: 1019 | AA153: 1115 | AB153: 1208 | AC153: 1341 | AD153: 500
S154: 600 | T154: 746 | U154: 829 | V154: 909 | W154: 986 | X154: 1097 | Y154: 1070 | Z154: 1185 | AA154: 1297 | AB154: 1404 | AC154: 1560 | AD154: 600
S155: 900 | T155: 1027 | U155: 1141 | V155: 1252 | W155: 1358 | X155: 1510 | Y155: 1497 | Z155: 1659 | AA155: 1815 | AB155: 1965 | AC155: 2182 | AD155: 900
S157: n | T157: Typ 10 | Y157: Typ 20 | AD157: n
S158: Délka L | T158: Výška H [mm] | Y158: Výška H [mm] | AD158: Délka L
S159: [mm] | T159: 1400 | U159: 1600 | V159: 1800 | W159: 2000 | X159: 2300 | Y159: 1400 | Z159: 1600 | AA159: 1800 | AB159: 2000 | AC159: 2300 | AD159: [mm]
S160: 300 | T160: 1.2582 | U160: 1.247 | V160: 1.2359 | W160: 1.2293 | X160: 1.2194 | Y160: 1.3267 | Z160: 1.3222 | AA160: 1.3177 | AB160: 1.3117 | AC160: 1.3028 | AD160: 300
S161: 400 | T161: 1.2624 | U161: 1.2512 | V161: 1.24 | W161: 1.2334 | X161: 1.2234 | Y161: 1.3205 | Z161: 1.316 | AA161: 1.3115 | AB161: 1.3056 | AC161: 1.2967 | AD161: 400
S162: 500 | T162: 1.2665 | U162: 1.2553 | V162: 1.2441 | W162: 1.2374 | X162: 1.2275 | Y162: 1.3142 | Z162: 1.3098 | AA162: 1.3053 | AB162: 1.2994 | AC162: 1.2905 | AD162: 500
S163: 600 | T163: 1.2707 | U163: 1.2595 | V163: 1.2482 | W163: 1.2415 | X163: 1.2315 | Y163: 1.308 | Z163: 1.3036 | AA163: 1.2991 | AB163: 1.2932 | AC163: 1.2844 | AD163: 600
S164: 900 | T164: 1.275 | U164: 1.2637 | V164: 1.2524 | W164: 1.2457 | X164: 1.2356 | Y164: 1.3141 | Z164: 1.3097 | AA164: 1.3052 | AB164: 1.2993 | AC164: 1.2904 | AD164: 900

Sheet Výpočet Kv (hidden)
AL3: OK
AF4: dolní mez | AG4: 0.01 | AQ4: 1 | AR4: 2 | AS4: 3 | AT4: 4 | AU4: 5 | AV4: 6 | AW4: 7 | AX4: 8 | AY4: 9 | AZ4: 10 | BA4: 11 | BB4: 12 | BC4: 13 | BD4: 14 | BE4: 15 | BF4: 16 | BG4: 17 | BH4: 18 | BI4: 19 | BJ4: 20 | BK4: 21 | BL4: 22 | BM4: 23 | BN4: 24 | BO4: 25 | BP4: 26 | BQ4: 27 | BR4: 28 | BS4: 29 | BT4: 30 | BU4: 31 | BV4: 32 | BW4: 33 | BX4: 34 | BY4: 35 | BZ4: 36 | CA4: 37 | CB4: 38 | CC4: 39 | CD4: 40 | CE4: 41 | CF4: 42 | CG4: 43 | CH4: 44 | CI4: 45 | CJ4: 46 | CK4: 47 | CL4: 48 | CM4: 49 | CN4: 50 | CO4: 51 | CP4: 52 | CQ4: 53 | CR4: 54 | CS4: 55 | CT4: 56 | CU4: 57 | CV4: 58 | CW4: 59 | CX4: 60 | CY4: 61 | CZ4: 62 | DA4: 63 | DB4: 64 | DC4: 65 | DD4: 66 | DE4: 67 | DF4: 68 | DG4: 69 | DH4: 70 | DI4: 71 | DJ4: 72 | DK4: 73 | DL4: 74 | DM4: 75
AF5: horní mez | AG5: 0.75 | AL5: Kv | AM5: 0.47 | AQ5: 0.01 | AR5: 0.02 | AS5: 0.03 | AT5: 0.04 | AU5: 0.05 | AV5: 0.06 | AW5: 0.07 | AX5: 0.08 | AY5: 0.09 | AZ5: 0.1 | BA5: 0.11 | BB5: 0.12 | BC5: 0.13 | BD5: 0.14 | BE5: 0.15 | BF5: 0.16 | BG5: 0.17 | BH5: 0.18 | BI5: 0.19 | BJ5: 0.2 | BK5: 0.21 | BL5: 0.22 | BM5: 0.23 | BN5: 0.24 | BO5: 0.25 | BP5: 0.26 | BQ5: 0.27 | BR5: 0.28 | BS5: 0.29 | BT5: 0.3 | BU5: 0.31 | BV5: 0.32 | BW5: 0.33 | BX5: 0.34 | BY5: 0.35 | BZ5: 0.36 | CA5: 0.37 | CB5: 0.38 | CC5: 0.39 | CD5: 0.4 | CE5: 0.41 | CF5: 0.42 | CG5: 0.43 | CH5: 0.44 | CI5: 0.45 | CJ5: 0.46 | CK5: 0.47 | CL5: 0.48 | CM5: 0.49 | CN5: 0.5 | CO5: 0.51 | CP5: 0.52 | CQ5: 0.53 | CR5: 0.54 | CS5: 0.55 | CT5: 0.56 | CU5: 0.57 | CV5: 0.58 | CW5: 0.59 | CX5: 0.6 | CY5: 0.61 | CZ5: 0.62 | DA5: 0.63 | DB5: 0.64 | DC5: 0.65 | DD5: 0.66 | DE5: 0.67 | DF5: 0.68 | DG5: 0.69 | DH5: 0.7 | DI5: 0.71 | DJ5: 0.72 | DK5: 0.73 | DL5: 0.74 | DM5: 0.75
B6: =Výpočet!$U$3 -> RADIK LINE VKM8-L | AF6: ró | AG6: =1000-($C$10-4)*(0.097+0.0036*($C$10-4)) -> 974.9654 | AQ6: 1 | AR6: 1 | AS6: 1 | AT6: 1 | AU6: 1 | AV6: 1 | AW6: 1 | AX6: 1 | AY6: 1 | AZ6: 1 | BA6: 1 | BB6: 1 | BC6: 1 | BD6: 2 | BE6: 2 | BF6: 2 | BG6: 2 | BH6: 2 | BI6: 2 | BJ6: 2 | BK6: 2 | BL6: 2 | BM6: 3 | BN6: 3 | BO6: 3 | BP6: 3 | BQ6: 3 | BR6: 3 | BS6: 3 | BT6: 3 | BU6: 3 | BV6: 4 | BW6: 4 | BX6: 4 | BY6: 4 | BZ6: 4 | CA6: 4 | CB6: 4 | CC6: 5 | CD6: 5 | CE6: 5 | CF6: 5 | CG6: 5 | CH6: 5 | CI6: 5 | CJ6: 5 | CK6: 5 | CL6: 6 | CM6: 6 | CN6: 6 | CO6: 6 | CP6: 6 | CQ6: 6 | CR6: 6 | CS6: 6 | CT6: 6 | CU6: 6 | CV6: 7 | CW6: 7 | CX6: 7 | CY6: 7 | CZ6: 7 | DA6: 7 | DB6: 7 | DC6: 7 | DD6: 7 | DE6: 8 | DF6: 8 | DG6: 8 | DH6: 8 | DI6: 8 | DJ6: 8 | DK6: 8 | DL6: 8 | DM6: 8
AL7: pořadové číslo | AM7: =RANK(AM5,AQ5:DM5,1) -> 47
AL8: nastavení | AM8: =HLOOKUP(AM7,AQ4:DM6,3,FALSE) -> 5
C9: t 1 | D9: t 2 | E9: t i | F9: D T | G9: D p
C10: =Výstup!B16 -> 75 | D10: =Výstup!C16 -> 65 | E10: =Výstup!D16 -> 20 | F10: =(C10+D10)/2-E10 -> 50 | G10: =IF(Logic!$D$106=1,Výstup!G16,Výstup!G16/10) -> 10
G11: kPa
BS13: t 1 | BT13: t 2 | BU13: t i | BV13: D T
C14: 1 | D14: 2 | E14: 3 | F14: 4 | G14: 5 | H14: 6 | I14: 7 | J14: 8 | BO14: Průtok kg/h | BS14: =C10 -> 75 | BT14: =D10 -> 65 | BU14: =E10 -> 20 | BV14: =F10 -> 50
F16: =Výpočet!V18 -> Typ | G16: =Výpočet!W18 -> 0 | M16: =Výpočet!AC18 -> Typ | N16: =Výpočet!AD18 -> 11 | T16: Height | W16: =Výpočet!V18 -> Typ | X16: =Výpočet!W18 -> 0 | AD16: =Výpočet!AC18 -> Typ | AE16: =Výpočet!AD18 -> 11 | AI16: Height | AL16: =Výpočet!V36 -> Typ | AM16: =Výpočet!W36 -> 20 | AS16: =Výpočet!AC36 -> Typ | AT16: =Výpočet!AD36 -> 21 | AX16: Height | BA16: =Výpočet!V54 -> Typ | BB16: =Výpočet!W54 -> 22 | BH16: =Výpočet!AC54 -> Typ | BI16: =Výpočet!AD54 -> 33 | BM16: Height | BO16: Height | BR16: =Výpočet!V18 -> Typ | BS16: =Výpočet!W18 -> 0 | BY16: =Výpočet!AC18 -> Typ | BZ16: =Výpočet!AD18 -> 11 | CD16: Height
T17: Length | U17: =Výpočet!T19 -> 200 | V17: =Výpočet!U19 -> 300 | W17: =Výpočet!V19 -> 400 | X17: =Výpočet!W19 -> 500 | Y17: =Výpočet!X19 -> 600 | Z17: =Výpočet!Y19 -> 700 | AA17: =Výpočet!Z19 -> 900 | AB17: =Výpočet!AA19 -> 200 | AC17: =Výpočet!AB19 -> 300 | AD17: =Výpočet!AC19 -> 400 | AE17: =Výpočet!AD19 -> 500 | AF17: =Výpočet!AE19 -> 600 | AG17: =Výpočet!AF19 -> 700 | AH17: =Výpočet!AG19 -> 900 | AI17: Length | AJ17: =Výpočet!T37 -> 200 | AK17: =Výpočet!U37 -> 300 | AL17: =Výpočet!V37 -> 400 | AM17: =Výpočet!W37 -> 500 | AN17: =Výpočet!X37 -> 600 | AO17: =Výpočet!Y37 -> 700 | AP17: =Výpočet!Z37 -> 900 | AQ17: =Výpočet!AA37 -> 200 | AR17: =Výpočet!AB37 -> 300 | AS17: =Výpočet!AC37 -> 400 | AT17: =Výpočet!AD37 -> 500 | AU17: =Výpočet!AE37 -> 600 | AV17: =Výpočet!AF37 -> 700 | AW17: =Výpočet!AG37 -> 900 | AX17: Length | AY17: =Výpočet!T55 -> 200 | AZ17: =Výpočet!U55 -> 300 | BA17: =Výpočet!V55 -> 400 | BB17: =Výpočet!W55 -> 500 | BC17: =Výpočet!X55 -> 600 | BD17: =Výpočet!Y55 -> 700 | BE17: =Výpočet!Z55 -> 900 | BF17: =Výpočet!AA55 -> 200 | BG17: =Výpočet!AB55 -> 300 | BH17: =Výpočet!AC55 -> 400 | BI17: =Výpočet!AD55 -> 500 | BJ17: =Výpočet!AE55 -> 600 | BK17: =Výpočet!AF55 -> 700 | BL17: =Výpočet!AG55 -> 900 | BM17: Length | BO17: Length | BP17: =Výpočet!T19 -> 200 | BQ17: =Výpočet!U19 -> 300 | BR17: =Výpočet!V19 -> 400 | BS17: =Výpočet!W19 -> 500 | BT17: =Výpočet!X19 -> 600 | BU17: =Výpočet!Y19 -> 700 | BV17: =Výpočet!Z19 -> 900 | BW17: =Výpočet!AA19 -> 200 | BX17: =Výpočet!AB19 -> 300 | BY17: =Výpočet!AC19 -> 400 | BZ17: =Výpočet!AD19 -> 500 | CA17: =Výpočet!AE19 -> 600 | CB17: =Výpočet!AF19 -> 700 | CC17: =Výpočet!AG19 -> 900 | CD17: Length
C18: =Výpočet!T19 -> 200 | D18: =Výpočet!U19 -> 300 | E18: =Výpočet!V19 -> 400 | F18: =Výpočet!W19 -> 500 | G18: =Výpočet!X19 -> 600 | H18: =Výpočet!Y19 -> 700 | I18: =Výpočet!Z19 -> 900 | J18: =Výpočet!AA19 -> 200 | K18: =Výpočet!AB19 -> 300 | L18: =Výpočet!AC19 -> 400 | M18: =Výpočet!AD19 -> 500 | N18: =Výpočet!AE19 -> 600 | O18: =Výpočet!AF19 -> 700 | P18: =Výpočet!AG19 -> 900 | U18: =RANK(U19,$AQ$5:$DM$5,1) -> 1 | V18: 1 | W18: =RANK(W19,$AQ$5:$DM$5,1) -> 1 | X18: 1 | Y18: 1 | Z18: 1 | AA18: 1 | AB18: 1 | AC18: 6 | AD18: 7 | AE18: 9 | AF18: 10 | AG18: 11 | AH18: 14 | AJ18: =RANK(AJ19,$AQ$5:$DM$5,1) -> 1 | AK18: 1 | AL18: 1 | AM18: 9 | AN18: 11 | AO18: 12 | AP18: 1 | AQ18: 1 | AR18: 8 | AS18: 10 | AT18: 12 | AU18: 14 | AV18: 15 | AW18: 18 | AY18: =RANK(AY19,$AQ$5:$DM$5,1) -> 1 | AZ18: 10 | BA18: 13 | BB18: 16 | BC18: 18 | BD18: 20 | BE18: 25 | BF18: 1 | BG18: 15 | BH18: 19 | BI18: 23 | BJ18: 26 | BK18: 30 | BL18: 36 | BO18: 400 | BP18: =ROUND(Výpočet!C20/(($BS$14-$BT$14)*1.163),0) -> 0 | BQ18: =ROUND(Výpočet!D20/(($BS$14-$BT$14)*1.163),0) -> 0 | BR18: =ROUND(Výpočet!E20/(($BS$14-$BT$14)*1.163),0) -> 0 | BS18: =ROUND(Výpočet!F20/(($BS$14-$BT$14)*1.163),0) -> 0 | BT18: =ROUND(Výpočet!G20/(($BS$14-$BT$14)*1.163),0) -> 0 | BU18: =ROUND(Výpočet!H20/(($BS$14-$BT$14)*1.163),0) -> 0 | BV18: =ROUND(Výpočet!I20/(($BS$14-$BT$14)*1.163),0) -> 0 | BW18: =ROUND(Výpočet!J20/(($BS$14-$BT$14)*1.163),0) -> 0 | BX18: =ROUND(Výpočet!K20/(($BS$14-$BT$14)*1.163),0) -> 18 | BY18: =ROUND(Výpočet!L20/(($BS$14-$BT$14)*1.163),0) -> 23 | BZ18: =ROUND(Výpočet!M20/(($BS$14-$BT$14)*1.163),0) -> 27 | CA18: =ROUND(Výpočet!N20/(($BS$14-$BT$14)*1.163),0) -> 31 | CB18: =ROUND(Výpočet!O20/(($BS$14-$BT$14)*1.163),0) -> 35 | CC18: =ROUND(Výpočet!P20/(($BS$14-$BT$14)*1.163),0) -> 42 | CD18: 400
A19: =B19&"V" -> 400V | B19: =Výpočet!$S$20 -> 400 | C19: =SUMIF($S:$S,$A19,U:U) -> 1 | D19: =SUMIF($S:$S,$A19,V:V) -> 1 | E19: =SUMIF($S:$S,$A19,W:W) -> 1 | F19: =SUMIF($S:$S,$A19,X:X) -> 1 | G19: =SUMIF($S:$S,$A19,Y:Y) -> 1 | H19: =SUMIF($S:$S,$A19,Z:Z) -> 1 | I19: =SUMIF($S:$S,$A19,AA:AA) -> 1 | J19: =SUMIF($S:$S,$A19,AB:AB) -> 1 | K19: =SUMIF($S:$S,$A19,AC:AC) -> 1 | L19: =SUMIF($S:$S,$A19,AD:AD) -> 1 | M19: =SUMIF($S:$S,$A19,AE:AE) -> 1 | N19: =SUMIF($S:$S,$A19,AF:AF) -> 1 | O19: =SUMIF($S:$S,$A19,AG:AG) -> 1 | P19: =SUMIF($S:$S,$A19,AH:AH) -> 2 | T19: 400 | U19: =IF(ROUND((BP18/$AG$6)*(SQRT(100))/(SQRT($G$10)),2)<$AG$4,0.01,IF(ROUND((BP18/$AG$6)*(SQRT(100))/(SQRT($G$10)),2)>$AG$5,0.75,ROUND((BP18/$AG$6)*(SQRT(100))/(SQRT($G$10)),2))) -> 0.01 | V19: 0.01 | W19: 0.01 | X19: 0.01 | Y19: 0.01 | Z19: 0.01 | AA19: 0.01 | AB19: 0.01 | AC19: 0.06 | AD19: 0.07 | AE19: 0.09 | AF19: 0.1 | AG19: 0.11 | AH19: 0.14 | AI19: 400 | AJ19: =IF(ROUND((BP36/$AG$6)*(SQRT(100))/(SQRT($G$10)),2)<$AG$4,0.01,IF(ROUND((BP36/$AG$6)*(SQRT(100))/(SQRT($G$10)),2)>$AG$5,0.75,ROUND((BP36/$AG$6)*(SQRT(100))/(SQRT($G$10)),2))) -> 0.01 | AK19: 0.01 | AL19: 0.01 | AM19: 0.09 | AN19: 0.11 | AO19: 0.12 | AP19: 0.01 | AQ19: 0.01 | AR19: 0.08 | AS19: 0.1 | AT19: 0.12 | AU19: 0.14 | AV19: 0.15 | AW19: 0.18 | AX19: 400 | AY19: =IF(ROUND((BP54/$AG$6)*(SQRT(100))/(SQRT($G$10)),2)<$AG$4,0.01,IF(ROUND((BP54/$AG$6)*(SQRT(100))/(SQRT($G$10)),2)>$AG$5,0.75,ROUND((BP54/$AG$6)*(SQRT(100))/(SQRT($G$10)),2))) -> 0.01 | AZ19: 0.1 | BA19: 0.13 | BB19: 0.16 | BC19: 0.18 | BD19: 0.2 | BE19: 0.25 | BF19: 0.01 | BG19: 0.15 | BH19: 0.19 | BI19: 0.23 | BJ19: 0.26 | BK19: 0.3 | BL19: 0.36 | BM19: 400 | BO19: 500 | BP19: =ROUND(Výpočet!C21/(($BS$14-$BT$14)*1.163),0) -> 0 | BQ19: =ROUND(Výpočet!D21/(($BS$14-$BT$14)*1.163),0) -> 0 | BR19: =ROUND(Výpočet!E21/(($BS$14-$BT$14)*1.163),0) -> 0 | BS19: =ROUND(Výpočet!F21/(($BS$14-$BT$14)*1.163),0) -> 0 | BT19: =ROUND(Výpočet!G21/(($BS$14-$BT$14)*1.163),0) -> 0 | BU19: =ROUND(Výpočet!H21/(($BS$14-$BT$14)*1.163),0) -> 0 | BV19: =ROUND(Výpočet!I21/(($BS$14-$BT$14)*1.163),0) -> 0 | BW19: =ROUND(Výpočet!J21/(($BS$14-$BT$14)*1.163),0) -> 0 | BX19: =ROUND(Výpočet!K21/(($BS$14-$BT$14)*1.163),0) -> 23 | BY19: =ROUND(Výpočet!L21/(($BS$14-$BT$14)*1.163),0) -> 28 | BZ19: =ROUND(Výpočet!M21/(($BS$14-$BT$14)*1.163),0) -> 34 | CA19: =ROUND(Výpočet!N21/(($BS$14-$BT$14)*1.163),0) -> 39 | CB19: =ROUND(Výpočet!O21/(($BS$14-$BT$14)*1.163),0) -> 44 | CC19: =ROUND(Výpočet!P21/(($BS$14-$BT$14)*1.163),0) -> 53 | CD19: 500
A20: =B20&"V" -> 500V | B20: =Výpočet!$S$21 -> 500 | C20: =SUMIF($S:$S,$A20,U:U) -> 1 | D20: 1 | E20: 1 | F20: 1 | G20: 1 | H20: 1 | I20: 1 | J20: 1 | K20: 1 | L20: 1 | M20: 1 | N20: 1 | O20: 2 | P20: 2 | S20: =T19&"V" -> 400V | U20: =HLOOKUP(U18,$AQ$4:$DM$6,3,FALSE) -> 1 | V20: 1 | W20: 1 | X20: 1 | Y20: 1 | Z20: 1 | AA20: 1 | AB20: 1 | AC20: 1 | AD20: 1 | AE20: 1 | AF20: 1 | AG20: 1 | AH20: 2 | AJ20: =HLOOKUP(AJ18,$AQ$4:$DM$6,3,FALSE) -> 1 | AK20: 1 | AL20: 1 | AM20: 1 | AN20: 1 | AO20: 1 | AP20: 1 | AQ20: 1 | AR20: 1 | AS20: 1 | AT20: 1 | AU20: 2 | AV20: 2 | AW20: 2 | AY20: =HLOOKUP(AY18,$AQ$4:$DM$6,3,FALSE) -> 1 | AZ20: 1 | BA20: 1 | BB20: 2 | BC20: 2 | BD20: 2 | BE20: 3 | BF20: 1 | BG20: 2 | BH20: 2 | BI20: 3 | BJ20: 3 | BK20: 3 | BL20: 4 | BO20: 600 | BP20: =ROUND(Výpočet!C22/(($BS$14-$BT$14)*1.163),0) -> 0 | BQ20: =ROUND(Výpočet!D22/(($BS$14-$BT$14)*1.163),0) -> 0 | BR20: =ROUND(Výpočet!E22/(($BS$14-$BT$14)*1.163),0) -> 0 | BS20: =ROUND(Výpočet!F22/(($BS$14-$BT$14)*1.163),0) -> 0 | BT20: =ROUND(Výpočet!G22/(($BS$14-$BT$14)*1.163),0) -> 0 | BU20: =ROUND(Výpočet!H22/(($BS$14-$BT$14)*1.163),0) -> 0 | BV20: =ROUND(Výpočet!I22/(($BS$14-$BT$14)*1.163),0) -> 0 | BW20: =ROUND(Výpočet!J22/(($BS$14-$BT$14)*1.163),0) -> 0 | BX20: =ROUND(Výpočet!K22/(($BS$14-$BT$14)*1.163),0) -> 27 | BY20: =ROUND(Výpočet!L22/(($BS$14-$BT$14)*1.163),0) -> 34 | BZ20: =ROUND(Výpočet!M22/(($BS$14-$BT$14)*1.163),0) -> 40 | CA20: =ROUND(Výpočet!N22/(($BS$14-$BT$14)*1.163),0) -> 46 | CB20: =ROUND(Výpočet!O22/(($BS$14-$BT$14)*1.163),0) -> 52 | CC20: =ROUND(Výpočet!P22/(($BS$14-$BT$14)*1.163),0) -> 64 | CD20: 600
A21: 600V | B21: =Výpočet!$S$22 -> 600 | C21: 1 | D21: 1 | E21: 1 | F21: 1 | G21: 1 | H21: 1 | I21: 1 | J21: 1 | K21: 1 | L21: 1 | M21: 1 | N21: 2 | O21: 2 | P21: 2 | U21: =RANK(U22,$AQ$5:$DM$5,1) -> 1 | V21: 1 | W21: 1 | X21: 1 | Y21: 1 | Z21: 1 | AA21: 1 | AB21: 1 | AC21: 7 | AD21: 9 | AE21: 11 | AF21: 13 | AG21: 14 | AH21: 17 | AJ21: =RANK(AJ22,$AQ$5:$DM$5,1) -> 1 | AK21: 1 | AL21: 1 | AM21: 12 | AN21: 14 | AO21: 15 | AP21: 1 | AQ21: 1 | AR21: 10 | AS21: 13 | AT21: 15 | AU21: 17 | AV21: 19 | AW21: 23 | AY21: =RANK(AY22,$AQ$5:$DM$5,1) -> 1 | AZ21: 13 | BA21: 16 | BB21: 19 | BC21: 23 | BD21: 26 | BE21: 31 | BF21: 1 | BG21: 19 | BH21: 24 | BI21: 28 | BJ21: 33 | BK21: 37 | BL21: 45 | BO21: 700 | BP21: =ROUND(Výpočet!C23/(($BS$14-$BT$14)*1.163),0) -> 0 | BQ21: =ROUND(Výpočet!D23/(($BS$14-$BT$14)*1.163),0) -> 0 | BR21: =ROUND(Výpočet!E23/(($BS$14-$BT$14)*1.163),0) -> 0 | BS21: =ROUND(Výpočet!F23/(($BS$14-$BT$14)*1.163),0) -> 0 | BT21: =ROUND(Výpočet!G23/(($BS$14-$BT$14)*1.163),0) -> 0 | BU21: =ROUND(Výpočet!H23/(($BS$14-$BT$14)*1.163),0) -> 0 | BV21: =ROUND(Výpočet!I23/(($BS$14-$BT$14)*1.163),0) -> 0 | BW21: =ROUND(Výpočet!J23/(($BS$14-$BT$14)*1.163),0) -> 0 | BX21: =ROUND(Výpočet!K23/(($BS$14-$BT$14)*1.163),0) -> 32 | BY21: =ROUND(Výpočet!L23/(($BS$14-$BT$14)*1.163),0) -> 40 | BZ21: =ROUND(Výpočet!M23/(($BS$14-$BT$14)*1.163),0) -> 47 | CA21: =ROUND(Výpočet!N23/(($BS$14-$BT$14)*1.163),0) -> 54 | CB21: =ROUND(Výpočet!O23/(($BS$14-$BT$14)*1.163),0) -> 61 | CC21: =ROUND(Výpočet!P23/(($BS$14-$BT$14)*1.163),0) -> 74 | CD21: 700
A22: 700V | B22: =Výpočet!$S$23 -> 700 | C22: 1 | D22: 1 | E22: 1 | F22: 1 | G22: 1 | H22: 1 | I22: 1 | J22: 1 | K22: 1 | L22: 1 | M22: 2 | N22: 2 | O22: 2 | P22: 3 | T22: 500 | U22: =IF(ROUND((BP19/$AG$6)*(SQRT(100))/(SQRT($G$10)),2)<$AG$4,0.01,IF(ROUND((BP19/$AG$6)*(SQRT(100))/(SQRT($G$10)),2)>$AG$5,0.75,ROUND((BP19/$AG$6)*(SQRT(100))/(SQRT($G$10)),2))) -> 0.01 | V22: 0.01 | W22: 0.01 | X22: 0.01 | Y22: 0.01 | Z22: 0.01 | AA22: 0.01 | AB22: 0.01 | AC22: 0.07 | AD22: 0.09 | AE22: 0.11 | AF22: 0.13 | AG22: 0.14 | AH22: 0.17 | AI22: 500 | AJ22: =IF(ROUND((BP37/$AG$6)*(SQRT(100))/(SQRT($G$10)),2)<$AG$4,0.01,IF(ROUND((BP37/$AG$6)*(SQRT(100))/(SQRT($G$10)),2)>$AG$5,0.75,ROUND((BP37/$AG$6)*(SQRT(100))/(SQRT($G$10)),2))) -> 0.01 | AK22: 0.01 | AL22: 0.01 | AM22: 0.12 | AN22: 0.14 | AO22: 0.15 | AP22: 0.01 | AQ22: 0.01 | AR22: 0.1 | AS22: 0.13 | AT22: 0.15 | AU22: 0.17 | AV22: 0.19 | AW22: 0.23 | AX22: 500 | AY22: =IF(ROUND((BP55/$AG$6)*(SQRT(100))/(SQRT($G$10)),2)<$AG$4,0.01,IF(ROUND((BP55/$AG$6)*(SQRT(100))/(SQRT($G$10)),2)>$AG$5,0.75,ROUND((BP55/$AG$6)*(SQRT(100))/(SQRT($G$10)),2))) -> 0.01 | AZ22: 0.13 | BA22: 0.16 | BB22: 0.19 | BC22: 0.23 | BD22: 0.26 | BE22: 0.31 | BF22: 0.01 | BG22: 0.19 | BH22: 0.24 | BI22: 0.28 | BJ22: 0.33 | BK22: 0.37 | BL22: 0.45 | BM22: 500 | BO22: 800 | BP22: =ROUND(Výpočet!C24/(($BS$14-$BT$14)*1.163),0) -> 0 | BQ22: =ROUND(Výpočet!D24/(($BS$14-$BT$14)*1.163),0) -> 0 | BR22: =ROUND(Výpočet!E24/(($BS$14-$BT$14)*1.163),0) -> 0 | BS22: =ROUND(Výpočet!F24/(($BS$14-$BT$14)*1.163),0) -> 0 | BT22: =ROUND(Výpočet!G24/(($BS$14-$BT$14)*1.163),0) -> 0 | BU22: =ROUND(Výpočet!H24/(($BS$14-$BT$14)*1.163),0) -> 0 | BV22: =ROUND(Výpočet!I24/(($BS$14-$BT$14)*1.163),0) -> 0 | BW22: =ROUND(Výpočet!J24/(($BS$14-$BT$14)*1.163),0) -> 0 | BX22: =ROUND(Výpočet!K24/(($BS$14-$BT$14)*1.163),0) -> 36 | BY22: =ROUND(Výpočet!L24/(($BS$14-$BT$14)*1.163),0) -> 45 | BZ22: =ROUND(Výpočet!M24/(($BS$14-$BT$14)*1.163),0) -> 54 | CA22: =ROUND(Výpočet!N24/(($BS$14-$BT$14)*1.163),0) -> 62 | CB22: =ROUND(Výpočet!O24/(($BS$14-$BT$14)*1.163),0) -> 70 | CC22: =ROUND(Výpočet!P24/(($BS$14-$BT$14)*1.163),0) -> 85 | CD22: 800
A23: 800V | B23: =Výpočet!$S$24 -> 800 | C23: 1 | D23: 1 | E23: 1 | F23: 1 | G23: 1 | H23: 1 | I23: 1 | J23: 1 | K23: 1 | L23: 2 | M23: 2 | N23: 2 | O23: 3 | P23: 3 | S23: =T22&"V" -> 500V | U23: =HLOOKUP(U21,$AQ$4:$DM$6,3,FALSE) -> 1 | V23: 1 | W23: 1 | X23: 1 | Y23: 1 | Z23: 1 | AA23: 1 | AB23: 1 | AC23: 1 | AD23: 1 | AE23: 1 | AF23: 1 | AG23: 2 | AH23: 2 | AJ23: =HLOOKUP(AJ21,$AQ$4:$DM$6,3,FALSE) -> 1 | AK23: 1 | AL23: 1 | AM23: 1 | AN23: 2 | AO23: 2 | AP23: 1 | AQ23: 1 | AR23: 1 | AS23: 1 | AT23: 2 | AU23: 2 | AV23: 2 | AW23: 3 | AY23: =HLOOKUP(AY21,$AQ$4:$DM$6,3,FALSE) -> 1 | AZ23: 1 | BA23: 2 | BB23: 2 | BC23: 3 | BD23: 3 | BE23: 3 | BF23: 1 | BG23: 2 | BH23: 3 | BI23: 3 | BJ23: 4 | BK23: 4 | BL23: 5 | BO23: 900 | BP23: =ROUND(Výpočet!C25/(($BS$14-$BT$14)*1.163),0) -> 0 | BQ23: =ROUND(Výpočet!D25/(($BS$14-$BT$14)*1.163),0) -> 0 | BR23: =ROUND(Výpočet!E25/(($BS$14-$BT$14)*1.163),0) -> 0 | BS23: =ROUND(Výpočet!F25/(($BS$14-$BT$14)*1.163),0) -> 0 | BT23: =ROUND(Výpočet!G25/(($BS$14-$BT$14)*1.163),0) -> 0 | BU23: =ROUND(Výpočet!H25/(($BS$14-$BT$14)*1.163),0) -> 0 | BV23: =ROUND(Výpočet!I25/(($BS$14-$BT$14)*1.163),0) -> 0 | BW23: =ROUND(Výpočet!J25/(($BS$14-$BT$14)*1.163),0) -> 0 | BX23: =ROUND(Výpočet!K25/(($BS$14-$BT$14)*1.163),0) -> 41 | BY23: =ROUND(Výpočet!L25/(($BS$14-$BT$14)*1.163),0) -> 51 | BZ23: =ROUND(Výpočet!M25/(($BS$14-$BT$14)*1.163),0) -> 60 | CA23: =ROUND(Výpočet!N25/(($BS$14-$BT$14)*1.163),0) -> 69 | CB23: =ROUND(Výpočet!O25/(($BS$14-$BT$14)*1.163),0) -> 78 | CC23: =ROUND(Výpočet!P25/(($BS$14-$BT$14)*1.163),0) -> 95 | CD23: 900
A24: 900V | B24: =Výpočet!$S$25 -> 900 | C24: 1 | D24: 1 | E24: 1 | F24: 1 | G24: 1 | H24: 1 | I24: 1 | J24: 1 | K24: 1 | L24: 2 | M24: 2 | N24: 2 | O24: 3 | P24: 3 | U24: =RANK(U25,$AQ$5:$DM$5,1) -> 1 | V24: 1 | W24: 1 | X24: 1 | Y24: 1 | Z24: 1 | AA24: 1 | AB24: 1 | AC24: 9 | AD24: 11 | AE24: 13 | AF24: 15 | AG24: 17 | AH24: 21 | AJ24: =RANK(AJ25,$AQ$5:$DM$5,1) -> 1 | AK24: 1 | AL24: 1 | AM24: 14 | AN24: 16 | AO24: 18 | AP24: 1 | AQ24: 1 | AR24: 12 | AS24: 15 | AT24: 18 | AU24: 20 | AV24: 23 | AW24: 27 | AY24: =RANK(AY25,$AQ$5:$DM$5,1) -> 1 | AZ24: 15 | BA24: 19 | BB24: 23 | BC24: 27 | BD24: 30 | BE24: 37 | BF24: 1 | BG24: 22 | BH24: 28 | BI24: 34 | BJ24: 39 | BK24: 44 | BL24: 54 | BO24: 1000 | BP24: =ROUND(Výpočet!C26/(($BS$14-$BT$14)*1.163),0) -> 0 | BQ24: =ROUND(Výpočet!D26/(($BS$14-$BT$14)*1.163),0) -> 0 | BR24: =ROUND(Výpočet!E26/(($BS$14-$BT$14)*1.163),0) -> 0 | BS24: =ROUND(Výpočet!F26/(($BS$14-$BT$14)*1.163),0) -> 0 | BT24: =ROUND(Výpočet!G26/(($BS$14-$BT$14)*1.163),0) -> 0 | BU24: =ROUND(Výpočet!H26/(($BS$14-$BT$14)*1.163),0) -> 0 | BV24: =ROUND(Výpočet!I26/(($BS$14-$BT$14)*1.163),0) -> 0 | BW24: =ROUND(Výpočet!J26/(($BS$14-$BT$14)*1.163),0) -> 0 | BX24: =ROUND(Výpočet!K26/(($BS$14-$BT$14)*1.163),0) -> 46 | BY24: =ROUND(Výpočet!L26/(($BS$14-$BT$14)*1.163),0) -> 57 | BZ24: =ROUND(Výpočet!M26/(($BS$14-$BT$14)*1.163),0) -> 67 | CA24: =ROUND(Výpočet!N26/(($BS$14-$BT$14)*1.163),0) -> 77 | CB24: =ROUND(Výpočet!O26/(($BS$14-$BT$14)*1.163),0) -> 87 | CC24: =ROUND(Výpočet!P26/(($BS$14-$BT$14)*1.163),0) -> 106 | CD24: 1000
A25: 1000V | B25: =Výpočet!$S$26 -> 1000 | C25: 1 | D25: 1 | E25: 1 | F25: 1 | G25: 1 | H25: 1 | I25: 1 | J25: 1 | K25: 2 | L25: 2 | M25: 2 | N25: 3 | O25: 3 | P25: 4 | T25: 600 | U25: =IF(ROUND((BP20/$AG$6)*(SQRT(100))/(SQRT($G$10)),2)<$AG$4,0.01,IF(ROUND((BP20/$AG$6)*(SQRT(100))/(SQRT($G$10)),2)>$AG$5,0.75,ROUND((BP20/$AG$6)*(SQRT(100))/(SQRT($G$10)),2))) -> 0.01 | V25: 0.01 | W25: 0.01 | X25: 0.01 | Y25: 0.01 | Z25: 0.01 | AA25: 0.01 | AB25: 0.01 | AC25: 0.09 | AD25: 0.11 | AE25: 0.13 | AF25: 0.15 | AG25: 0.17 | AH25: 0.21 | AI25: 600 | AJ25: =IF(ROUND((BP38/$AG$6)*(SQRT(100))/(SQRT($G$10)),2)<$AG$4,0.01,IF(ROUND((BP38/$AG$6)*(SQRT(100))/(SQRT($G$10)),2)>$AG$5,0.75,ROUND((BP38/$AG$6)*(SQRT(100))/(SQRT($G$10)),2))) -> 0.01 | AK25: 0.01 | AL25: 0.01 | AM25: 0.14 | AN25: 0.16 | AO25: 0.18 | AP25: 0.01 | AQ25: 0.01 | AR25: 0.12 | AS25: 0.15 | AT25: 0.18 | AU25: 0.2 | AV25: 0.23 | AW25: 0.27 | AX25: 600 | AY25: =IF(ROUND((BP56/$AG$6)*(SQRT(100))/(SQRT($G$10)),2)<$AG$4,0.01,IF(ROUND((BP56/$AG$6)*(SQRT(100))/(SQRT($G$10)),2)>$AG$5,0.75,ROUND((BP56/$AG$6)*(SQRT(100))/(SQRT($G$10)),2))) -> 0.01 | AZ25: 0.15 | BA25: 0.19 | BB25: 0.23 | BC25: 0.27 | BD25: 0.3 | BE25: 0.37 | BF25: 0.01 | BG25: 0.22 | BH25: 0.28 | BI25: 0.34 | BJ25: 0.39 | BK25: 0.44 | BL25: 0.54 | BM25: 600 | BO25: 1100 | BP25: =ROUND(Výpočet!C27/(($BS$14-$BT$14)*1.163),0) -> 0 | BQ25: =ROUND(Výpočet!D27/(($BS$14-$BT$14)*1.163),0) -> 0 | BR25: =ROUND(Výpočet!E27/(($BS$14-$BT$14)*1.163),0) -> 0 | BS25: =ROUND(Výpočet!F27/(($BS$14-$BT$14)*1.163),0) -> 0 | BT25: =ROUND(Výpočet!G27/(($BS$14-$BT$14)*1.163),0) -> 0 | BU25: =ROUND(Výpočet!H27/(($BS$14-$BT$14)*1.163),0) -> 0 | BV25: =ROUND(Výpočet!I27/(($BS$14-$BT$14)*1.163),0) -> 0 | BW25: =ROUND(Výpočet!J27/(($BS$14-$BT$14)*1.163),0) -> 0 | BX25: =ROUND(Výpočet!K27/(($BS$14-$BT$14)*1.163),0) -> 50 | BY25: =ROUND(Výpočet!L27/(($BS$14-$BT$14)*1.163),0) -> 62 | BZ25: =ROUND(Výpočet!M27/(($BS$14-$BT$14)*1.163),0) -> 74 | CA25: =ROUND(Výpočet!N27/(($BS$14-$BT$14)*1.163),0) -> 85 | CB25: =ROUND(Výpočet!O27/(($BS$14-$BT$14)*1.163),0) -> 96 | CC25: =ROUND(Výpočet!P27/(($BS$14-$BT$14)*1.163),0) -> 116 | CD25: 1100
A26: 1100V | B26: =Výpočet!$S$27 -> 1100 | C26: 1 | D26: 1 | E26: 1 | F26: 1 | G26: 1 | H26: 1 | I26: 1 | J26: 1 | K26: 2 | L26: 2 | M26: 3 | N26: 3 | O26: 3 | P26: 4 | S26: =T25&"V" -> 600V | U26: =HLOOKUP(U24,$AQ$4:$DM$6,3,FALSE) -> 1 | V26: 1 | W26: 1 | X26: 1 | Y26: 1 | Z26: 1 | AA26: 1 | AB26: 1 | AC26: 1 | AD26: 1 | AE26: 1 | AF26: 2 | AG26: 2 | AH26: 2 | AJ26: =HLOOKUP(AJ24,$AQ$4:$DM$6,3,FALSE) -> 1 | AK26: 1 | AL26: 1 | AM26: 2 | AN26: 2 | AO26: 2 | AP26: 1 | AQ26: 1 | AR26: 1 | AS26: 2 | AT26: 2 | AU26: 2 | AV26: 3 | AW26: 3 | AY26: =HLOOKUP(AY24,$AQ$4:$DM$6,3,FALSE) -> 1 | AZ26: 2 | BA26: 2 | BB26: 3 | BC26: 3 | BD26: 3 | BE26: 4 | BF26: 1 | BG26: 2 | BH26: 3 | BI26: 4 | BJ26: 5 | BK26: 5 | BL26: 6 | BO26: 1200 | BP26: =ROUND(Výpočet!C28/(($BS$14-$BT$14)*1.163),0) -> 0 | BQ26: =ROUND(Výpočet!D28/(($BS$14-$BT$14)*1.163),0) -> 0 | BR26: =ROUND(Výpočet!E28/(($BS$14-$BT$14)*1.163),0) -> 0 | BS26: =ROUND(Výpočet!F28/(($BS$14-$BT$14)*1.163),0) -> 0 | BT26: =ROUND(Výpočet!G28/(($BS$14-$BT$14)*1.163),0) -> 0 | BU26: =ROUND(Výpočet!H28/(($BS$14-$BT$14)*1.163),0) -> 0 | BV26: =ROUND(Výpočet!I28/(($BS$14-$BT$14)*1.163),0) -> 0 | BW26: =ROUND(Výpočet!J28/(($BS$14-$BT$14)*1.163),0) -> 0 | BX26: =ROUND(Výpočet!K28/(($BS$14-$BT$14)*1.163),0) -> 55 | BY26: =ROUND(Výpočet!L28/(($BS$14-$BT$14)*1.163),0) -> 68 | BZ26: =ROUND(Výpočet!M28/(($BS$14-$BT$14)*1.163),0) -> 80 | CA26: =ROUND(Výpočet!N28/(($BS$14-$BT$14)*1.163),0) -> 93 | CB26: =ROUND(Výpočet!O28/(($BS$14-$BT$14)*1.163),0) -> 104 | CC26: =ROUND(Výpočet!P28/(($BS$14-$BT$14)*1.163),0) -> 127 | CD26: 1200
A27: 1200V | B27: =Výpočet!$S$28 -> 1200 | C27: 1 | D27: 1 | E27: 1 | F27: 1 | G27: 1 | H27: 1 | I27: 1 | J27: 1 | K27: 2 | L27: 2 | M27: 3 | N27: 3 | O27: 4 | P27: 5 | U27: =RANK(U28,$AQ$5:$DM$5,1) -> 1 | V27: 1 | W27: 1 | X27: 1 | Y27: 1 | Z27: 1 | AA27: 1 | AB27: 1 | AC27: 10 | AD27: 13 | AE27: 15 | AF27: 18 | AG27: 20 | AH27: 24 | AJ27: =RANK(AJ28,$AQ$5:$DM$5,1) -> 1 | AK27: 1 | AL27: 1 | AM27: 17 | AN27: 19 | AO27: 21 | AP27: 1 | AQ27: 1 | AR27: 14 | AS27: 18 | AT27: 21 | AU27: 24 | AV27: 27 | AW27: 31 | AY27: =RANK(AY28,$AQ$5:$DM$5,1) -> 1 | AZ27: 18 | BA27: 23 | BB27: 27 | BC27: 32 | BD27: 36 | BE27: 43 | BF27: 1 | BG27: 26 | BH27: 33 | BI27: 40 | BJ27: 46 | BK27: 52 | BL27: 63 | BO27: 1400 | BP27: =ROUND(Výpočet!C29/(($BS$14-$BT$14)*1.163),0) -> 0 | BQ27: =ROUND(Výpočet!D29/(($BS$14-$BT$14)*1.163),0) -> 0 | BR27: =ROUND(Výpočet!E29/(($BS$14-$BT$14)*1.163),0) -> 0 | BS27: =ROUND(Výpočet!F29/(($BS$14-$BT$14)*1.163),0) -> 0 | BT27: =ROUND(Výpočet!G29/(($BS$14-$BT$14)*1.163),0) -> 0 | BU27: =ROUND(Výpočet!H29/(($BS$14-$BT$14)*1.163),0) -> 0 | BV27: =ROUND(Výpočet!I29/(($BS$14-$BT$14)*1.163),0) -> 0 | BW27: =ROUND(Výpočet!J29/(($BS$14-$BT$14)*1.163),0) -> 0 | BX27: =ROUND(Výpočet!K29/(($BS$14-$BT$14)*1.163),0) -> 64 | BY27: =ROUND(Výpočet!L29/(($BS$14-$BT$14)*1.163),0) -> 79 | BZ27: =ROUND(Výpočet!M29/(($BS$14-$BT$14)*1.163),0) -> 94 | CA27: =ROUND(Výpočet!N29/(($BS$14-$BT$14)*1.163),0) -> 108 | CB27: =ROUND(Výpočet!O29/(($BS$14-$BT$14)*1.163),0) -> 122 | CC27: =ROUND(Výpočet!P29/(($BS$14-$BT$14)*1.163),0) -> 148 | CD27: 1400
A28: 1400V | B28: =Výpočet!$S$29 -> 1400 | C28: 1 | D28: 1 | E28: 1 | F28: 1 | G28: 1 | H28: 1 | I28: 1 | J28: 1 | K28: 2 | L28: 3 | M28: 3 | N28: 4 | O28: 5 | P28: 6 | T28: 700 | U28: =IF(ROUND((BP21/$AG$6)*(SQRT(100))/(SQRT($G$10)),2)<$AG$4,0.01,IF(ROUND((BP21/$AG$6)*(SQRT(100))/(SQRT($G$10)),2)>$AG$5,0.75,ROUND((BP21/$AG$6)*(SQRT(100))/(SQRT($G$10)),2))) -> 0.01 | V28: 0.01 | W28: 0.01 | X28: 0.01 | Y28: 0.01 | Z28: 0.01 | AA28: 0.01 | AB28: 0.01 | AC28: 0.1 | AD28: 0.13 | AE28: 0.15 | AF28: 0.18 | AG28: 0.2 | AH28: 0.24 | AI28: 700 | AJ28: =IF(ROUND((BP39/$AG$6)*(SQRT(100))/(SQRT($G$10)),2)<$AG$4,0.01,IF(ROUND((BP39/$AG$6)*(SQRT(100))/(SQRT($G$10)),2)>$AG$5,0.75,ROUND((BP39/$AG$6)*(SQRT(100))/(SQRT($G$10)),2))) -> 0.01 | AK28: 0.01 | AL28: 0.01 | AM28: 0.17 | AN28: 0.19 | AO28: 0.21 | AP28: 0.01 | AQ28: 0.01 | AR28: 0.14 | AS28: 0.18 | AT28: 0.21 | AU28: 0.24 | AV28: 0.27 | AW28: 0.31 | AX28: 700 | AY28: =IF(ROUND((BP57/$AG$6)*(SQRT(100))/(SQRT($G$10)),2)<$AG$4,0.01,IF(ROUND((BP57/$AG$6)*(SQRT(100))/(SQRT($G$10)),2)>$AG$5,0.75,ROUND((BP57/$AG$6)*(SQRT(100))/(SQRT($G$10)),2))) -> 0.01 | AZ28: 0.18 | BA28: 0.23 | BB28: 0.27 | BC28: 0.32 | BD28: 0.36 | BE28: 0.43 | BF28: 0.01 | BG28: 0.26 | BH28: 0.33 | BI28: 0.4 | BJ28: 0.46 | BK28: 0.52 | BL28: 0.63 | BM28: 700 | BO28: 1600 | BP28: =ROUND(Výpočet!C30/(($BS$14-$BT$14)*1.163),0) -> 0 | BQ28: =ROUND(Výpočet!D30/(($BS$14-$BT$14)*1.163),0) -> 0 | BR28: =ROUND(Výpočet!E30/(($BS$14-$BT$14)*1.163),0) -> 0 | BS28: =ROUND(Výpočet!F30/(($BS$14-$BT$14)*1.163),0) -> 0 | BT28: =ROUND(Výpočet!G30/(($BS$14-$BT$14)*1.163),0) -> 0 | BU28: =ROUND(Výpočet!H30/(($BS$14-$BT$14)*1.163),0) -> 0 | BV28: =ROUND(Výpočet!I30/(($BS$14-$BT$14)*1.163),0) -> 0 | BW28: =ROUND(Výpočet!J30/(($BS$14-$BT$14)*1.163),0) -> 0 | BX28: =ROUND(Výpočet!K30/(($BS$14-$BT$14)*1.163),0) -> 73 | BY28: =ROUND(Výpočet!L30/(($BS$14-$BT$14)*1.163),0) -> 91 | BZ28: =ROUND(Výpočet!M30/(($BS$14-$BT$14)*1.163),0) -> 107 | CA28: =ROUND(Výpočet!N30/(($BS$14-$BT$14)*1.163),0) -> 123 | CB28: =ROUND(Výpočet!O30/(($BS$14-$BT$14)*1.163),0) -> 139 | CC28: =ROUND(Výpočet!P30/(($BS$14-$BT$14)*1.163),0) -> 169 | CD28: 1600
A29: 1600V | B29: =Výpočet!$S$30 -> 1600 | C29: 1 | D29: 1 | E29: 1 | F29: 1 | G29: 1 | H29: 1 | I29: 1 | J29: 1 | K29: 3 | L29: 3 | M29: 4 | N29: 5 | O29: 5 | P29: 6 | S29: =T28&"V" -> 700V | U29: =HLOOKUP(U27,$AQ$4:$DM$6,3,FALSE) -> 1 | V29: 1 | W29: 1 | X29: 1 | Y29: 1 | Z29: 1 | AA29: 1 | AB29: 1 | AC29: 1 | AD29: 1 | AE29: 2 | AF29: 2 | AG29: 2 | AH29: 3 | AJ29: =HLOOKUP(AJ27,$AQ$4:$DM$6,3,FALSE) -> 1 | AK29: 1 | AL29: 1 | AM29: 2 | AN29: 2 | AO29: 2 | AP29: 1 | AQ29: 1 | AR29: 2 | AS29: 2 | AT29: 2 | AU29: 3 | AV29: 3 | AW29: 3 | AY29: =HLOOKUP(AY27,$AQ$4:$DM$6,3,FALSE) -> 1 | AZ29: 2 | BA29: 3 | BB29: 3 | BC29: 4 | BD29: 4 | BE29: 5 | BF29: 1 | BG29: 3 | BH29: 4 | BI29: 5 | BJ29: 5 | BK29: 6 | BL29: 7 | BO29: 1800 | BP29: =ROUND(Výpočet!C31/(($BS$14-$BT$14)*1.163),0) -> 0 | BQ29: =ROUND(Výpočet!D31/(($BS$14-$BT$14)*1.163),0) -> 0 | BR29: =ROUND(Výpočet!E31/(($BS$14-$BT$14)*1.163),0) -> 0 | BS29: =ROUND(Výpočet!F31/(($BS$14-$BT$14)*1.163),0) -> 0 | BT29: =ROUND(Výpočet!G31/(($BS$14-$BT$14)*1.163),0) -> 0 | BU29: =ROUND(Výpočet!H31/(($BS$14-$BT$14)*1.163),0) -> 0 | BV29: =ROUND(Výpočet!I31/(($BS$14-$BT$14)*1.163),0) -> 0 | BW29: =ROUND(Výpočet!J31/(($BS$14-$BT$14)*1.163),0) -> 0 | BX29: =ROUND(Výpočet!K31/(($BS$14-$BT$14)*1.163),0) -> 82 | BY29: =ROUND(Výpočet!L31/(($BS$14-$BT$14)*1.163),0) -> 102 | BZ29: =ROUND(Výpočet!M31/(($BS$14-$BT$14)*1.163),0) -> 121 | CA29: =ROUND(Výpočet!N31/(($BS$14-$BT$14)*1.163),0) -> 139 | CB29: =ROUND(Výpočet!O31/(($BS$14-$BT$14)*1.163),0) -> 156 | CC29: =ROUND(Výpočet!P31/(($BS$14-$BT$14)*1.163),0) -> 191 | CD29: 1800
A30: 1800V | B30: =Výpočet!$S$31 -> 1800 | C30: 1 | D30: 1 | E30: 1 | F30: 1 | G30: 1 | H30: 1 | I30: 1 | J30: 1 | K30: 3 | L30: 4 | M30: 5 | N30: 5 | O30: 6 | P30: 7 | U30: =RANK(U31,$AQ$5:$DM$5,1) -> 1 | V30: 1 | W30: 1 | X30: 1 | Y30: 1 | Z30: 1 | AA30: 1 | AB30: 1 | AC30: 12 | AD30: 15 | AE30: 18 | AF30: 20 | AG30: 23 | AH30: 28 | AJ30: =RANK(AJ31,$AQ$5:$DM$5,1) -> 1 | AK30: 1 | AL30: 1 | AM30: 19 | AN30: 22 | AO30: 24 | AP30: 1 | AQ30: 1 | AR30: 16 | AS30: 20 | AT30: 24 | AU30: 27 | AV30: 30 | AW30: 36 | AY30: =RANK(AY31,$AQ$5:$DM$5,1) -> 1 | AZ30: 20 | BA30: 26 | BB30: 31 | BC30: 36 | BD30: 41 | BE30: 49 | BF30: 1 | BG30: 30 | BH30: 38 | BI30: 45 | BJ30: 52 | BK30: 59 | BL30: 72 | BO30: 2000 | BP30: =ROUND(Výpočet!C32/(($BS$14-$BT$14)*1.163),0) -> 0 | BQ30: =ROUND(Výpočet!D32/(($BS$14-$BT$14)*1.163),0) -> 0 | BR30: =ROUND(Výpočet!E32/(($BS$14-$BT$14)*1.163),0) -> 0 | BS30: =ROUND(Výpočet!F32/(($BS$14-$BT$14)*1.163),0) -> 0 | BT30: =ROUND(Výpočet!G32/(($BS$14-$BT$14)*1.163),0) -> 0 | BU30: =ROUND(Výpočet!H32/(($BS$14-$BT$14)*1.163),0) -> 0 | BV30: =ROUND(Výpočet!I32/(($BS$14-$BT$14)*1.163),0) -> 0 | BW30: =ROUND(Výpočet!J32/(($BS$14-$BT$14)*1.163),0) -> 0 | BX30: =ROUND(Výpočet!K32/(($BS$14-$BT$14)*1.163),0) -> 91 | BY30: =ROUND(Výpočet!L32/(($BS$14-$BT$14)*1.163),0) -> 113 | BZ30: =ROUND(Výpočet!M32/(($BS$14-$BT$14)*1.163),0) -> 134 | CA30: =ROUND(Výpočet!N32/(($BS$14-$BT$14)*1.163),0) -> 154 | CB30: =ROUND(Výpočet!O32/(($BS$14-$BT$14)*1.163),0) -> 174 | CC30: =ROUND(Výpočet!P32/(($BS$14-$BT$14)*1.163),0) -> 212 | CD30: 2000
A31: 2000V | B31: =Výpočet!$S$32 -> 2000 | C31: 1 | D31: 1 | E31: 1 | F31: 1 | G31: 1 | H31: 1 | I31: 1 | J31: 1 | K31: 3 | L31: 4 | M31: 5 | N31: 6 | O31: 6 | P31: 8 | T31: 800 | U31: =IF(ROUND((BP22/$AG$6)*(SQRT(100))/(SQRT($G$10)),2)<$AG$4,0.01,IF(ROUND((BP22/$AG$6)*(SQRT(100))/(SQRT($G$10)),2)>$AG$5,0.75,ROUND((BP22/$AG$6)*(SQRT(100))/(SQRT($G$10)),2))) -> 0.01 | V31: 0.01 | W31: 0.01 | X31: 0.01 | Y31: 0.01 | Z31: 0.01 | AA31: 0.01 | AB31: 0.01 | AC31: 0.12 | AD31: 0.15 | AE31: 0.18 | AF31: 0.2 | AG31: 0.23 | AH31: 0.28 | AI31: 800 | AJ31: =IF(ROUND((BP40/$AG$6)*(SQRT(100))/(SQRT($G$10)),2)<$AG$4,0.01,IF(ROUND((BP40/$AG$6)*(SQRT(100))/(SQRT($G$10)),2)>$AG$5,0.75,ROUND((BP40/$AG$6)*(SQRT(100))/(SQRT($G$10)),2))) -> 0.01 | AK31: 0.01 | AL31: 0.01 | AM31: 0.19 | AN31: 0.22 | AO31: 0.24 | AP31: 0.01 | AQ31: 0.01 | AR31: 0.16 | AS31: 0.2 | AT31: 0.24 | AU31: 0.27 | AV31: 0.3 | AW31: 0.36 | AX31: 800 | AY31: =IF(ROUND((BP58/$AG$6)*(SQRT(100))/(SQRT($G$10)),2)<$AG$4,0.01,IF(ROUND((BP58/$AG$6)*(SQRT(100))/(SQRT($G$10)),2)>$AG$5,0.75,ROUND((BP58/$AG$6)*(SQRT(100))/(SQRT($G$10)),2))) -> 0.01 | AZ31: 0.2 | BA31: 0.26 | BB31: 0.31 | BC31: 0.36 | BD31: 0.41 | BE31: 0.49 | BF31: 0.01 | BG31: 0.3 | BH31: 0.38 | BI31: 0.45 | BJ31: 0.52 | BK31: 0.59 | BL31: 0.72 | BM31: 800 | BO31: 2300 | BP31: =ROUND(Výpočet!C33/(($BS$14-$BT$14)*1.163),0) -> 0 | BQ31: =ROUND(Výpočet!D33/(($BS$14-$BT$14)*1.163),0) -> 0 | BR31: =ROUND(Výpočet!E33/(($BS$14-$BT$14)*1.163),0) -> 0 | BS31: =ROUND(Výpočet!F33/(($BS$14-$BT$14)*1.163),0) -> 0 | BT31: =ROUND(Výpočet!G33/(($BS$14-$BT$14)*1.163),0) -> 0 | BU31: =ROUND(Výpočet!H33/(($BS$14-$BT$14)*1.163),0) -> 0 | BV31: =ROUND(Výpočet!I33/(($BS$14-$BT$14)*1.163),0) -> 0 | BW31: =ROUND(Výpočet!J33/(($BS$14-$BT$14)*1.163),0) -> 0 | BX31: =ROUND(Výpočet!K33/(($BS$14-$BT$14)*1.163),0) -> 105 | BY31: =ROUND(Výpočet!L33/(($BS$14-$BT$14)*1.163),0) -> 130 | BZ31: =ROUND(Výpočet!M33/(($BS$14-$BT$14)*1.163),0) -> 154 | CA31: =ROUND(Výpočet!N33/(($BS$14-$BT$14)*1.163),0) -> 177 | CB31: =ROUND(Výpočet!O33/(($BS$14-$BT$14)*1.163),0) -> 200 | CC31: =ROUND(Výpočet!P33/(($BS$14-$BT$14)*1.163),0) -> 243 | CD31: 2300
A32: 2300V | B32: =Výpočet!$S$33 -> 2300 | C32: 1 | D32: 1 | E32: 1 | F32: 1 | G32: 1 | H32: 1 | I32: 1 | J32: 1 | K32: 4 | L32: 5 | M32: 6 | N32: 6 | O32: 7 | P32: 8 | S32: =T31&"V" -> 800V | U32: =HLOOKUP(U30,$AQ$4:$DM$6,3,FALSE) -> 1 | V32: 1 | W32: 1 | X32: 1 | Y32: 1 | Z32: 1 | AA32: 1 | AB32: 1 | AC32: 1 | AD32: 2 | AE32: 2 | AF32: 2 | AG32: 3 | AH32: 3 | AJ32: =HLOOKUP(AJ30,$AQ$4:$DM$6,3,FALSE) -> 1 | AK32: 1 | AL32: 1 | AM32: 2 | AN32: 2 | AO32: 3 | AP32: 1 | AQ32: 1 | AR32: 2 | AS32: 2 | AT32: 3 | AU32: 3 | AV32: 3 | AW32: 4 | AY32: =HLOOKUP(AY30,$AQ$4:$DM$6,3,FALSE) -> 1 | AZ32: 2 | BA32: 3 | BB32: 3 | BC32: 4 | BD32: 5 | BE32: 6 | BF32: 1 | BG32: 3 | BH32: 4 | BI32: 5 | BJ32: 6 | BK32: 7 | BL32: 8 | BO32: 2600 | BP32: =ROUND(Výpočet!C34/(($BS$14-$BT$14)*1.163),0) -> 0 | BQ32: =ROUND(Výpočet!D34/(($BS$14-$BT$14)*1.163),0) -> 0 | BR32: =ROUND(Výpočet!E34/(($BS$14-$BT$14)*1.163),0) -> 0 | BS32: =ROUND(Výpočet!F34/(($BS$14-$BT$14)*1.163),0) -> 0 | BT32: =ROUND(Výpočet!G34/(($BS$14-$BT$14)*1.163),0) -> 0 | BU32: =ROUND(Výpočet!H34/(($BS$14-$BT$14)*1.163),0) -> 0 | BV32: =ROUND(Výpočet!I34/(($BS$14-$BT$14)*1.163),0) -> 0 | BW32: =ROUND(Výpočet!J34/(($BS$14-$BT$14)*1.163),0) -> 0 | BX32: =ROUND(Výpočet!K34/(($BS$14-$BT$14)*1.163),0) -> 118 | BY32: =ROUND(Výpočet!L34/(($BS$14-$BT$14)*1.163),0) -> 147 | BZ32: =ROUND(Výpočet!M34/(($BS$14-$BT$14)*1.163),0) -> 174 | CA32: =ROUND(Výpočet!N34/(($BS$14-$BT$14)*1.163),0) -> 201 | CB32: =ROUND(Výpočet!O34/(($BS$14-$BT$14)*1.163),0) -> 226 | CC32: =ROUND(Výpočet!P34/(($BS$14-$BT$14)*1.163),0) -> 275 | CD32: 2600
A33: 2600V | B33: =Výpočet!$S$34 -> 2600 | C33: 1 | D33: 1 | E33: 1 | F33: 1 | G33: 1 | H33: 1 | I33: 1 | J33: 1 | K33: 4 | L33: 6 | M33: 6 | N33: 7 | O33: 8 | P33: 8 | U33: =RANK(U34,$AQ$5:$DM$5,1) -> 1 | V33: 1 | W33: 1 | X33: 1 | Y33: 1 | Z33: 1 | AA33: 1 | AB33: 1 | AC33: 13 | AD33: 17 | AE33: 19 | AF33: 22 | AG33: 25 | AH33: 31 | AJ33: =RANK(AJ34,$AQ$5:$DM$5,1) -> 1 | AK33: 1 | AL33: 1 | AM33: 21 | AN33: 24 | AO33: 27 | AP33: 1 | AQ33: 1 | AR33: 18 | AS33: 23 | AT33: 27 | AU33: 31 | AV33: 34 | AW33: 41 | AY33: =RANK(AY34,$AQ$5:$DM$5,1) -> 1 | AZ33: 23 | BA33: 29 | BB33: 35 | BC33: 41 | BD33: 46 | BE33: 55 | BF33: 1 | BG33: 33 | BH33: 42 | BI33: 51 | BJ33: 59 | BK33: 66 | BL33: 75 | BO33: 3000 | BP33: =ROUND(Výpočet!C35/(($BS$14-$BT$14)*1.163),0) -> 0 | BQ33: =ROUND(Výpočet!D35/(($BS$14-$BT$14)*1.163),0) -> 0 | BR33: =ROUND(Výpočet!E35/(($BS$14-$BT$14)*1.163),0) -> 0 | BS33: =ROUND(Výpočet!F35/(($BS$14-$BT$14)*1.163),0) -> 0 | BT33: =ROUND(Výpočet!G35/(($BS$14-$BT$14)*1.163),0) -> 0 | BU33: =ROUND(Výpočet!H35/(($BS$14-$BT$14)*1.163),0) -> 0 | BV33: =ROUND(Výpočet!I35/(($BS$14-$BT$14)*1.163),0) -> 0 | BW33: =ROUND(Výpočet!J35/(($BS$14-$BT$14)*1.163),0) -> 0 | BX33: =ROUND(Výpočet!K35/(($BS$14-$BT$14)*1.163),0) -> 137 | BY33: =ROUND(Výpočet!L35/(($BS$14-$BT$14)*1.163),0) -> 170 | BZ33: =ROUND(Výpočet!M35/(($BS$14-$BT$14)*1.163),0) -> 201 | CA33: =ROUND(Výpočet!N35/(($BS$14-$BT$14)*1.163),0) -> 231 | CB33: =ROUND(Výpočet!O35/(($BS$14-$BT$14)*1.163),0) -> 261 | CC33: =ROUND(Výpočet!P35/(($BS$14-$BT$14)*1.163),0) -> 318 | CD33: 3000
A34: 3000V | B34: =Výpočet!$S$35 -> 3000 | C34: 1 | D34: 1 | E34: 1 | F34: 1 | G34: 1 | H34: 1 | I34: 1 | J34: 1 | K34: 5 | L34: 6 | M34: 7 | N34: 8 | O34: 8 | P34: 8 | T34: 900 | U34: =IF(ROUND((BP23/$AG$6)*(SQRT(100))/(SQRT($G$10)),2)<$AG$4,0.01,IF(ROUND((BP23/$AG$6)*(SQRT(100))/(SQRT($G$10)),2)>$AG$5,0.75,ROUND((BP23/$AG$6)*(SQRT(100))/(SQRT($G$10)),2))) -> 0.01 | V34: 0.01 | W34: 0.01 | X34: 0.01 | Y34: 0.01 | Z34: 0.01 | AA34: 0.01 | AB34: 0.01 | AC34: 0.13 | AD34: 0.17 | AE34: 0.19 | AF34: 0.22 | AG34: 0.25 | AH34: 0.31 | AI34: 900 | AJ34: =IF(ROUND((BP41/$AG$6)*(SQRT(100))/(SQRT($G$10)),2)<$AG$4,0.01,IF(ROUND((BP41/$AG$6)*(SQRT(100))/(SQRT($G$10)),2)>$AG$5,0.75,ROUND((BP41/$AG$6)*(SQRT(100))/(SQRT($G$10)),2))) -> 0.01 | AK34: 0.01 | AL34: 0.01 | AM34: 0.21 | AN34: 0.24 | AO34: 0.27 | AP34: 0.01 | AQ34: 0.01 | AR34: 0.18 | AS34: 0.23 | AT34: 0.27 | AU34: 0.31 | AV34: 0.34 | AW34: 0.41 | AX34: 900 | AY34: =IF(ROUND((BP59/$AG$6)*(SQRT(100))/(SQRT($G$10)),2)<$AG$4,0.01,IF(ROUND((BP59/$AG$6)*(SQRT(100))/(SQRT($G$10)),2)>$AG$5,0.75,ROUND((BP59/$AG$6)*(SQRT(100))/(SQRT($G$10)),2))) -> 0.01 | AZ34: 0.23 | BA34: 0.29 | BB34: 0.35 | BC34: 0.41 | BD34: 0.46 | BE34: 0.55 | BF34: 0.01 | BG34: 0.33 | BH34: 0.42 | BI34: 0.51 | BJ34: 0.59 | BK34: 0.66 | BL34: 0.75 | BM34: 900 | BO34: Height | BR34: =Výpočet!V36 -> Typ | BS34: =Výpočet!W36 -> 20 | BY34: =Výpočet!AC36 -> Typ | BZ34: =Výpočet!AD36 -> 21 | CD34: Height
S35: =T34&"V" -> 900V | U35: =HLOOKUP(U33,$AQ$4:$DM$6,3,FALSE) -> 1 | V35: 1 | W35: 1 | X35: 1 | Y35: 1 | Z35: 1 | AA35: 1 | AB35: 1 | AC35: 1 | AD35: 2 | AE35: 2 | AF35: 2 | AG35: 3 | AH35: 3 | AJ35: =HLOOKUP(AJ33,$AQ$4:$DM$6,3,FALSE) -> 1 | AK35: 1 | AL35: 1 | AM35: 2 | AN35: 3 | AO35: 3 | AP35: 1 | AQ35: 1 | AR35: 2 | AS35: 3 | AT35: 3 | AU35: 3 | AV35: 4 | AW35: 5 | AY35: =HLOOKUP(AY33,$AQ$4:$DM$6,3,FALSE) -> 1 | AZ35: 3 | BA35: 3 | BB35: 4 | BC35: 5 | BD35: 5 | BE35: 6 | BF35: 1 | BG35: 4 | BH35: 5 | BI35: 6 | BJ35: 7 | BK35: 7 | BL35: 8 | BO35: Length | BP35: =Výpočet!T37 -> 200 | BQ35: =Výpočet!U37 -> 300 | BR35: =Výpočet!V37 -> 400 | BS35: =Výpočet!W37 -> 500 | BT35: =Výpočet!X37 -> 600 | BU35: =Výpočet!Y37 -> 700 | BV35: =Výpočet!Z37 -> 900 | BW35: =Výpočet!AA37 -> 200 | BX35: =Výpočet!AB37 -> 300 | BY35: =Výpočet!AC37 -> 400 | BZ35: =Výpočet!AD37 -> 500 | CA35: =Výpočet!AE37 -> 600 | CB35: =Výpočet!AF37 -> 700 | CC35: =Výpočet!AG37 -> 900 | CD35: Length
F36: =Výpočet!V36 -> Typ | G36: =Výpočet!W36 -> 20 | M36: =Výpočet!AC36 -> Typ | N36: =Výpočet!AD36 -> 21 | U36: =RANK(U37,$AQ$5:$DM$5,1) -> 1 | V36: 1 | W36: 1 | X36: 1 | Y36: 1 | Z36: 1 | AA36: 1 | AB36: 1 | AC36: 15 | AD36: 18 | AE36: 22 | AF36: 25 | AG36: 28 | AH36: 34 | AJ36: =RANK(AJ37,$AQ$5:$DM$5,1) -> 1 | AK36: 1 | AL36: 1 | AM36: 24 | AN36: 27 | AO36: 30 | AP36: 1 | AQ36: 1 | AR36: 20 | AS36: 25 | AT36: 30 | AU36: 34 | AV36: 38 | AW36: 45 | AY36: =RANK(AY37,$AQ$5:$DM$5,1) -> 1 | AZ36: 26 | BA36: 32 | BB36: 39 | BC36: 45 | BD36: 51 | BE36: 62 | BF36: 1 | BG36: 37 | BH36: 47 | BI36: 56 | BJ36: 65 | BK36: 74 | BL36: 75 | BO36: 400 | BP36: =ROUND(Výpočet!C38/(($BS$14-$BT$14)*1.163),0) -> 0 | BQ36: =ROUND(Výpočet!D38/(($BS$14-$BT$14)*1.163),0) -> 0 | BR36: =ROUND(Výpočet!E38/(($BS$14-$BT$14)*1.163),0) -> 0 | BS36: =ROUND(Výpočet!F38/(($BS$14-$BT$14)*1.163),0) -> 29 | BT36: =ROUND(Výpočet!G38/(($BS$14-$BT$14)*1.163),0) -> 33 | BU36: =ROUND(Výpočet!H38/(($BS$14-$BT$14)*1.163),0) -> 37 | BV36: =ROUND(Výpočet!I38/(($BS$14-$BT$14)*1.163),0) -> 0 | BW36: =ROUND(Výpočet!J38/(($BS$14-$BT$14)*1.163),0) -> 0 | BX36: =ROUND(Výpočet!K38/(($BS$14-$BT$14)*1.163),0) -> 25 | BY36: =ROUND(Výpočet!L38/(($BS$14-$BT$14)*1.163),0) -> 31 | BZ36: =ROUND(Výpočet!M38/(($BS$14-$BT$14)*1.163),0) -> 37 | CA36: =ROUND(Výpočet!N38/(($BS$14-$BT$14)*1.163),0) -> 42 | CB36: =ROUND(Výpočet!O38/(($BS$14-$BT$14)*1.163),0) -> 47 | CC36: =ROUND(Výpočet!P38/(($BS$14-$BT$14)*1.163),0) -> 56 | CD36: 400
T37: 1000 | U37: =IF(ROUND((BP24/$AG$6)*(SQRT(100))/(SQRT($G$10)),2)<$AG$4,0.01,IF(ROUND((BP24/$AG$6)*(SQRT(100))/(SQRT($G$10)),2)>$AG$5,0.75,ROUND((BP24/$AG$6)*(SQRT(100))/(SQRT($G$10)),2))) -> 0.01 | V37: 0.01 | W37: 0.01 | X37: 0.01 | Y37: 0.01 | Z37: 0.01 | AA37: 0.01 | AB37: 0.01 | AC37: 0.15 | AD37: 0.18 | AE37: 0.22 | AF37: 0.25 | AG37: 0.28 | AH37: 0.34 | AI37: 1000 | AJ37: =IF(ROUND((BP42/$AG$6)*(SQRT(100))/(SQRT($G$10)),2)<$AG$4,0.01,IF(ROUND((BP42/$AG$6)*(SQRT(100))/(SQRT($G$10)),2)>$AG$5,0.75,ROUND((BP42/$AG$6)*(SQRT(100))/(SQRT($G$10)),2))) -> 0.01 | AK37: 0.01 | AL37: 0.01 | AM37: 0.24 | AN37: 0.27 | AO37: 0.3 | AP37: 0.01 | AQ37: 0.01 | AR37: 0.2 | AS37: 0.25 | AT37: 0.3 | AU37: 0.34 | AV37: 0.38 | AW37: 0.45 | AX37: 1000 | AY37: =IF(ROUND((BP60/$AG$6)*(SQRT(100))/(SQRT($G$10)),2)<$AG$4,0.01,IF(ROUND((BP60/$AG$6)*(SQRT(100))/(SQRT($G$10)),2)>$AG$5,0.75,ROUND((BP60/$AG$6)*(SQRT(100))/(SQRT($G$10)),2))) -> 0.01 | AZ37: 0.26 | BA37: 0.32 | BB37: 0.39 | BC37: 0.45 | BD37: 0.51 | BE37: 0.62 | BF37: 0.01 | BG37: 0.37 | BH37: 0.47 | BI37: 0.56 | BJ37: 0.65 | BK37: 0.74 | BL37: 0.75 | BM37: 1000 | BO37: 500 | BP37: =ROUND(Výpočet!C39/(($BS$14-$BT$14)*1.163),0) -> 0 | BQ37: =ROUND(Výpočet!D39/(($BS$14-$BT$14)*1.163),0) -> 0 | BR37: =ROUND(Výpočet!E39/(($BS$14-$BT$14)*1.163),0) -> 0 | BS37: =ROUND(Výpočet!F39/(($BS$14-$BT$14)*1.163),0) -> 36 | BT37: =ROUND(Výpočet!G39/(($BS$14-$BT$14)*1.163),0) -> 42 | BU37: =ROUND(Výpočet!H39/(($BS$14-$BT$14)*1.163),0) -> 47 | BV37: =ROUND(Výpočet!I39/(($BS$14-$BT$14)*1.163),0) -> 0 | BW37: =ROUND(Výpočet!J39/(($BS$14-$BT$14)*1.163),0) -> 0 | BX37: =ROUND(Výpočet!K39/(($BS$14-$BT$14)*1.163),0) -> 31 | BY37: =ROUND(Výpočet!L39/(($BS$14-$BT$14)*1.163),0) -> 39 | BZ37: =ROUND(Výpočet!M39/(($BS$14-$BT$14)*1.163),0) -> 46 | CA37: =ROUND(Výpočet!N39/(($BS$14-$BT$14)*1.163),0) -> 53 | CB37: =ROUND(Výpočet!O39/(($BS$14-$BT$14)*1.163),0) -> 59 | CC37: =ROUND(Výpočet!P39/(($BS$14-$BT$14)*1.163),0) -> 70 | CD37: 500
C38: =Výpočet!T9 -> 200 | D38: =Výpočet!U9 -> 300 | E38: =Výpočet!V9 -> 400 | F38: =Výpočet!W9 -> 500 | G38: =Výpočet!X9 -> 600 | H38: =Výpočet!Y9 -> 700 | I38: =Výpočet!Z9 -> 900 | J38: =Výpočet!AA9 -> 200 | K38: =Výpočet!AB9 -> 300 | L38: =Výpočet!AC9 -> 400 | M38: =Výpočet!AD9 -> 500 | N38: =Výpočet!AE9 -> 600 | O38: =Výpočet!AF9 -> 700 | P38: =Výpočet!AG9 -> 900 | S38: =T37&"V" -> 1000V | U38: =HLOOKUP(U36,$AQ$4:$DM$6,3,FALSE) -> 1 | V38: 1 | W38: 1 | X38: 1 | Y38: 1 | Z38: 1 | AA38: 1 | AB38: 1 | AC38: 2 | AD38: 2 | AE38: 2 | AF38: 3 | AG38: 3 | AH38: 4 | AJ38: =HLOOKUP(AJ36,$AQ$4:$DM$6,3,FALSE) -> 1 | AK38: 1 | AL38: 1 | AM38: 3 | AN38: 3 | AO38: 3 | AP38: 1 | AQ38: 1 | AR38: 2 | AS38: 3 | AT38: 3 | AU38: 4 | AV38: 4 | AW38: 5 | AY38: =HLOOKUP(AY36,$AQ$4:$DM$6,3,FALSE) -> 1 | AZ38: 3 | BA38: 4 | BB38: 5 | BC38: 5 | BD38: 6 | BE38: 7 | BF38: 1 | BG38: 4 | BH38: 5 | BI38: 6 | BJ38: 7 | BK38: 8 | BL38: 8 | BO38: 600 | BP38: =ROUND(Výpočet!C40/(($BS$14-$BT$14)*1.163),0) -> 0 | BQ38: =ROUND(Výpočet!D40/(($BS$14-$BT$14)*1.163),0) -> 0 | BR38: =ROUND(Výpočet!E40/(($BS$14-$BT$14)*1.163),0) -> 0 | BS38: =ROUND(Výpočet!F40/(($BS$14-$BT$14)*1.163),0) -> 44 | BT38: =ROUND(Výpočet!G40/(($BS$14-$BT$14)*1.163),0) -> 50 | BU38: =ROUND(Výpočet!H40/(($BS$14-$BT$14)*1.163),0) -> 56 | BV38: =ROUND(Výpočet!I40/(($BS$14-$BT$14)*1.163),0) -> 0 | BW38: =ROUND(Výpočet!J40/(($BS$14-$BT$14)*1.163),0) -> 0 | BX38: =ROUND(Výpočet!K40/(($BS$14-$BT$14)*1.163),0) -> 37 | BY38: =ROUND(Výpočet!L40/(($BS$14-$BT$14)*1.163),0) -> 47 | BZ38: =ROUND(Výpočet!M40/(($BS$14-$BT$14)*1.163),0) -> 55 | CA38: =ROUND(Výpočet!N40/(($BS$14-$BT$14)*1.163),0) -> 63 | CB38: =ROUND(Výpočet!O40/(($BS$14-$BT$14)*1.163),0) -> 71 | CC38: =ROUND(Výpočet!P40/(($BS$14-$BT$14)*1.163),0) -> 83 | CD38: 600
A39: =B39&"V" -> 400V | B39: =Výpočet!$S$20 -> 400 | C39: =SUMIF($S:$S,$A39,AJ:AJ) -> 1 | D39: =SUMIF($S:$S,$A39,AK:AK) -> 1 | E39: =SUMIF($S:$S,$A39,AL:AL) -> 1 | F39: =SUMIF($S:$S,$A39,AM:AM) -> 1 | G39: =SUMIF($S:$S,$A39,AN:AN) -> 1 | H39: =SUMIF($S:$S,$A39,AO:AO) -> 1 | I39: =SUMIF($S:$S,$A39,AP:AP) -> 1 | J39: =SUMIF($S:$S,$A39,AQ:AQ) -> 1 | K39: =SUMIF($S:$S,$A39,AR:AR) -> 1 | L39: =SUMIF($S:$S,$A39,AS:AS) -> 1 | M39: =SUMIF($S:$S,$A39,AT:AT) -> 1 | N39: =SUMIF($S:$S,$A39,AU:AU) -> 2 | O39: =SUMIF($S:$S,$A39,AV:AV) -> 2 | P39: =SUMIF($S:$S,$A39,AW:AW) -> 2 | U39: =RANK(U40,$AQ$5:$DM$5,1) -> 1 | V39: 1 | W39: 1 | X39: 1 | Y39: 1 | Z39: 1 | AA39: 1 | AB39: 1 | AC39: 16 | AD39: 20 | AE39: 24 | AF39: 28 | AG39: 31 | AH39: 38 | AJ39: =RANK(AJ40,$AQ$5:$DM$5,1) -> 1 | AK39: 1 | AL39: 1 | AM39: 26 | AN39: 30 | AO39: 33 | AP39: 1 | AQ39: 1 | AR39: 22 | AS39: 28 | AT39: 33 | AU39: 38 | AV39: 42 | AW39: 50 | AY39: =RANK(AY40,$AQ$5:$DM$5,1) -> 1 | AZ39: 28 | BA39: 36 | BB39: 43 | BC39: 50 | BD39: 56 | BE39: 68 | BF39: 1 | BG39: 41 | BH39: 52 | BI39: 62 | BJ39: 72 | BK39: 75 | BL39: 75 | BO39: 700 | BP39: =ROUND(Výpočet!C41/(($BS$14-$BT$14)*1.163),0) -> 0 | BQ39: =ROUND(Výpočet!D41/(($BS$14-$BT$14)*1.163),0) -> 0 | BR39: =ROUND(Výpočet!E41/(($BS$14-$BT$14)*1.163),0) -> 0 | BS39: =ROUND(Výpočet!F41/(($BS$14-$BT$14)*1.163),0) -> 51 | BT39: =ROUND(Výpočet!G41/(($BS$14-$BT$14)*1.163),0) -> 58 | BU39: =ROUND(Výpočet!H41/(($BS$14-$BT$14)*1.163),0) -> 65 | BV39: =ROUND(Výpočet!I41/(($BS$14-$BT$14)*1.163),0) -> 0 | BW39: =ROUND(Výpočet!J41/(($BS$14-$BT$14)*1.163),0) -> 0 | BX39: =ROUND(Výpočet!K41/(($BS$14-$BT$14)*1.163),0) -> 43 | BY39: =ROUND(Výpočet!L41/(($BS$14-$BT$14)*1.163),0) -> 54 | BZ39: =ROUND(Výpočet!M41/(($BS$14-$BT$14)*1.163),0) -> 64 | CA39: =ROUND(Výpočet!N41/(($BS$14-$BT$14)*1.163),0) -> 74 | CB39: =ROUND(Výpočet!O41/(($BS$14-$BT$14)*1.163),0) -> 82 | CC39: =ROUND(Výpočet!P41/(($BS$14-$BT$14)*1.163),0) -> 97 | CD39: 700
A40: =B40&"V" -> 500V | B40: =Výpočet!$S$21 -> 500 | C40: =SUMIF($S:$S,$A40,AJ:AJ) -> 1 | D40: 1 | E40: 1 | F40: 1 | G40: 2 | H40: 2 | I40: 1 | J40: 1 | K40: 1 | L40: 1 | M40: 2 | N40: 2 | O40: 2 | P40: 3 | T40: 1100 | U40: =IF(ROUND((BP25/$AG$6)*(SQRT(100))/(SQRT($G$10)),2)<$AG$4,0.01,IF(ROUND((BP25/$AG$6)*(SQRT(100))/(SQRT($G$10)),2)>$AG$5,0.75,ROUND((BP25/$AG$6)*(SQRT(100))/(SQRT($G$10)),2))) -> 0.01 | V40: 0.01 | W40: 0.01 | X40: 0.01 | Y40: 0.01 | Z40: 0.01 | AA40: 0.01 | AB40: 0.01 | AC40: 0.16 | AD40: 0.2 | AE40: 0.24 | AF40: 0.28 | AG40: 0.31 | AH40: 0.38 | AI40: 1100 | AJ40: =IF(ROUND((BP43/$AG$6)*(SQRT(100))/(SQRT($G$10)),2)<$AG$4,0.01,IF(ROUND((BP43/$AG$6)*(SQRT(100))/(SQRT($G$10)),2)>$AG$5,0.75,ROUND((BP43/$AG$6)*(SQRT(100))/(SQRT($G$10)),2))) -> 0.01 | AK40: 0.01 | AL40: 0.01 | AM40: 0.26 | AN40: 0.3 | AO40: 0.33 | AP40: 0.01 | AQ40: 0.01 | AR40: 0.22 | AS40: 0.28 | AT40: 0.33 | AU40: 0.38 | AV40: 0.42 | AW40: 0.5 | AX40: 1100 | AY40: =IF(ROUND((BP61/$AG$6)*(SQRT(100))/(SQRT($G$10)),2)<$AG$4,0.01,IF(ROUND((BP61/$AG$6)*(SQRT(100))/(SQRT($G$10)),2)>$AG$5,0.75,ROUND((BP61/$AG$6)*(SQRT(100))/(SQRT($G$10)),2))) -> 0.01 | AZ40: 0.28 | BA40: 0.36 | BB40: 0.43 | BC40: 0.5 | BD40: 0.56 | BE40: 0.68 | BF40: 0.01 | BG40: 0.41 | BH40: 0.52 | BI40: 0.62 | BJ40: 0.72 | BK40: 0.75 | BL40: 0.75 | BM40: 1100 | BO40: 800 | BP40: =ROUND(Výpočet!C42/(($BS$14-$BT$14)*1.163),0) -> 0 | BQ40: =ROUND(Výpočet!D42/(($BS$14-$BT$14)*1.163),0) -> 0 | BR40: =ROUND(Výpočet!E42/(($BS$14-$BT$14)*1.163),0) -> 0 | BS40: =ROUND(Výpočet!F42/(($BS$14-$BT$14)*1.163),0) -> 58 | BT40: =ROUND(Výpočet!G42/(($BS$14-$BT$14)*1.163),0) -> 67 | BU40: =ROUND(Výpočet!H42/(($BS$14-$BT$14)*1.163),0) -> 75 | BV40: =ROUND(Výpočet!I42/(($BS$14-$BT$14)*1.163),0) -> 0 | BW40: =ROUND(Výpočet!J42/(($BS$14-$BT$14)*1.163),0) -> 0 | BX40: =ROUND(Výpočet!K42/(($BS$14-$BT$14)*1.163),0) -> 50 | BY40: =ROUND(Výpočet!L42/(($BS$14-$BT$14)*1.163),0) -> 62 | BZ40: =ROUND(Výpočet!M42/(($BS$14-$BT$14)*1.163),0) -> 74 | CA40: =ROUND(Výpočet!N42/(($BS$14-$BT$14)*1.163),0) -> 84 | CB40: =ROUND(Výpočet!O42/(($BS$14-$BT$14)*1.163),0) -> 94 | CC40: =ROUND(Výpočet!P42/(($BS$14-$BT$14)*1.163),0) -> 111 | CD40: 800
A41: 600V | B41: =Výpočet!$S$22 -> 600 | C41: 1 | D41: 1 | E41: 1 | F41: 2 | G41: 2 | H41: 2 | I41: 1 | J41: 1 | K41: 1 | L41: 2 | M41: 2 | N41: 2 | O41: 3 | P41: 3 | S41: =T40&"V" -> 1100V | U41: =HLOOKUP(U39,$AQ$4:$DM$6,3,FALSE) -> 1 | V41: 1 | W41: 1 | X41: 1 | Y41: 1 | Z41: 1 | AA41: 1 | AB41: 1 | AC41: 2 | AD41: 2 | AE41: 3 | AF41: 3 | AG41: 3 | AH41: 4 | AJ41: =HLOOKUP(AJ39,$AQ$4:$DM$6,3,FALSE) -> 1 | AK41: 1 | AL41: 1 | AM41: 3 | AN41: 3 | AO41: 4 | AP41: 1 | AQ41: 1 | AR41: 2 | AS41: 3 | AT41: 4 | AU41: 4 | AV41: 5 | AW41: 6 | AY41: =HLOOKUP(AY39,$AQ$4:$DM$6,3,FALSE) -> 1 | AZ41: 3 | BA41: 4 | BB41: 5 | BC41: 6 | BD41: 6 | BE41: 8 | BF41: 1 | BG41: 5 | BH41: 6 | BI41: 7 | BJ41: 8 | BK41: 8 | BL41: 8 | BO41: 900 | BP41: =ROUND(Výpočet!C43/(($BS$14-$BT$14)*1.163),0) -> 0 | BQ41: =ROUND(Výpočet!D43/(($BS$14-$BT$14)*1.163),0) -> 0 | BR41: =ROUND(Výpočet!E43/(($BS$14-$BT$14)*1.163),0) -> 0 | BS41: =ROUND(Výpočet!F43/(($BS$14-$BT$14)*1.163),0) -> 66 | BT41: =ROUND(Výpočet!G43/(($BS$14-$BT$14)*1.163),0) -> 75 | BU41: =ROUND(Výpočet!H43/(($BS$14-$BT$14)*1.163),0) -> 84 | BV41: =ROUND(Výpočet!I43/(($BS$14-$BT$14)*1.163),0) -> 0 | BW41: =ROUND(Výpočet!J43/(($BS$14-$BT$14)*1.163),0) -> 0 | BX41: =ROUND(Výpočet!K43/(($BS$14-$BT$14)*1.163),0) -> 56 | BY41: =ROUND(Výpočet!L43/(($BS$14-$BT$14)*1.163),0) -> 70 | BZ41: =ROUND(Výpočet!M43/(($BS$14-$BT$14)*1.163),0) -> 83 | CA41: =ROUND(Výpočet!N43/(($BS$14-$BT$14)*1.163),0) -> 95 | CB41: =ROUND(Výpočet!O43/(($BS$14-$BT$14)*1.163),0) -> 106 | CC41: =ROUND(Výpočet!P43/(($BS$14-$BT$14)*1.163),0) -> 125 | CD41: 900
A42: 700V | B42: =Výpočet!$S$23 -> 700 | C42: 1 | D42: 1 | E42: 1 | F42: 2 | G42: 2 | H42: 2 | I42: 1 | J42: 1 | K42: 2 | L42: 2 | M42: 2 | N42: 3 | O42: 3 | P42: 3 | U42: =RANK(U43,$AQ$5:$DM$5,1) -> 1 | V42: 1 | W42: 1 | X42: 1 | Y42: 1 | Z42: 1 | AA42: 1 | AB42: 1 | AC42: 18 | AD42: 22 | AE42: 26 | AF42: 30 | AG42: 34 | AH42: 41 | AJ42: =RANK(AJ43,$AQ$5:$DM$5,1) -> 1 | AK42: 1 | AL42: 1 | AM42: 29 | AN42: 32 | AO42: 36 | AP42: 1 | AQ42: 1 | AR42: 24 | AS42: 30 | AT42: 36 | AU42: 41 | AV42: 46 | AW42: 54 | AY42: =RANK(AY43,$AQ$5:$DM$5,1) -> 1 | AZ42: 30 | BA42: 39 | BB42: 47 | BC42: 54 | BD42: 61 | BE42: 74 | BF42: 1 | BG42: 45 | BH42: 56 | BI42: 68 | BJ42: 75 | BK42: 75 | BL42: 75 | BO42: 1000 | BP42: =ROUND(Výpočet!C44/(($BS$14-$BT$14)*1.163),0) -> 0 | BQ42: =ROUND(Výpočet!D44/(($BS$14-$BT$14)*1.163),0) -> 0 | BR42: =ROUND(Výpočet!E44/(($BS$14-$BT$14)*1.163),0) -> 0 | BS42: =ROUND(Výpočet!F44/(($BS$14-$BT$14)*1.163),0) -> 73 | BT42: =ROUND(Výpočet!G44/(($BS$14-$BT$14)*1.163),0) -> 83 | BU42: =ROUND(Výpočet!H44/(($BS$14-$BT$14)*1.163),0) -> 93 | BV42: =ROUND(Výpočet!I44/(($BS$14-$BT$14)*1.163),0) -> 0 | BW42: =ROUND(Výpočet!J44/(($BS$14-$BT$14)*1.163),0) -> 0 | BX42: =ROUND(Výpočet!K44/(($BS$14-$BT$14)*1.163),0) -> 62 | BY42: =ROUND(Výpočet!L44/(($BS$14-$BT$14)*1.163),0) -> 78 | BZ42: =ROUND(Výpočet!M44/(($BS$14-$BT$14)*1.163),0) -> 92 | CA42: =ROUND(Výpočet!N44/(($BS$14-$BT$14)*1.163),0) -> 105 | CB42: =ROUND(Výpočet!O44/(($BS$14-$BT$14)*1.163),0) -> 118 | CC42: =ROUND(Výpočet!P44/(($BS$14-$BT$14)*1.163),0) -> 139 | CD42: 1000
A43: 800V | B43: =Výpočet!$S$24 -> 800 | C43: 1 | D43: 1 | E43: 1 | F43: 2 | G43: 2 | H43: 3 | I43: 1 | J43: 1 | K43: 2 | L43: 2 | M43: 3 | N43: 3 | O43: 3 | P43: 4 | T43: 1200 | U43: =IF(ROUND((BP26/$AG$6)*(SQRT(100))/(SQRT($G$10)),2)<$AG$4,0.01,IF(ROUND((BP26/$AG$6)*(SQRT(100))/(SQRT($G$10)),2)>$AG$5,0.75,ROUND((BP26/$AG$6)*(SQRT(100))/(SQRT($G$10)),2))) -> 0.01 | V43: 0.01 | W43: 0.01 | X43: 0.01 | Y43: 0.01 | Z43: 0.01 | AA43: 0.01 | AB43: 0.01 | AC43: 0.18 | AD43: 0.22 | AE43: 0.26 | AF43: 0.3 | AG43: 0.34 | AH43: 0.41 | AI43: 1200 | AJ43: =IF(ROUND((BP44/$AG$6)*(SQRT(100))/(SQRT($G$10)),2)<$AG$4,0.01,IF(ROUND((BP44/$AG$6)*(SQRT(100))/(SQRT($G$10)),2)>$AG$5,0.75,ROUND((BP44/$AG$6)*(SQRT(100))/(SQRT($G$10)),2))) -> 0.01 | AK43: 0.01 | AL43: 0.01 | AM43: 0.29 | AN43: 0.32 | AO43: 0.36 | AP43: 0.01 | AQ43: 0.01 | AR43: 0.24 | AS43: 0.3 | AT43: 0.36 | AU43: 0.41 | AV43: 0.46 | AW43: 0.54 | AX43: 1200 | AY43: =IF(ROUND((BP62/$AG$6)*(SQRT(100))/(SQRT($G$10)),2)<$AG$4,0.01,IF(ROUND((BP62/$AG$6)*(SQRT(100))/(SQRT($G$10)),2)>$AG$5,0.75,ROUND((BP62/$AG$6)*(SQRT(100))/(SQRT($G$10)),2))) -> 0.01 | AZ43: 0.3 | BA43: 0.39 | BB43: 0.47 | BC43: 0.54 | BD43: 0.61 | BE43: 0.74 | BF43: 0.01 | BG43: 0.45 | BH43: 0.56 | BI43: 0.68 | BJ43: 0.75 | BK43: 0.75 | BL43: 0.75 | BM43: 1200 | BO43: 1100 | BP43: =ROUND(Výpočet!C45/(($BS$14-$BT$14)*1.163),0) -> 0 | BQ43: =ROUND(Výpočet!D45/(($BS$14-$BT$14)*1.163),0) -> 0 | BR43: =ROUND(Výpočet!E45/(($BS$14-$BT$14)*1.163),0) -> 0 | BS43: =ROUND(Výpočet!F45/(($BS$14-$BT$14)*1.163),0) -> 80 | BT43: =ROUND(Výpočet!G45/(($BS$14-$BT$14)*1.163),0) -> 92 | BU43: =ROUND(Výpočet!H45/(($BS$14-$BT$14)*1.163),0) -> 103 | BV43: =ROUND(Výpočet!I45/(($BS$14-$BT$14)*1.163),0) -> 0 | BW43: =ROUND(Výpočet!J45/(($BS$14-$BT$14)*1.163),0) -> 0 | BX43: =ROUND(Výpočet!K45/(($BS$14-$BT$14)*1.163),0) -> 68 | BY43: =ROUND(Výpočet!L45/(($BS$14-$BT$14)*1.163),0) -> 85 | BZ43: =ROUND(Výpočet!M45/(($BS$14-$BT$14)*1.163),0) -> 101 | CA43: =ROUND(Výpočet!N45/(($BS$14-$BT$14)*1.163),0) -> 116 | CB43: =ROUND(Výpočet!O45/(($BS$14-$BT$14)*1.163),0) -> 129 | CC43: =ROUND(Výpočet!P45/(($BS$14-$BT$14)*1.163),0) -> 153 | CD43: 1100
A44: 900V | B44: =Výpočet!$S$25 -> 900 | C44: 1 | D44: 1 | E44: 1 | F44: 2 | G44: 3 | H44: 3 | I44: 1 | J44: 1 | K44: 2 | L44: 3 | M44: 3 | N44: 3 | O44: 4 | P44: 5 | S44: =T43&"V" -> 1200V | U44: =HLOOKUP(U42,$AQ$4:$DM$6,3,FALSE) -> 1 | V44: 1 | W44: 1 | X44: 1 | Y44: 1 | Z44: 1 | AA44: 1 | AB44: 1 | AC44: 2 | AD44: 2 | AE44: 3 | AF44: 3 | AG44: 4 | AH44: 5 | AJ44: =HLOOKUP(AJ42,$AQ$4:$DM$6,3,FALSE) -> 1 | AK44: 1 | AL44: 1 | AM44: 3 | AN44: 4 | AO44: 4 | AP44: 1 | AQ44: 1 | AR44: 3 | AS44: 3 | AT44: 4 | AU44: 5 | AV44: 5 | AW44: 6 | AY44: =HLOOKUP(AY42,$AQ$4:$DM$6,3,FALSE) -> 1 | AZ44: 3 | BA44: 5 | BB44: 5 | BC44: 6 | BD44: 7 | BE44: 8 | BF44: 1 | BG44: 5 | BH44: 6 | BI44: 8 | BJ44: 8 | BK44: 8 | BL44: 8 | BO44: 1200 | BP44: =ROUND(Výpočet!C46/(($BS$14-$BT$14)*1.163),0) -> 0 | BQ44: =ROUND(Výpočet!D46/(($BS$14-$BT$14)*1.163),0) -> 0 | BR44: =ROUND(Výpočet!E46/(($BS$14-$BT$14)*1.163),0) -> 0 | BS44: =ROUND(Výpočet!F46/(($BS$14-$BT$14)*1.163),0) -> 88 | BT44: =ROUND(Výpočet!G46/(($BS$14-$BT$14)*1.163),0) -> 100 | BU44: =ROUND(Výpočet!H46/(($BS$14-$BT$14)*1.163),0) -> 112 | BV44: =ROUND(Výpočet!I46/(($BS$14-$BT$14)*1.163),0) -> 0 | BW44: =ROUND(Výpočet!J46/(($BS$14-$BT$14)*1.163),0) -> 0 | BX44: =ROUND(Výpočet!K46/(($BS$14-$BT$14)*1.163),0) -> 74 | BY44: =ROUND(Výpočet!L46/(($BS$14-$BT$14)*1.163),0) -> 93 | BZ44: =ROUND(Výpočet!M46/(($BS$14-$BT$14)*1.163),0) -> 111 | CA44: =ROUND(Výpočet!N46/(($BS$14-$BT$14)*1.163),0) -> 126 | CB44: =ROUND(Výpočet!O46/(($BS$14-$BT$14)*1.163),0) -> 141 | CC44: =ROUND(Výpočet!P46/(($BS$14-$BT$14)*1.163),0) -> 167 | CD44: 1200
A45: 1000V | B45: =Výpočet!$S$26 -> 1000 | C45: 1 | D45: 1 | E45: 1 | F45: 3 | G45: 3 | H45: 3 | I45: 1 | J45: 1 | K45: 2 | L45: 3 | M45: 3 | N45: 4 | O45: 4 | P45: 5 | U45: =RANK(U46,$AQ$5:$DM$5,1) -> 1 | V45: 1 | W45: 1 | X45: 1 | Y45: 1 | Z45: 1 | AA45: 1 | AB45: 1 | AC45: 21 | AD45: 26 | AE45: 30 | AF45: 35 | AG45: 40 | AH45: 48 | AJ45: =RANK(AJ46,$AQ$5:$DM$5,1) -> 1 | AK45: 1 | AL45: 1 | AM45: 33 | AN45: 38 | AO45: 42 | AP45: 1 | AQ45: 1 | AR45: 28 | AS45: 35 | AT45: 42 | AU45: 48 | AV45: 54 | AW45: 63 | AY45: =RANK(AY46,$AQ$5:$DM$5,1) -> 1 | AZ45: 36 | BA45: 45 | BB45: 55 | BC45: 63 | BD45: 71 | BE45: 75 | BF45: 1 | BG45: 52 | BH45: 66 | BI45: 75 | BJ45: 75 | BK45: 75 | BL45: 75 | BO45: 1400 | BP45: =ROUND(Výpočet!C47/(($BS$14-$BT$14)*1.163),0) -> 0 | BQ45: =ROUND(Výpočet!D47/(($BS$14-$BT$14)*1.163),0) -> 0 | BR45: =ROUND(Výpočet!E47/(($BS$14-$BT$14)*1.163),0) -> 0 | BS45: =ROUND(Výpočet!F47/(($BS$14-$BT$14)*1.163),0) -> 102 | BT45: =ROUND(Výpočet!G47/(($BS$14-$BT$14)*1.163),0) -> 117 | BU45: =ROUND(Výpočet!H47/(($BS$14-$BT$14)*1.163),0) -> 131 | BV45: =ROUND(Výpočet!I47/(($BS$14-$BT$14)*1.163),0) -> 0 | BW45: =ROUND(Výpočet!J47/(($BS$14-$BT$14)*1.163),0) -> 0 | BX45: =ROUND(Výpočet!K47/(($BS$14-$BT$14)*1.163),0) -> 87 | BY45: =ROUND(Výpočet!L47/(($BS$14-$BT$14)*1.163),0) -> 109 | BZ45: =ROUND(Výpočet!M47/(($BS$14-$BT$14)*1.163),0) -> 129 | CA45: =ROUND(Výpočet!N47/(($BS$14-$BT$14)*1.163),0) -> 148 | CB45: =ROUND(Výpočet!O47/(($BS$14-$BT$14)*1.163),0) -> 165 | CC45: =ROUND(Výpočet!P47/(($BS$14-$BT$14)*1.163),0) -> 195 | CD45: 1400
A46: 1100V | B46: =Výpočet!$S$27 -> 1100 | C46: 1 | D46: 1 | E46: 1 | F46: 3 | G46: 3 | H46: 4 | I46: 1 | J46: 1 | K46: 2 | L46: 3 | M46: 4 | N46: 4 | O46: 5 | P46: 6 | T46: 1400 | U46: =IF(ROUND((BP27/$AG$6)*(SQRT(100))/(SQRT($G$10)),2)<$AG$4,0.01,IF(ROUND((BP27/$AG$6)*(SQRT(100))/(SQRT($G$10)),2)>$AG$5,0.75,ROUND((BP27/$AG$6)*(SQRT(100))/(SQRT($G$10)),2))) -> 0.01 | V46: 0.01 | W46: 0.01 | X46: 0.01 | Y46: 0.01 | Z46: 0.01 | AA46: 0.01 | AB46: 0.01 | AC46: 0.21 | AD46: 0.26 | AE46: 0.3 | AF46: 0.35 | AG46: 0.4 | AH46: 0.48 | AI46: 1400 | AJ46: =IF(ROUND((BP45/$AG$6)*(SQRT(100))/(SQRT($G$10)),2)<$AG$4,0.01,IF(ROUND((BP45/$AG$6)*(SQRT(100))/(SQRT($G$10)),2)>$AG$5,0.75,ROUND((BP45/$AG$6)*(SQRT(100))/(SQRT($G$10)),2))) -> 0.01 | AK46: 0.01 | AL46: 0.01 | AM46: 0.33 | AN46: 0.38 | AO46: 0.42 | AP46: 0.01 | AQ46: 0.01 | AR46: 0.28 | AS46: 0.35 | AT46: 0.42 | AU46: 0.48 | AV46: 0.54 | AW46: 0.63 | AX46: 1400 | AY46: =IF(ROUND((BP63/$AG$6)*(SQRT(100))/(SQRT($G$10)),2)<$AG$4,0.01,IF(ROUND((BP63/$AG$6)*(SQRT(100))/(SQRT($G$10)),2)>$AG$5,0.75,ROUND((BP63/$AG$6)*(SQRT(100))/(SQRT($G$10)),2))) -> 0.01 | AZ46: 0.36 | BA46: 0.45 | BB46: 0.55 | BC46: 0.63 | BD46: 0.71 | BE46: 0.75 | BF46: 0.01 | BG46: 0.52 | BH46: 0.66 | BI46: 0.75 | BJ46: 0.75 | BK46: 0.75 | BL46: 0.75 | BM46: 1400 | BO46: 1600 | BP46: =ROUND(Výpočet!C48/(($BS$14-$BT$14)*1.163),0) -> 0 | BQ46: =ROUND(Výpočet!D48/(($BS$14-$BT$14)*1.163),0) -> 0 | BR46: =ROUND(Výpočet!E48/(($BS$14-$BT$14)*1.163),0) -> 0 | BS46: =ROUND(Výpočet!F48/(($BS$14-$BT$14)*1.163),0) -> 117 | BT46: =ROUND(Výpočet!G48/(($BS$14-$BT$14)*1.163),0) -> 133 | BU46: =ROUND(Výpočet!H48/(($BS$14-$BT$14)*1.163),0) -> 149 | BV46: =ROUND(Výpočet!I48/(($BS$14-$BT$14)*1.163),0) -> 0 | BW46: =ROUND(Výpočet!J48/(($BS$14-$BT$14)*1.163),0) -> 0 | BX46: =ROUND(Výpočet!K48/(($BS$14-$BT$14)*1.163),0) -> 99 | BY46: =ROUND(Výpočet!L48/(($BS$14-$BT$14)*1.163),0) -> 124 | BZ46: =ROUND(Výpočet!M48/(($BS$14-$BT$14)*1.163),0) -> 147 | CA46: =ROUND(Výpočet!N48/(($BS$14-$BT$14)*1.163),0) -> 169 | CB46: =ROUND(Výpočet!O48/(($BS$14-$BT$14)*1.163),0) -> 188 | CC46: =ROUND(Výpočet!P48/(($BS$14-$BT$14)*1.163),0) -> 222 | CD46: 1600
A47: 1200V | B47: =Výpočet!$S$28 -> 1200 | C47: 1 | D47: 1 | E47: 1 | F47: 3 | G47: 4 | H47: 4 | I47: 1 | J47: 1 | K47: 3 | L47: 3 | M47: 4 | N47: 5 | O47: 5 | P47: 6 | S47: =T46&"V" -> 1400V | U47: =HLOOKUP(U45,$AQ$4:$DM$6,3,FALSE) -> 1 | V47: 1 | W47: 1 | X47: 1 | Y47: 1 | Z47: 1 | AA47: 1 | AB47: 1 | AC47: 2 | AD47: 3 | AE47: 3 | AF47: 4 | AG47: 5 | AH47: 6 | AJ47: =HLOOKUP(AJ45,$AQ$4:$DM$6,3,FALSE) -> 1 | AK47: 1 | AL47: 1 | AM47: 4 | AN47: 4 | AO47: 5 | AP47: 1 | AQ47: 1 | AR47: 3 | AS47: 4 | AT47: 5 | AU47: 6 | AV47: 6 | AW47: 7 | AY47: =HLOOKUP(AY45,$AQ$4:$DM$6,3,FALSE) -> 1 | AZ47: 4 | BA47: 5 | BB47: 6 | BC47: 7 | BD47: 8 | BE47: 8 | BF47: 1 | BG47: 6 | BH47: 7 | BI47: 8 | BJ47: 8 | BK47: 8 | BL47: 8 | BO47: 1800 | BP47: =ROUND(Výpočet!C49/(($BS$14-$BT$14)*1.163),0) -> 0 | BQ47: =ROUND(Výpočet!D49/(($BS$14-$BT$14)*1.163),0) -> 0 | BR47: =ROUND(Výpočet!E49/(($BS$14-$BT$14)*1.163),0) -> 0 | BS47: =ROUND(Výpočet!F49/(($BS$14-$BT$14)*1.163),0) -> 131 | BT47: =ROUND(Výpočet!G49/(($BS$14-$BT$14)*1.163),0) -> 150 | BU47: =ROUND(Výpočet!H49/(($BS$14-$BT$14)*1.163),0) -> 168 | BV47: =ROUND(Výpočet!I49/(($BS$14-$BT$14)*1.163),0) -> 0 | BW47: =ROUND(Výpočet!J49/(($BS$14-$BT$14)*1.163),0) -> 0 | BX47: =ROUND(Výpočet!K49/(($BS$14-$BT$14)*1.163),0) -> 111 | BY47: =ROUND(Výpočet!L49/(($BS$14-$BT$14)*1.163),0) -> 140 | BZ47: =ROUND(Výpočet!M49/(($BS$14-$BT$14)*1.163),0) -> 166 | CA47: =ROUND(Výpočet!N49/(($BS$14-$BT$14)*1.163),0) -> 190 | CB47: =ROUND(Výpočet!O49/(($BS$14-$BT$14)*1.163),0) -> 212 | CC47: =ROUND(Výpočet!P49/(($BS$14-$BT$14)*1.163),0) -> 250 | CD47: 1800
A48: 1400V | B48: =Výpočet!$S$29 -> 1400 | C48: 1 | D48: 1 | E48: 1 | F48: 4 | G48: 4 | H48: 5 | I48: 1 | J48: 1 | K48: 3 | L48: 4 | M48: 5 | N48: 6 | O48: 6 | P48: 7 | U48: =RANK(U49,$AQ$5:$DM$5,1) -> 1 | V48: 1 | W48: 1 | X48: 1 | Y48: 1 | Z48: 1 | AA48: 1 | AB48: 1 | AC48: 24 | AD48: 30 | AE48: 35 | AF48: 40 | AG48: 45 | AH48: 55 | AJ48: =RANK(AJ49,$AQ$5:$DM$5,1) -> 1 | AK48: 1 | AL48: 1 | AM48: 38 | AN48: 43 | AO48: 48 | AP48: 1 | AQ48: 1 | AR48: 32 | AS48: 40 | AT48: 48 | AU48: 55 | AV48: 61 | AW48: 72 | AY48: =RANK(AY49,$AQ$5:$DM$5,1) -> 1 | AZ48: 41 | BA48: 52 | BB48: 63 | BC48: 72 | BD48: 75 | BE48: 75 | BF48: 1 | BG48: 60 | BH48: 75 | BI48: 75 | BJ48: 75 | BK48: 75 | BL48: 75 | BO48: 2000 | BP48: =ROUND(Výpočet!C50/(($BS$14-$BT$14)*1.163),0) -> 0 | BQ48: =ROUND(Výpočet!D50/(($BS$14-$BT$14)*1.163),0) -> 0 | BR48: =ROUND(Výpočet!E50/(($BS$14-$BT$14)*1.163),0) -> 0 | BS48: =ROUND(Výpočet!F50/(($BS$14-$BT$14)*1.163),0) -> 146 | BT48: =ROUND(Výpočet!G50/(($BS$14-$BT$14)*1.163),0) -> 167 | BU48: =ROUND(Výpočet!H50/(($BS$14-$BT$14)*1.163),0) -> 187 | BV48: =ROUND(Výpočet!I50/(($BS$14-$BT$14)*1.163),0) -> 0 | BW48: =ROUND(Výpočet!J50/(($BS$14-$BT$14)*1.163),0) -> 0 | BX48: =ROUND(Výpočet!K50/(($BS$14-$BT$14)*1.163),0) -> 124 | BY48: =ROUND(Výpočet!L50/(($BS$14-$BT$14)*1.163),0) -> 155 | BZ48: =ROUND(Výpočet!M50/(($BS$14-$BT$14)*1.163),0) -> 184 | CA48: =ROUND(Výpočet!N50/(($BS$14-$BT$14)*1.163),0) -> 211 | CB48: =ROUND(Výpočet!O50/(($BS$14-$BT$14)*1.163),0) -> 235 | CC48: =ROUND(Výpočet!P50/(($BS$14-$BT$14)*1.163),0) -> 278 | CD48: 2000
A49: 1600V | B49: =Výpočet!$S$30 -> 1600 | C49: 1 | D49: 1 | E49: 1 | F49: 4 | G49: 5 | H49: 6 | I49: 1 | J49: 1 | K49: 4 | L49: 5 | M49: 6 | N49: 6 | O49: 7 | P49: 8 | T49: 1600 | U49: =IF(ROUND((BP28/$AG$6)*(SQRT(100))/(SQRT($G$10)),2)<$AG$4,0.01,IF(ROUND((BP28/$AG$6)*(SQRT(100))/(SQRT($G$10)),2)>$AG$5,0.75,ROUND((BP28/$AG$6)*(SQRT(100))/(SQRT($G$10)),2))) -> 0.01 | V49: 0.01 | W49: 0.01 | X49: 0.01 | Y49: 0.01 | Z49: 0.01 | AA49: 0.01 | AB49: 0.01 | AC49: 0.24 | AD49: 0.3 | AE49: 0.35 | AF49: 0.4 | AG49: 0.45 | AH49: 0.55 | AI49: 1600 | AJ49: =IF(ROUND((BP46/$AG$6)*(SQRT(100))/(SQRT($G$10)),2)<$AG$4,0.01,IF(ROUND((BP46/$AG$6)*(SQRT(100))/(SQRT($G$10)),2)>$AG$5,0.75,ROUND((BP46/$AG$6)*(SQRT(100))/(SQRT($G$10)),2))) -> 0.01 | AK49: 0.01 | AL49: 0.01 | AM49: 0.38 | AN49: 0.43 | AO49: 0.48 | AP49: 0.01 | AQ49: 0.01 | AR49: 0.32 | AS49: 0.4 | AT49: 0.48 | AU49: 0.55 | AV49: 0.61 | AW49: 0.72 | AX49: 1600 | AY49: =IF(ROUND((BP64/$AG$6)*(SQRT(100))/(SQRT($G$10)),2)<$AG$4,0.01,IF(ROUND((BP64/$AG$6)*(SQRT(100))/(SQRT($G$10)),2)>$AG$5,0.75,ROUND((BP64/$AG$6)*(SQRT(100))/(SQRT($G$10)),2))) -> 0.01 | AZ49: 0.41 | BA49: 0.52 | BB49: 0.63 | BC49: 0.72 | BD49: 0.75 | BE49: 0.75 | BF49: 0.01 | BG49: 0.6 | BH49: 0.75 | BI49: 0.75 | BJ49: 0.75 | BK49: 0.75 | BL49: 0.75 | BM49: 1600 | BO49: 2300 | BP49: =ROUND(Výpočet!C51/(($BS$14-$BT$14)*1.163),0) -> 0 | BQ49: =ROUND(Výpočet!D51/(($BS$14-$BT$14)*1.163),0) -> 0 | BR49: =ROUND(Výpočet!E51/(($BS$14-$BT$14)*1.163),0) -> 0 | BS49: =ROUND(Výpočet!F51/(($BS$14-$BT$14)*1.163),0) -> 168 | BT49: =ROUND(Výpočet!G51/(($BS$14-$BT$14)*1.163),0) -> 192 | BU49: =ROUND(Výpočet!H51/(($BS$14-$BT$14)*1.163),0) -> 215 | BV49: =ROUND(Výpočet!I51/(($BS$14-$BT$14)*1.163),0) -> 0 | BW49: =ROUND(Výpočet!J51/(($BS$14-$BT$14)*1.163),0) -> 0 | BX49: =ROUND(Výpočet!K51/(($BS$14-$BT$14)*1.163),0) -> 142 | BY49: =ROUND(Výpočet!L51/(($BS$14-$BT$14)*1.163),0) -> 179 | BZ49: =ROUND(Výpočet!M51/(($BS$14-$BT$14)*1.163),0) -> 212 | CA49: =ROUND(Výpočet!N51/(($BS$14-$BT$14)*1.163),0) -> 242 | CB49: =ROUND(Výpočet!O51/(($BS$14-$BT$14)*1.163),0) -> 270 | CC49: =ROUND(Výpočet!P51/(($BS$14-$BT$14)*1.163),0) -> 320 | CD49: 2300
A50: 1800V | B50: =Výpočet!$S$31 -> 1800 | C50: 1 | D50: 1 | E50: 1 | F50: 5 | G50: 6 | H50: 6 | I50: 1 | J50: 1 | K50: 4 | L50: 5 | M50: 6 | N50: 7 | O50: 8 | P50: 8 | S50: =T49&"V" -> 1600V | U50: =HLOOKUP(U48,$AQ$4:$DM$6,3,FALSE) -> 1 | V50: 1 | W50: 1 | X50: 1 | Y50: 1 | Z50: 1 | AA50: 1 | AB50: 1 | AC50: 3 | AD50: 3 | AE50: 4 | AF50: 5 | AG50: 5 | AH50: 6 | AJ50: =HLOOKUP(AJ48,$AQ$4:$DM$6,3,FALSE) -> 1 | AK50: 1 | AL50: 1 | AM50: 4 | AN50: 5 | AO50: 6 | AP50: 1 | AQ50: 1 | AR50: 4 | AS50: 5 | AT50: 6 | AU50: 6 | AV50: 7 | AW50: 8 | AY50: =HLOOKUP(AY48,$AQ$4:$DM$6,3,FALSE) -> 1 | AZ50: 5 | BA50: 6 | BB50: 7 | BC50: 8 | BD50: 8 | BE50: 8 | BF50: 1 | BG50: 7 | BH50: 8 | BI50: 8 | BJ50: 8 | BK50: 8 | BL50: 8 | BO50: 2600 | BP50: =ROUND(Výpočet!C52/(($BS$14-$BT$14)*1.163),0) -> 0 | BQ50: =ROUND(Výpočet!D52/(($BS$14-$BT$14)*1.163),0) -> 0 | BR50: =ROUND(Výpočet!E52/(($BS$14-$BT$14)*1.163),0) -> 0 | BS50: =ROUND(Výpočet!F52/(($BS$14-$BT$14)*1.163),0) -> 190 | BT50: =ROUND(Výpočet!G52/(($BS$14-$BT$14)*1.163),0) -> 217 | BU50: =ROUND(Výpočet!H52/(($BS$14-$BT$14)*1.163),0) -> 243 | BV50: =ROUND(Výpočet!I52/(($BS$14-$BT$14)*1.163),0) -> 0 | BW50: =ROUND(Výpočet!J52/(($BS$14-$BT$14)*1.163),0) -> 0 | BX50: =ROUND(Výpočet!K52/(($BS$14-$BT$14)*1.163),0) -> 161 | BY50: =ROUND(Výpočet!L52/(($BS$14-$BT$14)*1.163),0) -> 202 | BZ50: =ROUND(Výpočet!M52/(($BS$14-$BT$14)*1.163),0) -> 240 | CA50: =ROUND(Výpočet!N52/(($BS$14-$BT$14)*1.163),0) -> 274 | CB50: =ROUND(Výpočet!O52/(($BS$14-$BT$14)*1.163),0) -> 306 | CC50: =ROUND(Výpočet!P52/(($BS$14-$BT$14)*1.163),0) -> 361 | CD50: 2600
A51: 2000V | B51: =Výpočet!$S$32 -> 2000 | C51: 1 | D51: 1 | E51: 1 | F51: 5 | G51: 6 | H51: 7 | I51: 1 | J51: 1 | K51: 5 | L51: 6 | M51: 7 | N51: 8 | O51: 8 | P51: 8 | U51: =RANK(U52,$AQ$5:$DM$5,1) -> 1 | V51: 1 | W51: 1 | X51: 1 | Y51: 1 | Z51: 1 | AA51: 1 | AB51: 1 | AC51: 27 | AD51: 33 | AE51: 39 | AF51: 45 | AG51: 51 | AH51: 62 | AJ51: =RANK(AJ52,$AQ$5:$DM$5,1) -> 1 | AK51: 1 | AL51: 1 | AM51: 42 | AN51: 49 | AO51: 54 | AP51: 1 | AQ51: 1 | AR51: 36 | AS51: 45 | AT51: 54 | AU51: 62 | AV51: 69 | AW51: 75 | AY51: =RANK(AY52,$AQ$5:$DM$5,1) -> 1 | AZ51: 46 | BA51: 58 | BB51: 70 | BC51: 75 | BD51: 75 | BE51: 75 | BF51: 1 | BG51: 67 | BH51: 75 | BI51: 75 | BJ51: 75 | BK51: 75 | BL51: 75 | BO51: 3000 | BP51: =ROUND(Výpočet!C53/(($BS$14-$BT$14)*1.163),0) -> 0 | BQ51: =ROUND(Výpočet!D53/(($BS$14-$BT$14)*1.163),0) -> 0 | BR51: =ROUND(Výpočet!E53/(($BS$14-$BT$14)*1.163),0) -> 0 | BS51: =ROUND(Výpočet!F53/(($BS$14-$BT$14)*1.163),0) -> 219 | BT51: =ROUND(Výpočet!G53/(($BS$14-$BT$14)*1.163),0) -> 250 | BU51: =ROUND(Výpočet!H53/(($BS$14-$BT$14)*1.163),0) -> 280 | BV51: =ROUND(Výpočet!I53/(($BS$14-$BT$14)*1.163),0) -> 0 | BW51: =ROUND(Výpočet!J53/(($BS$14-$BT$14)*1.163),0) -> 0 | BX51: =ROUND(Výpočet!K53/(($BS$14-$BT$14)*1.163),0) -> 186 | BY51: =ROUND(Výpočet!L53/(($BS$14-$BT$14)*1.163),0) -> 233 | BZ51: =ROUND(Výpočet!M53/(($BS$14-$BT$14)*1.163),0) -> 277 | CA51: =ROUND(Výpočet!N53/(($BS$14-$BT$14)*1.163),0) -> 316 | CB51: =ROUND(Výpočet!O53/(($BS$14-$BT$14)*1.163),0) -> 353 | CC51: =ROUND(Výpočet!P53/(($BS$14-$BT$14)*1.163),0) -> 417 | CD51: 3000
A52: 2300V | B52: =Výpočet!$S$33 -> 2300 | C52: 1 | D52: 1 | E52: 1 | F52: 6 | G52: 7 | H52: 8 | I52: 1 | J52: 1 | K52: 5 | L52: 7 | M52: 8 | N52: 8 | O52: 8 | P52: 8 | T52: 1800 | U52: =IF(ROUND((BP29/$AG$6)*(SQRT(100))/(SQRT($G$10)),2)<$AG$4,0.01,IF(ROUND((BP29/$AG$6)*(SQRT(100))/(SQRT($G$10)),2)>$AG$5,0.75,ROUND((BP29/$AG$6)*(SQRT(100))/(SQRT($G$10)),2))) -> 0.01 | V52: 0.01 | W52: 0.01 | X52: 0.01 | Y52: 0.01 | Z52: 0.01 | AA52: 0.01 | AB52: 0.01 | AC52: 0.27 | AD52: 0.33 | AE52: 0.39 | AF52: 0.45 | AG52: 0.51 | AH52: 0.62 | AI52: 1800 | AJ52: =IF(ROUND((BP47/$AG$6)*(SQRT(100))/(SQRT($G$10)),2)<$AG$4,0.01,IF(ROUND((BP47/$AG$6)*(SQRT(100))/(SQRT($G$10)),2)>$AG$5,0.75,ROUND((BP47/$AG$6)*(SQRT(100))/(SQRT($G$10)),2))) -> 0.01 | AK52: 0.01 | AL52: 0.01 | AM52: 0.42 | AN52: 0.49 | AO52: 0.54 | AP52: 0.01 | AQ52: 0.01 | AR52: 0.36 | AS52: 0.45 | AT52: 0.54 | AU52: 0.62 | AV52: 0.69 | AW52: 0.75 | AX52: 1800 | AY52: =IF(ROUND((BP65/$AG$6)*(SQRT(100))/(SQRT($G$10)),2)<$AG$4,0.01,IF(ROUND((BP65/$AG$6)*(SQRT(100))/(SQRT($G$10)),2)>$AG$5,0.75,ROUND((BP65/$AG$6)*(SQRT(100))/(SQRT($G$10)),2))) -> 0.01 | AZ52: 0.46 | BA52: 0.58 | BB52: 0.7 | BC52: 0.75 | BD52: 0.75 | BE52: 0.75 | BF52: 0.01 | BG52: 0.67 | BH52: 0.75 | BI52: 0.75 | BJ52: 0.75 | BK52: 0.75 | BL52: 0.75 | BM52: 1800 | BO52: Height | BR52: =Výpočet!V54 -> Typ | BS52: =Výpočet!W54 -> 22 | BY52: =Výpočet!AC54 -> Typ | BZ52: =Výpočet!AD54 -> 33 | CD52: Height
A53: 2600V | B53: =Výpočet!$S$34 -> 2600 | C53: 1 | D53: 1 | E53: 1 | F53: 7 | G53: 8 | H53: 8 | I53: 1 | J53: 1 | K53: 6 | L53: 7 | M53: 8 | N53: 8 | O53: 8 | P53: 8 | S53: =T52&"V" -> 1800V | U53: =HLOOKUP(U51,$AQ$4:$DM$6,3,FALSE) -> 1 | V53: 1 | W53: 1 | X53: 1 | Y53: 1 | Z53: 1 | AA53: 1 | AB53: 1 | AC53: 3 | AD53: 4 | AE53: 5 | AF53: 5 | AG53: 6 | AH53: 7 | AJ53: =HLOOKUP(AJ51,$AQ$4:$DM$6,3,FALSE) -> 1 | AK53: 1 | AL53: 1 | AM53: 5 | AN53: 6 | AO53: 6 | AP53: 1 | AQ53: 1 | AR53: 4 | AS53: 5 | AT53: 6 | AU53: 7 | AV53: 8 | AW53: 8 | AY53: =HLOOKUP(AY51,$AQ$4:$DM$6,3,FALSE) -> 1 | AZ53: 5 | BA53: 7 | BB53: 8 | BC53: 8 | BD53: 8 | BE53: 8 | BF53: 1 | BG53: 8 | BH53: 8 | BI53: 8 | BJ53: 8 | BK53: 8 | BL53: 8 | BO53: Length | BP53: =Výpočet!T55 -> 200 | BQ53: =Výpočet!U55 -> 300 | BR53: =Výpočet!V55 -> 400 | BS53: =Výpočet!W55 -> 500 | BT53: =Výpočet!X55 -> 600 | BU53: =Výpočet!Y55 -> 700 | BV53: =Výpočet!Z55 -> 900 | BW53: =Výpočet!AA55 -> 200 | BX53: =Výpočet!AB55 -> 300 | BY53: =Výpočet!AC55 -> 400 | BZ53: =Výpočet!AD55 -> 500 | CA53: =Výpočet!AE55 -> 600 | CB53: =Výpočet!AF55 -> 700 | CC53: =Výpočet!AG55 -> 900 | CD53: Length
A54: 3000V | B54: =Výpočet!$S$35 -> 3000 | C54: 1 | D54: 1 | E54: 1 | F54: 8 | G54: 8 | H54: 8 | I54: 1 | J54: 1 | K54: 7 | L54: 8 | M54: 8 | N54: 8 | O54: 8 | P54: 8 | U54: =RANK(U55,$AQ$5:$DM$5,1) -> 1 | V54: 1 | W54: 1 | X54: 1 | Y54: 1 | Z54: 1 | AA54: 1 | AB54: 1 | AC54: 30 | AD54: 37 | AE54: 43 | AF54: 50 | AG54: 56 | AH54: 69 | AJ54: =RANK(AJ55,$AQ$5:$DM$5,1) -> 1 | AK54: 1 | AL54: 1 | AM54: 47 | AN54: 54 | AO54: 61 | AP54: 1 | AQ54: 1 | AR54: 40 | AS54: 50 | AT54: 60 | AU54: 68 | AV54: 75 | AW54: 75 | AY54: =RANK(AY55,$AQ$5:$DM$5,1) -> 1 | AZ54: 51 | BA54: 65 | BB54: 75 | BC54: 75 | BD54: 75 | BE54: 75 | BF54: 1 | BG54: 75 | BH54: 75 | BI54: 75 | BJ54: 75 | BK54: 75 | BL54: 75 | BO54: 400 | BP54: =ROUND(Výpočet!C56/(($BS$14-$BT$14)*1.163),0) -> 0 | BQ54: =ROUND(Výpočet!D56/(($BS$14-$BT$14)*1.163),0) -> 31 | BR54: =ROUND(Výpočet!E56/(($BS$14-$BT$14)*1.163),0) -> 40 | BS54: =ROUND(Výpočet!F56/(($BS$14-$BT$14)*1.163),0) -> 48 | BT54: =ROUND(Výpočet!G56/(($BS$14-$BT$14)*1.163),0) -> 56 | BU54: =ROUND(Výpočet!H56/(($BS$14-$BT$14)*1.163),0) -> 63 | BV54: =ROUND(Výpočet!I56/(($BS$14-$BT$14)*1.163),0) -> 76 | BW54: =ROUND(Výpočet!J56/(($BS$14-$BT$14)*1.163),0) -> 0 | BX54: =ROUND(Výpočet!K56/(($BS$14-$BT$14)*1.163),0) -> 46 | BY54: =ROUND(Výpočet!L56/(($BS$14-$BT$14)*1.163),0) -> 58 | BZ54: =ROUND(Výpočet!M56/(($BS$14-$BT$14)*1.163),0) -> 70 | CA54: =ROUND(Výpočet!N56/(($BS$14-$BT$14)*1.163),0) -> 80 | CB54: =ROUND(Výpočet!O56/(($BS$14-$BT$14)*1.163),0) -> 91 | CC54: =ROUND(Výpočet!P56/(($BS$14-$BT$14)*1.163),0) -> 111 | CD54: 400
T55: 2000 | U55: =IF(ROUND((BP30/$AG$6)*(SQRT(100))/(SQRT($G$10)),2)<$AG$4,0.01,IF(ROUND((BP30/$AG$6)*(SQRT(100))/(SQRT($G$10)),2)>$AG$5,0.75,ROUND((BP30/$AG$6)*(SQRT(100))/(SQRT($G$10)),2))) -> 0.01 | V55: 0.01 | W55: 0.01 | X55: 0.01 | Y55: 0.01 | Z55: 0.01 | AA55: 0.01 | AB55: 0.01 | AC55: 0.3 | AD55: 0.37 | AE55: 0.43 | AF55: 0.5 | AG55: 0.56 | AH55: 0.69 | AI55: 2000 | AJ55: =IF(ROUND((BP48/$AG$6)*(SQRT(100))/(SQRT($G$10)),2)<$AG$4,0.01,IF(ROUND((BP48/$AG$6)*(SQRT(100))/(SQRT($G$10)),2)>$AG$5,0.75,ROUND((BP48/$AG$6)*(SQRT(100))/(SQRT($G$10)),2))) -> 0.01 | AK55: 0.01 | AL55: 0.01 | AM55: 0.47 | AN55: 0.54 | AO55: 0.61 | AP55: 0.01 | AQ55: 0.01 | AR55: 0.4 | AS55: 0.5 | AT55: 0.6 | AU55: 0.68 | AV55: 0.75 | AW55: 0.75 | AX55: 2000 | AY55: =IF(ROUND((BP66/$AG$6)*(SQRT(100))/(SQRT($G$10)),2)<$AG$4,0.01,IF(ROUND((BP66/$AG$6)*(SQRT(100))/(SQRT($G$10)),2)>$AG$5,0.75,ROUND((BP66/$AG$6)*(SQRT(100))/(SQRT($G$10)),2))) -> 0.01 | AZ55: 0.51 | BA55: 0.65 | BB55: 0.75 | BC55: 0.75 | BD55: 0.75 | BE55: 0.75 | BF55: 0.01 | BG55: 0.75 | BH55: 0.75 | BI55: 0.75 | BJ55: 0.75 | BK55: 0.75 | BL55: 0.75 | BM55: 2000 | BO55: 500 | BP55: =ROUND(Výpočet!C57/(($BS$14-$BT$14)*1.163),0) -> 0 | BQ55: =ROUND(Výpočet!D57/(($BS$14-$BT$14)*1.163),0) -> 39 | BR55: =ROUND(Výpočet!E57/(($BS$14-$BT$14)*1.163),0) -> 50 | BS55: =ROUND(Výpočet!F57/(($BS$14-$BT$14)*1.163),0) -> 60 | BT55: =ROUND(Výpočet!G57/(($BS$14-$BT$14)*1.163),0) -> 70 | BU55: =ROUND(Výpočet!H57/(($BS$14-$BT$14)*1.163),0) -> 79 | BV55: =ROUND(Výpočet!I57/(($BS$14-$BT$14)*1.163),0) -> 95 | BW55: =ROUND(Výpočet!J57/(($BS$14-$BT$14)*1.163),0) -> 0 | BX55: =ROUND(Výpočet!K57/(($BS$14-$BT$14)*1.163),0) -> 58 | BY55: =ROUND(Výpočet!L57/(($BS$14-$BT$14)*1.163),0) -> 73 | BZ55: =ROUND(Výpočet!M57/(($BS$14-$BT$14)*1.163),0) -> 87 | CA55: =ROUND(Výpočet!N57/(($BS$14-$BT$14)*1.163),0) -> 101 | CB55: =ROUND(Výpočet!O57/(($BS$14-$BT$14)*1.163),0) -> 114 | CC55: =ROUND(Výpočet!P57/(($BS$14-$BT$14)*1.163),0) -> 139 | CD55: 500
F56: =Výpočet!V54 -> Typ | G56: =Výpočet!W54 -> 22 | M56: =Výpočet!AC54 -> Typ | N56: =Výpočet!AD54 -> 33 | S56: =T55&"V" -> 2000V | U56: =HLOOKUP(U54,$AQ$4:$DM$6,3,FALSE) -> 1 | V56: 1 | W56: 1 | X56: 1 | Y56: 1 | Z56: 1 | AA56: 1 | AB56: 1 | AC56: 3 | AD56: 4 | AE56: 5 | AF56: 6 | AG56: 6 | AH56: 8 | AJ56: =HLOOKUP(AJ54,$AQ$4:$DM$6,3,FALSE) -> 1 | AK56: 1 | AL56: 1 | AM56: 5 | AN56: 6 | AO56: 7 | AP56: 1 | AQ56: 1 | AR56: 5 | AS56: 6 | AT56: 7 | AU56: 8 | AV56: 8 | AW56: 8 | AY56: =HLOOKUP(AY54,$AQ$4:$DM$6,3,FALSE) -> 1 | AZ56: 6 | BA56: 7 | BB56: 8 | BC56: 8 | BD56: 8 | BE56: 8 | BF56: 1 | BG56: 8 | BH56: 8 | BI56: 8 | BJ56: 8 | BK56: 8 | BL56: 8 | BO56: 600 | BP56: =ROUND(Výpočet!C58/(($BS$14-$BT$14)*1.163),0) -> 0 | BQ56: =ROUND(Výpočet!D58/(($BS$14-$BT$14)*1.163),0) -> 47 | BR56: =ROUND(Výpočet!E58/(($BS$14-$BT$14)*1.163),0) -> 60 | BS56: =ROUND(Výpočet!F58/(($BS$14-$BT$14)*1.163),0) -> 72 | BT56: =ROUND(Výpočet!G58/(($BS$14-$BT$14)*1.163),0) -> 84 | BU56: =ROUND(Výpočet!H58/(($BS$14-$BT$14)*1.163),0) -> 94 | BV56: =ROUND(Výpočet!I58/(($BS$14-$BT$14)*1.163),0) -> 114 | BW56: =ROUND(Výpočet!J58/(($BS$14-$BT$14)*1.163),0) -> 0 | BX56: =ROUND(Výpočet!K58/(($BS$14-$BT$14)*1.163),0) -> 69 | BY56: =ROUND(Výpočet!L58/(($BS$14-$BT$14)*1.163),0) -> 87 | BZ56: =ROUND(Výpočet!M58/(($BS$14-$BT$14)*1.163),0) -> 104 | CA56: =ROUND(Výpočet!N58/(($BS$14-$BT$14)*1.163),0) -> 121 | CB56: =ROUND(Výpočet!O58/(($BS$14-$BT$14)*1.163),0) -> 137 | CC56: =ROUND(Výpočet!P58/(($BS$14-$BT$14)*1.163),0) -> 167 | CD56: 600
U57: =RANK(U58,$AQ$5:$DM$5,1) -> 1 | V57: 1 | W57: 1 | X57: 1 | Y57: 1 | Z57: 1 | AA57: 1 | AB57: 1 | AC57: 34 | AD57: 42 | AE57: 50 | AF57: 57 | AG57: 65 | AH57: 75 | AJ57: =RANK(AJ58,$AQ$5:$DM$5,1) -> 1 | AK57: 1 | AL57: 1 | AM57: 54 | AN57: 62 | AO57: 70 | AP57: 1 | AQ57: 1 | AR57: 46 | AS57: 58 | AT57: 69 | AU57: 75 | AV57: 75 | AW57: 75 | AY57: =RANK(AY58,$AQ$5:$DM$5,1) -> 1 | AZ57: 59 | BA57: 75 | BB57: 75 | BC57: 75 | BD57: 75 | BE57: 75 | BF57: 1 | BG57: 75 | BH57: 75 | BI57: 75 | BJ57: 75 | BK57: 75 | BL57: 75 | BO57: 700 | BP57: =ROUND(Výpočet!C59/(($BS$14-$BT$14)*1.163),0) -> 0 | BQ57: =ROUND(Výpočet!D59/(($BS$14-$BT$14)*1.163),0) -> 55 | BR57: =ROUND(Výpočet!E59/(($BS$14-$BT$14)*1.163),0) -> 70 | BS57: =ROUND(Výpočet!F59/(($BS$14-$BT$14)*1.163),0) -> 84 | BT57: =ROUND(Výpočet!G59/(($BS$14-$BT$14)*1.163),0) -> 98 | BU57: =ROUND(Výpočet!H59/(($BS$14-$BT$14)*1.163),0) -> 110 | BV57: =ROUND(Výpočet!I59/(($BS$14-$BT$14)*1.163),0) -> 133 | BW57: =ROUND(Výpočet!J59/(($BS$14-$BT$14)*1.163),0) -> 0 | BX57: =ROUND(Výpočet!K59/(($BS$14-$BT$14)*1.163),0) -> 80 | BY57: =ROUND(Výpočet!L59/(($BS$14-$BT$14)*1.163),0) -> 102 | BZ57: =ROUND(Výpočet!M59/(($BS$14-$BT$14)*1.163),0) -> 122 | CA57: =ROUND(Výpočet!N59/(($BS$14-$BT$14)*1.163),0) -> 141 | CB57: =ROUND(Výpočet!O59/(($BS$14-$BT$14)*1.163),0) -> 159 | CC57: =ROUND(Výpočet!P59/(($BS$14-$BT$14)*1.163),0) -> 194 | CD57: 700
C58: =Výpočet!T13 -> 200 | D58: =Výpočet!U13 -> 300 | E58: =Výpočet!V13 -> 400 | F58: =Výpočet!W13 -> 500 | G58: =Výpočet!X13 -> 600 | H58: =Výpočet!Y13 -> 700 | I58: =Výpočet!Z13 -> 900 | J58: =Výpočet!AA13 -> 200 | K58: =Výpočet!AB13 -> 300 | L58: =Výpočet!AC13 -> 400 | M58: =Výpočet!AD13 -> 500 | N58: =Výpočet!AE13 -> 600 | O58: =Výpočet!AF13 -> 700 | P58: =Výpočet!AG13 -> 900 | T58: 2300 | U58: =IF(ROUND((BP31/$AG$6)*(SQRT(100))/(SQRT($G$10)),2)<$AG$4,0.01,IF(ROUND((BP31/$AG$6)*(SQRT(100))/(SQRT($G$10)),2)>$AG$5,0.75,ROUND((BP31/$AG$6)*(SQRT(100))/(SQRT($G$10)),2))) -> 0.01 | V58: 0.01 | W58: 0.01 | X58: 0.01 | Y58: 0.01 | Z58: 0.01 | AA58: 0.01 | AB58: 0.01 | AC58: 0.34 | AD58: 0.42 | AE58: 0.5 | AF58: 0.57 | AG58: 0.65 | AH58: 0.75 | AI58: 2300 | AJ58: =IF(ROUND((BP49/$AG$6)*(SQRT(100))/(SQRT($G$10)),2)<$AG$4,0.01,IF(ROUND((BP49/$AG$6)*(SQRT(100))/(SQRT($G$10)),2)>$AG$5,0.75,ROUND((BP49/$AG$6)*(SQRT(100))/(SQRT($G$10)),2))) -> 0.01 | AK58: 0.01 | AL58: 0.01 | AM58: 0.54 | AN58: 0.62 | AO58: 0.7 | AP58: 0.01 | AQ58: 0.01 | AR58: 0.46 | AS58: 0.58 | AT58: 0.69 | AU58: 0.75 | AV58: 0.75 | AW58: 0.75 | AX58: 2300 | AY58: =IF(ROUND((BP67/$AG$6)*(SQRT(100))/(SQRT($G$10)),2)<$AG$4,0.01,IF(ROUND((BP67/$AG$6)*(SQRT(100))/(SQRT($G$10)),2)>$AG$5,0.75,ROUND((BP67/$AG$6)*(SQRT(100))/(SQRT($G$10)),2))) -> 0.01 | AZ58: 0.59 | BA58: 0.75 | BB58: 0.75 | BC58: 0.75 | BD58: 0.75 | BE58: 0.75 | BF58: 0.01 | BG58: 0.75 | BH58: 0.75 | BI58: 0.75 | BJ58: 0.75 | BK58: 0.75 | BL58: 0.75 | BM58: 2300 | BO58: 800 | BP58: =ROUND(Výpočet!C60/(($BS$14-$BT$14)*1.163),0) -> 0 | BQ58: =ROUND(Výpočet!D60/(($BS$14-$BT$14)*1.163),0) -> 63 | BR58: =ROUND(Výpočet!E60/(($BS$14-$BT$14)*1.163),0) -> 80 | BS58: =ROUND(Výpočet!F60/(($BS$14-$BT$14)*1.163),0) -> 96 | BT58: =ROUND(Výpočet!G60/(($BS$14-$BT$14)*1.163),0) -> 112 | BU58: =ROUND(Výpočet!H60/(($BS$14-$BT$14)*1.163),0) -> 126 | BV58: =ROUND(Výpočet!I60/(($BS$14-$BT$14)*1.163),0) -> 152 | BW58: =ROUND(Výpočet!J60/(($BS$14-$BT$14)*1.163),0) -> 0 | BX58: =ROUND(Výpočet!K60/(($BS$14-$BT$14)*1.163),0) -> 92 | BY58: =ROUND(Výpočet!L60/(($BS$14-$BT$14)*1.163),0) -> 116 | BZ58: =ROUND(Výpočet!M60/(($BS$14-$BT$14)*1.163),0) -> 139 | CA58: =ROUND(Výpočet!N60/(($BS$14-$BT$14)*1.163),0) -> 161 | CB58: =ROUND(Výpočet!O60/(($BS$14-$BT$14)*1.163),0) -> 182 | CC58: =ROUND(Výpočet!P60/(($BS$14-$BT$14)*1.163),0) -> 222 | CD58: 800
A59: =B59&"V" -> 400V | B59: =Výpočet!$S$20 -> 400 | C59: =SUMIF($S:$S,$A59,AY:AY) -> 1 | D59: =SUMIF($S:$S,$A59,AZ:AZ) -> 1 | E59: =SUMIF($S:$S,$A59,BA:BA) -> 1 | F59: =SUMIF($S:$S,$A59,BB:BB) -> 2 | G59: =SUMIF($S:$S,$A59,BC:BC) -> 2 | H59: =SUMIF($S:$S,$A59,BD:BD) -> 2 | I59: =SUMIF($S:$S,$A59,BE:BE) -> 3 | J59: =SUMIF($S:$S,$A59,BF:BF) -> 1 | K59: =SUMIF($S:$S,$A59,BG:BG) -> 2 | L59: =SUMIF($S:$S,$A59,BH:BH) -> 2 | M59: =SUMIF($S:$S,$A59,BI:BI) -> 3 | N59: =SUMIF($S:$S,$A59,BJ:BJ) -> 3 | O59: =SUMIF($S:$S,$A59,BK:BK) -> 3 | P59: =SUMIF($S:$S,$A59,BL:BL) -> 4 | S59: =T58&"V" -> 2300V | U59: =HLOOKUP(U57,$AQ$4:$DM$6,3,FALSE) -> 1 | V59: 1 | W59: 1 | X59: 1 | Y59: 1 | Z59: 1 | AA59: 1 | AB59: 1 | AC59: 4 | AD59: 5 | AE59: 6 | AF59: 6 | AG59: 7 | AH59: 8 | AJ59: =HLOOKUP(AJ57,$AQ$4:$DM$6,3,FALSE) -> 1 | AK59: 1 | AL59: 1 | AM59: 6 | AN59: 7 | AO59: 8 | AP59: 1 | AQ59: 1 | AR59: 5 | AS59: 7 | AT59: 8 | AU59: 8 | AV59: 8 | AW59: 8 | AY59: =HLOOKUP(AY57,$AQ$4:$DM$6,3,FALSE) -> 1 | AZ59: 7 | BA59: 8 | BB59: 8 | BC59: 8 | BD59: 8 | BE59: 8 | BF59: 1 | BG59: 8 | BH59: 8 | BI59: 8 | BJ59: 8 | BK59: 8 | BL59: 8 | BO59: 900 | BP59: =ROUND(Výpočet!C61/(($BS$14-$BT$14)*1.163),0) -> 0 | BQ59: =ROUND(Výpočet!D61/(($BS$14-$BT$14)*1.163),0) -> 71 | BR59: =ROUND(Výpočet!E61/(($BS$14-$BT$14)*1.163),0) -> 90 | BS59: =ROUND(Výpočet!F61/(($BS$14-$BT$14)*1.163),0) -> 108 | BT59: =ROUND(Výpočet!G61/(($BS$14-$BT$14)*1.163),0) -> 125 | BU59: =ROUND(Výpočet!H61/(($BS$14-$BT$14)*1.163),0) -> 142 | BV59: =ROUND(Výpočet!I61/(($BS$14-$BT$14)*1.163),0) -> 171 | BW59: =ROUND(Výpočet!J61/(($BS$14-$BT$14)*1.163),0) -> 0 | BX59: =ROUND(Výpočet!K61/(($BS$14-$BT$14)*1.163),0) -> 103 | BY59: =ROUND(Výpočet!L61/(($BS$14-$BT$14)*1.163),0) -> 131 | BZ59: =ROUND(Výpočet!M61/(($BS$14-$BT$14)*1.163),0) -> 156 | CA59: =ROUND(Výpočet!N61/(($BS$14-$BT$14)*1.163),0) -> 181 | CB59: =ROUND(Výpočet!O61/(($BS$14-$BT$14)*1.163),0) -> 205 | CC59: =ROUND(Výpočet!P61/(($BS$14-$BT$14)*1.163),0) -> 250 | CD59: 900
A60: =B60&"V" -> 500V | B60: =Výpočet!$S$21 -> 500 | C60: =SUMIF($S:$S,$A60,AY:AY) -> 1 | D60: 1 | E60: 2 | F60: 2 | G60: 3 | H60: 3 | I60: 3 | J60: 1 | K60: 2 | L60: 3 | M60: 3 | N60: 4 | O60: 4 | P60: 5 | U60: =RANK(U61,$AQ$5:$DM$5,1) -> 1 | V60: 1 | W60: 1 | X60: 1 | Y60: 1 | Z60: 1 | AA60: 1 | AB60: 1 | AC60: 38 | AD60: 48 | AE60: 56 | AF60: 65 | AG60: 73 | AH60: 75 | AJ60: =RANK(AJ61,$AQ$5:$DM$5,1) -> 1 | AK60: 1 | AL60: 1 | AM60: 62 | AN60: 70 | AO60: 75 | AP60: 1 | AQ60: 1 | AR60: 52 | AS60: 66 | AT60: 75 | AU60: 75 | AV60: 75 | AW60: 75 | AY60: =RANK(AY61,$AQ$5:$DM$5,1) -> 1 | AZ60: 66 | BA60: 75 | BB60: 75 | BC60: 75 | BD60: 75 | BE60: 75 | BF60: 1 | BG60: 75 | BH60: 75 | BI60: 75 | BJ60: 75 | BK60: 75 | BL60: 75 | BO60: 1000 | BP60: =ROUND(Výpočet!C62/(($BS$14-$BT$14)*1.163),0) -> 0 | BQ60: =ROUND(Výpočet!D62/(($BS$14-$BT$14)*1.163),0) -> 79 | BR60: =ROUND(Výpočet!E62/(($BS$14-$BT$14)*1.163),0) -> 100 | BS60: =ROUND(Výpočet!F62/(($BS$14-$BT$14)*1.163),0) -> 120 | BT60: =ROUND(Výpočet!G62/(($BS$14-$BT$14)*1.163),0) -> 139 | BU60: =ROUND(Výpočet!H62/(($BS$14-$BT$14)*1.163),0) -> 157 | BV60: =ROUND(Výpočet!I62/(($BS$14-$BT$14)*1.163),0) -> 190 | BW60: =ROUND(Výpočet!J62/(($BS$14-$BT$14)*1.163),0) -> 0 | BX60: =ROUND(Výpočet!K62/(($BS$14-$BT$14)*1.163),0) -> 115 | BY60: =ROUND(Výpočet!L62/(($BS$14-$BT$14)*1.163),0) -> 145 | BZ60: =ROUND(Výpočet!M62/(($BS$14-$BT$14)*1.163),0) -> 174 | CA60: =ROUND(Výpočet!N62/(($BS$14-$BT$14)*1.163),0) -> 201 | CB60: =ROUND(Výpočet!O62/(($BS$14-$BT$14)*1.163),0) -> 228 | CC60: =ROUND(Výpočet!P62/(($BS$14-$BT$14)*1.163),0) -> 278 | CD60: 1000
A61: 600V | B61: =Výpočet!$S$22 -> 600 | C61: 1 | D61: 2 | E61: 2 | F61: 3 | G61: 3 | H61: 3 | I61: 4 | J61: 1 | K61: 2 | L61: 3 | M61: 4 | N61: 5 | O61: 5 | P61: 6 | T61: 2600 | U61: =IF(ROUND((BP32/$AG$6)*(SQRT(100))/(SQRT($G$10)),2)<$AG$4,0.01,IF(ROUND((BP32/$AG$6)*(SQRT(100))/(SQRT($G$10)),2)>$AG$5,0.75,ROUND((BP32/$AG$6)*(SQRT(100))/(SQRT($G$10)),2))) -> 0.01 | V61: 0.01 | W61: 0.01 | X61: 0.01 | Y61: 0.01 | Z61: 0.01 | AA61: 0.01 | AB61: 0.01 | AC61: 0.38 | AD61: 0.48 | AE61: 0.56 | AF61: 0.65 | AG61: 0.73 | AH61: 0.75 | AI61: 2600 | AJ61: =IF(ROUND((BP50/$AG$6)*(SQRT(100))/(SQRT($G$10)),2)<$AG$4,0.01,IF(ROUND((BP50/$AG$6)*(SQRT(100))/(SQRT($G$10)),2)>$AG$5,0.75,ROUND((BP50/$AG$6)*(SQRT(100))/(SQRT($G$10)),2))) -> 0.01 | AK61: 0.01 | AL61: 0.01 | AM61: 0.62 | AN61: 0.7 | AO61: 0.75 | AP61: 0.01 | AQ61: 0.01 | AR61: 0.52 | AS61: 0.66 | AT61: 0.75 | AU61: 0.75 | AV61: 0.75 | AW61: 0.75 | AX61: 2600 | AY61: =IF(ROUND((BP68/$AG$6)*(SQRT(100))/(SQRT($G$10)),2)<$AG$4,0.01,IF(ROUND((BP68/$AG$6)*(SQRT(100))/(SQRT($G$10)),2)>$AG$5,0.75,ROUND((BP68/$AG$6)*(SQRT(100))/(SQRT($G$10)),2))) -> 0.01 | AZ61: 0.66 | BA61: 0.75 | BB61: 0.75 | BC61: 0.75 | BD61: 0.75 | BE61: 0.75 | BF61: 0.01 | BG61: 0.75 | BH61: 0.75 | BI61: 0.75 | BJ61: 0.75 | BK61: 0.75 | BL61: 0.75 | BM61: 2600 | BO61: 1100 | BP61: =ROUND(Výpočet!C63/(($BS$14-$BT$14)*1.163),0) -> 0 | BQ61: =ROUND(Výpočet!D63/(($BS$14-$BT$14)*1.163),0) -> 86 | BR61: =ROUND(Výpočet!E63/(($BS$14-$BT$14)*1.163),0) -> 110 | BS61: =ROUND(Výpočet!F63/(($BS$14-$BT$14)*1.163),0) -> 132 | BT61: =ROUND(Výpočet!G63/(($BS$14-$BT$14)*1.163),0) -> 153 | BU61: =ROUND(Výpočet!H63/(($BS$14-$BT$14)*1.163),0) -> 173 | BV61: =ROUND(Výpočet!I63/(($BS$14-$BT$14)*1.163),0) -> 210 | BW61: =ROUND(Výpočet!J63/(($BS$14-$BT$14)*1.163),0) -> 0 | BX61: =ROUND(Výpočet!K63/(($BS$14-$BT$14)*1.163),0) -> 126 | BY61: =ROUND(Výpočet!L63/(($BS$14-$BT$14)*1.163),0) -> 160 | BZ61: =ROUND(Výpočet!M63/(($BS$14-$BT$14)*1.163),0) -> 191 | CA61: =ROUND(Výpočet!N63/(($BS$14-$BT$14)*1.163),0) -> 221 | CB61: =ROUND(Výpočet!O63/(($BS$14-$BT$14)*1.163),0) -> 250 | CC61: =ROUND(Výpočet!P63/(($BS$14-$BT$14)*1.163),0) -> 306 | CD61: 1100
A62: 700V | B62: =Výpočet!$S$23 -> 700 | C62: 1 | D62: 2 | E62: 3 | F62: 3 | G62: 4 | H62: 4 | I62: 5 | J62: 1 | K62: 3 | L62: 4 | M62: 5 | N62: 5 | O62: 6 | P62: 7 | S62: =T61&"V" -> 2600V | U62: =HLOOKUP(U60,$AQ$4:$DM$6,3,FALSE) -> 1 | V62: 1 | W62: 1 | X62: 1 | Y62: 1 | Z62: 1 | AA62: 1 | AB62: 1 | AC62: 4 | AD62: 6 | AE62: 6 | AF62: 7 | AG62: 8 | AH62: 8 | AJ62: =HLOOKUP(AJ60,$AQ$4:$DM$6,3,FALSE) -> 1 | AK62: 1 | AL62: 1 | AM62: 7 | AN62: 8 | AO62: 8 | AP62: 1 | AQ62: 1 | AR62: 6 | AS62: 7 | AT62: 8 | AU62: 8 | AV62: 8 | AW62: 8 | AY62: =HLOOKUP(AY60,$AQ$4:$DM$6,3,FALSE) -> 1 | AZ62: 7 | BA62: 8 | BB62: 8 | BC62: 8 | BD62: 8 | BE62: 8 | BF62: 1 | BG62: 8 | BH62: 8 | BI62: 8 | BJ62: 8 | BK62: 8 | BL62: 8 | BO62: 1200 | BP62: =ROUND(Výpočet!C64/(($BS$14-$BT$14)*1.163),0) -> 0 | BQ62: =ROUND(Výpočet!D64/(($BS$14-$BT$14)*1.163),0) -> 94 | BR62: =ROUND(Výpočet!E64/(($BS$14-$BT$14)*1.163),0) -> 120 | BS62: =ROUND(Výpočet!F64/(($BS$14-$BT$14)*1.163),0) -> 144 | BT62: =ROUND(Výpočet!G64/(($BS$14-$BT$14)*1.163),0) -> 167 | BU62: =ROUND(Výpočet!H64/(($BS$14-$BT$14)*1.163),0) -> 189 | BV62: =ROUND(Výpočet!I64/(($BS$14-$BT$14)*1.163),0) -> 229 | BW62: =ROUND(Výpočet!J64/(($BS$14-$BT$14)*1.163),0) -> 0 | BX62: =ROUND(Výpočet!K64/(($BS$14-$BT$14)*1.163),0) -> 138 | BY62: =ROUND(Výpočet!L64/(($BS$14-$BT$14)*1.163),0) -> 174 | BZ62: =ROUND(Výpočet!M64/(($BS$14-$BT$14)*1.163),0) -> 209 | CA62: =ROUND(Výpočet!N64/(($BS$14-$BT$14)*1.163),0) -> 242 | CB62: =ROUND(Výpočet!O64/(($BS$14-$BT$14)*1.163),0) -> 273 | CC62: =ROUND(Výpočet!P64/(($BS$14-$BT$14)*1.163),0) -> 333 | CD62: 1200
A63: 800V | B63: =Výpočet!$S$24 -> 800 | C63: 1 | D63: 2 | E63: 3 | F63: 3 | G63: 4 | H63: 5 | I63: 6 | J63: 1 | K63: 3 | L63: 4 | M63: 5 | N63: 6 | O63: 7 | P63: 8 | U63: =RANK(U64,$AQ$5:$DM$5,1) -> 1 | V63: 1 | W63: 1 | X63: 1 | Y63: 1 | Z63: 1 | AA63: 1 | AB63: 1 | AC63: 44 | AD63: 55 | AE63: 65 | AF63: 75 | AG63: 75 | AH63: 75 | AJ63: =RANK(AJ64,$AQ$5:$DM$5,1) -> 1 | AK63: 1 | AL63: 1 | AM63: 71 | AN63: 75 | AO63: 75 | AP63: 1 | AQ63: 1 | AR63: 60 | AS63: 75 | AT63: 75 | AU63: 75 | AV63: 75 | AW63: 75 | AY63: =RANK(AY64,$AQ$5:$DM$5,1) -> 1 | AZ63: 75 | BA63: 75 | BB63: 75 | BC63: 75 | BD63: 75 | BE63: 75 | BF63: 1 | BG63: 75 | BH63: 75 | BI63: 75 | BJ63: 75 | BK63: 75 | BL63: 75 | BO63: 1400 | BP63: =ROUND(Výpočet!C65/(($BS$14-$BT$14)*1.163),0) -> 0 | BQ63: =ROUND(Výpočet!D65/(($BS$14-$BT$14)*1.163),0) -> 110 | BR63: =ROUND(Výpočet!E65/(($BS$14-$BT$14)*1.163),0) -> 140 | BS63: =ROUND(Výpočet!F65/(($BS$14-$BT$14)*1.163),0) -> 169 | BT63: =ROUND(Výpočet!G65/(($BS$14-$BT$14)*1.163),0) -> 195 | BU63: =ROUND(Výpočet!H65/(($BS$14-$BT$14)*1.163),0) -> 220 | BV63: =ROUND(Výpočet!I65/(($BS$14-$BT$14)*1.163),0) -> 267 | BW63: =ROUND(Výpočet!J65/(($BS$14-$BT$14)*1.163),0) -> 0 | BX63: =ROUND(Výpočet!K65/(($BS$14-$BT$14)*1.163),0) -> 161 | BY63: =ROUND(Výpočet!L65/(($BS$14-$BT$14)*1.163),0) -> 203 | BZ63: =ROUND(Výpočet!M65/(($BS$14-$BT$14)*1.163),0) -> 243 | CA63: =ROUND(Výpočet!N65/(($BS$14-$BT$14)*1.163),0) -> 282 | CB63: =ROUND(Výpočet!O65/(($BS$14-$BT$14)*1.163),0) -> 319 | CC63: =ROUND(Výpočet!P65/(($BS$14-$BT$14)*1.163),0) -> 389 | CD63: 1400
A64: 900V | B64: =Výpočet!$S$25 -> 900 | C64: 1 | D64: 3 | E64: 3 | F64: 4 | G64: 5 | H64: 5 | I64: 6 | J64: 1 | K64: 4 | L64: 5 | M64: 6 | N64: 7 | O64: 7 | P64: 8 | T64: 3000 | U64: =IF(ROUND((BP33/$AG$6)*(SQRT(100))/(SQRT($G$10)),2)<$AG$4,0.01,IF(ROUND((BP33/$AG$6)*(SQRT(100))/(SQRT($G$10)),2)>$AG$5,0.75,ROUND((BP33/$AG$6)*(SQRT(100))/(SQRT($G$10)),2))) -> 0.01 | V64: 0.01 | W64: 0.01 | X64: 0.01 | Y64: 0.01 | Z64: 0.01 | AA64: 0.01 | AB64: 0.01 | AC64: 0.44 | AD64: 0.55 | AE64: 0.65 | AF64: 0.75 | AG64: 0.75 | AH64: 0.75 | AI64: 3000 | AJ64: =IF(ROUND((BP51/$AG$6)*(SQRT(100))/(SQRT($G$10)),2)<$AG$4,0.01,IF(ROUND((BP51/$AG$6)*(SQRT(100))/(SQRT($G$10)),2)>$AG$5,0.75,ROUND((BP51/$AG$6)*(SQRT(100))/(SQRT($G$10)),2))) -> 0.01 | AK64: 0.01 | AL64: 0.01 | AM64: 0.71 | AN64: 0.75 | AO64: 0.75 | AP64: 0.01 | AQ64: 0.01 | AR64: 0.6 | AS64: 0.75 | AT64: 0.75 | AU64: 0.75 | AV64: 0.75 | AW64: 0.75 | AX64: 3000 | AY64: =IF(ROUND((BP69/$AG$6)*(SQRT(100))/(SQRT($G$10)),2)<$AG$4,0.01,IF(ROUND((BP69/$AG$6)*(SQRT(100))/(SQRT($G$10)),2)>$AG$5,0.75,ROUND((BP69/$AG$6)*(SQRT(100))/(SQRT($G$10)),2))) -> 0.01 | AZ64: 0.75 | BA64: 0.75 | BB64: 0.75 | BC64: 0.75 | BD64: 0.75 | BE64: 0.75 | BF64: 0.01 | BG64: 0.75 | BH64: 0.75 | BI64: 0.75 | BJ64: 0.75 | BK64: 0.75 | BL64: 0.75 | BM64: 3000 | BO64: 1600 | BP64: =ROUND(Výpočet!C66/(($BS$14-$BT$14)*1.163),0) -> 0 | BQ64: =ROUND(Výpočet!D66/(($BS$14-$BT$14)*1.163),0) -> 126 | BR64: =ROUND(Výpočet!E66/(($BS$14-$BT$14)*1.163),0) -> 160 | BS64: =ROUND(Výpočet!F66/(($BS$14-$BT$14)*1.163),0) -> 193 | BT64: =ROUND(Výpočet!G66/(($BS$14-$BT$14)*1.163),0) -> 223 | BU64: =ROUND(Výpočet!H66/(($BS$14-$BT$14)*1.163),0) -> 252 | BV64: =ROUND(Výpočet!I66/(($BS$14-$BT$14)*1.163),0) -> 305 | BW64: =ROUND(Výpočet!J66/(($BS$14-$BT$14)*1.163),0) -> 0 | BX64: =ROUND(Výpočet!K66/(($BS$14-$BT$14)*1.163),0) -> 184 | BY64: =ROUND(Výpočet!L66/(($BS$14-$BT$14)*1.163),0) -> 232 | BZ64: =ROUND(Výpočet!M66/(($BS$14-$BT$14)*1.163),0) -> 278 | CA64: =ROUND(Výpočet!N66/(($BS$14-$BT$14)*1.163),0) -> 322 | CB64: =ROUND(Výpočet!O66/(($BS$14-$BT$14)*1.163),0) -> 364 | CC64: =ROUND(Výpočet!P66/(($BS$14-$BT$14)*1.163),0) -> 445 | CD64: 1600
A65: 1000V | B65: =Výpočet!$S$26 -> 1000 | C65: 1 | D65: 3 | E65: 4 | F65: 5 | G65: 5 | H65: 6 | I65: 7 | J65: 1 | K65: 4 | L65: 5 | M65: 6 | N65: 7 | O65: 8 | P65: 8 | S65: =T64&"V" -> 3000V | U65: =HLOOKUP(U63,$AQ$4:$DM$6,3,FALSE) -> 1 | V65: 1 | W65: 1 | X65: 1 | Y65: 1 | Z65: 1 | AA65: 1 | AB65: 1 | AC65: 5 | AD65: 6 | AE65: 7 | AF65: 8 | AG65: 8 | AH65: 8 | AJ65: =HLOOKUP(AJ63,$AQ$4:$DM$6,3,FALSE) -> 1 | AK65: 1 | AL65: 1 | AM65: 8 | AN65: 8 | AO65: 8 | AP65: 1 | AQ65: 1 | AR65: 7 | AS65: 8 | AT65: 8 | AU65: 8 | AV65: 8 | AW65: 8 | AY65: =HLOOKUP(AY63,$AQ$4:$DM$6,3,FALSE) -> 1 | AZ65: 8 | BA65: 8 | BB65: 8 | BC65: 8 | BD65: 8 | BE65: 8 | BF65: 1 | BG65: 8 | BH65: 8 | BI65: 8 | BJ65: 8 | BK65: 8 | BL65: 8 | BO65: 1800 | BP65: =ROUND(Výpočet!C67/(($BS$14-$BT$14)*1.163),0) -> 0 | BQ65: =ROUND(Výpočet!D67/(($BS$14-$BT$14)*1.163),0) -> 141 | BR65: =ROUND(Výpočet!E67/(($BS$14-$BT$14)*1.163),0) -> 180 | BS65: =ROUND(Výpočet!F67/(($BS$14-$BT$14)*1.163),0) -> 217 | BT65: =ROUND(Výpočet!G67/(($BS$14-$BT$14)*1.163),0) -> 251 | BU65: =ROUND(Výpočet!H67/(($BS$14-$BT$14)*1.163),0) -> 283 | BV65: =ROUND(Výpočet!I67/(($BS$14-$BT$14)*1.163),0) -> 343 | BW65: =ROUND(Výpočet!J67/(($BS$14-$BT$14)*1.163),0) -> 0 | BX65: =ROUND(Výpočet!K67/(($BS$14-$BT$14)*1.163),0) -> 207 | BY65: =ROUND(Výpočet!L67/(($BS$14-$BT$14)*1.163),0) -> 261 | BZ65: =ROUND(Výpočet!M67/(($BS$14-$BT$14)*1.163),0) -> 313 | CA65: =ROUND(Výpočet!N67/(($BS$14-$BT$14)*1.163),0) -> 362 | CB65: =ROUND(Výpočet!O67/(($BS$14-$BT$14)*1.163),0) -> 410 | CC65: =ROUND(Výpočet!P67/(($BS$14-$BT$14)*1.163),0) -> 500 | CD65: 1800
A66: 1100V | B66: =Výpočet!$S$27 -> 1100 | C66: 1 | D66: 3 | E66: 4 | F66: 5 | G66: 6 | H66: 6 | I66: 8 | J66: 1 | K66: 5 | L66: 6 | M66: 7 | N66: 8 | O66: 8 | P66: 8 | BO66: 2000 | BP66: =ROUND(Výpočet!C68/(($BS$14-$BT$14)*1.163),0) -> 0 | BQ66: =ROUND(Výpočet!D68/(($BS$14-$BT$14)*1.163),0) -> 157 | BR66: =ROUND(Výpočet!E68/(($BS$14-$BT$14)*1.163),0) -> 200 | BS66: =ROUND(Výpočet!F68/(($BS$14-$BT$14)*1.163),0) -> 241 | BT66: =ROUND(Výpočet!G68/(($BS$14-$BT$14)*1.163),0) -> 279 | BU66: =ROUND(Výpočet!H68/(($BS$14-$BT$14)*1.163),0) -> 315 | BV66: =ROUND(Výpočet!I68/(($BS$14-$BT$14)*1.163),0) -> 381 | BW66: =ROUND(Výpočet!J68/(($BS$14-$BT$14)*1.163),0) -> 0 | BX66: =ROUND(Výpočet!K68/(($BS$14-$BT$14)*1.163),0) -> 230 | BY66: =ROUND(Výpočet!L68/(($BS$14-$BT$14)*1.163),0) -> 290 | BZ66: =ROUND(Výpočet!M68/(($BS$14-$BT$14)*1.163),0) -> 348 | CA66: =ROUND(Výpočet!N68/(($BS$14-$BT$14)*1.163),0) -> 403 | CB66: =ROUND(Výpočet!O68/(($BS$14-$BT$14)*1.163),0) -> 455 | CC66: =ROUND(Výpočet!P68/(($BS$14-$BT$14)*1.163),0) -> 556 | CD66: 2000
A67: 1200V | B67: =Výpočet!$S$28 -> 1200 | C67: 1 | D67: 3 | E67: 5 | F67: 5 | G67: 6 | H67: 7 | I67: 8 | J67: 1 | K67: 5 | L67: 6 | M67: 8 | N67: 8 | O67: 8 | P67: 8 | BO67: 2300 | BP67: =ROUND(Výpočet!C69/(($BS$14-$BT$14)*1.163),0) -> 0 | BQ67: =ROUND(Výpočet!D69/(($BS$14-$BT$14)*1.163),0) -> 181 | BR67: =ROUND(Výpočet!E69/(($BS$14-$BT$14)*1.163),0) -> 230 | BS67: =ROUND(Výpočet!F69/(($BS$14-$BT$14)*1.163),0) -> 277 | BT67: =ROUND(Výpočet!G69/(($BS$14-$BT$14)*1.163),0) -> 321 | BU67: =ROUND(Výpočet!H69/(($BS$14-$BT$14)*1.163),0) -> 362 | BV67: =ROUND(Výpočet!I69/(($BS$14-$BT$14)*1.163),0) -> 438 | BW67: =ROUND(Výpočet!J69/(($BS$14-$BT$14)*1.163),0) -> 0 | BX67: =ROUND(Výpočet!K69/(($BS$14-$BT$14)*1.163),0) -> 264 | BY67: =ROUND(Výpočet!L69/(($BS$14-$BT$14)*1.163),0) -> 334 | BZ67: =ROUND(Výpočet!M69/(($BS$14-$BT$14)*1.163),0) -> 400 | CA67: =ROUND(Výpočet!N69/(($BS$14-$BT$14)*1.163),0) -> 463 | CB67: =ROUND(Výpočet!O69/(($BS$14-$BT$14)*1.163),0) -> 524 | CC67: =ROUND(Výpočet!P69/(($BS$14-$BT$14)*1.163),0) -> 639 | CD67: 2300
A68: 1400V | B68: =Výpočet!$S$29 -> 1400 | C68: 1 | D68: 4 | E68: 5 | F68: 6 | G68: 7 | H68: 8 | I68: 8 | J68: 1 | K68: 6 | L68: 7 | M68: 8 | N68: 8 | O68: 8 | P68: 8 | BO68: 2600 | BP68: =ROUND(Výpočet!C70/(($BS$14-$BT$14)*1.163),0) -> 0 | BQ68: =ROUND(Výpočet!D70/(($BS$14-$BT$14)*1.163),0) -> 204 | BR68: =ROUND(Výpočet!E70/(($BS$14-$BT$14)*1.163),0) -> 260 | BS68: =ROUND(Výpočet!F70/(($BS$14-$BT$14)*1.163),0) -> 313 | BT68: =ROUND(Výpočet!G70/(($BS$14-$BT$14)*1.163),0) -> 362 | BU68: =ROUND(Výpočet!H70/(($BS$14-$BT$14)*1.163),0) -> 409 | BV68: =ROUND(Výpočet!I70/(($BS$14-$BT$14)*1.163),0) -> 495 | BW68: =ROUND(Výpočet!J70/(($BS$14-$BT$14)*1.163),0) -> 0 | BX68: =ROUND(Výpočet!K70/(($BS$14-$BT$14)*1.163),0) -> 299 | BY68: =ROUND(Výpočet!L70/(($BS$14-$BT$14)*1.163),0) -> 378 | BZ68: =ROUND(Výpočet!M70/(($BS$14-$BT$14)*1.163),0) -> 452 | CA68: =ROUND(Výpočet!N70/(($BS$14-$BT$14)*1.163),0) -> 523 | CB68: =ROUND(Výpočet!O70/(($BS$14-$BT$14)*1.163),0) -> 592 | CC68: =ROUND(Výpočet!P70/(($BS$14-$BT$14)*1.163),0) -> 722 | CD68: 2600
A69: 1600V | B69: =Výpočet!$S$30 -> 1600 | C69: 1 | D69: 5 | E69: 6 | F69: 7 | G69: 8 | H69: 8 | I69: 8 | J69: 1 | K69: 7 | L69: 8 | M69: 8 | N69: 8 | O69: 8 | P69: 8 | BO69: 3000 | BP69: =ROUND(Výpočet!C71/(($BS$14-$BT$14)*1.163),0) -> 0 | BQ69: =ROUND(Výpočet!D71/(($BS$14-$BT$14)*1.163),0) -> 236 | BR69: =ROUND(Výpočet!E71/(($BS$14-$BT$14)*1.163),0) -> 301 | BS69: =ROUND(Výpočet!F71/(($BS$14-$BT$14)*1.163),0) -> 361 | BT69: =ROUND(Výpočet!G71/(($BS$14-$BT$14)*1.163),0) -> 418 | BU69: =ROUND(Výpočet!H71/(($BS$14-$BT$14)*1.163),0) -> 472 | BV69: =ROUND(Výpočet!I71/(($BS$14-$BT$14)*1.163),0) -> 571 | BW69: =ROUND(Výpočet!J71/(($BS$14-$BT$14)*1.163),0) -> 0 | BX69: =ROUND(Výpočet!K71/(($BS$14-$BT$14)*1.163),0) -> 345 | BY69: =ROUND(Výpočet!L71/(($BS$14-$BT$14)*1.163),0) -> 436 | BZ69: =ROUND(Výpočet!M71/(($BS$14-$BT$14)*1.163),0) -> 522 | CA69: =ROUND(Výpočet!N71/(($BS$14-$BT$14)*1.163),0) -> 604 | CB69: =ROUND(Výpočet!O71/(($BS$14-$BT$14)*1.163),0) -> 683 | CC69: =ROUND(Výpočet!P71/(($BS$14-$BT$14)*1.163),0) -> 833 | CD69: 3000
A70: 1800V | B70: =Výpočet!$S$31 -> 1800 | C70: 1 | D70: 5 | E70: 7 | F70: 8 | G70: 8 | H70: 8 | I70: 8 | J70: 1 | K70: 8 | L70: 8 | M70: 8 | N70: 8 | O70: 8 | P70: 8
A71: 2000V | B71: =Výpočet!$S$32 -> 2000 | C71: 1 | D71: 6 | E71: 7 | F71: 8 | G71: 8 | H71: 8 | I71: 8 | J71: 1 | K71: 8 | L71: 8 | M71: 8 | N71: 8 | O71: 8 | P71: 8
A72: 2300V | B72: =Výpočet!$S$33 -> 2300 | C72: 1 | D72: 7 | E72: 8 | F72: 8 | G72: 8 | H72: 8 | I72: 8 | J72: 1 | K72: 8 | L72: 8 | M72: 8 | N72: 8 | O72: 8 | P72: 8
A73: 2600V | B73: =Výpočet!$S$34 -> 2600 | C73: 1 | D73: 7 | E73: 8 | F73: 8 | G73: 8 | H73: 8 | I73: 8 | J73: 1 | K73: 8 | L73: 8 | M73: 8 | N73: 8 | O73: 8 | P73: 8
A74: 3000V | B74: =Výpočet!$S$35 -> 3000 | C74: 1 | D74: 8 | E74: 8 | F74: 8 | G74: 8 | H74: 8 | I74: 8 | J74: 1 | K74: 8 | L74: 8 | M74: 8 | N74: 8 | O74: 8 | P74: 8
AJ90: ,

Sheet Qn (hidden)
C1: DESKOVÁ OTOPNÁ TĚLESA
C2: =Logic!C3 -> T0L00 | T2: Sortiment QN
B3: =$C$2&C3 -> T0L001typ | C3: 1typ | F3: Typ | G3: =IF(SUM(S6:Y6)=0,0,SUMIF($B$19:$B$1224,$B3,G$19:G$1224)) -> 0 | M3: Typ | N3: =IF(SUM(Z6:AF6)=0,0,SUMIF($B$19:$B$1224,$B3,N$19:N$1224)) -> 11 | U3: Type | V3: =SUMIF($B$19:$B$1224,$B3,V$19:V$1224) -> 10 | AB3: Type | AC3: =SUMIF($B$19:$B$1224,$B3,AC$19:AC$1224) -> 11
B4: T0L001výška | C4: 1výška | D4: =SUMIF($B$19:$B$1224,$B4,D$19:D$1224) -> 200 | E4: 300 | F4: 400 | G4: 500 | H4: 600 | I4: 700 | J4: 900 | K4: 200 | L4: 300 | M4: 400 | N4: 500 | O4: 600 | P4: 700 | Q4: 900 | S4: =SUMIF($B$19:$B$1224,$B4,S$19:S$1224) -> 0 | T4: 0 | U4: 0 | V4: 0 | W4: =SUMIF($B$19:$B$1224,$B4,W$19:W$1224) -> 0 | X4: 0 | Y4: 0 | Z4: 0 | AA4: 1 | AB4: 1 | AC4: 1 | AD4: =SUMIF($B$19:$B$1224,$B4,AD$19:AD$1224) -> 1 | AE4: 1 | AF4: 1
B5: T0L001n = | C5: 1n = | D5: =IF(S5<>1,0,SUMIF($B$19:$B$1224,$B5,D$19:D$1224)) -> 0 | E5: 0 | F5: 0 | G5: 0 | H5: 0 | I5: 0 | J5: 0 | K5: 0 | L5: 1.2617 | M5: 1.2698 | N5: 1.2778 | O5: 1.2859 | P5: 1.2989 | Q5: 1.3249 | S5: 0 | T5: 0 | U5: 0 | V5: 0 | W5: 0 | X5: 0 | Y5: 0 | Z5: 0 | AA5: 1 | AB5: 1 | AC5: 1 | AD5: 1 | AE5: 1 | AF5: 1
B6: T0L001Qn = | C6: 1Qn = | D6: 0 | E6: 0 | F6: 0 | G6: 0 | H6: 0 | I6: 0 | J6: 0 | K6: 0 | L6: 530 | M6: 658 | N6: 780 | O6: 897 | P6: 1011 | Q6: 1231 | S6: 0 | T6: 0 | U6: 0 | V6: 0 | W6: 0 | X6: 0 | Y6: 0 | Z6: 0 | AA6: 1 | AB6: 1 | AC6: 1 | AD6: 1 | AE6: 1 | AF6: 1
B7: T0L002typ | C7: 2typ | F7: Typ | G7: =IF(SUM(S10:Y10)=0,0,SUMIF($B$19:$B$1224,$B7,G$19:G$1224)) -> 20 | M7: Typ | N7: =IF(SUM(Z10:AF10)=0,0,SUMIF($B$19:$B$1224,$B7,N$19:N$1224)) -> 21 | U7: Type | V7: 20 | AB7: Type | AC7: 21
B8: T0L002výška | C8: 2výška | D8: =SUMIF($B$19:$B$1224,$B8,D$19:D$1224) -> 200 | E8: 300 | F8: 400 | G8: 500 | H8: 600 | I8: 700 | J8: 900 | K8: 200 | L8: 300 | M8: 400 | N8: 500 | O8: 600 | P8: 700 | Q8: 900 | S8: =SUMIF($B$19:$B$1224,$B8,S$19:S$1224) -> 0 | T8: 0 | U8: 0 | V8: 1 | W8: =SUMIF($B$19:$B$1224,$B8,W$19:W$1224) -> 1 | X8: 1 | Y8: 0 | Z8: 0 | AA8: 1 | AB8: 1 | AC8: 1 | AD8: =SUMIF($B$19:$B$1224,$B8,AD$19:AD$1224) -> 1 | AE8: 1 | AF8: 1
B9: T0L002n = | C9: 2n = | D9: =IF(S9<>1,0,SUMIF($B$19:$B$1224,$B9,D$19:D$1224)) -> 0 | E9: 0 | F9: 0 | G9: 1.2895 | H9: 1.2924 | I9: 1.2988 | J9: 0 | K9: 0 | L9: 1.3019 | M9: 1.3144 | N9: 1.3268 | O9: 1.3393 | P9: 1.3446 | Q9: 1.3553 | S9: 0 | T9: 0 | U9: 0 | V9: 1 | W9: 1 | X9: 1 | Y9: 0 | Z9: 0 | AA9: 1 | AB9: 1 | AC9: 1 | AD9: 1 | AE9: 1 | AF9: 1
B10: T0L002Qn = | C10: 2Qn = | D10: 0 | E10: 0 | F10: 0 | G10: 848 | H10: 969 | I10: 1085 | J10: 0 | K10: 0 | L10: 720 | M10: 904 | N10: 1072 | O10: 1226 | P10: 1367 | Q10: 1617 | S10: 0 | T10: 0 | U10: 0 | V10: 1 | W10: 1 | X10: 1 | Y10: 0 | Z10: 0 | AA10: 1 | AB10: 1 | AC10: 1 | AD10: 1 | AE10: 1 | AF10: 1
B11: T0L003typ | C11: 3typ | F11: Typ | G11: =IF(SUM(S14:Y14)=0,0,SUMIF($B$19:$B$1224,$B11,G$19:G$1224)) -> 22 | M11: Typ | N11: =IF(SUM(Z14:AF14)=0,0,SUMIF($B$19:$B$1224,$B11,N$19:N$1224)) -> 33 | U11: Type | V11: 22 | AB11: Type | AC11: 33
B12: T0L003výška | C12: 3výška | D12: =SUMIF($B$19:$B$1224,$B12,D$19:D$1224) -> 200 | E12: 300 | F12: 400 | G12: 500 | H12: 600 | I12: 700 | J12: 900 | K12: 200 | L12: 300 | M12: 400 | N12: 500 | O12: 600 | P12: 700 | Q12: 900 | S12: =SUMIF($B$19:$B$1224,$B12,S$19:S$1224) -> 0 | T12: 1 | U12: 1 | V12: 1 | W12: =SUMIF($B$19:$B$1224,$B12,W$19:W$1224) -> 1 | X12: 1 | Y12: 1 | Z12: 0 | AA12: 1 | AB12: 1 | AC12: 1 | AD12: =SUMIF($B$19:$B$1224,$B12,AD$19:AD$1224) -> 1 | AE12: 1 | AF12: 1
B13: T0L003n = | C13: 3n = | D13: =IF(S13<>1,0,SUMIF($B$19:$B$1224,$B13,D$19:D$1224)) -> 0 | E13: 1.2863 | F13: 1.299 | G13: 1.3117 | H13: 1.3244 | I13: 1.3327 | J13: 1.3493 | K13: 0 | L13: 1.3284 | M13: 1.3252 | N13: 1.3219 | O13: 1.3187 | P13: 1.3313 | Q13: 1.3565 | S13: 0 | T13: 1 | U13: 1 | V13: 1 | W13: 1 | X13: 1 | Y13: 1 | Z13: 0 | AA13: 1 | AB13: 1 | AC13: 1 | AD13: 1 | AE13: 1 | AF13: 1
B14: T0L003Qn = | C14: 3Qn = | D14: 0 | E14: 914 | F14: 1165 | G14: 1400 | H14: 1621 | I14: 1830 | J14: 2215 | K14: 0 | L14: 1337 | M14: 1689 | N14: 2022 | O14: 2341 | P14: 2648 | Q14: 3231 | S14: 0 | T14: 1 | U14: 1 | V14: 1 | W14: 1 | X14: 1 | Y14: 1 | Z14: 0 | AA14: 1 | AB14: 1 | AC14: 1 | AD14: 1 | AE14: 1 | AF14: 1
C18: 50-00 | E18: RADIK KLASIK | T18: =$E18 -> RADIK KLASIK
B19: =C18&C19 -> 50-001typ | C19: 1typ | F19: Typ | G19: 10 | M19: Typ | N19: 11 | U19: Typ | V19: 10 | AB19: Typ | AC19: 11
B20: =C18&C20 -> 50-001výška | C20: 1výška | D20: 200 | E20: 300 | F20: 400 | G20: 500 | H20: 600 | I20: 700 | J20: 900 | K20: 200 | L20: 300 | M20: 400 | N20: 500 | O20: 600 | P20: 700 | Q20: 900 | S20: =IF(S21=0,0,1) -> 0 | T20: =IF(T21=0,0,1) -> 1 | U20: 1 | V20: 1 | W20: 1 | X20: =IF(X21=0,0,1) -> 1 | Y20: 1 | Z20: 0 | AA20: 1 | AB20: 1 | AC20: 1 | AD20: 1 | AE20: 1 | AF20: 1
B21: =C18&C21 -> 50-001n = | C21: 1n = | E21: 1.3319 | F21: 1.3193 | G21: 1.3068 | H21: 1.2942 | I21: 1.2989 | J21: 1.3083 | L21: 1.3156 | M21: 1.314 | N21: 1.3123 | O21: 1.3107 | P21: 1.314 | Q21: 1.3206 | T21: 1 | U21: 1 | V21: 1 | W21: 1 | X21: 1 | Y21: 1 | AA21: 1 | AB21: 1 | AC21: 1 | AD21: 1 | AE21: 1 | AF21: 1
B22: =C18&C22 -> 50-001Qn = | C22: 1Qn = | E22: 330 | F22: 423 | G22: 514 | H22: 604 | I22: 694 | J22: 875 | L22: 549 | M22: 708 | N22: 858 | O22: 1002 | P22: 1139 | Q22: 1394 | T22: 1 | U22: 1 | V22: 1 | W22: 1 | X22: 1 | Y22: 1 | AA22: 1 | AB22: 1 | AC22: 1 | AD22: 1 | AE22: 1 | AF22: 1
B23: =C18&C23 -> 50-002typ | C23: 2typ | F23: Typ | G23: 20 | M23: Typ | N23: 21 | U23: Typ | V23: 20 | AB23: Typ | AC23: 21
B24: =C18&C24 -> 50-002výška | C24: 2výška | D24: 200 | E24: 300 | F24: 400 | G24: 500 | H24: 600 | I24: 700 | J24: 900 | K24: 200 | L24: 300 | M24: 400 | N24: 500 | O24: 600 | P24: 700 | Q24: 900 | S24: =IF(S25=0,0,1) -> 0 | T24: 0 | U24: 0 | V24: 1 | W24: 1 | X24: 1 | Y24: 0 | Z24: 0 | AA24: 1 | AB24: 1 | AC24: 1 | AD24: 1 | AE24: 1 | AF24: 1
B25: =C18&C25 -> 50-002n = | C25: 2n = | E25: 1.2986 | F25: 1.2995 | G25: 1.3005 | H25: 1.3014 | I25: 1.3192 | J25: 1.3548 | L25: 1.3197 | M25: 1.3238 | N25: 1.3278 | O25: 1.3319 | P25: 1.3405 | Q25: 1.3578 | V25: 1 | W25: 1 | X25: 1 | AA25: 1 | AB25: 1 | AC25: 1 | AD25: 1 | AE25: 1 | AF25: 1
B26: =C18&C26 -> 50-002Qn = | C26: 2Qn = | E26: 554 | F26: 698 | G26: 838 | H26: 978 | I26: 1117 | J26: 1398 | L26: 745 | M26: 937 | N26: 1117 | O26: 1288 | P26: 1450 | Q26: 1754 | V26: 1 | W26: 1 | X26: 1 | AA26: 1 | AB26: 1 | AC26: 1 | AD26: 1 | AE26: 1 | AF26: 1
B27: =C18&C27 -> 50-003typ | C27: 3typ | F27: Typ | G27: 22 | M27: Typ | N27: 33 | U27: Typ | V27: 22 | AB27: Typ | AC27: 33
B28: =C18&C28 -> 50-003výška | C28: 3výška | D28: 200 | E28: 300 | F28: 400 | G28: 500 | H28: 600 | I28: 700 | J28: 900 | K28: 200 | L28: 300 | M28: 400 | N28: 500 | O28: 600 | P28: 700 | Q28: 900 | S28: =IF(S29=0,0,1) -> 1 | T28: 1 | U28: 1 | V28: 1 | W28: 1 | X28: 1 | Y28: 1 | Z28: 1 | AA28: 1 | AB28: 1 | AC28: 1 | AD28: 1 | AE28: 1 | AF28: 1
B29: =C18&C29 -> 50-003n = | C29: 3n = | D29: 1.256 | E29: 1.3297 | F29: 1.3316 | G29: 1.3334 | H29: 1.3353 | I29: 1.3427 | J29: 1.3574 | K29: 1.2668 | L29: 1.2977 | M29: 1.3129 | N29: 1.3282 | O29: 1.3434 | P29: 1.3498 | Q29: 1.3626 | S29: 1 | T29: 1 | U29: 1 | V29: 1 | W29: 1 | X29: 1 | Y29: 1 | Z29: 1 | AA29: 1 | AB29: 1 | AC29: 1 | AD29: 1 | AE29: 1 | AF29: 1
B30: =C18&C30 -> 50-003Qn = | C30: 3Qn = | D30: 649 | E30: 966 | F30: 1216 | G30: 1452 | H30: 1679 | I30: 1897 | J30: 2313 | K30: 934 | L30: 1379 | M30: 1738 | N30: 2079 | O30: 2406 | P30: 2723 | Q30: 3328 | S30: 1 | T30: 1 | U30: 1 | V30: 1 | W30: 1 | X30: 1 | Y30: 1 | Z30: 1 | AA30: 1 | AB30: 1 | AC30: 1 | AD30: 1 | AE30: 1 | AF30: 1
C33: 60-00 | E33: RADIK VK | T33: =$E33 -> RADIK VK
B34: =C33&C34 -> 60-001typ | C34: 1typ | F34: Typ | G34: 10 | M34: Typ | N34: 11 | U34: Typ | V34: 10 | AB34: Typ | AC34: 11
B35: =C33&C35 -> 60-001výška | C35: 1výška | D35: 200 | E35: 300 | F35: 400 | G35: 500 | H35: 600 | I35: 700 | J35: 900 | K35: 200 | L35: 300 | M35: 400 | N35: 500 | O35: 600 | P35: 700 | Q35: 900 | S35: =IF(S36=0,0,1) -> 0 | T35: 1 | U35: 1 | V35: 1 | W35: 1 | X35: 1 | Y35: 1 | Z35: 0 | AA35: 1 | AB35: 1 | AC35: 1 | AD35: 1 | AE35: 1 | AF35: 1
B36: =C33&C36 -> 60-001n = | C36: 1n = | E36: 1.3319 | F36: 1.3193 | G36: 1.3068 | H36: 1.2942 | I36: 1.2989 | J36: 1.3083 | L36: 1.3156 | M36: 1.314 | N36: 1.3123 | O36: 1.3107 | P36: 1.314 | Q36: 1.3206 | T36: 1 | U36: 1 | V36: 1 | W36: 1 | X36: 1 | Y36: 1 | AA36: 1 | AB36: 1 | AC36: 1 | AD36: 1 | AE36: 1 | AF36: 1
B37: =C33&C37 -> 60-001Qn = | C37: 1Qn = | E37: 330 | F37: 423 | G37: 514 | H37: 604 | I37: 694 | J37: 875 | L37: 549 | M37: 708 | N37: 858 | O37: 1002 | P37: 1139 | Q37: 1394 | T37: 1 | U37: 1 | V37: 1 | W37: 1 | X37: 1 | Y37: 1 | AA37: 1 | AB37: 1 | AC37: 1 | AD37: 1 | AE37: 1 | AF37: 1
B38: =C33&C38 -> 60-002typ | C38: 2typ | F38: Typ | G38: 20 | M38: Typ | N38: 21 | U38: Typ | V38: 20 | AB38: Typ | AC38: 21
B39: =C33&C39 -> 60-002výška | C39: 2výška | D39: 200 | E39: 300 | F39: 400 | G39: 500 | H39: 600 | I39: 700 | J39: 900 | K39: 200 | L39: 300 | M39: 400 | N39: 500 | O39: 600 | P39: 700 | Q39: 900 | S39: =IF(S40=0,0,1) -> 0 | T39: 0 | U39: 0 | V39: 1 | W39: 1 | X39: 1 | Y39: 0 | Z39: 0 | AA39: 1 | AB39: 1 | AC39: 1 | AD39: 1 | AE39: 1 | AF39: 1
B40: =C33&C40 -> 60-002n = | C40: 2n = | E40: 1.2986 | F40: 1.2995 | G40: 1.3005 | H40: 1.3014 | I40: 1.3192 | J40: 1.3548 | L40: 1.3197 | M40: 1.3238 | N40: 1.3278 | O40: 1.3319 | P40: 1.3405 | Q40: 1.3578 | V40: 1 | W40: 1 | X40: 1 | AA40: 1 | AB40: 1 | AC40: 1 | AD40: 1 | AE40: 1 | AF40: 1
B41: =C33&C41 -> 60-002Qn = | C41: 2Qn = | E41: 554 | F41: 698 | G41: 838 | H41: 978 | I41: 1117 | J41: 1398 | L41: 745 | M41: 937 | N41: 1117 | O41: 1288 | P41: 1450 | Q41: 1754 | V41: 1 | W41: 1 | X41: 1 | AA41: 1 | AB41: 1 | AC41: 1 | AD41: 1 | AE41: 1 | AF41: 1
B42: =C33&C42 -> 60-003typ | C42: 3typ | F42: Typ | G42: 22 | M42: Typ | N42: 33 | U42: Typ | V42: 22 | AB42: Typ | AC42: 33
B43: =C33&C43 -> 60-003výška | C43: 3výška | D43: 200 | E43: 300 | F43: 400 | G43: 500 | H43: 600 | I43: 700 | J43: 900 | K43: 200 | L43: 300 | M43: 400 | N43: 500 | O43: 600 | P43: 700 | Q43: 900 | S43: =IF(S44=0,0,1) -> 1 | T43: 1 | U43: 1 | V43: 1 | W43: 1 | X43: 1 | Y43: 1 | Z43: 1 | AA43: 1 | AB43: 1 | AC43: 1 | AD43: 1 | AE43: 1 | AF43: 1
B44: =C33&C44 -> 60-003n = | C44: 3n = | E44: 1.3297 | F44: 1.3316 | G44: 1.3334 | H44: 1.3353 | I44: 1.3427 | J44: 1.3574 | L44: 1.2977 | M44: 1.3129 | N44: 1.3282 | O44: 1.3434 | P44: 1.3498 | Q44: 1.3626 | S44: 1 | T44: 1 | U44: 1 | V44: 1 | W44: 1 | X44: 1 | Y44: 1 | Z44: 1 | AA44: 1 | AB44: 1 | AC44: 1 | AD44: 1 | AE44: 1 | AF44: 1
B45: =C33&C45 -> 60-003Qn = | C45: 3Qn = | E45: 966 | F45: 1216 | G45: 1452 | H45: 1679 | I45: 1897 | J45: 2313 | L45: 1379 | M45: 1738 | N45: 2079 | O45: 2406 | P45: 2723 | Q45: 3328 | S45: 1 | T45: 1 | U45: 1 | V45: 1 | W45: 1 | X45: 1 | Y45: 1 | Z45: 1 | AA45: 1 | AB45: 1 | AC45: 1 | AD45: 1 | AE45: 1 | AF45: 1
C48: M0-00 | E48: RADIK MM | T48: =$E48 -> RADIK MM
B49: =C48&C49 -> M0-001typ | C49: 1typ | F49: Typ | G49: 10 | M49: Typ | N49: 11 | U49: Typ | V49: 10 | AB49: Typ | AC49: 11
B50: =C48&C50 -> M0-001výška | C50: 1výška | D50: 200 | E50: 300 | F50: 400 | G50: 500 | H50: 600 | I50: 700 | J50: 900 | K50: 200 | L50: 300 | M50: 400 | N50: 500 | O50: 600 | P50: 700 | Q50: 900 | S50: =IF(S51=0,0,1) -> 0 | T50: 0 | U50: 0 | V50: 0 | W50: 0 | X50: 0 | Y50: 0 | Z50: 0 | AA50: 0 | AB50: 1 | AC50: 1 | AD50: 1 | AE50: 1 | AF50: 1
B51: =C48&C51 -> M0-001n = | C51: 1n = | E51: 1.2848 | F51: 1.2852 | G51: 1.2856 | H51: 1.286 | I51: 1.291 | J51: 1.3011 | L51: 1.2631 | M51: 1.2693 | N51: 1.2754 | O51: 1.2816 | P51: 1.2882 | Q51: 1.3014 | AB51: 1 | AC51: 1 | AD51: 1 | AE51: 1 | AF51: 1
B52: =C48&C52 -> M0-001Qn = | C52: 1Qn = | E52: 359 | F52: 464 | G52: 564 | H52: 661 | I52: 753 | J52: 927 | L52: 572 | M52: 728 | N52: 876 | O52: 1017 | P52: 1151 | Q52: 1404 | AB52: 1 | AC52: 1 | AD52: 1 | AE52: 1 | AF52: 1
B53: =C48&C53 -> M0-002typ | C53: 2typ | F53: Typ | G53: 20 | M53: Typ | N53: 21 | U53: Typ | V53: 20 | AB53: Typ | AC53: 21
B54: =C48&C54 -> M0-002výška | C54: 2výška | D54: 200 | E54: 300 | F54: 400 | G54: 500 | H54: 600 | I54: 700 | J54: 900 | K54: 200 | L54: 300 | M54: 400 | N54: 500 | O54: 600 | P54: 700 | Q54: 900 | S54: =IF(S55=0,0,1) -> 0 | T54: 0 | U54: 0 | V54: 0 | W54: 0 | X54: 0 | Y54: 0 | Z54: 0 | AA54: 0 | AB54: 1 | AC54: 1 | AD54: 1 | AE54: 1 | AF54: 1
B55: =C48&C55 -> M0-002n = | C55: 2n = | E55: 1.2893 | F55: 1.2982 | G55: 1.3071 | H55: 1.316 | I55: 1.3214 | J55: 1.3321 | L55: 1.299 | M55: 1.3075 | N55: 1.3161 | O55: 1.3246 | P55: 1.3336 | Q55: 1.3517 | AB55: 1 | AC55: 1 | AD55: 1 | AE55: 1 | AF55: 1
B56: =C48&C56 -> M0-002Qn = | C56: 2Qn = | E56: 581 | F56: 735 | G56: 884 | H56: 1032 | I56: 1178 | J56: 1469 | L56: 736 | M56: 932 | N56: 1114 | O56: 1284 | P56: 1442 | Q56: 1731 | AB56: 1 | AC56: 1 | AD56: 1 | AE56: 1 | AF56: 1
B57: =C48&C57 -> M0-003typ | C57: 3typ | F57: Typ | G57: 22 | M57: Typ | N57: 33 | U57: Typ | V57: 22 | AB57: Typ | AC57: 33
B58: =C48&C58 -> M0-003výška | C58: 3výška | D58: 200 | E58: 300 | F58: 400 | G58: 500 | H58: 600 | I58: 700 | J58: 900 | K58: 200 | L58: 300 | M58: 400 | N58: 500 | O58: 600 | P58: 700 | Q58: 900 | S58: =IF(S59=0,0,1) -> 0 | T58: 1 | U58: 1 | V58: 1 | W58: 1 | X58: 1 | Y58: 1 | Z58: 0 | AA58: 1 | AB58: 1 | AC58: 1 | AD58: 1 | AE58: 1 | AF58: 1
B59: =C48&C59 -> M0-003n = | C59: 3n = | E59: 1.2941 | F59: 1.3069 | G59: 1.3197 | H59: 1.3325 | I59: 1.3353 | J59: 1.3408 | L59: 1.3036 | M59: 1.3122 | N59: 1.3208 | O59: 1.3294 | P59: 1.3358 | Q59: 1.3487 | T59: 1 | U59: 1 | V59: 1 | W59: 1 | X59: 1 | Y59: 1 | AA59: 1 | AB59: 1 | AC59: 1 | AD59: 1 | AE59: 1 | AF59: 1
B60: =C48&C60 -> M0-003Qn = | C60: 3Qn = | E60: 982 | F60: 1233 | G60: 1472 | H60: 1702 | I60: 1925 | J60: 2357 | L60: 1279 | M60: 1665 | N60: 2028 | O60: 2369 | P60: 2687 | Q60: 3258 | T60: 1 | U60: 1 | V60: 1 | W60: 1 | X60: 1 | Y60: 1 | AA60: 1 | AB60: 1 | AC60: 1 | AD60: 1 | AE60: 1 | AF60: 1
C63: 6U-00 | E63: RADIK VKU | T63: =$E63 -> RADIK VKU
B64: =C63&C64 -> 6U-001typ | C64: 1typ | F64: Typ | G64: 10 | M64: Typ | N64: 11 | U64: Typ | V64: 10 | AB64: Typ | AC64: 11
B65: =C63&C65 -> 6U-001výška | C65: 1výška | D65: 200 | E65: 300 | F65: 400 | G65: 500 | H65: 600 | I65: 700 | J65: 900 | K65: 200 | L65: 300 | M65: 400 | N65: 500 | O65: 600 | P65: 700 | Q65: 900 | S65: =IF(S66=0,0,1) -> 0 | T65: 0 | U65: 0 | V65: 0 | W65: 0 | X65: 0 | Y65: 0 | Z65: 0 | AA65: 0 | AB65: 0 | AC65: 0 | AD65: 0 | AE65: 0 | AF65: 0
B66: =C63&C66 -> 6U-001n = | C66: 1n =
B67: =C63&C67 -> 6U-001Qn = | C67: 1Qn =
B68: =C63&C68 -> 6U-002typ | C68: 2typ | F68: Typ | G68: 20 | M68: Typ | N68: 21 | U68: Typ | V68: 20 | AB68: Typ | AC68: 21
B69: =C63&C69 -> 6U-002výška | C69: 2výška | D69: 200 | E69: 300 | F69: 400 | G69: 500 | H69: 600 | I69: 700 | J69: 900 | K69: 200 | L69: 300 | M69: 400 | N69: 500 | O69: 600 | P69: 700 | Q69: 900 | S69: =IF(S70=0,0,1) -> 0 | T69: 0 | U69: 0 | V69: 0 | W69: 0 | X69: 0 | Y69: 0 | Z69: 0 | AA69: 0 | AB69: 0 | AC69: 1 | AD69: 1 | AE69: 1 | AF69: 1
B70: =C63&C70 -> 6U-002n = | C70: 2n = | E70: 1.2986 | F70: 1.2995 | G70: 1.3005 | H70: 1.3014 | I70: 1.3192 | J70: 1.3548 | L70: 1.3197 | M70: 1.3238 | N70: 1.3278 | O70: 1.3319 | P70: 1.3405 | Q70: 1.3578 | AC70: 1 | AD70: 1 | AE70: 1 | AF70: 1
B71: =C63&C71 -> 6U-002Qn = | C71: 2Qn = | E71: 554 | F71: 698 | G71: 838 | H71: 978 | I71: 1117 | J71: 1398 | L71: 745 | M71: 937 | N71: 1117 | O71: 1288 | P71: 1450 | Q71: 1754 | AC71: 1 | AD71: 1 | AE71: 1 | AF71: 1
B72: =C63&C72 -> 6U-003typ | C72: 3typ | F72: Typ | G72: 22 | M72: Typ | N72: 33 | U72: Typ | V72: 22 | AB72: Typ | AC72: 33
B73: =C63&C73 -> 6U-003výška | C73: 3výška | D73: 200 | E73: 300 | F73: 400 | G73: 500 | H73: 600 | I73: 700 | J73: 900 | K73: 200 | L73: 300 | M73: 400 | N73: 500 | O73: 600 | P73: 700 | Q73: 900 | S73: =IF(S74=0,0,1) -> 1 | T73: 1 | U73: 1 | V73: 1 | W73: 1 | X73: 1 | Y73: 1 | Z73: 1 | AA73: 1 | AB73: 1 | AC73: 1 | AD73: 1 | AE73: 1 | AF73: 1
B74: =C63&C74 -> 6U-003n = | C74: 3n = | D74: 1.256 | E74: 1.3297 | F74: 1.3316 | G74: 1.3334 | H74: 1.3353 | I74: 1.3427 | J74: 1.3574 | K74: 1.2668 | L74: 1.2977 | M74: 1.3129 | N74: 1.3282 | O74: 1.3434 | P74: 1.3498 | Q74: 1.3626 | S74: 1 | T74: 1 | U74: 1 | V74: 1 | W74: 1 | X74: 1 | Y74: 1 | Z74: 1 | AA74: 1 | AB74: 1 | AC74: 1 | AD74: 1 | AE74: 1 | AF74: 1
